Workbook

Sheet INTRO
B2: Formulaire de Rapport Commun v.3
B4: Le but de ce formulaire de rapport commun - disponible sous forme de fichier Excel - est de mettre à disposition des autorités sanitaires nationales et des gestionnaires de données un outil standardisé qui réponde aux défis, facilite l'intégration et par conséquent contribue à améliorer la gestion de programme. Ce formulaire tend à standardiser le rapport de résultats des programmes nationaux, améliore la disponibilité et la coordination des données de chimioprévention à travers les Bureaux des Régions de l'Organisation mondiale de la Santé. Les autorités nationales sont priées de compléter ce formulaire et de le soumettre à l'Organisation mondiale de la Santé avant le 15 août de l'année en cours pour rapporter les données des activités de chimioprévention mises en oeuvre l'année précédente.
B6: Structure de l'application (feuilles de travail) :
B8: INTRO | C8: Cette feuille contient des instructions pour compléter le formulaire de rapport commun et des informations sur le statut de la chimioprévention pour les maladies d'endémie du pays.
B9: COUNTRY_INFO | C9: Cette feuille contient des informations sur la structure administrative du pays, la population par groupe d'âge, le statut d'endémicité pour chaque maladie, la population devant être traitée par chimioprévention, les interventions prévues et les interventions mises en oeuvre.
B10: MDA1, MDA2, MDA3, T1, T2 et T3 | C10: Ces feuilles contiennent des informations sur l'endémicité des districts ciblés pour le traitement aux médicaments spécifiques pour la chimioprévention, les plans de traitement, et le nombre de personnes traitées par groupe d'âge.
B11: DISTRICT | C11: Cette feuille contient un résumé sur les personnes traitées, par maladie, au niveau de mise en oeuvre. Si les données par genre (sexe) sont disponibles, merci de les saisir.
B12: SUMMARY | C12: Cette feuille contient un résumé sur les personnes traitées, par maladie et par type d'intervention de chimioprévention. Avant de générer le rapport (exécuter macro), veuillez sélectionner la maladie pour laquelle vous souhaitez un rapport. Veuillez suivre le même processus pour générer les divers rapports. Cette feuille doit être imprimée et soumise comme formulaire de rapport commun (voir les instructions pour la soumission du formulaire sous la feuille SUMMARY).
B14: Instructions pour la saisie des données
B16: La plupart des cellules des feuilles de travail mentionnées ci-dessus contiennent des formules calculées automatiquement en fonction du protocole de traitement recommandé par l'OMS pour chaque maladie. Voir : http://www.who.int/neglected_diseases/preventive_chemotherapy/pct_manual/en/index.html
B18: Veuillez entrer vos données dans les cellules en fonction de leur code de couleur :
C20: Blanc - la cellule n'est pas protégée. Veuillez entrer la valeur de l'indicateur demandé.
C22: Jaune - la cellule est protégée et inclut le nom de l'indicateur. Aucune entrée de données requise.
C24: Orange - la cellule n'est pas protégée et contient un menu déroulant. Veuillez sélectionner la valeur dans le menu déroulant.
C27: Vert - la cellule n'est pas protégée et contient des formules. Veuillez changer la valeur indiquée uniquement si vos données sont différentes de celles calculées automatiquement.
C30: Bleu - la cellule est protégée et contient des formules. Aucune entrée de données requise.
B32: Données pays
B34: PAYS | E34: Congo
B36: Année de rapport des données | E36: 2017
B38: Le pays est-il endémique à la filariose lymphatique (FL) ? | E38: Endémique
B40: Le pays est-il endémique à l'onchocercose (ONCHO) ? | E40: Endémique
B42: Le pays est-il endémique aux géohelminthiases (STH) ? | E42: Endémique
B44: Le pays est-il endémique à la schistosomiase (SCH) ? | E44: Endémique
B46: Combien d'unités administratives compte le pays ? | E46: 43
B47: Si les données démographiques par groupe d'âge ne sont pas disponibles au second niveau administratif, veuillez entrer la proportion (%) de population, par groupe d'âge, du pays. Si les données sont disponibles, veuillez laisser les cellules vierges.
B48: 1-4 ans | C48: Enfants d'âge pré-scolaire (EAPréS) | E48: 0.16
B49: 5-14 ans | C49: Enfants d'âge scolaire (EAS) | E49: 0.24
B50: 15 ans et plus | C50: Adultes | E50: 0.553

Sheet COUNTRY_INFO
A1: INFORMATIONS PAYS
A2: Structure administrative, population par groupe d'âge, statut d'endémicité, interventions planifiées et interventions mises en oeuvre
A4: TOTAL | D4: =SUM(D$9:D$1000) -> 4491142 | E4: =SUM(E$9:E$1000) -> 718583 | F4: =SUM(F$9:F$1000) -> 1077874 | G4: =SUM(G$9:G$1000) -> 2483603 | L4: =SUM(L$9:L$1000) -> 770373 | M4: =SUM(M$9:M$1000) -> 1668029 | N4: =SUM(N$9:N$1000) -> 711155 | O4: =SUM(O$9:O$1000) -> 183465.53
A6: Structure administrative du pays | D6: Population | H6: Endémicité | L6: Population nécessitant la CP | P6: Nombre de tournées de traitement prévues pour l'année | T6: Mise en oeuvre de la chimioprévention | V6: Cliquer ci-dessous pour voir la stratégie recommandée
A7: Pays | B7: Région/Département | C7: District | D7: Total | E7: EAPréS | F7: EAS | G7: Adultes | H7: FL | I7: Oncho | J7: STH | K7: SCH | L7: FL | M7: Oncho | N7: STH | O7: SCH | P7: FL | Q7: Oncho | R7: STH | S7: SCH | T7: TOURNEE 1 | U7: TOURNEE 2 | X7: IU_ID | Y7: IU_Name
A9: =IF(INTRO!$E$34<>0,INTRO!$E$34,"") -> Congo | B9: Bouenza | C9: Loudima | D9: 142827 | E9: =IF(INTRO!$E$48="","",ROUND($D9*INTRO!$E$48,0)) -> 22852 | F9: =IF(INTRO!$E$49="","",ROUND($D9*INTRO!$E$49,0)) -> 34278 | G9: =IF(INTRO!$E$50="","",ROUND($D9*INTRO!$E$50,0)) -> 78983 | H9: 0 | I9: 1 | J9: 2 | K9: 2 | L9: =IF(INTRO!$E$38="Endémique", IF($H9>0, IF($H9=4,"Inconnu", IF($H9=99,"Interrompu", $D9)), 0),"Non requis") -> 0 | M9: =IF(INTRO!$E$40="Endémique", IF($I9>0, IF($I9=4,"Inconnu",IF($I9=99,"Interrompu", $D9)), 0),"Non requis") -> 142827 | N9: =IF(INTRO!$E$42="Endémique", IF(AND($J9>1,$J9<5), IF($J9=4, "Inconnu", E9+F9), 0),"Non requis") -> 57130 | O9: =IF(INTRO!$E$44="Endémique", IF(AND($K9>0,$K9<5), IF($K9=4,"Inconnu", IF($K9=1, $F9*0.33, IF($K9=2, $F9*0.5+$G9*0.2, SUM(F9:G9)))), 0),"Non requis") -> 32935.6 | P9: 0 | Q9: 1 | R9: 1 | S9: 1 | T9: MDA3 (IVM) | U9: T1 (PZQ+ALB/MBD) | X9: 12762 | Y9: Loudima | AA9: =+Y9=C9 -> TRUE
A10: =IF(INTRO!$E$34<>0,INTRO!$E$34,"") -> Congo | B10: Bouenza | C10: Loutété | D10: 53848 | E10: =IF(INTRO!$E$48="","",ROUND($D10*INTRO!$E$48,0)) -> 8616 | F10: =IF(INTRO!$E$49="","",ROUND($D10*INTRO!$E$49,0)) -> 12924 | G10: =IF(INTRO!$E$50="","",ROUND($D10*INTRO!$E$50,0)) -> 29778 | H10: 1 | I10: 1 | J10: 2 | K10: 2 | L10: =IF(INTRO!$E$38="Endémique", IF($H10>0, IF($H10=4,"Inconnu", IF($H10=99,"Interrompu", $D10)), 0),"Non requis") -> 53848 | M10: =IF(INTRO!$E$40="Endémique", IF($I10>0, IF($I10=4,"Inconnu",IF($I10=99,"Interrompu", $D10)), 0),"Non requis") -> 53848 | N10: =IF(INTRO!$E$42="Endémique", IF(AND($J10>1,$J10<5), IF($J10=4, "Inconnu", E10+F10), 0),"Non requis") -> 21540 | O10: =IF(INTRO!$E$44="Endémique", IF(AND($K10>0,$K10<5), IF($K10=4,"Inconnu", IF($K10=1, $F10*0.33, IF($K10=2, $F10*0.5+$G10*0.2, SUM(F10:G10)))), 0),"Non requis") -> 12417.6 | P10: 1 | Q10: 1 | R10: 1 | S10: 1 | T10: MDA1 (IVM+ALB) | U10: T1 (PZQ+ALB/MBD) | X10: 12823 | Y10: Loutété | AA10: =+Y10=C10 -> TRUE
A11: =IF(INTRO!$E$34<>0,INTRO!$E$34,"") -> Congo | B11: Bouenza | C11: Madingou | D11: 106017 | E11: =IF(INTRO!$E$48="","",ROUND($D11*INTRO!$E$48,0)) -> 16963 | F11: =IF(INTRO!$E$49="","",ROUND($D11*INTRO!$E$49,0)) -> 25444 | G11: =IF(INTRO!$E$50="","",ROUND($D11*INTRO!$E$50,0)) -> 58627 | H11: 1 | I11: 1 | J11: 2 | K11: 0 | L11: =IF(INTRO!$E$38="Endémique", IF($H11>0, IF($H11=4,"Inconnu", IF($H11=99,"Interrompu", $D11)), 0),"Non requis") -> 106017 | M11: =IF(INTRO!$E$40="Endémique", IF($I11>0, IF($I11=4,"Inconnu",IF($I11=99,"Interrompu", $D11)), 0),"Non requis") -> 106017 | N11: =IF(INTRO!$E$42="Endémique", IF(AND($J11>1,$J11<5), IF($J11=4, "Inconnu", E11+F11), 0),"Non requis") -> 42407 | O11: =IF(INTRO!$E$44="Endémique", IF(AND($K11>0,$K11<5), IF($K11=4,"Inconnu", IF($K11=1, $F11*0.33, IF($K11=2, $F11*0.5+$G11*0.2, SUM(F11:G11)))), 0),"Non requis") -> 0 | P11: 1 | Q11: 1 | R11: 1 | S11: 0 | T11: MDA1 (IVM+ALB) | U11: T3 (ALB/MBD) | X11: 12763 | Y11: Madingou | AA11: TRUE
A12: =IF(INTRO!$E$34<>0,INTRO!$E$34,"") -> Congo | B12: Bouenza | C12: Mouyondzi | D12: 72971 | E12: =IF(INTRO!$E$48="","",ROUND($D12*INTRO!$E$48,0)) -> 11675 | F12: =IF(INTRO!$E$49="","",ROUND($D12*INTRO!$E$49,0)) -> 17513 | G12: =IF(INTRO!$E$50="","",ROUND($D12*INTRO!$E$50,0)) -> 40353 | H12: 1 | I12: 1 | J12: 3 | K12: 1 | L12: =IF(INTRO!$E$38="Endémique", IF($H12>0, IF($H12=4,"Inconnu", IF($H12=99,"Interrompu", $D12)), 0),"Non requis") -> 72971 | M12: =IF(INTRO!$E$40="Endémique", IF($I12>0, IF($I12=4,"Inconnu",IF($I12=99,"Interrompu", $D12)), 0),"Non requis") -> 72971 | N12: =IF(INTRO!$E$42="Endémique", IF(AND($J12>1,$J12<5), IF($J12=4, "Inconnu", E12+F12), 0),"Non requis") -> 29188 | O12: =IF(INTRO!$E$44="Endémique", IF(AND($K12>0,$K12<5), IF($K12=4,"Inconnu", IF($K12=1, $F12*0.33, IF($K12=2, $F12*0.5+$G12*0.2, SUM(F12:G12)))), 0),"Non requis") -> 5779.29 | P12: 1 | Q12: 1 | R12: 2 | S12: 1 | T12: MDA1 (IVM+ALB) | U12: T1 (PZQ+ALB/MBD) | X12: 12765 | Y12: Mouyondzi | AA12: TRUE
A13: =IF(INTRO!$E$34<>0,INTRO!$E$34,"") -> Congo | B13: Brazzaville | C13: Bacongo | D13: 120188 | E13: =IF(INTRO!$E$48="","",ROUND($D13*INTRO!$E$48,0)) -> 19230 | F13: =IF(INTRO!$E$49="","",ROUND($D13*INTRO!$E$49,0)) -> 28845 | G13: =IF(INTRO!$E$50="","",ROUND($D13*INTRO!$E$50,0)) -> 66464 | H13: 0 | I13: 1 | J13: 1 | K13: 1 | L13: =IF(INTRO!$E$38="Endémique", IF($H13>0, IF($H13=4,"Inconnu", IF($H13=99,"Interrompu", $D13)), 0),"Non requis") -> 0 | M13: =IF(INTRO!$E$40="Endémique", IF($I13>0, IF($I13=4,"Inconnu",IF($I13=99,"Interrompu", $D13)), 0),"Non requis") -> 120188 | N13: =IF(INTRO!$E$42="Endémique", IF(AND($J13>1,$J13<5), IF($J13=4, "Inconnu", E13+F13), 0),"Non requis") -> 0 | O13: =IF(INTRO!$E$44="Endémique", IF(AND($K13>0,$K13<5), IF($K13=4,"Inconnu", IF($K13=1, $F13*0.33, IF($K13=2, $F13*0.5+$G13*0.2, SUM(F13:G13)))), 0),"Non requis") -> 9518.85 | P13: 0 | Q13: 1 | R13: 1 | S13: 0 | T13: MDA3 (IVM) | U13: T3 (ALB/MBD) | X13: 12800 | Y13: Bacongo | AA13: TRUE
A14: =IF(INTRO!$E$34<>0,INTRO!$E$34,"") -> Congo | B14: Brazzaville | C14: Makélékélé | D14: 212604 | E14: =IF(INTRO!$E$48="","",ROUND($D14*INTRO!$E$48,0)) -> 34017 | F14: =IF(INTRO!$E$49="","",ROUND($D14*INTRO!$E$49,0)) -> 51025 | G14: =IF(INTRO!$E$50="","",ROUND($D14*INTRO!$E$50,0)) -> 117570 | H14: 0 | I14: 1 | J14: 1 | K14: 0 | L14: =IF(INTRO!$E$38="Endémique", IF($H14>0, IF($H14=4,"Inconnu", IF($H14=99,"Interrompu", $D14)), 0),"Non requis") -> 0 | M14: =IF(INTRO!$E$40="Endémique", IF($I14>0, IF($I14=4,"Inconnu",IF($I14=99,"Interrompu", $D14)), 0),"Non requis") -> 212604 | N14: =IF(INTRO!$E$42="Endémique", IF(AND($J14>1,$J14<5), IF($J14=4, "Inconnu", E14+F14), 0),"Non requis") -> 0 | O14: =IF(INTRO!$E$44="Endémique", IF(AND($K14>0,$K14<5), IF($K14=4,"Inconnu", IF($K14=1, $F14*0.33, IF($K14=2, $F14*0.5+$G14*0.2, SUM(F14:G14)))), 0),"Non requis") -> 0 | P14: 0 | Q14: 1 | R14: 1 | S14: 0 | T14: MDA3 (IVM) | U14: T3 (ALB/MBD) | X14: 12805 | Y14: Makélékélé | AA14: TRUE
A15: =IF(INTRO!$E$34<>0,INTRO!$E$34,"") -> Congo | B15: Brazzaville | C15: Mfilou | D15: 239238 | E15: =IF(INTRO!$E$48="","",ROUND($D15*INTRO!$E$48,0)) -> 38278 | F15: =IF(INTRO!$E$49="","",ROUND($D15*INTRO!$E$49,0)) -> 57417 | G15: =IF(INTRO!$E$50="","",ROUND($D15*INTRO!$E$50,0)) -> 132299 | H15: 0 | I15: 1 | J15: 1 | K15: 0 | L15: =IF(INTRO!$E$38="Endémique", IF($H15>0, IF($H15=4,"Inconnu", IF($H15=99,"Interrompu", $D15)), 0),"Non requis") -> 0 | M15: =IF(INTRO!$E$40="Endémique", IF($I15>0, IF($I15=4,"Inconnu",IF($I15=99,"Interrompu", $D15)), 0),"Non requis") -> 239238 | N15: =IF(INTRO!$E$42="Endémique", IF(AND($J15>1,$J15<5), IF($J15=4, "Inconnu", E15+F15), 0),"Non requis") -> 0 | O15: =IF(INTRO!$E$44="Endémique", IF(AND($K15>0,$K15<5), IF($K15=4,"Inconnu", IF($K15=1, $F15*0.33, IF($K15=2, $F15*0.5+$G15*0.2, SUM(F15:G15)))), 0),"Non requis") -> 0 | P15: 0 | Q15: 1 | R15: 1 | S15: 0 | T15: MDA3 (IVM) | U15: T3 (ALB/MBD) | X15: 12806 | Y15: Mfilou | AA15: TRUE
A16: =IF(INTRO!$E$34<>0,INTRO!$E$34,"") -> Congo | B16: Brazzaville | C16: Moungali | D16: 202969 | E16: =IF(INTRO!$E$48="","",ROUND($D16*INTRO!$E$48,0)) -> 32475 | F16: =IF(INTRO!$E$49="","",ROUND($D16*INTRO!$E$49,0)) -> 48713 | G16: =IF(INTRO!$E$50="","",ROUND($D16*INTRO!$E$50,0)) -> 112242 | H16: 0 | I16: 0 | J16: 1 | K16: 1 | L16: =IF(INTRO!$E$38="Endémique", IF($H16>0, IF($H16=4,"Inconnu", IF($H16=99,"Interrompu", $D16)), 0),"Non requis") -> 0 | M16: =IF(INTRO!$E$40="Endémique", IF($I16>0, IF($I16=4,"Inconnu",IF($I16=99,"Interrompu", $D16)), 0),"Non requis") -> 0 | N16: =IF(INTRO!$E$42="Endémique", IF(AND($J16>1,$J16<5), IF($J16=4, "Inconnu", E16+F16), 0),"Non requis") -> 0 | O16: =IF(INTRO!$E$44="Endémique", IF(AND($K16>0,$K16<5), IF($K16=4,"Inconnu", IF($K16=1, $F16*0.33, IF($K16=2, $F16*0.5+$G16*0.2, SUM(F16:G16)))), 0),"Non requis") -> 16075.29 | P16: 0 | Q16: 0 | R16: 1 | S16: 0 | U16: T3 (ALB/MBD) | X16: 12808 | Y16: Moungali | AA16: TRUE
A17: =IF(INTRO!$E$34<>0,INTRO!$E$34,"") -> Congo | B17: Brazzaville | C17: Ouenzé | D17: 221392 | E17: =IF(INTRO!$E$48="","",ROUND($D17*INTRO!$E$48,0)) -> 35423 | F17: =IF(INTRO!$E$49="","",ROUND($D17*INTRO!$E$49,0)) -> 53134 | G17: =IF(INTRO!$E$50="","",ROUND($D17*INTRO!$E$50,0)) -> 122430 | H17: 0 | I17: 0 | J17: 1 | K17: 0 | L17: =IF(INTRO!$E$38="Endémique", IF($H17>0, IF($H17=4,"Inconnu", IF($H17=99,"Interrompu", $D17)), 0),"Non requis") -> 0 | M17: =IF(INTRO!$E$40="Endémique", IF($I17>0, IF($I17=4,"Inconnu",IF($I17=99,"Interrompu", $D17)), 0),"Non requis") -> 0 | N17: =IF(INTRO!$E$42="Endémique", IF(AND($J17>1,$J17<5), IF($J17=4, "Inconnu", E17+F17), 0),"Non requis") -> 0 | O17: =IF(INTRO!$E$44="Endémique", IF(AND($K17>0,$K17<5), IF($K17=4,"Inconnu", IF($K17=1, $F17*0.33, IF($K17=2, $F17*0.5+$G17*0.2, SUM(F17:G17)))), 0),"Non requis") -> 0 | P17: 0 | Q17: 0 | R17: 1 | S17: 0 | U17: T3 (ALB/MBD) | X17: 12810 | Y17: Ouenzé | AA17: TRUE
A18: =IF(INTRO!$E$34<>0,INTRO!$E$34,"") -> Congo | B18: Brazzaville | C18: Poto-Poto | D18: 113181 | E18: =IF(INTRO!$E$48="","",ROUND($D18*INTRO!$E$48,0)) -> 18109 | F18: =IF(INTRO!$E$49="","",ROUND($D18*INTRO!$E$49,0)) -> 27163 | G18: =IF(INTRO!$E$50="","",ROUND($D18*INTRO!$E$50,0)) -> 62589 | H18: 0 | I18: 0 | J18: 1 | K18: 0 | L18: =IF(INTRO!$E$38="Endémique", IF($H18>0, IF($H18=4,"Inconnu", IF($H18=99,"Interrompu", $D18)), 0),"Non requis") -> 0 | M18: =IF(INTRO!$E$40="Endémique", IF($I18>0, IF($I18=4,"Inconnu",IF($I18=99,"Interrompu", $D18)), 0),"Non requis") -> 0 | N18: =IF(INTRO!$E$42="Endémique", IF(AND($J18>1,$J18<5), IF($J18=4, "Inconnu", E18+F18), 0),"Non requis") -> 0 | O18: =IF(INTRO!$E$44="Endémique", IF(AND($K18>0,$K18<5), IF($K18=4,"Inconnu", IF($K18=1, $F18*0.33, IF($K18=2, $F18*0.5+$G18*0.2, SUM(F18:G18)))), 0),"Non requis") -> 0 | P18: 0 | Q18: 0 | R18: 1 | S18: 0 | X18: 12811 | Y18: Poto-Poto | AA18: TRUE
A19: =IF(INTRO!$E$34<>0,INTRO!$E$34,"") -> Congo | B19: Brazzaville | C19: Talangaî | D19: 262034 | E19: =IF(INTRO!$E$48="","",ROUND($D19*INTRO!$E$48,0)) -> 41925 | F19: =IF(INTRO!$E$49="","",ROUND($D19*INTRO!$E$49,0)) -> 62888 | G19: =IF(INTRO!$E$50="","",ROUND($D19*INTRO!$E$50,0)) -> 144905 | H19: 0 | I19: 0 | J19: 1 | K19: 0 | L19: =IF(INTRO!$E$38="Endémique", IF($H19>0, IF($H19=4,"Inconnu", IF($H19=99,"Interrompu", $D19)), 0),"Non requis") -> 0 | M19: =IF(INTRO!$E$40="Endémique", IF($I19>0, IF($I19=4,"Inconnu",IF($I19=99,"Interrompu", $D19)), 0),"Non requis") -> 0 | N19: =IF(INTRO!$E$42="Endémique", IF(AND($J19>1,$J19<5), IF($J19=4, "Inconnu", E19+F19), 0),"Non requis") -> 0 | O19: =IF(INTRO!$E$44="Endémique", IF(AND($K19>0,$K19<5), IF($K19=4,"Inconnu", IF($K19=1, $F19*0.33, IF($K19=2, $F19*0.5+$G19*0.2, SUM(F19:G19)))), 0),"Non requis") -> 0 | P19: 0 | Q19: 0 | R19: 1 | S19: 0 | X19: 12812 | Y19: Talangaî | AA19: TRUE
A20: =IF(INTRO!$E$34<>0,INTRO!$E$34,"") -> Congo | B20: Brazzaville | C20: Madibou | D20: 150383 | E20: =IF(INTRO!$E$48="","",ROUND($D20*INTRO!$E$48,0)) -> 24061 | F20: =IF(INTRO!$E$49="","",ROUND($D20*INTRO!$E$49,0)) -> 36092 | G20: =IF(INTRO!$E$50="","",ROUND($D20*INTRO!$E$50,0)) -> 83162 | H20: 0 | I20: 1 | J20: 1 | K20: 0 | L20: =IF(INTRO!$E$38="Endémique", IF($H20>0, IF($H20=4,"Inconnu", IF($H20=99,"Interrompu", $D20)), 0),"Non requis") -> 0 | M20: =IF(INTRO!$E$40="Endémique", IF($I20>0, IF($I20=4,"Inconnu",IF($I20=99,"Interrompu", $D20)), 0),"Non requis") -> 150383 | N20: =IF(INTRO!$E$42="Endémique", IF(AND($J20>1,$J20<5), IF($J20=4, "Inconnu", E20+F20), 0),"Non requis") -> 0 | O20: =IF(INTRO!$E$44="Endémique", IF(AND($K20>0,$K20<5), IF($K20=4,"Inconnu", IF($K20=1, $F20*0.33, IF($K20=2, $F20*0.5+$G20*0.2, SUM(F20:G20)))), 0),"Non requis") -> 0 | P20: 0 | Q20: 1 | R20: 1 | S20: 0 | T20: MDA3 (IVM) | U20: T3 (ALB/MBD) | X20: 12824 | Y20: Madibou | AA20: TRUE
A21: =IF(INTRO!$E$34<>0,INTRO!$E$34,"") -> Congo | B21: Brazzaville | C21: Djiri | D21: 149300 | E21: =IF(INTRO!$E$48="","",ROUND($D21*INTRO!$E$48,0)) -> 23888 | F21: =IF(INTRO!$E$49="","",ROUND($D21*INTRO!$E$49,0)) -> 35832 | G21: =IF(INTRO!$E$50="","",ROUND($D21*INTRO!$E$50,0)) -> 82563 | H21: 0 | I21: 0 | J21: 1 | K21: 0 | L21: =IF(INTRO!$E$38="Endémique", IF($H21>0, IF($H21=4,"Inconnu", IF($H21=99,"Interrompu", $D21)), 0),"Non requis") -> 0 | M21: =IF(INTRO!$E$40="Endémique", IF($I21>0, IF($I21=4,"Inconnu",IF($I21=99,"Interrompu", $D21)), 0),"Non requis") -> 0 | N21: =IF(INTRO!$E$42="Endémique", IF(AND($J21>1,$J21<5), IF($J21=4, "Inconnu", E21+F21), 0),"Non requis") -> 0 | O21: =IF(INTRO!$E$44="Endémique", IF(AND($K21>0,$K21<5), IF($K21=4,"Inconnu", IF($K21=1, $F21*0.33, IF($K21=2, $F21*0.5+$G21*0.2, SUM(F21:G21)))), 0),"Non requis") -> 0 | P21: 0 | Q21: 0 | R21: 1 | S21: 0 | X21: 12821 | Y21: Djiri | AA21: TRUE
A22: =IF(INTRO!$E$34<>0,INTRO!$E$34,"") -> Congo | B22: Cuvette | C22: Mossaka Loukoléla | D22: 57225 | E22: =IF(INTRO!$E$48="","",ROUND($D22*INTRO!$E$48,0)) -> 9156 | F22: =IF(INTRO!$E$49="","",ROUND($D22*INTRO!$E$49,0)) -> 13734 | G22: =IF(INTRO!$E$50="","",ROUND($D22*INTRO!$E$50,0)) -> 31645 | H22: 0 | I22: 0 | J22: 2 | K22: 0 | L22: =IF(INTRO!$E$38="Endémique", IF($H22>0, IF($H22=4,"Inconnu", IF($H22=99,"Interrompu", $D22)), 0),"Non requis") -> 0 | M22: =IF(INTRO!$E$40="Endémique", IF($I22>0, IF($I22=4,"Inconnu",IF($I22=99,"Interrompu", $D22)), 0),"Non requis") -> 0 | N22: =IF(INTRO!$E$42="Endémique", IF(AND($J22>1,$J22<5), IF($J22=4, "Inconnu", E22+F22), 0),"Non requis") -> 22890 | O22: =IF(INTRO!$E$44="Endémique", IF(AND($K22>0,$K22<5), IF($K22=4,"Inconnu", IF($K22=1, $F22*0.33, IF($K22=2, $F22*0.5+$G22*0.2, SUM(F22:G22)))), 0),"Non requis") -> 0 | P22: 0 | Q22: 0 | R22: 1 | S22: 0 | X22: 12773 | Y22: Mossaka Loukoléla | AA22: TRUE
A23: =IF(INTRO!$E$34<>0,INTRO!$E$34,"") -> Congo | B23: Cuvette | C23: Owando | D23: 83951 | E23: =IF(INTRO!$E$48="","",ROUND($D23*INTRO!$E$48,0)) -> 13432 | F23: =IF(INTRO!$E$49="","",ROUND($D23*INTRO!$E$49,0)) -> 20148 | G23: =IF(INTRO!$E$50="","",ROUND($D23*INTRO!$E$50,0)) -> 46425 | H23: 0 | I23: 0 | J23: 1 | K23: 0 | L23: =IF(INTRO!$E$38="Endémique", IF($H23>0, IF($H23=4,"Inconnu", IF($H23=99,"Interrompu", $D23)), 0),"Non requis") -> 0 | M23: =IF(INTRO!$E$40="Endémique", IF($I23>0, IF($I23=4,"Inconnu",IF($I23=99,"Interrompu", $D23)), 0),"Non requis") -> 0 | N23: =IF(INTRO!$E$42="Endémique", IF(AND($J23>1,$J23<5), IF($J23=4, "Inconnu", E23+F23), 0),"Non requis") -> 0 | O23: =IF(INTRO!$E$44="Endémique", IF(AND($K23>0,$K23<5), IF($K23=4,"Inconnu", IF($K23=1, $F23*0.33, IF($K23=2, $F23*0.5+$G23*0.2, SUM(F23:G23)))), 0),"Non requis") -> 0 | P23: 0 | Q23: 0 | R23: 1 | S23: 0 | X23: 12775 | Y23: Owando | AA23: TRUE
A24: =IF(INTRO!$E$34<>0,INTRO!$E$34,"") -> Congo | B24: Cuvette | C24: Oyo | D24: 48574 | E24: =IF(INTRO!$E$48="","",ROUND($D24*INTRO!$E$48,0)) -> 7772 | F24: =IF(INTRO!$E$49="","",ROUND($D24*INTRO!$E$49,0)) -> 11658 | G24: =IF(INTRO!$E$50="","",ROUND($D24*INTRO!$E$50,0)) -> 26861 | H24: 0 | I24: 0 | J24: 1 | K24: 0 | L24: =IF(INTRO!$E$38="Endémique", IF($H24>0, IF($H24=4,"Inconnu", IF($H24=99,"Interrompu", $D24)), 0),"Non requis") -> 0 | M24: =IF(INTRO!$E$40="Endémique", IF($I24>0, IF($I24=4,"Inconnu",IF($I24=99,"Interrompu", $D24)), 0),"Non requis") -> 0 | N24: =IF(INTRO!$E$42="Endémique", IF(AND($J24>1,$J24<5), IF($J24=4, "Inconnu", E24+F24), 0),"Non requis") -> 0 | O24: =IF(INTRO!$E$44="Endémique", IF(AND($K24>0,$K24<5), IF($K24=4,"Inconnu", IF($K24=1, $F24*0.33, IF($K24=2, $F24*0.5+$G24*0.2, SUM(F24:G24)))), 0),"Non requis") -> 0 | P24: 0 | Q24: 0 | R24: 1 | S24: 0 | X24: 12829 | Y24: Oyo | AA24: TRUE
A25: =IF(INTRO!$E$34<>0,INTRO!$E$34,"") -> Congo | B25: Cuvette-Ouest | C25: Etoumbi | D25: 42246 | E25: =IF(INTRO!$E$48="","",ROUND($D25*INTRO!$E$48,0)) -> 6759 | F25: =IF(INTRO!$E$49="","",ROUND($D25*INTRO!$E$49,0)) -> 10139 | G25: =IF(INTRO!$E$50="","",ROUND($D25*INTRO!$E$50,0)) -> 23362 | H25: 0 | I25: 0 | J25: 2 | K25: 0 | L25: =IF(INTRO!$E$38="Endémique", IF($H25>0, IF($H25=4,"Inconnu", IF($H25=99,"Interrompu", $D25)), 0),"Non requis") -> 0 | M25: =IF(INTRO!$E$40="Endémique", IF($I25>0, IF($I25=4,"Inconnu",IF($I25=99,"Interrompu", $D25)), 0),"Non requis") -> 0 | N25: =IF(INTRO!$E$42="Endémique", IF(AND($J25>1,$J25<5), IF($J25=4, "Inconnu", E25+F25), 0),"Non requis") -> 16898 | O25: =IF(INTRO!$E$44="Endémique", IF(AND($K25>0,$K25<5), IF($K25=4,"Inconnu", IF($K25=1, $F25*0.33, IF($K25=2, $F25*0.5+$G25*0.2, SUM(F25:G25)))), 0),"Non requis") -> 0 | P25: 0 | Q25: 0 | R25: 1 | S25: 0 | X25: 12822 | Y25: Etoumbi | AA25: TRUE
A26: =IF(INTRO!$E$34<>0,INTRO!$E$34,"") -> Congo | B26: Cuvette-Ouest | C26: Ewo | D26: 46482 | E26: =IF(INTRO!$E$48="","",ROUND($D26*INTRO!$E$48,0)) -> 7437 | F26: =IF(INTRO!$E$49="","",ROUND($D26*INTRO!$E$49,0)) -> 11156 | G26: =IF(INTRO!$E$50="","",ROUND($D26*INTRO!$E$50,0)) -> 25705 | H26: 0 | I26: 0 | J26: 2 | K26: 0 | L26: =IF(INTRO!$E$38="Endémique", IF($H26>0, IF($H26=4,"Inconnu", IF($H26=99,"Interrompu", $D26)), 0),"Non requis") -> 0 | M26: =IF(INTRO!$E$40="Endémique", IF($I26>0, IF($I26=4,"Inconnu",IF($I26=99,"Interrompu", $D26)), 0),"Non requis") -> 0 | N26: =IF(INTRO!$E$42="Endémique", IF(AND($J26>1,$J26<5), IF($J26=4, "Inconnu", E26+F26), 0),"Non requis") -> 18593 | O26: =IF(INTRO!$E$44="Endémique", IF(AND($K26>0,$K26<5), IF($K26=4,"Inconnu", IF($K26=1, $F26*0.33, IF($K26=2, $F26*0.5+$G26*0.2, SUM(F26:G26)))), 0),"Non requis") -> 0 | P26: 0 | Q26: 0 | R26: 1 | S26: 0 | X26: 12768 | Y26: Ewo | AA26: TRUE
A27: =IF(INTRO!$E$34<>0,INTRO!$E$34,"") -> Congo | B27: Kouilou | C27: Hinda-Mvouti | D27: 82346 | E27: =IF(INTRO!$E$48="","",ROUND($D27*INTRO!$E$48,0)) -> 13175 | F27: =IF(INTRO!$E$49="","",ROUND($D27*INTRO!$E$49,0)) -> 19763 | G27: =IF(INTRO!$E$50="","",ROUND($D27*INTRO!$E$50,0)) -> 45537 | H27: 0 | I27: 0 | J27: 3 | K27: 2 | L27: =IF(INTRO!$E$38="Endémique", IF($H27>0, IF($H27=4,"Inconnu", IF($H27=99,"Interrompu", $D27)), 0),"Non requis") -> 0 | M27: =IF(INTRO!$E$40="Endémique", IF($I27>0, IF($I27=4,"Inconnu",IF($I27=99,"Interrompu", $D27)), 0),"Non requis") -> 0 | N27: =IF(INTRO!$E$42="Endémique", IF(AND($J27>1,$J27<5), IF($J27=4, "Inconnu", E27+F27), 0),"Non requis") -> 32938 | O27: =IF(INTRO!$E$44="Endémique", IF(AND($K27>0,$K27<5), IF($K27=4,"Inconnu", IF($K27=1, $F27*0.33, IF($K27=2, $F27*0.5+$G27*0.2, SUM(F27:G27)))), 0),"Non requis") -> 18988.9 | P27: 0 | Q27: 1 | R27: 2 | S27: 1 | T27: MDA3 (IVM) | U27: T1 (PZQ+ALB/MBD) | X27: 12781 | Y27: Hinda-Mvouti | AA27: TRUE
A28: =IF(INTRO!$E$34<>0,INTRO!$E$34,"") -> Congo | B28: Kouilou | C28: Madingo Kayes | D28: 29466 | E28: =IF(INTRO!$E$48="","",ROUND($D28*INTRO!$E$48,0)) -> 4715 | F28: =IF(INTRO!$E$49="","",ROUND($D28*INTRO!$E$49,0)) -> 7072 | G28: =IF(INTRO!$E$50="","",ROUND($D28*INTRO!$E$50,0)) -> 16295 | H28: 0 | I28: 1 | J28: 3 | K28: 2 | L28: =IF(INTRO!$E$38="Endémique", IF($H28>0, IF($H28=4,"Inconnu", IF($H28=99,"Interrompu", $D28)), 0),"Non requis") -> 0 | M28: =IF(INTRO!$E$40="Endémique", IF($I28>0, IF($I28=4,"Inconnu",IF($I28=99,"Interrompu", $D28)), 0),"Non requis") -> 29466 | N28: =IF(INTRO!$E$42="Endémique", IF(AND($J28>1,$J28<5), IF($J28=4, "Inconnu", E28+F28), 0),"Non requis") -> 11787 | O28: =IF(INTRO!$E$44="Endémique", IF(AND($K28>0,$K28<5), IF($K28=4,"Inconnu", IF($K28=1, $F28*0.33, IF($K28=2, $F28*0.5+$G28*0.2, SUM(F28:G28)))), 0),"Non requis") -> 6795 | P28: 0 | Q28: 1 | R28: 2 | S28: 1 | T28: MDA3 (IVM) | U28: T1 (PZQ+ALB/MBD) | X28: 12816 | Y28: Madingo Kayes | AA28: TRUE
A29: =IF(INTRO!$E$34<>0,INTRO!$E$34,"") -> Congo | B29: Lékoumou | C29: Sibiti | D29: 90984 | E29: =IF(INTRO!$E$48="","",ROUND($D29*INTRO!$E$48,0)) -> 14557 | F29: =IF(INTRO!$E$49="","",ROUND($D29*INTRO!$E$49,0)) -> 21836 | G29: =IF(INTRO!$E$50="","",ROUND($D29*INTRO!$E$50,0)) -> 50314 | H29: 0 | I29: 1 | J29: 3 | K29: 2 | L29: =IF(INTRO!$E$38="Endémique", IF($H29>0, IF($H29=4,"Inconnu", IF($H29=99,"Interrompu", $D29)), 0),"Non requis") -> 0 | M29: =IF(INTRO!$E$40="Endémique", IF($I29>0, IF($I29=4,"Inconnu",IF($I29=99,"Interrompu", $D29)), 0),"Non requis") -> 90984 | N29: =IF(INTRO!$E$42="Endémique", IF(AND($J29>1,$J29<5), IF($J29=4, "Inconnu", E29+F29), 0),"Non requis") -> 36393 | O29: =IF(INTRO!$E$44="Endémique", IF(AND($K29>0,$K29<5), IF($K29=4,"Inconnu", IF($K29=1, $F29*0.33, IF($K29=2, $F29*0.5+$G29*0.2, SUM(F29:G29)))), 0),"Non requis") -> 20980.8 | P29: 0 | Q29: 1 | R29: 2 | S29: 1 | T29: MDA3 (IVM) | U29: T1 (PZQ+ALB/MBD) | X29: 12784 | Y29: Sibiti | AA29: TRUE
A30: =IF(INTRO!$E$34<>0,INTRO!$E$34,"") -> Congo | B30: Lékoumou | C30: Zanaga | D30: 26197 | E30: =IF(INTRO!$E$48="","",ROUND($D30*INTRO!$E$48,0)) -> 4192 | F30: =IF(INTRO!$E$49="","",ROUND($D30*INTRO!$E$49,0)) -> 6287 | G30: =IF(INTRO!$E$50="","",ROUND($D30*INTRO!$E$50,0)) -> 14487 | H30: 0 | I30: 0 | J30: 2 | K30: 0 | L30: =IF(INTRO!$E$38="Endémique", IF($H30>0, IF($H30=4,"Inconnu", IF($H30=99,"Interrompu", $D30)), 0),"Non requis") -> 0 | M30: =IF(INTRO!$E$40="Endémique", IF($I30>0, IF($I30=4,"Inconnu",IF($I30=99,"Interrompu", $D30)), 0),"Non requis") -> 0 | N30: =IF(INTRO!$E$42="Endémique", IF(AND($J30>1,$J30<5), IF($J30=4, "Inconnu", E30+F30), 0),"Non requis") -> 10479 | O30: =IF(INTRO!$E$44="Endémique", IF(AND($K30>0,$K30<5), IF($K30=4,"Inconnu", IF($K30=1, $F30*0.33, IF($K30=2, $F30*0.5+$G30*0.2, SUM(F30:G30)))), 0),"Non requis") -> 0 | P30: 0 | Q30: 0 | R30: 1 | S30: 0 | X30: 12785 | Y30: Zanaga | AA30: TRUE
A31: =IF(INTRO!$E$34<>0,INTRO!$E$34,"") -> Congo | B31: Likouala | C31: Bétou | D31: 61910 | E31: =IF(INTRO!$E$48="","",ROUND($D31*INTRO!$E$48,0)) -> 9906 | F31: =IF(INTRO!$E$49="","",ROUND($D31*INTRO!$E$49,0)) -> 14858 | G31: =IF(INTRO!$E$50="","",ROUND($D31*INTRO!$E$50,0)) -> 34236 | H31: 0 | I31: 0 | J31: 2 | K31: 0 | L31: =IF(INTRO!$E$38="Endémique", IF($H31>0, IF($H31=4,"Inconnu", IF($H31=99,"Interrompu", $D31)), 0),"Non requis") -> 0 | M31: =IF(INTRO!$E$40="Endémique", IF($I31>0, IF($I31=4,"Inconnu",IF($I31=99,"Interrompu", $D31)), 0),"Non requis") -> 0 | N31: =IF(INTRO!$E$42="Endémique", IF(AND($J31>1,$J31<5), IF($J31=4, "Inconnu", E31+F31), 0),"Non requis") -> 24764 | O31: =IF(INTRO!$E$44="Endémique", IF(AND($K31>0,$K31<5), IF($K31=4,"Inconnu", IF($K31=1, $F31*0.33, IF($K31=2, $F31*0.5+$G31*0.2, SUM(F31:G31)))), 0),"Non requis") -> 0 | P31: 0 | Q31: 0 | R31: 1 | S31: 0 | X31: 12786 | Y31: Bétou | AA31: TRUE
A32: =IF(INTRO!$E$34<>0,INTRO!$E$34,"") -> Congo | B32: Likouala | C32: Impfondo | D32: 125428 | E32: =IF(INTRO!$E$48="","",ROUND($D32*INTRO!$E$48,0)) -> 20068 | F32: =IF(INTRO!$E$49="","",ROUND($D32*INTRO!$E$49,0)) -> 30103 | G32: =IF(INTRO!$E$50="","",ROUND($D32*INTRO!$E$50,0)) -> 69362 | H32: 1 | I32: 0 | J32: 2 | K32: 0 | L32: =IF(INTRO!$E$38="Endémique", IF($H32>0, IF($H32=4,"Inconnu", IF($H32=99,"Interrompu", $D32)), 0),"Non requis") -> 125428 | M32: =IF(INTRO!$E$40="Endémique", IF($I32>0, IF($I32=4,"Inconnu",IF($I32=99,"Interrompu", $D32)), 0),"Non requis") -> 0 | N32: =IF(INTRO!$E$42="Endémique", IF(AND($J32>1,$J32<5), IF($J32=4, "Inconnu", E32+F32), 0),"Non requis") -> 50171 | O32: =IF(INTRO!$E$44="Endémique", IF(AND($K32>0,$K32<5), IF($K32=4,"Inconnu", IF($K32=1, $F32*0.33, IF($K32=2, $F32*0.5+$G32*0.2, SUM(F32:G32)))), 0),"Non requis") -> 0 | P32: 0 | Q32: 0 | R32: 1 | S32: 0 | X32: 12789 | Y32: Impfondo | AA32: TRUE
A33: =IF(INTRO!$E$34<>0,INTRO!$E$34,"") -> Congo | B33: Niari | C33: Dolisie | D33: 169051 | E33: =IF(INTRO!$E$48="","",ROUND($D33*INTRO!$E$48,0)) -> 27048 | F33: =IF(INTRO!$E$49="","",ROUND($D33*INTRO!$E$49,0)) -> 40572 | G33: =IF(INTRO!$E$50="","",ROUND($D33*INTRO!$E$50,0)) -> 93485 | H33: 1 | I33: 1 | J33: 3 | K33: 1 | L33: =IF(INTRO!$E$38="Endémique", IF($H33>0, IF($H33=4,"Inconnu", IF($H33=99,"Interrompu", $D33)), 0),"Non requis") -> 169051 | M33: =IF(INTRO!$E$40="Endémique", IF($I33>0, IF($I33=4,"Inconnu",IF($I33=99,"Interrompu", $D33)), 0),"Non requis") -> 169051 | N33: =IF(INTRO!$E$42="Endémique", IF(AND($J33>1,$J33<5), IF($J33=4, "Inconnu", E33+F33), 0),"Non requis") -> 67620 | O33: =IF(INTRO!$E$44="Endémique", IF(AND($K33>0,$K33<5), IF($K33=4,"Inconnu", IF($K33=1, $F33*0.33, IF($K33=2, $F33*0.5+$G33*0.2, SUM(F33:G33)))), 0),"Non requis") -> 13388.76 | P33: 1 | Q33: 1 | R33: 1 | S33: 0 | T33: MDA1 (IVM+ALB) | U33: T3 (ALB/MBD) | X33: 12827 | Y33: Dolisie | AA33: TRUE
A34: =IF(INTRO!$E$34<>0,INTRO!$E$34,"") -> Congo | B34: Niari | C34: Kibangou | D34: 58019 | E34: =IF(INTRO!$E$48="","",ROUND($D34*INTRO!$E$48,0)) -> 9283 | F34: =IF(INTRO!$E$49="","",ROUND($D34*INTRO!$E$49,0)) -> 13925 | G34: =IF(INTRO!$E$50="","",ROUND($D34*INTRO!$E$50,0)) -> 32085 | H34: 1 | I34: 1 | J34: 3 | K34: 0 | L34: =IF(INTRO!$E$38="Endémique", IF($H34>0, IF($H34=4,"Inconnu", IF($H34=99,"Interrompu", $D34)), 0),"Non requis") -> 58019 | M34: =IF(INTRO!$E$40="Endémique", IF($I34>0, IF($I34=4,"Inconnu",IF($I34=99,"Interrompu", $D34)), 0),"Non requis") -> 58019 | N34: =IF(INTRO!$E$42="Endémique", IF(AND($J34>1,$J34<5), IF($J34=4, "Inconnu", E34+F34), 0),"Non requis") -> 23208 | O34: =IF(INTRO!$E$44="Endémique", IF(AND($K34>0,$K34<5), IF($K34=4,"Inconnu", IF($K34=1, $F34*0.33, IF($K34=2, $F34*0.5+$G34*0.2, SUM(F34:G34)))), 0),"Non requis") -> 0 | P34: 1 | Q34: 1 | R34: 1 | S34: 0 | T34: MDA1 (IVM+ALB) | U34: T3 (ALB/MBD) | X34: 12791 | Y34: Kibangou | AA34: TRUE
A35: =IF(INTRO!$E$34<>0,INTRO!$E$34,"") -> Congo | B35: Niari | C35: Mossendjo | D35: 54021 | E35: =IF(INTRO!$E$48="","",ROUND($D35*INTRO!$E$48,0)) -> 8643 | F35: =IF(INTRO!$E$49="","",ROUND($D35*INTRO!$E$49,0)) -> 12965 | G35: =IF(INTRO!$E$50="","",ROUND($D35*INTRO!$E$50,0)) -> 29874 | H35: 0 | I35: 0 | J35: 3 | K35: 0 | L35: =IF(INTRO!$E$38="Endémique", IF($H35>0, IF($H35=4,"Inconnu", IF($H35=99,"Interrompu", $D35)), 0),"Non requis") -> 0 | M35: =IF(INTRO!$E$40="Endémique", IF($I35>0, IF($I35=4,"Inconnu",IF($I35=99,"Interrompu", $D35)), 0),"Non requis") -> 0 | N35: =IF(INTRO!$E$42="Endémique", IF(AND($J35>1,$J35<5), IF($J35=4, "Inconnu", E35+F35), 0),"Non requis") -> 21608 | O35: =IF(INTRO!$E$44="Endémique", IF(AND($K35>0,$K35<5), IF($K35=4,"Inconnu", IF($K35=1, $F35*0.33, IF($K35=2, $F35*0.5+$G35*0.2, SUM(F35:G35)))), 0),"Non requis") -> 0 | P35: 0 | Q35: 0 | R35: 1 | S35: 0 | X35: 12795 | Y35: Mossendjo | AA35: TRUE
A36: =IF(INTRO!$E$34<>0,INTRO!$E$34,"") -> Congo | B36: Plateaux | C36: Abala | D36: 45223 | E36: =IF(INTRO!$E$48="","",ROUND($D36*INTRO!$E$48,0)) -> 7236 | F36: =IF(INTRO!$E$49="","",ROUND($D36*INTRO!$E$49,0)) -> 10854 | G36: =IF(INTRO!$E$50="","",ROUND($D36*INTRO!$E$50,0)) -> 25008 | H36: 0 | I36: 0 | J36: 1 | K36: 0 | L36: =IF(INTRO!$E$38="Endémique", IF($H36>0, IF($H36=4,"Inconnu", IF($H36=99,"Interrompu", $D36)), 0),"Non requis") -> 0 | M36: =IF(INTRO!$E$40="Endémique", IF($I36>0, IF($I36=4,"Inconnu",IF($I36=99,"Interrompu", $D36)), 0),"Non requis") -> 0 | N36: =IF(INTRO!$E$42="Endémique", IF(AND($J36>1,$J36<5), IF($J36=4, "Inconnu", E36+F36), 0),"Non requis") -> 0 | O36: =IF(INTRO!$E$44="Endémique", IF(AND($K36>0,$K36<5), IF($K36=4,"Inconnu", IF($K36=1, $F36*0.33, IF($K36=2, $F36*0.5+$G36*0.2, SUM(F36:G36)))), 0),"Non requis") -> 0 | P36: 0 | Q36: 0 | R36: 1 | S36: 0 | X36: 12830 | Y36: Abala | AA36: TRUE
A37: =IF(INTRO!$E$34<>0,INTRO!$E$34,"") -> Congo | B37: Plateaux | C37: Djambala-Lékana | D37: 76843 | E37: =IF(INTRO!$E$48="","",ROUND($D37*INTRO!$E$48,0)) -> 12295 | F37: =IF(INTRO!$E$49="","",ROUND($D37*INTRO!$E$49,0)) -> 18442 | G37: =IF(INTRO!$E$50="","",ROUND($D37*INTRO!$E$50,0)) -> 42494 | H37: 0 | I37: 0 | J37: 3 | K37: 0 | L37: =IF(INTRO!$E$38="Endémique", IF($H37>0, IF($H37=4,"Inconnu", IF($H37=99,"Interrompu", $D37)), 0),"Non requis") -> 0 | M37: =IF(INTRO!$E$40="Endémique", IF($I37>0, IF($I37=4,"Inconnu",IF($I37=99,"Interrompu", $D37)), 0),"Non requis") -> 0 | N37: =IF(INTRO!$E$42="Endémique", IF(AND($J37>1,$J37<5), IF($J37=4, "Inconnu", E37+F37), 0),"Non requis") -> 30737 | O37: =IF(INTRO!$E$44="Endémique", IF(AND($K37>0,$K37<5), IF($K37=4,"Inconnu", IF($K37=1, $F37*0.33, IF($K37=2, $F37*0.5+$G37*0.2, SUM(F37:G37)))), 0),"Non requis") -> 0 | P37: 0 | Q37: 0 | R37: 1 | S37: 0 | X37: 12797 | Y37: Djambala-Lékana | AA37: TRUE
A38: =IF(INTRO!$E$34<>0,INTRO!$E$34,"") -> Congo | B38: Plateaux | C38: Gamboma | D38: 90141 | E38: =IF(INTRO!$E$48="","",ROUND($D38*INTRO!$E$48,0)) -> 14423 | F38: =IF(INTRO!$E$49="","",ROUND($D38*INTRO!$E$49,0)) -> 21634 | G38: =IF(INTRO!$E$50="","",ROUND($D38*INTRO!$E$50,0)) -> 49848 | H38: 0 | I38: 0 | J38: 3 | K38: 0 | L38: =IF(INTRO!$E$38="Endémique", IF($H38>0, IF($H38=4,"Inconnu", IF($H38=99,"Interrompu", $D38)), 0),"Non requis") -> 0 | M38: =IF(INTRO!$E$40="Endémique", IF($I38>0, IF($I38=4,"Inconnu",IF($I38=99,"Interrompu", $D38)), 0),"Non requis") -> 0 | N38: =IF(INTRO!$E$42="Endémique", IF(AND($J38>1,$J38<5), IF($J38=4, "Inconnu", E38+F38), 0),"Non requis") -> 36057 | O38: =IF(INTRO!$E$44="Endémique", IF(AND($K38>0,$K38<5), IF($K38=4,"Inconnu", IF($K38=1, $F38*0.33, IF($K38=2, $F38*0.5+$G38*0.2, SUM(F38:G38)))), 0),"Non requis") -> 0 | P38: 0 | Q38: 0 | R38: 1 | S38: 0 | X38: 12798 | Y38: Gamboma | AA38: TRUE
A39: =IF(INTRO!$E$34<>0,INTRO!$E$34,"") -> Congo | B39: Pointe-Noire | C39: Ngoyo | D39: 31955 | E39: =IF(INTRO!$E$48="","",ROUND($D39*INTRO!$E$48,0)) -> 5113 | F39: =IF(INTRO!$E$49="","",ROUND($D39*INTRO!$E$49,0)) -> 7669 | G39: =IF(INTRO!$E$50="","",ROUND($D39*INTRO!$E$50,0)) -> 17671 | H39: 0 | I39: 0 | J39: 1 | K39: 0 | L39: =IF(INTRO!$E$38="Endémique", IF($H39>0, IF($H39=4,"Inconnu", IF($H39=99,"Interrompu", $D39)), 0),"Non requis") -> 0 | M39: =IF(INTRO!$E$40="Endémique", IF($I39>0, IF($I39=4,"Inconnu",IF($I39=99,"Interrompu", $D39)), 0),"Non requis") -> 0 | N39: =IF(INTRO!$E$42="Endémique", IF(AND($J39>1,$J39<5), IF($J39=4, "Inconnu", E39+F39), 0),"Non requis") -> 0 | O39: =IF(INTRO!$E$44="Endémique", IF(AND($K39>0,$K39<5), IF($K39=4,"Inconnu", IF($K39=1, $F39*0.33, IF($K39=2, $F39*0.5+$G39*0.2, SUM(F39:G39)))), 0),"Non requis") -> 0 | P39: 0 | Q39: 0 | R39: 1 | S39: 0 | X39: 12826 | Y39: Ngoyo | AA39: TRUE
A40: =IF(INTRO!$E$34<>0,INTRO!$E$34,"") -> Congo | B40: Pointe-Noire | C40: Mongo-Poukou | D40: 111634 | E40: =IF(INTRO!$E$48="","",ROUND($D40*INTRO!$E$48,0)) -> 17861 | F40: =IF(INTRO!$E$49="","",ROUND($D40*INTRO!$E$49,0)) -> 26792 | G40: =IF(INTRO!$E$50="","",ROUND($D40*INTRO!$E$50,0)) -> 61734 | H40: 0 | I40: 0 | J40: 1 | K40: 0 | L40: =IF(INTRO!$E$38="Endémique", IF($H40>0, IF($H40=4,"Inconnu", IF($H40=99,"Interrompu", $D40)), 0),"Non requis") -> 0 | M40: =IF(INTRO!$E$40="Endémique", IF($I40>0, IF($I40=4,"Inconnu",IF($I40=99,"Interrompu", $D40)), 0),"Non requis") -> 0 | N40: =IF(INTRO!$E$42="Endémique", IF(AND($J40>1,$J40<5), IF($J40=4, "Inconnu", E40+F40), 0),"Non requis") -> 0 | O40: =IF(INTRO!$E$44="Endémique", IF(AND($K40>0,$K40<5), IF($K40=4,"Inconnu", IF($K40=1, $F40*0.33, IF($K40=2, $F40*0.5+$G40*0.2, SUM(F40:G40)))), 0),"Non requis") -> 0 | P40: 0 | Q40: 0 | R40: 1 | S40: 0 | X40: 12825 | Y40: Mongo-Poukou | AA40: TRUE
A41: =IF(INTRO!$E$34<>0,INTRO!$E$34,"") -> Congo | B41: Pointe-Noire | C41: Loandjili | D41: 203399 | E41: =IF(INTRO!$E$48="","",ROUND($D41*INTRO!$E$48,0)) -> 32544 | F41: =IF(INTRO!$E$49="","",ROUND($D41*INTRO!$E$49,0)) -> 48816 | G41: =IF(INTRO!$E$50="","",ROUND($D41*INTRO!$E$50,0)) -> 112480 | H41: 0 | I41: 0 | J41: 1 | K41: 1 | L41: =IF(INTRO!$E$38="Endémique", IF($H41>0, IF($H41=4,"Inconnu", IF($H41=99,"Interrompu", $D41)), 0),"Non requis") -> 0 | M41: =IF(INTRO!$E$40="Endémique", IF($I41>0, IF($I41=4,"Inconnu",IF($I41=99,"Interrompu", $D41)), 0),"Non requis") -> 0 | N41: =IF(INTRO!$E$42="Endémique", IF(AND($J41>1,$J41<5), IF($J41=4, "Inconnu", E41+F41), 0),"Non requis") -> 0 | O41: =IF(INTRO!$E$44="Endémique", IF(AND($K41>0,$K41<5), IF($K41=4,"Inconnu", IF($K41=1, $F41*0.33, IF($K41=2, $F41*0.5+$G41*0.2, SUM(F41:G41)))), 0),"Non requis") -> 16109.28 | P41: 0 | Q41: 0 | R41: 1 | S41: 0 | X41: 12777 | Y41: Loandjili | AA41: TRUE
A42: =IF(INTRO!$E$34<>0,INTRO!$E$34,"") -> Congo | B42: Pointe-Noire | C42: Lumumba | D42: 132430 | E42: =IF(INTRO!$E$48="","",ROUND($D42*INTRO!$E$48,0)) -> 21189 | F42: =IF(INTRO!$E$49="","",ROUND($D42*INTRO!$E$49,0)) -> 31783 | G42: =IF(INTRO!$E$50="","",ROUND($D42*INTRO!$E$50,0)) -> 73234 | H42: 0 | I42: 0 | J42: 1 | K42: 0 | L42: =IF(INTRO!$E$38="Endémique", IF($H42>0, IF($H42=4,"Inconnu", IF($H42=99,"Interrompu", $D42)), 0),"Non requis") -> 0 | M42: =IF(INTRO!$E$40="Endémique", IF($I42>0, IF($I42=4,"Inconnu",IF($I42=99,"Interrompu", $D42)), 0),"Non requis") -> 0 | N42: =IF(INTRO!$E$42="Endémique", IF(AND($J42>1,$J42<5), IF($J42=4, "Inconnu", E42+F42), 0),"Non requis") -> 0 | O42: =IF(INTRO!$E$44="Endémique", IF(AND($K42>0,$K42<5), IF($K42=4,"Inconnu", IF($K42=1, $F42*0.33, IF($K42=2, $F42*0.5+$G42*0.2, SUM(F42:G42)))), 0),"Non requis") -> 0 | P42: 0 | Q42: 0 | R42: 1 | S42: 0 | X42: 12778 | Y42: Lumumba | AA42: TRUE
A43: =IF(INTRO!$E$34<>0,INTRO!$E$34,"") -> Congo | B43: Pointe-Noire | C43: Mvoumvou | D43: 106100 | E43: =IF(INTRO!$E$48="","",ROUND($D43*INTRO!$E$48,0)) -> 16976 | F43: =IF(INTRO!$E$49="","",ROUND($D43*INTRO!$E$49,0)) -> 25464 | G43: =IF(INTRO!$E$50="","",ROUND($D43*INTRO!$E$50,0)) -> 58673 | H43: 0 | I43: 0 | J43: 1 | K43: 1 | L43: =IF(INTRO!$E$38="Endémique", IF($H43>0, IF($H43=4,"Inconnu", IF($H43=99,"Interrompu", $D43)), 0),"Non requis") -> 0 | M43: =IF(INTRO!$E$40="Endémique", IF($I43>0, IF($I43=4,"Inconnu",IF($I43=99,"Interrompu", $D43)), 0),"Non requis") -> 0 | N43: =IF(INTRO!$E$42="Endémique", IF(AND($J43>1,$J43<5), IF($J43=4, "Inconnu", E43+F43), 0),"Non requis") -> 0 | O43: =IF(INTRO!$E$44="Endémique", IF(AND($K43>0,$K43<5), IF($K43=4,"Inconnu", IF($K43=1, $F43*0.33, IF($K43=2, $F43*0.5+$G43*0.2, SUM(F43:G43)))), 0),"Non requis") -> 8403.12 | P43: 0 | Q43: 0 | R43: 1 | S43: 0 | X43: 12780 | Y43: Mvoumvou | AA43: TRUE
A44: =IF(INTRO!$E$34<>0,INTRO!$E$34,"") -> Congo | B44: Pointe-Noire | C44: Tie-Tie | D44: 278698 | E44: =IF(INTRO!$E$48="","",ROUND($D44*INTRO!$E$48,0)) -> 44592 | F44: =IF(INTRO!$E$49="","",ROUND($D44*INTRO!$E$49,0)) -> 66888 | G44: =IF(INTRO!$E$50="","",ROUND($D44*INTRO!$E$50,0)) -> 154120 | H44: 0 | I44: 0 | J44: 1 | K44: 1 | L44: =IF(INTRO!$E$38="Endémique", IF($H44>0, IF($H44=4,"Inconnu", IF($H44=99,"Interrompu", $D44)), 0),"Non requis") -> 0 | M44: =IF(INTRO!$E$40="Endémique", IF($I44>0, IF($I44=4,"Inconnu",IF($I44=99,"Interrompu", $D44)), 0),"Non requis") -> 0 | N44: =IF(INTRO!$E$42="Endémique", IF(AND($J44>1,$J44<5), IF($J44=4, "Inconnu", E44+F44), 0),"Non requis") -> 0 | O44: =IF(INTRO!$E$44="Endémique", IF(AND($K44>0,$K44<5), IF($K44=4,"Inconnu", IF($K44=1, $F44*0.33, IF($K44=2, $F44*0.5+$G44*0.2, SUM(F44:G44)))), 0),"Non requis") -> 22073.04 | P44: 0 | Q44: 0 | R44: 1 | S44: 0 | X44: 12819 | Y44: Tie-Tie | AA44: TRUE
A45: =IF(INTRO!$E$34<>0,INTRO!$E$34,"") -> Congo | B45: Pool | C45: Goma tsétsé | D45: 30813 | E45: =IF(INTRO!$E$48="","",ROUND($D45*INTRO!$E$48,0)) -> 4930 | F45: =IF(INTRO!$E$49="","",ROUND($D45*INTRO!$E$49,0)) -> 7395 | G45: =IF(INTRO!$E$50="","",ROUND($D45*INTRO!$E$50,0)) -> 17040 | H45: 0 | I45: 1 | J45: 2 | K45: 0 | L45: =IF(INTRO!$E$38="Endémique", IF($H45>0, IF($H45=4,"Inconnu", IF($H45=99,"Interrompu", $D45)), 0),"Non requis") -> 0 | M45: =IF(INTRO!$E$40="Endémique", IF($I45>0, IF($I45=4,"Inconnu",IF($I45=99,"Interrompu", $D45)), 0),"Non requis") -> 30813 | N45: =IF(INTRO!$E$42="Endémique", IF(AND($J45>1,$J45<5), IF($J45=4, "Inconnu", E45+F45), 0),"Non requis") -> 12325 | O45: =IF(INTRO!$E$44="Endémique", IF(AND($K45>0,$K45<5), IF($K45=4,"Inconnu", IF($K45=1, $F45*0.33, IF($K45=2, $F45*0.5+$G45*0.2, SUM(F45:G45)))), 0),"Non requis") -> 0 | P45: 0 | Q45: 1 | R45: 1 | S45: 0 | T45: MDA3 (IVM) | U45: T3 (ALB/MBD) | X45: 12802 | Y45: Goma tsétsé | AA45: =+Y45=C45 -> TRUE
A46: =IF(INTRO!$E$34<>0,INTRO!$E$34,"") -> Congo | B46: Pool | C46: Ignié | D46: 80728 | E46: =IF(INTRO!$E$48="","",ROUND($D46*INTRO!$E$48,0)) -> 12916 | F46: =IF(INTRO!$E$49="","",ROUND($D46*INTRO!$E$49,0)) -> 19375 | G46: =IF(INTRO!$E$50="","",ROUND($D46*INTRO!$E$50,0)) -> 44643 | H46: 1 | I46: 1 | J46: 2 | K46: 0 | L46: =IF(INTRO!$E$38="Endémique", IF($H46>0, IF($H46=4,"Inconnu", IF($H46=99,"Interrompu", $D46)), 0),"Non requis") -> 80728 | M46: =IF(INTRO!$E$40="Endémique", IF($I46>0, IF($I46=4,"Inconnu",IF($I46=99,"Interrompu", $D46)), 0),"Non requis") -> 80728 | N46: =IF(INTRO!$E$42="Endémique", IF(AND($J46>1,$J46<5), IF($J46=4, "Inconnu", E46+F46), 0),"Non requis") -> 32291 | O46: =IF(INTRO!$E$44="Endémique", IF(AND($K46>0,$K46<5), IF($K46=4,"Inconnu", IF($K46=1, $F46*0.33, IF($K46=2, $F46*0.5+$G46*0.2, SUM(F46:G46)))), 0),"Non requis") -> 0 | P46: 1 | Q46: 1 | R46: 1 | S46: 0 | T46: MDA1 (IVM+ALB) | U46: T3 (ALB/MBD) | X46: 12828 | Y46: Ignié | AA46: =+Y46=C46 -> TRUE
A47: =IF(INTRO!$E$34<>0,INTRO!$E$34,"") -> Congo | B47: Pool | C47: Kindamba | D47: 33693 | E47: =IF(INTRO!$E$48="","",ROUND($D47*INTRO!$E$48,0)) -> 5391 | F47: =IF(INTRO!$E$49="","",ROUND($D47*INTRO!$E$49,0)) -> 8086 | G47: =IF(INTRO!$E$50="","",ROUND($D47*INTRO!$E$50,0)) -> 18632 | H47: 0 | I47: 1 | J47: 2 | K47: 0 | L47: =IF(INTRO!$E$38="Endémique", IF($H47>0, IF($H47=4,"Inconnu", IF($H47=99,"Interrompu", $D47)), 0),"Non requis") -> 0 | M47: =IF(INTRO!$E$40="Endémique", IF($I47>0, IF($I47=4,"Inconnu",IF($I47=99,"Interrompu", $D47)), 0),"Non requis") -> 33693 | N47: =IF(INTRO!$E$42="Endémique", IF(AND($J47>1,$J47<5), IF($J47=4, "Inconnu", E47+F47), 0),"Non requis") -> 13477 | O47: =IF(INTRO!$E$44="Endémique", IF(AND($K47>0,$K47<5), IF($K47=4,"Inconnu", IF($K47=1, $F47*0.33, IF($K47=2, $F47*0.5+$G47*0.2, SUM(F47:G47)))), 0),"Non requis") -> 0 | P47: 0 | Q47: 1 | R47: 1 | S47: 0 | T47: MDA3 (IVM) | U47: T3 (ALB/MBD) | X47: 12803 | Y47: Kindamba | AA47: =+Y47=C47 -> TRUE
A48: =IF(INTRO!$E$34<>0,INTRO!$E$34,"") -> Congo | B48: Pool | C48: Kinkala-Boko | D48: 77199 | E48: =IF(INTRO!$E$48="","",ROUND($D48*INTRO!$E$48,0)) -> 12352 | F48: =IF(INTRO!$E$49="","",ROUND($D48*INTRO!$E$49,0)) -> 18528 | G48: =IF(INTRO!$E$50="","",ROUND($D48*INTRO!$E$50,0)) -> 42691 | H48: 0 | I48: 1 | J48: 2 | K48: 0 | L48: =IF(INTRO!$E$38="Endémique", IF($H48>0, IF($H48=4,"Inconnu", IF($H48=99,"Interrompu", $D48)), 0),"Non requis") -> 0 | M48: =IF(INTRO!$E$40="Endémique", IF($I48>0, IF($I48=4,"Inconnu",IF($I48=99,"Interrompu", $D48)), 0),"Non requis") -> 77199 | N48: =IF(INTRO!$E$42="Endémique", IF(AND($J48>1,$J48<5), IF($J48=4, "Inconnu", E48+F48), 0),"Non requis") -> 30880 | O48: =IF(INTRO!$E$44="Endémique", IF(AND($K48>0,$K48<5), IF($K48=4,"Inconnu", IF($K48=1, $F48*0.33, IF($K48=2, $F48*0.5+$G48*0.2, SUM(F48:G48)))), 0),"Non requis") -> 0 | P48: 0 | Q48: 1 | R48: 1 | S48: 0 | T48: MDA3 (IVM) | U48: T3 (ALB/MBD) | X48: 12804 | Y48: Kinkala-Boko | AA48: =+Y48=C48 -> TRUE
A49: =IF(INTRO!$E$34<>0,INTRO!$E$34,"") -> Congo | B49: Pool | C49: Mindouli | D49: 65123 | E49: =IF(INTRO!$E$48="","",ROUND($D49*INTRO!$E$48,0)) -> 10420 | F49: =IF(INTRO!$E$49="","",ROUND($D49*INTRO!$E$49,0)) -> 15630 | G49: =IF(INTRO!$E$50="","",ROUND($D49*INTRO!$E$50,0)) -> 36013 | H49: 0 | I49: 0 | J49: 2 | K49: 0 | L49: =IF(INTRO!$E$38="Endémique", IF($H49>0, IF($H49=4,"Inconnu", IF($H49=99,"Interrompu", $D49)), 0),"Non requis") -> 0 | M49: =IF(INTRO!$E$40="Endémique", IF($I49>0, IF($I49=4,"Inconnu",IF($I49=99,"Interrompu", $D49)), 0),"Non requis") -> 0 | N49: =IF(INTRO!$E$42="Endémique", IF(AND($J49>1,$J49<5), IF($J49=4, "Inconnu", E49+F49), 0),"Non requis") -> 26050 | O49: =IF(INTRO!$E$44="Endémique", IF(AND($K49>0,$K49<5), IF($K49=4,"Inconnu", IF($K49=1, $F49*0.33, IF($K49=2, $F49*0.5+$G49*0.2, SUM(F49:G49)))), 0),"Non requis") -> 0 | P49: 0 | Q49: 1 | R49: 1 | S49: 0 | T49: MDA3 (IVM) | U49: T3 (ALB/MBD) | X49: 12807 | Y49: Mindouli | AA49: =+Y49=C49 -> TRUE
A50: =IF(INTRO!$E$34<>0,INTRO!$E$34,"") -> Congo | B50: Sangha | C50: Ouesso | D50: 75293 | E50: =IF(INTRO!$E$48="","",ROUND($D50*INTRO!$E$48,0)) -> 12047 | F50: =IF(INTRO!$E$49="","",ROUND($D50*INTRO!$E$49,0)) -> 18070 | G50: =IF(INTRO!$E$50="","",ROUND($D50*INTRO!$E$50,0)) -> 41637 | H50: 1 | I50: 0 | J50: 3 | K50: 0 | L50: =IF(INTRO!$E$38="Endémique", IF($H50>0, IF($H50=4,"Inconnu", IF($H50=99,"Interrompu", $D50)), 0),"Non requis") -> 75293 | M50: =IF(INTRO!$E$40="Endémique", IF($I50>0, IF($I50=4,"Inconnu",IF($I50=99,"Interrompu", $D50)), 0),"Non requis") -> 0 | N50: =IF(INTRO!$E$42="Endémique", IF(AND($J50>1,$J50<5), IF($J50=4, "Inconnu", E50+F50), 0),"Non requis") -> 30117 | O50: =IF(INTRO!$E$44="Endémique", IF(AND($K50>0,$K50<5), IF($K50=4,"Inconnu", IF($K50=1, $F50*0.33, IF($K50=2, $F50*0.5+$G50*0.2, SUM(F50:G50)))), 0),"Non requis") -> 0 | P50: 0 | Q50: 0 | R50: 1 | S50: 0 | U50: T3 (ALB/MBD) | X50: 12813 | Y50: Ouesso | AA50: =+Y50=C50 -> TRUE
A51: =IF(INTRO!$E$34<>0,INTRO!$E$34,"") -> Congo | B51: Sangha | C51: Sembé-Souanké | D51: 29018 | E51: =IF(INTRO!$E$48="","",ROUND($D51*INTRO!$E$48,0)) -> 4643 | F51: =IF(INTRO!$E$49="","",ROUND($D51*INTRO!$E$49,0)) -> 6964 | G51: =IF(INTRO!$E$50="","",ROUND($D51*INTRO!$E$50,0)) -> 16047 | H51: 1 | I51: 0 | J51: 3 | K51: 0 | L51: =IF(INTRO!$E$38="Endémique", IF($H51>0, IF($H51=4,"Inconnu", IF($H51=99,"Interrompu", $D51)), 0),"Non requis") -> 29018 | M51: =IF(INTRO!$E$40="Endémique", IF($I51>0, IF($I51=4,"Inconnu",IF($I51=99,"Interrompu", $D51)), 0),"Non requis") -> 0 | N51: =IF(INTRO!$E$42="Endémique", IF(AND($J51>1,$J51<5), IF($J51=4, "Inconnu", E51+F51), 0),"Non requis") -> 11607 | O51: =IF(INTRO!$E$44="Endémique", IF(AND($K51>0,$K51<5), IF($K51=4,"Inconnu", IF($K51=1, $F51*0.33, IF($K51=2, $F51*0.5+$G51*0.2, SUM(F51:G51)))), 0),"Non requis") -> 0 | P51: 0 | Q51: 0 | R51: 1 | S51: 0 | U51: T3 (ALB/MBD) | X51: 12814 | Y51: Sembé-Souanké | AA51: =+Y51=C51 -> TRUE

Sheet MDA1
A1: MDA 1 - Ivermectine (IVM) et Albendazole (ALB)
A2: Structure administrative, population nécessitant une chimioprévention par groupe d'âge, population traitée par groupe d'âge et couverture
A4: TOTAL | G4: =SUM(G$9:G$1000) -> 32729 | H4: =SUM(H$9:H$1000) -> 103644 | I4: =SUM(I$9:I$1000) -> 136373 | K4: =SUM(K$9:K$1000) -> 25459 | L4: =SUM(L$9:L$1000) -> 80622 | M4: =SUM(M$9:M$1000) -> 106081 | O4: =IF(G4<>0, IF(K4/G4*100=0, "-", K4/G4*100), " ") -> 77.78728345 | P4: =IF(H4<>0, IF(L4/H4*100=0, "-", L4/H4*100), " ") -> 77.78742619 | Q4: =IF(I4<>0, IF(M4/I4*100=0, "-", M4/I4*100), " ") -> 77.78739193
A6: Structure administrative du pays | D6: Mise en oeuvre de la CP | E6: Date | F6: Population ciblée pour MDA 1 | J6: Population traitée | N6: Couverture du Programme (%)
A7: Pays | B7: Région/Département | C7: District | F7: EAPréS | G7: EAS | H7: Adultes | I7: Total | J7: EAPréS | K7: EAS | L7: Adultes | M7: Total | N7: EAPréS | O7: EAS | P7: Adultes | Q7: Total
A9: =IF(COUNTRY_INFO!A9=0," ",COUNTRY_INFO!A9) -> Congo | B9: =IF(COUNTRY_INFO!B9=0," ",COUNTRY_INFO!B9) -> Bouenza | C9: =IF(COUNTRY_INFO!C9=0," ",COUNTRY_INFO!C9) -> Loudima | D9: =IF(COUNTRY_INFO!$T$9:$T$1000="MDA1 (IVM+ALB)", COUNTRY_INFO!$T$9:$T$1000, " ") ->  | I9: =SUM(F9:H9) -> 0 | M9: =SUM(J9:L9) -> 0 | O9: =IF(G9<>0, IF(K9/G9*100=0, "-", K9/G9*100), " ") ->  | P9: =IF(H9<>0, IF(L9/H9*100=0, "-", L9/H9*100), " ") -> 
A10: =IF(COUNTRY_INFO!A10=0," ",COUNTRY_INFO!A10) -> Congo | B10: =IF(COUNTRY_INFO!B10=0," ",COUNTRY_INFO!B10) -> Bouenza | C10: =IF(COUNTRY_INFO!C10=0," ",COUNTRY_INFO!C10) -> Loutété | D10: =IF(COUNTRY_INFO!$T$9:$T$1000="MDA1 (IVM+ALB)", COUNTRY_INFO!$T$9:$T$1000, " ") -> MDA1 (IVM+ALB) | E10: Août-Nov | G10: 7335 | H10: 23228 | I10: =SUM(F10:H10) -> 30563 | K10: 5051 | L10: 15995 | M10: =SUM(J10:L10) -> 21046 | O10: =IF(G10<>0, IF(K10/G10*100=0, "-", K10/G10*100), " ") -> 68.86162236 | P10: =IF(H10<>0, IF(L10/H10*100=0, "-", L10/H10*100), " ") -> 68.86085759 | Q10: =IF(I10<>0, IF(M10/I10*100=0, "-", M10/I10*100), " ") -> 68.86104113
A11: =IF(COUNTRY_INFO!A11=0," ",COUNTRY_INFO!A11) -> Congo | B11: =IF(COUNTRY_INFO!B11=0," ",COUNTRY_INFO!B11) -> Bouenza | C11: =IF(COUNTRY_INFO!C11=0," ",COUNTRY_INFO!C11) -> Madingou | D11: =IF(COUNTRY_INFO!$T$9:$T$1000="MDA1 (IVM+ALB)", COUNTRY_INFO!$T$9:$T$1000, " ") -> MDA1 (IVM+ALB) | E11: Août-Nov | G11: 13240 | H11: 41927 | I11: 55167 | K11: 10590 | L11: 33535 | M11: 44125 | O11: 79.98489426 | P11: 79.98425835 | Q11: 79.98441097
A12: =IF(COUNTRY_INFO!A12=0," ",COUNTRY_INFO!A12) -> Congo | B12: =IF(COUNTRY_INFO!B12=0," ",COUNTRY_INFO!B12) -> Bouenza | C12: =IF(COUNTRY_INFO!C12=0," ",COUNTRY_INFO!C12) -> Mouyondzi | D12: =IF(COUNTRY_INFO!$T$9:$T$1000="MDA1 (IVM+ALB)", COUNTRY_INFO!$T$9:$T$1000, " ") -> MDA1 (IVM+ALB) | E12: Août-Nov | G12: 8155 | H12: 25825 | I12: 33980 | K12: 6619 | L12: 20959 | M12: 27578 | O12: 81.16492949 | P12: 81.15779284 | Q12: 81.15950559
A13: =IF(COUNTRY_INFO!A13=0," ",COUNTRY_INFO!A13) -> Congo | B13: =IF(COUNTRY_INFO!B13=0," ",COUNTRY_INFO!B13) -> Brazzaville | C13: =IF(COUNTRY_INFO!C13=0," ",COUNTRY_INFO!C13) -> Bacongo | D13: =IF(COUNTRY_INFO!$T$9:$T$1000="MDA1 (IVM+ALB)", COUNTRY_INFO!$T$9:$T$1000, " ") ->  | I13: 0 | M13: 0
A14: =IF(COUNTRY_INFO!A14=0," ",COUNTRY_INFO!A14) -> Congo | B14: =IF(COUNTRY_INFO!B14=0," ",COUNTRY_INFO!B14) -> Brazzaville | C14: =IF(COUNTRY_INFO!C14=0," ",COUNTRY_INFO!C14) -> Makélékélé | D14: =IF(COUNTRY_INFO!$T$9:$T$1000="MDA1 (IVM+ALB)", COUNTRY_INFO!$T$9:$T$1000, " ") ->  | I14: 0 | M14: 0
A15: =IF(COUNTRY_INFO!A15=0," ",COUNTRY_INFO!A15) -> Congo | B15: =IF(COUNTRY_INFO!B15=0," ",COUNTRY_INFO!B15) -> Brazzaville | C15: =IF(COUNTRY_INFO!C15=0," ",COUNTRY_INFO!C15) -> Mfilou | D15: =IF(COUNTRY_INFO!$T$9:$T$1000="MDA1 (IVM+ALB)", COUNTRY_INFO!$T$9:$T$1000, " ") ->  | I15: 0 | M15: 0
A16: =IF(COUNTRY_INFO!A16=0," ",COUNTRY_INFO!A16) -> Congo | B16: =IF(COUNTRY_INFO!B16=0," ",COUNTRY_INFO!B16) -> Brazzaville | C16: =IF(COUNTRY_INFO!C16=0," ",COUNTRY_INFO!C16) -> Moungali | D16: =IF(COUNTRY_INFO!$T$9:$T$1000="MDA1 (IVM+ALB)", COUNTRY_INFO!$T$9:$T$1000, " ") ->  | I16: 0 | M16: 0
A17: =IF(COUNTRY_INFO!A17=0," ",COUNTRY_INFO!A17) -> Congo | B17: =IF(COUNTRY_INFO!B17=0," ",COUNTRY_INFO!B17) -> Brazzaville | C17: =IF(COUNTRY_INFO!C17=0," ",COUNTRY_INFO!C17) -> Ouenzé | D17: =IF(COUNTRY_INFO!$T$9:$T$1000="MDA1 (IVM+ALB)", COUNTRY_INFO!$T$9:$T$1000, " ") ->  | I17: 0 | M17: 0
A18: =IF(COUNTRY_INFO!A18=0," ",COUNTRY_INFO!A18) -> Congo | B18: =IF(COUNTRY_INFO!B18=0," ",COUNTRY_INFO!B18) -> Brazzaville | C18: =IF(COUNTRY_INFO!C18=0," ",COUNTRY_INFO!C18) -> Poto-Poto | D18: =IF(COUNTRY_INFO!$T$9:$T$1000="MDA1 (IVM+ALB)", COUNTRY_INFO!$T$9:$T$1000, " ") ->  | I18: 0 | M18: 0
A19: =IF(COUNTRY_INFO!A19=0," ",COUNTRY_INFO!A19) -> Congo | B19: =IF(COUNTRY_INFO!B19=0," ",COUNTRY_INFO!B19) -> Brazzaville | C19: =IF(COUNTRY_INFO!C19=0," ",COUNTRY_INFO!C19) -> Talangaî | D19: =IF(COUNTRY_INFO!$T$9:$T$1000="MDA1 (IVM+ALB)", COUNTRY_INFO!$T$9:$T$1000, " ") ->  | I19: 0 | M19: 0
A20: =IF(COUNTRY_INFO!A20=0," ",COUNTRY_INFO!A20) -> Congo | B20: =IF(COUNTRY_INFO!B20=0," ",COUNTRY_INFO!B20) -> Brazzaville | C20: =IF(COUNTRY_INFO!C20=0," ",COUNTRY_INFO!C20) -> Madibou | D20: =IF(COUNTRY_INFO!$T$9:$T$1000="MDA1 (IVM+ALB)", COUNTRY_INFO!$T$9:$T$1000, " ") ->  | I20: 0 | M20: 0
A21: =IF(COUNTRY_INFO!A21=0," ",COUNTRY_INFO!A21) -> Congo | B21: =IF(COUNTRY_INFO!B21=0," ",COUNTRY_INFO!B21) -> Brazzaville | C21: =IF(COUNTRY_INFO!C21=0," ",COUNTRY_INFO!C21) -> Djiri | D21: =IF(COUNTRY_INFO!$T$9:$T$1000="MDA1 (IVM+ALB)", COUNTRY_INFO!$T$9:$T$1000, " ") ->  | I21: 0 | M21: 0
A22: =IF(COUNTRY_INFO!A22=0," ",COUNTRY_INFO!A22) -> Congo | B22: =IF(COUNTRY_INFO!B22=0," ",COUNTRY_INFO!B22) -> Cuvette | C22: =IF(COUNTRY_INFO!C22=0," ",COUNTRY_INFO!C22) -> Mossaka Loukoléla | D22: =IF(COUNTRY_INFO!$T$9:$T$1000="MDA1 (IVM+ALB)", COUNTRY_INFO!$T$9:$T$1000, " ") ->  | I22: 0 | M22: 0
A23: =IF(COUNTRY_INFO!A23=0," ",COUNTRY_INFO!A23) -> Congo | B23: =IF(COUNTRY_INFO!B23=0," ",COUNTRY_INFO!B23) -> Cuvette | C23: =IF(COUNTRY_INFO!C23=0," ",COUNTRY_INFO!C23) -> Owando | D23: =IF(COUNTRY_INFO!$T$9:$T$1000="MDA1 (IVM+ALB)", COUNTRY_INFO!$T$9:$T$1000, " ") ->  | I23: 0 | M23: 0
A24: =IF(COUNTRY_INFO!A24=0," ",COUNTRY_INFO!A24) -> Congo | B24: =IF(COUNTRY_INFO!B24=0," ",COUNTRY_INFO!B24) -> Cuvette | C24: =IF(COUNTRY_INFO!C24=0," ",COUNTRY_INFO!C24) -> Oyo | D24: =IF(COUNTRY_INFO!$T$9:$T$1000="MDA1 (IVM+ALB)", COUNTRY_INFO!$T$9:$T$1000, " ") ->  | I24: 0 | M24: 0
A25: =IF(COUNTRY_INFO!A25=0," ",COUNTRY_INFO!A25) -> Congo | B25: =IF(COUNTRY_INFO!B25=0," ",COUNTRY_INFO!B25) -> Cuvette-Ouest | C25: =IF(COUNTRY_INFO!C25=0," ",COUNTRY_INFO!C25) -> Etoumbi | D25: =IF(COUNTRY_INFO!$T$9:$T$1000="MDA1 (IVM+ALB)", COUNTRY_INFO!$T$9:$T$1000, " ") ->  | I25: 0 | M25: 0
A26: =IF(COUNTRY_INFO!A26=0," ",COUNTRY_INFO!A26) -> Congo | B26: =IF(COUNTRY_INFO!B26=0," ",COUNTRY_INFO!B26) -> Cuvette-Ouest | C26: =IF(COUNTRY_INFO!C26=0," ",COUNTRY_INFO!C26) -> Ewo | D26: =IF(COUNTRY_INFO!$T$9:$T$1000="MDA1 (IVM+ALB)", COUNTRY_INFO!$T$9:$T$1000, " ") ->  | I26: 0 | M26: 0
A27: =IF(COUNTRY_INFO!A27=0," ",COUNTRY_INFO!A27) -> Congo | B27: =IF(COUNTRY_INFO!B27=0," ",COUNTRY_INFO!B27) -> Kouilou | C27: =IF(COUNTRY_INFO!C27=0," ",COUNTRY_INFO!C27) -> Hinda-Mvouti | D27: =IF(COUNTRY_INFO!$T$9:$T$1000="MDA1 (IVM+ALB)", COUNTRY_INFO!$T$9:$T$1000, " ") ->  | I27: 0 | M27: 0
A28: =IF(COUNTRY_INFO!A28=0," ",COUNTRY_INFO!A28) -> Congo | B28: =IF(COUNTRY_INFO!B28=0," ",COUNTRY_INFO!B28) -> Kouilou | C28: =IF(COUNTRY_INFO!C28=0," ",COUNTRY_INFO!C28) -> Madingo Kayes | D28: =IF(COUNTRY_INFO!$T$9:$T$1000="MDA1 (IVM+ALB)", COUNTRY_INFO!$T$9:$T$1000, " ") ->  | I28: 0 | M28: 0
A29: =IF(COUNTRY_INFO!A29=0," ",COUNTRY_INFO!A29) -> Congo | B29: =IF(COUNTRY_INFO!B29=0," ",COUNTRY_INFO!B29) -> Lékoumou | C29: =IF(COUNTRY_INFO!C29=0," ",COUNTRY_INFO!C29) -> Sibiti | D29: =IF(COUNTRY_INFO!$T$9:$T$1000="MDA1 (IVM+ALB)", COUNTRY_INFO!$T$9:$T$1000, " ") ->  | I29: 0 | M29: 0
A30: =IF(COUNTRY_INFO!A30=0," ",COUNTRY_INFO!A30) -> Congo | B30: =IF(COUNTRY_INFO!B30=0," ",COUNTRY_INFO!B30) -> Lékoumou | C30: =IF(COUNTRY_INFO!C30=0," ",COUNTRY_INFO!C30) -> Zanaga | D30: =IF(COUNTRY_INFO!$T$9:$T$1000="MDA1 (IVM+ALB)", COUNTRY_INFO!$T$9:$T$1000, " ") ->  | I30: 0 | M30: 0
A31: =IF(COUNTRY_INFO!A31=0," ",COUNTRY_INFO!A31) -> Congo | B31: =IF(COUNTRY_INFO!B31=0," ",COUNTRY_INFO!B31) -> Likouala | C31: =IF(COUNTRY_INFO!C31=0," ",COUNTRY_INFO!C31) -> Bétou | D31: =IF(COUNTRY_INFO!$T$9:$T$1000="MDA1 (IVM+ALB)", COUNTRY_INFO!$T$9:$T$1000, " ") ->  | I31: 0 | M31: 0
A32: =IF(COUNTRY_INFO!A32=0," ",COUNTRY_INFO!A32) -> Congo | B32: =IF(COUNTRY_INFO!B32=0," ",COUNTRY_INFO!B32) -> Likouala | C32: =IF(COUNTRY_INFO!C32=0," ",COUNTRY_INFO!C32) -> Impfondo | D32: =IF(COUNTRY_INFO!$T$9:$T$1000="MDA1 (IVM+ALB)", COUNTRY_INFO!$T$9:$T$1000, " ") ->  | I32: 0 | M32: 0
A33: =IF(COUNTRY_INFO!A33=0," ",COUNTRY_INFO!A33) -> Congo | B33: =IF(COUNTRY_INFO!B33=0," ",COUNTRY_INFO!B33) -> Niari | C33: =IF(COUNTRY_INFO!C33=0," ",COUNTRY_INFO!C33) -> Dolisie | D33: =IF(COUNTRY_INFO!$T$9:$T$1000="MDA1 (IVM+ALB)", COUNTRY_INFO!$T$9:$T$1000, " ") -> MDA1 (IVM+ALB) | E33: Août-Nov | G33: 1790 | H33: 5668 | I33: 7458 | K33: 1413 | L33: 4475 | M33: 5888 | O33: 78.93854749 | P33: 78.95201129 | Q33: 78.94877983
A34: =IF(COUNTRY_INFO!A34=0," ",COUNTRY_INFO!A34) -> Congo | B34: =IF(COUNTRY_INFO!B34=0," ",COUNTRY_INFO!B34) -> Niari | C34: =IF(COUNTRY_INFO!C34=0," ",COUNTRY_INFO!C34) -> Kibangou | D34: =IF(COUNTRY_INFO!$T$9:$T$1000="MDA1 (IVM+ALB)", COUNTRY_INFO!$T$9:$T$1000, " ") -> MDA1 (IVM+ALB) | E34: Août-Nov | G34: 1917 | H34: 6071 | I34: 7988 | K34: 1586 | L34: 5024 | M34: 6610 | O34: 82.73343766 | P34: 82.75407676 | Q34: 82.74912369
A35: =IF(COUNTRY_INFO!A35=0," ",COUNTRY_INFO!A35) -> Congo | B35: =IF(COUNTRY_INFO!B35=0," ",COUNTRY_INFO!B35) -> Niari | C35: =IF(COUNTRY_INFO!C35=0," ",COUNTRY_INFO!C35) -> Mossendjo | D35: =IF(COUNTRY_INFO!$T$9:$T$1000="MDA1 (IVM+ALB)", COUNTRY_INFO!$T$9:$T$1000, " ") ->  | I35: 0 | M35: 0
A36: =IF(COUNTRY_INFO!A36=0," ",COUNTRY_INFO!A36) -> Congo | B36: =IF(COUNTRY_INFO!B36=0," ",COUNTRY_INFO!B36) -> Plateaux | C36: =IF(COUNTRY_INFO!C36=0," ",COUNTRY_INFO!C36) -> Abala | D36: =IF(COUNTRY_INFO!$T$9:$T$1000="MDA1 (IVM+ALB)", COUNTRY_INFO!$T$9:$T$1000, " ") ->  | I36: 0 | M36: 0
A37: =IF(COUNTRY_INFO!A37=0," ",COUNTRY_INFO!A37) -> Congo | B37: =IF(COUNTRY_INFO!B37=0," ",COUNTRY_INFO!B37) -> Plateaux | C37: =IF(COUNTRY_INFO!C37=0," ",COUNTRY_INFO!C37) -> Djambala-Lékana | D37: =IF(COUNTRY_INFO!$T$9:$T$1000="MDA1 (IVM+ALB)", COUNTRY_INFO!$T$9:$T$1000, " ") ->  | I37: 0 | M37: 0
A38: =IF(COUNTRY_INFO!A38=0," ",COUNTRY_INFO!A38) -> Congo | B38: =IF(COUNTRY_INFO!B38=0," ",COUNTRY_INFO!B38) -> Plateaux | C38: =IF(COUNTRY_INFO!C38=0," ",COUNTRY_INFO!C38) -> Gamboma | D38: =IF(COUNTRY_INFO!$T$9:$T$1000="MDA1 (IVM+ALB)", COUNTRY_INFO!$T$9:$T$1000, " ") ->  | I38: 0 | M38: 0
A39: =IF(COUNTRY_INFO!A39=0," ",COUNTRY_INFO!A39) -> Congo | B39: =IF(COUNTRY_INFO!B39=0," ",COUNTRY_INFO!B39) -> Pointe-Noire | C39: =IF(COUNTRY_INFO!C39=0," ",COUNTRY_INFO!C39) -> Ngoyo | D39: =IF(COUNTRY_INFO!$T$9:$T$1000="MDA1 (IVM+ALB)", COUNTRY_INFO!$T$9:$T$1000, " ") ->  | I39: 0 | M39: 0
A40: =IF(COUNTRY_INFO!A40=0," ",COUNTRY_INFO!A40) -> Congo | B40: =IF(COUNTRY_INFO!B40=0," ",COUNTRY_INFO!B40) -> Pointe-Noire | C40: =IF(COUNTRY_INFO!C40=0," ",COUNTRY_INFO!C40) -> Mongo-Poukou | D40: =IF(COUNTRY_INFO!$T$9:$T$1000="MDA1 (IVM+ALB)", COUNTRY_INFO!$T$9:$T$1000, " ") ->  | I40: 0 | M40: 0
A41: =IF(COUNTRY_INFO!A41=0," ",COUNTRY_INFO!A41) -> Congo | B41: =IF(COUNTRY_INFO!B41=0," ",COUNTRY_INFO!B41) -> Pointe-Noire | C41: =IF(COUNTRY_INFO!C41=0," ",COUNTRY_INFO!C41) -> Loandjili | D41: =IF(COUNTRY_INFO!$T$9:$T$1000="MDA1 (IVM+ALB)", COUNTRY_INFO!$T$9:$T$1000, " ") ->  | I41: 0 | M41: 0
A42: =IF(COUNTRY_INFO!A42=0," ",COUNTRY_INFO!A42) -> Congo | B42: =IF(COUNTRY_INFO!B42=0," ",COUNTRY_INFO!B42) -> Pointe-Noire | C42: =IF(COUNTRY_INFO!C42=0," ",COUNTRY_INFO!C42) -> Lumumba | D42: =IF(COUNTRY_INFO!$T$9:$T$1000="MDA1 (IVM+ALB)", COUNTRY_INFO!$T$9:$T$1000, " ") ->  | I42: 0 | M42: 0
A43: =IF(COUNTRY_INFO!A43=0," ",COUNTRY_INFO!A43) -> Congo | B43: =IF(COUNTRY_INFO!B43=0," ",COUNTRY_INFO!B43) -> Pointe-Noire | C43: =IF(COUNTRY_INFO!C43=0," ",COUNTRY_INFO!C43) -> Mvoumvou | D43: =IF(COUNTRY_INFO!$T$9:$T$1000="MDA1 (IVM+ALB)", COUNTRY_INFO!$T$9:$T$1000, " ") ->  | I43: 0 | M43: 0
A44: =IF(COUNTRY_INFO!A44=0," ",COUNTRY_INFO!A44) -> Congo | B44: =IF(COUNTRY_INFO!B44=0," ",COUNTRY_INFO!B44) -> Pointe-Noire | C44: =IF(COUNTRY_INFO!C44=0," ",COUNTRY_INFO!C44) -> Tie-Tie | D44: =IF(COUNTRY_INFO!$T$9:$T$1000="MDA1 (IVM+ALB)", COUNTRY_INFO!$T$9:$T$1000, " ") ->  | I44: 0 | M44: 0
A45: =IF(COUNTRY_INFO!A45=0," ",COUNTRY_INFO!A45) -> Congo | B45: =IF(COUNTRY_INFO!B45=0," ",COUNTRY_INFO!B45) -> Pool | C45: =IF(COUNTRY_INFO!C45=0," ",COUNTRY_INFO!C45) -> Goma tsétsé | D45: =IF(COUNTRY_INFO!$T$9:$T$1000="MDA1 (IVM+ALB)", COUNTRY_INFO!$T$9:$T$1000, " ") ->  | I45: 0 | M45: 0
A46: =IF(COUNTRY_INFO!A46=0," ",COUNTRY_INFO!A46) -> Congo | B46: =IF(COUNTRY_INFO!B46=0," ",COUNTRY_INFO!B46) -> Pool | C46: =IF(COUNTRY_INFO!C46=0," ",COUNTRY_INFO!C46) -> Ignié | D46: =IF(COUNTRY_INFO!$T$9:$T$1000="MDA1 (IVM+ALB)", COUNTRY_INFO!$T$9:$T$1000, " ") -> MDA1 (IVM+ALB) | E46: Août-Nov | G46: 292 | H46: 925 | I46: 1217 | K46: 200 | L46: 634 | M46: 834 | O46: 68.49315068 | P46: 68.54054054 | Q46: 68.52917009
A47: =IF(COUNTRY_INFO!A47=0," ",COUNTRY_INFO!A47) -> Congo | B47: =IF(COUNTRY_INFO!B47=0," ",COUNTRY_INFO!B47) -> Pool | C47: =IF(COUNTRY_INFO!C47=0," ",COUNTRY_INFO!C47) -> Kindamba | D47: =IF(COUNTRY_INFO!$T$9:$T$1000="MDA1 (IVM+ALB)", COUNTRY_INFO!$T$9:$T$1000, " ") ->  | I47: 0 | M47: 0
A48: =IF(COUNTRY_INFO!A48=0," ",COUNTRY_INFO!A48) -> Congo | B48: =IF(COUNTRY_INFO!B48=0," ",COUNTRY_INFO!B48) -> Pool | C48: =IF(COUNTRY_INFO!C48=0," ",COUNTRY_INFO!C48) -> Kinkala-Boko | D48: =IF(COUNTRY_INFO!$T$9:$T$1000="MDA1 (IVM+ALB)", COUNTRY_INFO!$T$9:$T$1000, " ") ->  | I48: 0 | M48: 0
A49: =IF(COUNTRY_INFO!A49=0," ",COUNTRY_INFO!A49) -> Congo | B49: =IF(COUNTRY_INFO!B49=0," ",COUNTRY_INFO!B49) -> Pool | C49: =IF(COUNTRY_INFO!C49=0," ",COUNTRY_INFO!C49) -> Mindouli | D49: =IF(COUNTRY_INFO!$T$9:$T$1000="MDA1 (IVM+ALB)", COUNTRY_INFO!$T$9:$T$1000, " ") ->  | I49: 0 | M49: 0
A50: =IF(COUNTRY_INFO!A50=0," ",COUNTRY_INFO!A50) -> Congo | B50: =IF(COUNTRY_INFO!B50=0," ",COUNTRY_INFO!B50) -> Sangha | C50: =IF(COUNTRY_INFO!C50=0," ",COUNTRY_INFO!C50) -> Ouesso | D50: =IF(COUNTRY_INFO!$T$9:$T$1000="MDA1 (IVM+ALB)", COUNTRY_INFO!$T$9:$T$1000, " ") ->  | I50: 0 | M50: 0
A51: =IF(COUNTRY_INFO!A51=0," ",COUNTRY_INFO!A51) -> Congo | B51: =IF(COUNTRY_INFO!B51=0," ",COUNTRY_INFO!B51) -> Sangha | C51: =IF(COUNTRY_INFO!C51=0," ",COUNTRY_INFO!C51) -> Sembé-Souanké | D51: =IF(COUNTRY_INFO!$T$9:$T$1000="MDA1 (IVM+ALB)", COUNTRY_INFO!$T$9:$T$1000, " ") ->  | I51: 0 | M51: 0

Sheet MDA2 (hidden)
A1: MDA 2 - Diethylcarbamazine (DEC) + Albendazole (ALB)
A2: Structure administrative, population nécessitant une chimioprévention par groupe d'âge, population traitée par groupe d'âge et couverture
A4: TOTAL | F4: =SUM(F$9:F$1000) -> 0 | G4: =SUM(G$9:G$1000) -> 0 | H4: 0 | I4: 0 | J4: 0 | K4: 0 | L4: 0 | M4: 0 | N4: =IF(F4<>0, IF(J4/F4*100=0, "-", J4/F4*100), " ") ->  | O4: =IF(G4<>0, IF(K4/G4*100=0, "-", K4/G4*100), " ") ->  | P4: =IF(H4<>0, IF(L4/H4*100=0, "-", L4/H4*100), " ") ->  | Q4: =IF(I4<>0, IF(M4/I4*100=0, "-", M4/I4*100), " ") -> 
A6: Structure administrative du pays | D6: Mise en oeuvre de la CP | E6: Date | F6: Population ciblée pour MDA 2 | J6: Population traitée | N6: Couverture du Programme (%)
A7: Pays | B7: Région/Département | C7: District | F7: EAPréS | G7: EAS | H7: Adultes | I7: Total | J7: EAPréS | K7: EAS | L7: Adultes | M7: Total | N7: EAPréS | O7: EAS | P7: Adultes | Q7: Total
A9: =IF(COUNTRY_INFO!A9=0," ",COUNTRY_INFO!A9) -> Congo | B9: =IF(COUNTRY_INFO!B9=0," ",COUNTRY_INFO!B9) -> Bouenza | C9: =IF(COUNTRY_INFO!C9=0," ",COUNTRY_INFO!C9) -> Loudima | D9: =IF(COUNTRY_INFO!$T$9:$T$1000="MDA2 (DEC+ALB)", COUNTRY_INFO!$T$9:$T$1000, " ") ->  | I9: =SUM(F9:H9) -> 0 | M9: =SUM(J9:L9) -> 0 | N9: =IF(F9<>0, IF(J9/F9*100=0, "-", J9/F9*100), " ") -> 
A10: =IF(COUNTRY_INFO!A10=0," ",COUNTRY_INFO!A10) -> Congo | B10: =IF(COUNTRY_INFO!B10=0," ",COUNTRY_INFO!B10) -> Bouenza | C10: =IF(COUNTRY_INFO!C10=0," ",COUNTRY_INFO!C10) -> Loutété | D10: =IF(COUNTRY_INFO!$T$9:$T$1000="MDA2 (DEC+ALB)", COUNTRY_INFO!$T$9:$T$1000, " ") ->  | I10: =SUM(F10:H10) -> 0 | M10: =SUM(J10:L10) -> 0 | N10: =IF(F10<>0, IF(J10/F10*100=0, "-", J10/F10*100), " ") ->  | O10: =IF(G10<>0, IF(K10/G10*100=0, "-", K10/G10*100), " ") ->  | P10: =IF(H10<>0, IF(L10/H10*100=0, "-", L10/H10*100), " ") ->  | Q10: =IF(I10<>0, IF(M10/I10*100=0, "-", M10/I10*100), " ") -> 
A11: =IF(COUNTRY_INFO!A11=0," ",COUNTRY_INFO!A11) -> Congo | B11: =IF(COUNTRY_INFO!B11=0," ",COUNTRY_INFO!B11) -> Bouenza | C11: =IF(COUNTRY_INFO!C11=0," ",COUNTRY_INFO!C11) -> Madingou | D11: =IF(COUNTRY_INFO!$T$9:$T$1000="MDA2 (DEC+ALB)", COUNTRY_INFO!$T$9:$T$1000, " ") ->  | I11: 0 | M11: 0
A12: =IF(COUNTRY_INFO!A12=0," ",COUNTRY_INFO!A12) -> Congo | B12: =IF(COUNTRY_INFO!B12=0," ",COUNTRY_INFO!B12) -> Bouenza | C12: =IF(COUNTRY_INFO!C12=0," ",COUNTRY_INFO!C12) -> Mouyondzi | D12: =IF(COUNTRY_INFO!$T$9:$T$1000="MDA2 (DEC+ALB)", COUNTRY_INFO!$T$9:$T$1000, " ") ->  | I12: 0 | M12: 0
A13: =IF(COUNTRY_INFO!A13=0," ",COUNTRY_INFO!A13) -> Congo | B13: =IF(COUNTRY_INFO!B13=0," ",COUNTRY_INFO!B13) -> Brazzaville | C13: =IF(COUNTRY_INFO!C13=0," ",COUNTRY_INFO!C13) -> Bacongo | D13: =IF(COUNTRY_INFO!$T$9:$T$1000="MDA2 (DEC+ALB)", COUNTRY_INFO!$T$9:$T$1000, " ") ->  | I13: 0 | M13: 0
A14: =IF(COUNTRY_INFO!A14=0," ",COUNTRY_INFO!A14) -> Congo | B14: =IF(COUNTRY_INFO!B14=0," ",COUNTRY_INFO!B14) -> Brazzaville | C14: =IF(COUNTRY_INFO!C14=0," ",COUNTRY_INFO!C14) -> Makélékélé | D14: =IF(COUNTRY_INFO!$T$9:$T$1000="MDA2 (DEC+ALB)", COUNTRY_INFO!$T$9:$T$1000, " ") ->  | I14: 0 | M14: 0
A15: =IF(COUNTRY_INFO!A15=0," ",COUNTRY_INFO!A15) -> Congo | B15: =IF(COUNTRY_INFO!B15=0," ",COUNTRY_INFO!B15) -> Brazzaville | C15: =IF(COUNTRY_INFO!C15=0," ",COUNTRY_INFO!C15) -> Mfilou | D15: =IF(COUNTRY_INFO!$T$9:$T$1000="MDA2 (DEC+ALB)", COUNTRY_INFO!$T$9:$T$1000, " ") ->  | I15: 0 | M15: 0
A16: =IF(COUNTRY_INFO!A16=0," ",COUNTRY_INFO!A16) -> Congo | B16: =IF(COUNTRY_INFO!B16=0," ",COUNTRY_INFO!B16) -> Brazzaville | C16: =IF(COUNTRY_INFO!C16=0," ",COUNTRY_INFO!C16) -> Moungali | D16: =IF(COUNTRY_INFO!$T$9:$T$1000="MDA2 (DEC+ALB)", COUNTRY_INFO!$T$9:$T$1000, " ") ->  | I16: 0 | M16: 0
A17: =IF(COUNTRY_INFO!A17=0," ",COUNTRY_INFO!A17) -> Congo | B17: =IF(COUNTRY_INFO!B17=0," ",COUNTRY_INFO!B17) -> Brazzaville | C17: =IF(COUNTRY_INFO!C17=0," ",COUNTRY_INFO!C17) -> Ouenzé | D17: =IF(COUNTRY_INFO!$T$9:$T$1000="MDA2 (DEC+ALB)", COUNTRY_INFO!$T$9:$T$1000, " ") ->  | I17: 0 | M17: 0
A18: =IF(COUNTRY_INFO!A18=0," ",COUNTRY_INFO!A18) -> Congo | B18: =IF(COUNTRY_INFO!B18=0," ",COUNTRY_INFO!B18) -> Brazzaville | C18: =IF(COUNTRY_INFO!C18=0," ",COUNTRY_INFO!C18) -> Poto-Poto | D18: =IF(COUNTRY_INFO!$T$9:$T$1000="MDA2 (DEC+ALB)", COUNTRY_INFO!$T$9:$T$1000, " ") ->  | I18: 0 | M18: 0
A19: =IF(COUNTRY_INFO!A19=0," ",COUNTRY_INFO!A19) -> Congo | B19: =IF(COUNTRY_INFO!B19=0," ",COUNTRY_INFO!B19) -> Brazzaville | C19: =IF(COUNTRY_INFO!C19=0," ",COUNTRY_INFO!C19) -> Talangaî | D19: =IF(COUNTRY_INFO!$T$9:$T$1000="MDA2 (DEC+ALB)", COUNTRY_INFO!$T$9:$T$1000, " ") ->  | I19: 0 | M19: 0
A20: =IF(COUNTRY_INFO!A20=0," ",COUNTRY_INFO!A20) -> Congo | B20: =IF(COUNTRY_INFO!B20=0," ",COUNTRY_INFO!B20) -> Brazzaville | C20: =IF(COUNTRY_INFO!C20=0," ",COUNTRY_INFO!C20) -> Madibou | D20: =IF(COUNTRY_INFO!$T$9:$T$1000="MDA2 (DEC+ALB)", COUNTRY_INFO!$T$9:$T$1000, " ") ->  | I20: 0 | M20: 0
A21: =IF(COUNTRY_INFO!A21=0," ",COUNTRY_INFO!A21) -> Congo | B21: =IF(COUNTRY_INFO!B21=0," ",COUNTRY_INFO!B21) -> Brazzaville | C21: =IF(COUNTRY_INFO!C21=0," ",COUNTRY_INFO!C21) -> Djiri | D21: =IF(COUNTRY_INFO!$T$9:$T$1000="MDA2 (DEC+ALB)", COUNTRY_INFO!$T$9:$T$1000, " ") ->  | I21: 0 | M21: 0
A22: =IF(COUNTRY_INFO!A22=0," ",COUNTRY_INFO!A22) -> Congo | B22: =IF(COUNTRY_INFO!B22=0," ",COUNTRY_INFO!B22) -> Cuvette | C22: =IF(COUNTRY_INFO!C22=0," ",COUNTRY_INFO!C22) -> Mossaka Loukoléla | D22: =IF(COUNTRY_INFO!$T$9:$T$1000="MDA2 (DEC+ALB)", COUNTRY_INFO!$T$9:$T$1000, " ") ->  | I22: 0 | M22: 0
A23: =IF(COUNTRY_INFO!A23=0," ",COUNTRY_INFO!A23) -> Congo | B23: =IF(COUNTRY_INFO!B23=0," ",COUNTRY_INFO!B23) -> Cuvette | C23: =IF(COUNTRY_INFO!C23=0," ",COUNTRY_INFO!C23) -> Owando | D23: =IF(COUNTRY_INFO!$T$9:$T$1000="MDA2 (DEC+ALB)", COUNTRY_INFO!$T$9:$T$1000, " ") ->  | I23: 0 | M23: 0
A24: =IF(COUNTRY_INFO!A24=0," ",COUNTRY_INFO!A24) -> Congo | B24: =IF(COUNTRY_INFO!B24=0," ",COUNTRY_INFO!B24) -> Cuvette | C24: =IF(COUNTRY_INFO!C24=0," ",COUNTRY_INFO!C24) -> Oyo | D24: =IF(COUNTRY_INFO!$T$9:$T$1000="MDA2 (DEC+ALB)", COUNTRY_INFO!$T$9:$T$1000, " ") ->  | I24: 0 | M24: 0
A25: =IF(COUNTRY_INFO!A25=0," ",COUNTRY_INFO!A25) -> Congo | B25: =IF(COUNTRY_INFO!B25=0," ",COUNTRY_INFO!B25) -> Cuvette-Ouest | C25: =IF(COUNTRY_INFO!C25=0," ",COUNTRY_INFO!C25) -> Etoumbi | D25: =IF(COUNTRY_INFO!$T$9:$T$1000="MDA2 (DEC+ALB)", COUNTRY_INFO!$T$9:$T$1000, " ") ->  | I25: 0 | M25: 0
A26: =IF(COUNTRY_INFO!A26=0," ",COUNTRY_INFO!A26) -> Congo | B26: =IF(COUNTRY_INFO!B26=0," ",COUNTRY_INFO!B26) -> Cuvette-Ouest | C26: =IF(COUNTRY_INFO!C26=0," ",COUNTRY_INFO!C26) -> Ewo | D26: =IF(COUNTRY_INFO!$T$9:$T$1000="MDA2 (DEC+ALB)", COUNTRY_INFO!$T$9:$T$1000, " ") ->  | I26: 0 | M26: 0
A27: =IF(COUNTRY_INFO!A27=0," ",COUNTRY_INFO!A27) -> Congo | B27: =IF(COUNTRY_INFO!B27=0," ",COUNTRY_INFO!B27) -> Kouilou | C27: =IF(COUNTRY_INFO!C27=0," ",COUNTRY_INFO!C27) -> Hinda-Mvouti | D27: =IF(COUNTRY_INFO!$T$9:$T$1000="MDA2 (DEC+ALB)", COUNTRY_INFO!$T$9:$T$1000, " ") ->  | I27: 0 | M27: 0
A28: =IF(COUNTRY_INFO!A28=0," ",COUNTRY_INFO!A28) -> Congo | B28: =IF(COUNTRY_INFO!B28=0," ",COUNTRY_INFO!B28) -> Kouilou | C28: =IF(COUNTRY_INFO!C28=0," ",COUNTRY_INFO!C28) -> Madingo Kayes | D28: =IF(COUNTRY_INFO!$T$9:$T$1000="MDA2 (DEC+ALB)", COUNTRY_INFO!$T$9:$T$1000, " ") ->  | I28: 0 | M28: 0
A29: =IF(COUNTRY_INFO!A29=0," ",COUNTRY_INFO!A29) -> Congo | B29: =IF(COUNTRY_INFO!B29=0," ",COUNTRY_INFO!B29) -> Lékoumou | C29: =IF(COUNTRY_INFO!C29=0," ",COUNTRY_INFO!C29) -> Sibiti | D29: =IF(COUNTRY_INFO!$T$9:$T$1000="MDA2 (DEC+ALB)", COUNTRY_INFO!$T$9:$T$1000, " ") ->  | I29: 0 | M29: 0
A30: =IF(COUNTRY_INFO!A30=0," ",COUNTRY_INFO!A30) -> Congo | B30: =IF(COUNTRY_INFO!B30=0," ",COUNTRY_INFO!B30) -> Lékoumou | C30: =IF(COUNTRY_INFO!C30=0," ",COUNTRY_INFO!C30) -> Zanaga | D30: =IF(COUNTRY_INFO!$T$9:$T$1000="MDA2 (DEC+ALB)", COUNTRY_INFO!$T$9:$T$1000, " ") ->  | I30: 0 | M30: 0
A31: =IF(COUNTRY_INFO!A31=0," ",COUNTRY_INFO!A31) -> Congo | B31: =IF(COUNTRY_INFO!B31=0," ",COUNTRY_INFO!B31) -> Likouala | C31: =IF(COUNTRY_INFO!C31=0," ",COUNTRY_INFO!C31) -> Bétou | D31: =IF(COUNTRY_INFO!$T$9:$T$1000="MDA2 (DEC+ALB)", COUNTRY_INFO!$T$9:$T$1000, " ") ->  | I31: 0 | M31: 0
A32: =IF(COUNTRY_INFO!A32=0," ",COUNTRY_INFO!A32) -> Congo | B32: =IF(COUNTRY_INFO!B32=0," ",COUNTRY_INFO!B32) -> Likouala | C32: =IF(COUNTRY_INFO!C32=0," ",COUNTRY_INFO!C32) -> Impfondo | D32: =IF(COUNTRY_INFO!$T$9:$T$1000="MDA2 (DEC+ALB)", COUNTRY_INFO!$T$9:$T$1000, " ") ->  | I32: 0 | M32: 0
A33: =IF(COUNTRY_INFO!A33=0," ",COUNTRY_INFO!A33) -> Congo | B33: =IF(COUNTRY_INFO!B33=0," ",COUNTRY_INFO!B33) -> Niari | C33: =IF(COUNTRY_INFO!C33=0," ",COUNTRY_INFO!C33) -> Dolisie | D33: =IF(COUNTRY_INFO!$T$9:$T$1000="MDA2 (DEC+ALB)", COUNTRY_INFO!$T$9:$T$1000, " ") ->  | I33: 0 | M33: 0
A34: =IF(COUNTRY_INFO!A34=0," ",COUNTRY_INFO!A34) -> Congo | B34: =IF(COUNTRY_INFO!B34=0," ",COUNTRY_INFO!B34) -> Niari | C34: =IF(COUNTRY_INFO!C34=0," ",COUNTRY_INFO!C34) -> Kibangou | D34: =IF(COUNTRY_INFO!$T$9:$T$1000="MDA2 (DEC+ALB)", COUNTRY_INFO!$T$9:$T$1000, " ") ->  | I34: 0 | M34: 0
A35: =IF(COUNTRY_INFO!A35=0," ",COUNTRY_INFO!A35) -> Congo | B35: =IF(COUNTRY_INFO!B35=0," ",COUNTRY_INFO!B35) -> Niari | C35: =IF(COUNTRY_INFO!C35=0," ",COUNTRY_INFO!C35) -> Mossendjo | D35: =IF(COUNTRY_INFO!$T$9:$T$1000="MDA2 (DEC+ALB)", COUNTRY_INFO!$T$9:$T$1000, " ") ->  | I35: 0 | M35: 0
A36: =IF(COUNTRY_INFO!A36=0," ",COUNTRY_INFO!A36) -> Congo | B36: =IF(COUNTRY_INFO!B36=0," ",COUNTRY_INFO!B36) -> Plateaux | C36: =IF(COUNTRY_INFO!C36=0," ",COUNTRY_INFO!C36) -> Abala | D36: =IF(COUNTRY_INFO!$T$9:$T$1000="MDA2 (DEC+ALB)", COUNTRY_INFO!$T$9:$T$1000, " ") ->  | I36: 0 | M36: 0
A37: =IF(COUNTRY_INFO!A37=0," ",COUNTRY_INFO!A37) -> Congo | B37: =IF(COUNTRY_INFO!B37=0," ",COUNTRY_INFO!B37) -> Plateaux | C37: =IF(COUNTRY_INFO!C37=0," ",COUNTRY_INFO!C37) -> Djambala-Lékana | D37: =IF(COUNTRY_INFO!$T$9:$T$1000="MDA2 (DEC+ALB)", COUNTRY_INFO!$T$9:$T$1000, " ") ->  | I37: 0 | M37: 0
A38: =IF(COUNTRY_INFO!A38=0," ",COUNTRY_INFO!A38) -> Congo | B38: =IF(COUNTRY_INFO!B38=0," ",COUNTRY_INFO!B38) -> Plateaux | C38: =IF(COUNTRY_INFO!C38=0," ",COUNTRY_INFO!C38) -> Gamboma | D38: =IF(COUNTRY_INFO!$T$9:$T$1000="MDA2 (DEC+ALB)", COUNTRY_INFO!$T$9:$T$1000, " ") ->  | I38: 0 | M38: 0
A39: =IF(COUNTRY_INFO!A39=0," ",COUNTRY_INFO!A39) -> Congo | B39: =IF(COUNTRY_INFO!B39=0," ",COUNTRY_INFO!B39) -> Pointe-Noire | C39: =IF(COUNTRY_INFO!C39=0," ",COUNTRY_INFO!C39) -> Ngoyo | D39: =IF(COUNTRY_INFO!$T$9:$T$1000="MDA2 (DEC+ALB)", COUNTRY_INFO!$T$9:$T$1000, " ") ->  | I39: 0 | M39: 0
A40: =IF(COUNTRY_INFO!A40=0," ",COUNTRY_INFO!A40) -> Congo | B40: =IF(COUNTRY_INFO!B40=0," ",COUNTRY_INFO!B40) -> Pointe-Noire | C40: =IF(COUNTRY_INFO!C40=0," ",COUNTRY_INFO!C40) -> Mongo-Poukou | D40: =IF(COUNTRY_INFO!$T$9:$T$1000="MDA2 (DEC+ALB)", COUNTRY_INFO!$T$9:$T$1000, " ") ->  | I40: 0 | M40: 0
A41: =IF(COUNTRY_INFO!A41=0," ",COUNTRY_INFO!A41) -> Congo | B41: =IF(COUNTRY_INFO!B41=0," ",COUNTRY_INFO!B41) -> Pointe-Noire | C41: =IF(COUNTRY_INFO!C41=0," ",COUNTRY_INFO!C41) -> Loandjili | D41: =IF(COUNTRY_INFO!$T$9:$T$1000="MDA2 (DEC+ALB)", COUNTRY_INFO!$T$9:$T$1000, " ") ->  | I41: 0 | M41: 0
A42: =IF(COUNTRY_INFO!A42=0," ",COUNTRY_INFO!A42) -> Congo | B42: =IF(COUNTRY_INFO!B42=0," ",COUNTRY_INFO!B42) -> Pointe-Noire | C42: =IF(COUNTRY_INFO!C42=0," ",COUNTRY_INFO!C42) -> Lumumba | D42: =IF(COUNTRY_INFO!$T$9:$T$1000="MDA2 (DEC+ALB)", COUNTRY_INFO!$T$9:$T$1000, " ") ->  | I42: 0 | M42: 0
A43: =IF(COUNTRY_INFO!A43=0," ",COUNTRY_INFO!A43) -> Congo | B43: =IF(COUNTRY_INFO!B43=0," ",COUNTRY_INFO!B43) -> Pointe-Noire | C43: =IF(COUNTRY_INFO!C43=0," ",COUNTRY_INFO!C43) -> Mvoumvou | D43: =IF(COUNTRY_INFO!$T$9:$T$1000="MDA2 (DEC+ALB)", COUNTRY_INFO!$T$9:$T$1000, " ") ->  | I43: 0 | M43: 0
A44: =IF(COUNTRY_INFO!A44=0," ",COUNTRY_INFO!A44) -> Congo | B44: =IF(COUNTRY_INFO!B44=0," ",COUNTRY_INFO!B44) -> Pointe-Noire | C44: =IF(COUNTRY_INFO!C44=0," ",COUNTRY_INFO!C44) -> Tie-Tie | D44: =IF(COUNTRY_INFO!$T$9:$T$1000="MDA2 (DEC+ALB)", COUNTRY_INFO!$T$9:$T$1000, " ") ->  | I44: 0 | M44: 0
A45: =IF(COUNTRY_INFO!A45=0," ",COUNTRY_INFO!A45) -> Congo | B45: =IF(COUNTRY_INFO!B45=0," ",COUNTRY_INFO!B45) -> Pool | C45: =IF(COUNTRY_INFO!C45=0," ",COUNTRY_INFO!C45) -> Goma tsétsé | D45: =IF(COUNTRY_INFO!$T$9:$T$1000="MDA2 (DEC+ALB)", COUNTRY_INFO!$T$9:$T$1000, " ") ->  | I45: 0 | M45: 0
A46: =IF(COUNTRY_INFO!A46=0," ",COUNTRY_INFO!A46) -> Congo | B46: =IF(COUNTRY_INFO!B46=0," ",COUNTRY_INFO!B46) -> Pool | C46: =IF(COUNTRY_INFO!C46=0," ",COUNTRY_INFO!C46) -> Ignié | D46: =IF(COUNTRY_INFO!$T$9:$T$1000="MDA2 (DEC+ALB)", COUNTRY_INFO!$T$9:$T$1000, " ") ->  | I46: 0 | M46: 0
A47: =IF(COUNTRY_INFO!A47=0," ",COUNTRY_INFO!A47) -> Congo | B47: =IF(COUNTRY_INFO!B47=0," ",COUNTRY_INFO!B47) -> Pool | C47: =IF(COUNTRY_INFO!C47=0," ",COUNTRY_INFO!C47) -> Kindamba | D47: =IF(COUNTRY_INFO!$T$9:$T$1000="MDA2 (DEC+ALB)", COUNTRY_INFO!$T$9:$T$1000, " ") ->  | I47: 0 | M47: 0
A48: =IF(COUNTRY_INFO!A48=0," ",COUNTRY_INFO!A48) -> Congo | B48: =IF(COUNTRY_INFO!B48=0," ",COUNTRY_INFO!B48) -> Pool | C48: =IF(COUNTRY_INFO!C48=0," ",COUNTRY_INFO!C48) -> Kinkala-Boko | D48: =IF(COUNTRY_INFO!$T$9:$T$1000="MDA2 (DEC+ALB)", COUNTRY_INFO!$T$9:$T$1000, " ") ->  | I48: 0 | M48: 0
A49: =IF(COUNTRY_INFO!A49=0," ",COUNTRY_INFO!A49) -> Congo | B49: =IF(COUNTRY_INFO!B49=0," ",COUNTRY_INFO!B49) -> Pool | C49: =IF(COUNTRY_INFO!C49=0," ",COUNTRY_INFO!C49) -> Mindouli | D49: =IF(COUNTRY_INFO!$T$9:$T$1000="MDA2 (DEC+ALB)", COUNTRY_INFO!$T$9:$T$1000, " ") ->  | I49: 0 | M49: 0
A50: =IF(COUNTRY_INFO!A50=0," ",COUNTRY_INFO!A50) -> Congo | B50: =IF(COUNTRY_INFO!B50=0," ",COUNTRY_INFO!B50) -> Sangha | C50: =IF(COUNTRY_INFO!C50=0," ",COUNTRY_INFO!C50) -> Ouesso | D50: =IF(COUNTRY_INFO!$T$9:$T$1000="MDA2 (DEC+ALB)", COUNTRY_INFO!$T$9:$T$1000, " ") ->  | I50: 0 | M50: 0
A51: =IF(COUNTRY_INFO!A51=0," ",COUNTRY_INFO!A51) -> Congo | B51: =IF(COUNTRY_INFO!B51=0," ",COUNTRY_INFO!B51) -> Sangha | C51: =IF(COUNTRY_INFO!C51=0," ",COUNTRY_INFO!C51) -> Sembé-Souanké | D51: =IF(COUNTRY_INFO!$T$9:$T$1000="MDA2 (DEC+ALB)", COUNTRY_INFO!$T$9:$T$1000, " ") ->  | I51: 0 | M51: 0

Sheet MDA3
A1: MDA 3 - Ivermectine (IVM)
A2: Structure administrative, population nécessitant une chimioprévention par groupe d'âge, population traitée par groupe d'âge et couverture
A4: TOTAL | F4: =SUM(F$9:F$1000) -> 118144 | G4: 373129 | H4: 491273 | I4: 96717 | J4: 306274 | K4: 402991 | L4: 0 | M4: 0 | N4: 0 | O4: 96717 | P4: 306274 | Q4: 402991 | R4: =IF(F4<>0, IF(O4/F4*100=0, "-", O4/F4*100), " ") -> 81.86365791 | S4: =IF(G4<>0, IF(P4/G4*100=0, "-", P4/G4*100), " ") -> 82.08260414 | T4: =IF(H4<>0, IF(Q4/H4*100=0, "-", Q4/H4*100), " ") -> 82.02995076
A6: Structure administrative du pays | D6: Mise en oeuvre de la CP | E6: Date | F6: Population ciblée pour MDA 3 | I6: Population traitée - tournée 1 | L6: Population traitée - tournée 2 | O6: Population traitée | R6: Couverture du Programme (%)
A7: Pays | B7: Région/Département | C7: District | F7: EAS | G7: Adultes | H7: Total | I7: EAS | J7: Adultes | K7: Total | L7: EAS | M7: Adultes | N7: Total | O7: EAS | P7: Adultes | Q7: Total | R7: EAS | S7: Adultes | T7: Total
A9: =IF(COUNTRY_INFO!A9=0," ",COUNTRY_INFO!A9) -> Congo | B9: =IF(COUNTRY_INFO!B9=0," ",COUNTRY_INFO!B9) -> Bouenza | C9: =IF(COUNTRY_INFO!C9=0," ",COUNTRY_INFO!C9) -> Loudima | D9: =IF(COUNTRY_INFO!$T$9:$T$1000="MDA3 (IVM)", COUNTRY_INFO!$T$9:$T$1000, " ") -> MDA3 (IVM) | E9: Aout-Nov | F9: 11429 | G9: 36191 | H9: =SUM(F9:G9) -> 47620 | I9: 9426 | J9: 29851 | K9: =SUM(I9:J9) -> 39277 | N9: =SUM(L9:M9) -> 0 | O9: =MAX(I9,L9) -> 9426 | P9: 29851 | Q9: =SUM(O9:P9) -> 39277 | R9: =IF(F9<>0, IF(MAX(I9,L9)/F9*100=0, "-", MAX(I9,L9)/F9*100), " ") -> 82.47440721 | S9: 82.4818325 | T9: =IF(H9<>0, IF((MAX(I9,L9)+MAX(J9,M9))/H9*100=0, "-",(MAX(I9,L9)+MAX(J9,M9))/H9*100), " ") -> 82.4800504
A10: =IF(COUNTRY_INFO!A10=0," ",COUNTRY_INFO!A10) -> Congo | B10: =IF(COUNTRY_INFO!B10=0," ",COUNTRY_INFO!B10) -> Bouenza | C10: =IF(COUNTRY_INFO!C10=0," ",COUNTRY_INFO!C10) -> Loutété | D10: =IF(COUNTRY_INFO!$T$9:$T$1000="MDA3 (IVM)", COUNTRY_INFO!$T$9:$T$1000, " ") ->  | H10: =SUM(F10:G10) -> 0 | K10: =SUM(I10:J10) -> 0 | N10: =SUM(L10:M10) -> 0 | O10: =MAX(I10,L10) -> 0 | P10: =MAX(J10,M10) -> 0 | Q10: =SUM(O10:P10) -> 0 | R10: =IF(F10<>0, IF(MAX(I10,L10)/F10*100=0, "-", MAX(I10,L10)/F10*100), " ") ->  | S10: =IF(G10<>0, IF(MAX(J10,M10)/G10*100=0, "-", MAX(J10,M10)/G10*100), " ") ->  | T10: =IF(H10<>0, IF((MAX(I10,L10)+MAX(J10,M10))/H10*100=0, "-",(MAX(I10,L10)+MAX(J10,M10))/H10*100), " ") -> 
A11: =IF(COUNTRY_INFO!A11=0," ",COUNTRY_INFO!A11) -> Congo | B11: =IF(COUNTRY_INFO!B11=0," ",COUNTRY_INFO!B11) -> Bouenza | C11: =IF(COUNTRY_INFO!C11=0," ",COUNTRY_INFO!C11) -> Madingou | D11: =IF(COUNTRY_INFO!$T$9:$T$1000="MDA3 (IVM)", COUNTRY_INFO!$T$9:$T$1000, " ") ->  | H11: 0 | K11: 0 | N11: 0 | O11: 0 | P11: 0 | Q11: 0
A12: =IF(COUNTRY_INFO!A12=0," ",COUNTRY_INFO!A12) -> Congo | B12: =IF(COUNTRY_INFO!B12=0," ",COUNTRY_INFO!B12) -> Bouenza | C12: =IF(COUNTRY_INFO!C12=0," ",COUNTRY_INFO!C12) -> Mouyondzi | D12: =IF(COUNTRY_INFO!$T$9:$T$1000="MDA3 (IVM)", COUNTRY_INFO!$T$9:$T$1000, " ") ->  | H12: 0 | K12: 0 | N12: 0 | O12: 0 | P12: 0 | Q12: 0
A13: =IF(COUNTRY_INFO!A13=0," ",COUNTRY_INFO!A13) -> Congo | B13: =IF(COUNTRY_INFO!B13=0," ",COUNTRY_INFO!B13) -> Brazzaville | C13: =IF(COUNTRY_INFO!C13=0," ",COUNTRY_INFO!C13) -> Bacongo | D13: =IF(COUNTRY_INFO!$T$9:$T$1000="MDA3 (IVM)", COUNTRY_INFO!$T$9:$T$1000, " ") -> MDA3 (IVM) | E13: Octobre - decembre | F13: 25001 | G13: 79170 | H13: 104171 | I13: 20322 | J13: 64355 | K13: 84677 | N13: 0 | O13: 20322 | P13: 64355 | Q13: 84677 | R13: 81.28474861 | S13: 81.2871037 | T13: 81.28653848
A14: =IF(COUNTRY_INFO!A14=0," ",COUNTRY_INFO!A14) -> Congo | B14: =IF(COUNTRY_INFO!B14=0," ",COUNTRY_INFO!B14) -> Brazzaville | C14: =IF(COUNTRY_INFO!C14=0," ",COUNTRY_INFO!C14) -> Makélékélé | D14: =IF(COUNTRY_INFO!$T$9:$T$1000="MDA3 (IVM)", COUNTRY_INFO!$T$9:$T$1000, " ") -> MDA3 (IVM) | E14: Octobre - decembre | F14: 14034 | G14: 44441 | H14: 58475 | I14: 12655 | J14: 40073 | K14: 52728 | N14: 0 | O14: 12655 | P14: 40073 | Q14: 52728 | R14: 90.17386347 | S14: 90.17123827 | T14: 90.17186832
A15: =IF(COUNTRY_INFO!A15=0," ",COUNTRY_INFO!A15) -> Congo | B15: =IF(COUNTRY_INFO!B15=0," ",COUNTRY_INFO!B15) -> Brazzaville | C15: =IF(COUNTRY_INFO!C15=0," ",COUNTRY_INFO!C15) -> Mfilou | D15: =IF(COUNTRY_INFO!$T$9:$T$1000="MDA3 (IVM)", COUNTRY_INFO!$T$9:$T$1000, " ") -> MDA3 (IVM) | E15: Octobre - decembre | F15: 22693 | G15: 71862 | H15: 94555 | I15: 18428 | J15: 58357 | K15: 76785 | N15: 0 | O15: 18428 | P15: 58357 | Q15: 76785 | R15: 81.20565813 | S15: 81.20703571 | T15: 81.20670509
A16: =IF(COUNTRY_INFO!A16=0," ",COUNTRY_INFO!A16) -> Congo | B16: =IF(COUNTRY_INFO!B16=0," ",COUNTRY_INFO!B16) -> Brazzaville | C16: =IF(COUNTRY_INFO!C16=0," ",COUNTRY_INFO!C16) -> Moungali | D16: =IF(COUNTRY_INFO!$T$9:$T$1000="MDA3 (IVM)", COUNTRY_INFO!$T$9:$T$1000, " ") ->  | H16: 0 | K16: 0 | N16: 0 | O16: 0 | P16: 0 | Q16: 0
A17: =IF(COUNTRY_INFO!A17=0," ",COUNTRY_INFO!A17) -> Congo | B17: =IF(COUNTRY_INFO!B17=0," ",COUNTRY_INFO!B17) -> Brazzaville | C17: =IF(COUNTRY_INFO!C17=0," ",COUNTRY_INFO!C17) -> Ouenzé | D17: =IF(COUNTRY_INFO!$T$9:$T$1000="MDA3 (IVM)", COUNTRY_INFO!$T$9:$T$1000, " ") ->  | H17: 0 | K17: 0 | N17: 0 | O17: 0 | P17: 0 | Q17: 0
A18: =IF(COUNTRY_INFO!A18=0," ",COUNTRY_INFO!A18) -> Congo | B18: =IF(COUNTRY_INFO!B18=0," ",COUNTRY_INFO!B18) -> Brazzaville | C18: =IF(COUNTRY_INFO!C18=0," ",COUNTRY_INFO!C18) -> Poto-Poto | D18: =IF(COUNTRY_INFO!$T$9:$T$1000="MDA3 (IVM)", COUNTRY_INFO!$T$9:$T$1000, " ") ->  | H18: 0 | K18: 0 | N18: 0 | O18: 0 | P18: 0 | Q18: 0
A19: =IF(COUNTRY_INFO!A19=0," ",COUNTRY_INFO!A19) -> Congo | B19: =IF(COUNTRY_INFO!B19=0," ",COUNTRY_INFO!B19) -> Brazzaville | C19: =IF(COUNTRY_INFO!C19=0," ",COUNTRY_INFO!C19) -> Talangaî | D19: =IF(COUNTRY_INFO!$T$9:$T$1000="MDA3 (IVM)", COUNTRY_INFO!$T$9:$T$1000, " ") ->  | H19: 0 | K19: 0 | N19: 0 | O19: 0 | P19: 0 | Q19: 0
A20: =IF(COUNTRY_INFO!A20=0," ",COUNTRY_INFO!A20) -> Congo | B20: =IF(COUNTRY_INFO!B20=0," ",COUNTRY_INFO!B20) -> Brazzaville | C20: =IF(COUNTRY_INFO!C20=0," ",COUNTRY_INFO!C20) -> Madibou | D20: =IF(COUNTRY_INFO!$T$9:$T$1000="MDA3 (IVM)", COUNTRY_INFO!$T$9:$T$1000, " ") -> MDA3 (IVM) | E20: Octobre - decembre | F20: 26103 | G20: 81661 | H20: 107764 | I20: 21559 | J20: 68269 | K20: 89828 | N20: 0 | O20: 21559 | P20: 68269 | Q20: 89828 | R20: 82.59203923 | S20: 83.60049473 | T20: 83.35622286
A21: =IF(COUNTRY_INFO!A21=0," ",COUNTRY_INFO!A21) -> Congo | B21: =IF(COUNTRY_INFO!B21=0," ",COUNTRY_INFO!B21) -> Brazzaville | C21: =IF(COUNTRY_INFO!C21=0," ",COUNTRY_INFO!C21) -> Djiri | D21: =IF(COUNTRY_INFO!$T$9:$T$1000="MDA3 (IVM)", COUNTRY_INFO!$T$9:$T$1000, " ") ->  | H21: 0 | K21: 0 | N21: 0 | O21: 0 | P21: 0 | Q21: 0
A22: =IF(COUNTRY_INFO!A22=0," ",COUNTRY_INFO!A22) -> Congo | B22: =IF(COUNTRY_INFO!B22=0," ",COUNTRY_INFO!B22) -> Cuvette | C22: =IF(COUNTRY_INFO!C22=0," ",COUNTRY_INFO!C22) -> Mossaka Loukoléla | D22: =IF(COUNTRY_INFO!$T$9:$T$1000="MDA3 (IVM)", COUNTRY_INFO!$T$9:$T$1000, " ") ->  | H22: 0 | K22: 0 | N22: 0 | O22: 0 | P22: 0 | Q22: 0
A23: =IF(COUNTRY_INFO!A23=0," ",COUNTRY_INFO!A23) -> Congo | B23: =IF(COUNTRY_INFO!B23=0," ",COUNTRY_INFO!B23) -> Cuvette | C23: =IF(COUNTRY_INFO!C23=0," ",COUNTRY_INFO!C23) -> Owando | D23: =IF(COUNTRY_INFO!$T$9:$T$1000="MDA3 (IVM)", COUNTRY_INFO!$T$9:$T$1000, " ") ->  | H23: 0 | K23: 0 | N23: 0 | O23: 0 | P23: 0 | Q23: 0
A24: =IF(COUNTRY_INFO!A24=0," ",COUNTRY_INFO!A24) -> Congo | B24: =IF(COUNTRY_INFO!B24=0," ",COUNTRY_INFO!B24) -> Cuvette | C24: =IF(COUNTRY_INFO!C24=0," ",COUNTRY_INFO!C24) -> Oyo | D24: =IF(COUNTRY_INFO!$T$9:$T$1000="MDA3 (IVM)", COUNTRY_INFO!$T$9:$T$1000, " ") ->  | H24: 0 | K24: 0 | N24: 0 | O24: 0 | P24: 0 | Q24: 0
A25: =IF(COUNTRY_INFO!A25=0," ",COUNTRY_INFO!A25) -> Congo | B25: =IF(COUNTRY_INFO!B25=0," ",COUNTRY_INFO!B25) -> Cuvette-Ouest | C25: =IF(COUNTRY_INFO!C25=0," ",COUNTRY_INFO!C25) -> Etoumbi | D25: =IF(COUNTRY_INFO!$T$9:$T$1000="MDA3 (IVM)", COUNTRY_INFO!$T$9:$T$1000, " ") ->  | H25: 0 | K25: 0 | N25: 0 | O25: 0 | P25: 0 | Q25: 0
A26: =IF(COUNTRY_INFO!A26=0," ",COUNTRY_INFO!A26) -> Congo | B26: =IF(COUNTRY_INFO!B26=0," ",COUNTRY_INFO!B26) -> Cuvette-Ouest | C26: =IF(COUNTRY_INFO!C26=0," ",COUNTRY_INFO!C26) -> Ewo | D26: =IF(COUNTRY_INFO!$T$9:$T$1000="MDA3 (IVM)", COUNTRY_INFO!$T$9:$T$1000, " ") ->  | H26: 0 | K26: 0 | N26: 0 | O26: 0 | P26: 0 | Q26: 0
A27: =IF(COUNTRY_INFO!A27=0," ",COUNTRY_INFO!A27) -> Congo | B27: =IF(COUNTRY_INFO!B27=0," ",COUNTRY_INFO!B27) -> Kouilou | C27: =IF(COUNTRY_INFO!C27=0," ",COUNTRY_INFO!C27) -> Hinda-Mvouti | D27: =IF(COUNTRY_INFO!$T$9:$T$1000="MDA3 (IVM)", COUNTRY_INFO!$T$9:$T$1000, " ") -> MDA3 (IVM) | H27: 0 | K27: 0 | N27: 0 | O27: 0 | P27: 0 | Q27: 0
A28: =IF(COUNTRY_INFO!A28=0," ",COUNTRY_INFO!A28) -> Congo | B28: =IF(COUNTRY_INFO!B28=0," ",COUNTRY_INFO!B28) -> Kouilou | C28: =IF(COUNTRY_INFO!C28=0," ",COUNTRY_INFO!C28) -> Madingo Kayes | D28: =IF(COUNTRY_INFO!$T$9:$T$1000="MDA3 (IVM)", COUNTRY_INFO!$T$9:$T$1000, " ") -> MDA3 (IVM) | E28: Sept-nov | F28: 245 | G28: 777 | H28: 1022 | I28: 233 | J28: 738 | K28: 971 | N28: 0 | O28: 233 | P28: 738 | Q28: 971 | R28: 95.10204082 | S28: 94.98069498 | T28: 95.00978474
A29: =IF(COUNTRY_INFO!A29=0," ",COUNTRY_INFO!A29) -> Congo | B29: =IF(COUNTRY_INFO!B29=0," ",COUNTRY_INFO!B29) -> Lékoumou | C29: =IF(COUNTRY_INFO!C29=0," ",COUNTRY_INFO!C29) -> Sibiti | D29: =IF(COUNTRY_INFO!$T$9:$T$1000="MDA3 (IVM)", COUNTRY_INFO!$T$9:$T$1000, " ") -> MDA3 (IVM) | E29: Sept-nov | F29: 166 | G29: 525 | H29: 691 | I29: 142 | J29: 449 | K29: 591 | N29: 0 | O29: 142 | P29: 449 | Q29: 591 | R29: 85.54216867 | S29: 85.52380952 | T29: 85.52821997
A30: =IF(COUNTRY_INFO!A30=0," ",COUNTRY_INFO!A30) -> Congo | B30: =IF(COUNTRY_INFO!B30=0," ",COUNTRY_INFO!B30) -> Lékoumou | C30: =IF(COUNTRY_INFO!C30=0," ",COUNTRY_INFO!C30) -> Zanaga | D30: =IF(COUNTRY_INFO!$T$9:$T$1000="MDA3 (IVM)", COUNTRY_INFO!$T$9:$T$1000, " ") ->  | H30: 0 | K30: 0 | N30: 0 | O30: 0 | P30: 0 | Q30: 0
A31: =IF(COUNTRY_INFO!A31=0," ",COUNTRY_INFO!A31) -> Congo | B31: =IF(COUNTRY_INFO!B31=0," ",COUNTRY_INFO!B31) -> Likouala | C31: =IF(COUNTRY_INFO!C31=0," ",COUNTRY_INFO!C31) -> Bétou | D31: =IF(COUNTRY_INFO!$T$9:$T$1000="MDA3 (IVM)", COUNTRY_INFO!$T$9:$T$1000, " ") ->  | H31: 0 | K31: 0 | N31: 0 | O31: 0 | P31: 0 | Q31: 0
A32: =IF(COUNTRY_INFO!A32=0," ",COUNTRY_INFO!A32) -> Congo | B32: =IF(COUNTRY_INFO!B32=0," ",COUNTRY_INFO!B32) -> Likouala | C32: =IF(COUNTRY_INFO!C32=0," ",COUNTRY_INFO!C32) -> Impfondo | D32: =IF(COUNTRY_INFO!$T$9:$T$1000="MDA3 (IVM)", COUNTRY_INFO!$T$9:$T$1000, " ") ->  | H32: 0 | K32: 0 | N32: 0 | O32: 0 | P32: 0 | Q32: 0
A33: =IF(COUNTRY_INFO!A33=0," ",COUNTRY_INFO!A33) -> Congo | B33: =IF(COUNTRY_INFO!B33=0," ",COUNTRY_INFO!B33) -> Niari | C33: =IF(COUNTRY_INFO!C33=0," ",COUNTRY_INFO!C33) -> Dolisie | D33: =IF(COUNTRY_INFO!$T$9:$T$1000="MDA3 (IVM)", COUNTRY_INFO!$T$9:$T$1000, " ") ->  | H33: 0 | K33: 0 | N33: 0 | O33: 0 | P33: 0 | Q33: 0
A34: =IF(COUNTRY_INFO!A34=0," ",COUNTRY_INFO!A34) -> Congo | B34: =IF(COUNTRY_INFO!B34=0," ",COUNTRY_INFO!B34) -> Niari | C34: =IF(COUNTRY_INFO!C34=0," ",COUNTRY_INFO!C34) -> Kibangou | D34: =IF(COUNTRY_INFO!$T$9:$T$1000="MDA3 (IVM)", COUNTRY_INFO!$T$9:$T$1000, " ") ->  | H34: 0 | K34: 0 | N34: 0 | O34: 0 | P34: 0 | Q34: 0
A35: =IF(COUNTRY_INFO!A35=0," ",COUNTRY_INFO!A35) -> Congo | B35: =IF(COUNTRY_INFO!B35=0," ",COUNTRY_INFO!B35) -> Niari | C35: =IF(COUNTRY_INFO!C35=0," ",COUNTRY_INFO!C35) -> Mossendjo | D35: =IF(COUNTRY_INFO!$T$9:$T$1000="MDA3 (IVM)", COUNTRY_INFO!$T$9:$T$1000, " ") ->  | H35: 0 | K35: 0 | N35: 0 | O35: 0 | P35: 0 | Q35: 0
A36: =IF(COUNTRY_INFO!A36=0," ",COUNTRY_INFO!A36) -> Congo | B36: =IF(COUNTRY_INFO!B36=0," ",COUNTRY_INFO!B36) -> Plateaux | C36: =IF(COUNTRY_INFO!C36=0," ",COUNTRY_INFO!C36) -> Abala | D36: =IF(COUNTRY_INFO!$T$9:$T$1000="MDA3 (IVM)", COUNTRY_INFO!$T$9:$T$1000, " ") ->  | H36: 0 | K36: 0 | N36: 0 | O36: 0 | P36: 0 | Q36: 0
A37: =IF(COUNTRY_INFO!A37=0," ",COUNTRY_INFO!A37) -> Congo | B37: =IF(COUNTRY_INFO!B37=0," ",COUNTRY_INFO!B37) -> Plateaux | C37: =IF(COUNTRY_INFO!C37=0," ",COUNTRY_INFO!C37) -> Djambala-Lékana | D37: =IF(COUNTRY_INFO!$T$9:$T$1000="MDA3 (IVM)", COUNTRY_INFO!$T$9:$T$1000, " ") ->  | H37: 0 | K37: 0 | N37: 0 | O37: 0 | P37: 0 | Q37: 0
A38: =IF(COUNTRY_INFO!A38=0," ",COUNTRY_INFO!A38) -> Congo | B38: =IF(COUNTRY_INFO!B38=0," ",COUNTRY_INFO!B38) -> Plateaux | C38: =IF(COUNTRY_INFO!C38=0," ",COUNTRY_INFO!C38) -> Gamboma | D38: =IF(COUNTRY_INFO!$T$9:$T$1000="MDA3 (IVM)", COUNTRY_INFO!$T$9:$T$1000, " ") ->  | H38: 0 | K38: 0 | N38: 0 | O38: 0 | P38: 0 | Q38: 0
A39: =IF(COUNTRY_INFO!A39=0," ",COUNTRY_INFO!A39) -> Congo | B39: =IF(COUNTRY_INFO!B39=0," ",COUNTRY_INFO!B39) -> Pointe-Noire | C39: =IF(COUNTRY_INFO!C39=0," ",COUNTRY_INFO!C39) -> Ngoyo | D39: =IF(COUNTRY_INFO!$T$9:$T$1000="MDA3 (IVM)", COUNTRY_INFO!$T$9:$T$1000, " ") ->  | H39: 0 | K39: 0 | N39: 0 | O39: 0 | P39: 0 | Q39: 0
A40: =IF(COUNTRY_INFO!A40=0," ",COUNTRY_INFO!A40) -> Congo | B40: =IF(COUNTRY_INFO!B40=0," ",COUNTRY_INFO!B40) -> Pointe-Noire | C40: =IF(COUNTRY_INFO!C40=0," ",COUNTRY_INFO!C40) -> Mongo-Poukou | D40: =IF(COUNTRY_INFO!$T$9:$T$1000="MDA3 (IVM)", COUNTRY_INFO!$T$9:$T$1000, " ") ->  | H40: 0 | K40: 0 | N40: 0 | O40: 0 | P40: 0 | Q40: 0
A41: =IF(COUNTRY_INFO!A41=0," ",COUNTRY_INFO!A41) -> Congo | B41: =IF(COUNTRY_INFO!B41=0," ",COUNTRY_INFO!B41) -> Pointe-Noire | C41: =IF(COUNTRY_INFO!C41=0," ",COUNTRY_INFO!C41) -> Loandjili | D41: =IF(COUNTRY_INFO!$T$9:$T$1000="MDA3 (IVM)", COUNTRY_INFO!$T$9:$T$1000, " ") ->  | H41: 0 | K41: 0 | N41: 0 | O41: 0 | P41: 0 | Q41: 0
A42: =IF(COUNTRY_INFO!A42=0," ",COUNTRY_INFO!A42) -> Congo | B42: =IF(COUNTRY_INFO!B42=0," ",COUNTRY_INFO!B42) -> Pointe-Noire | C42: =IF(COUNTRY_INFO!C42=0," ",COUNTRY_INFO!C42) -> Lumumba | D42: =IF(COUNTRY_INFO!$T$9:$T$1000="MDA3 (IVM)", COUNTRY_INFO!$T$9:$T$1000, " ") ->  | H42: 0 | K42: 0 | N42: 0 | O42: 0 | P42: 0 | Q42: 0
A43: =IF(COUNTRY_INFO!A43=0," ",COUNTRY_INFO!A43) -> Congo | B43: =IF(COUNTRY_INFO!B43=0," ",COUNTRY_INFO!B43) -> Pointe-Noire | C43: =IF(COUNTRY_INFO!C43=0," ",COUNTRY_INFO!C43) -> Mvoumvou | D43: =IF(COUNTRY_INFO!$T$9:$T$1000="MDA3 (IVM)", COUNTRY_INFO!$T$9:$T$1000, " ") ->  | H43: 0 | K43: 0 | N43: 0 | O43: 0 | P43: 0 | Q43: 0
A44: =IF(COUNTRY_INFO!A44=0," ",COUNTRY_INFO!A44) -> Congo | B44: =IF(COUNTRY_INFO!B44=0," ",COUNTRY_INFO!B44) -> Pointe-Noire | C44: =IF(COUNTRY_INFO!C44=0," ",COUNTRY_INFO!C44) -> Tie-Tie | D44: =IF(COUNTRY_INFO!$T$9:$T$1000="MDA3 (IVM)", COUNTRY_INFO!$T$9:$T$1000, " ") ->  | H44: 0 | K44: 0 | N44: 0 | O44: 0 | P44: 0 | Q44: 0
A45: =IF(COUNTRY_INFO!A45=0," ",COUNTRY_INFO!A45) -> Congo | B45: =IF(COUNTRY_INFO!B45=0," ",COUNTRY_INFO!B45) -> Pool | C45: =IF(COUNTRY_INFO!C45=0," ",COUNTRY_INFO!C45) -> Goma tsétsé | D45: =IF(COUNTRY_INFO!$T$9:$T$1000="MDA3 (IVM)", COUNTRY_INFO!$T$9:$T$1000, " ") -> MDA3 (IVM) | E45: Sept-decembre | F45: 2907 | G45: 9206 | H45: 12113 | I45: 2078 | J45: 6581 | K45: 8659 | N45: 0 | O45: 2078 | P45: 6581 | Q45: 8659 | R45: 71.48262814 | S45: 71.4859874 | T45: 71.48518121
A46: =IF(COUNTRY_INFO!A46=0," ",COUNTRY_INFO!A46) -> Congo | B46: =IF(COUNTRY_INFO!B46=0," ",COUNTRY_INFO!B46) -> Pool | C46: =IF(COUNTRY_INFO!C46=0," ",COUNTRY_INFO!C46) -> Ignié | D46: =IF(COUNTRY_INFO!$T$9:$T$1000="MDA3 (IVM)", COUNTRY_INFO!$T$9:$T$1000, " ") ->  | H46: 0 | K46: 0 | N46: 0 | O46: 0 | P46: 0 | Q46: 0
A47: =IF(COUNTRY_INFO!A47=0," ",COUNTRY_INFO!A47) -> Congo | B47: =IF(COUNTRY_INFO!B47=0," ",COUNTRY_INFO!B47) -> Pool | C47: =IF(COUNTRY_INFO!C47=0," ",COUNTRY_INFO!C47) -> Kindamba | D47: =IF(COUNTRY_INFO!$T$9:$T$1000="MDA3 (IVM)", COUNTRY_INFO!$T$9:$T$1000, " ") -> MDA3 (IVM) | E47: Sept-decembre | F47: 980 | G47: 3105 | H47: 4085 | I47: 923 | J47: 2924 | K47: 3847 | N47: 0 | O47: 923 | P47: 2924 | Q47: 3847 | R47: 94.18367347 | S47: 94.17069243 | T47: 94.17380661
A48: =IF(COUNTRY_INFO!A48=0," ",COUNTRY_INFO!A48) -> Congo | B48: =IF(COUNTRY_INFO!B48=0," ",COUNTRY_INFO!B48) -> Pool | C48: =IF(COUNTRY_INFO!C48=0," ",COUNTRY_INFO!C48) -> Kinkala-Boko | D48: =IF(COUNTRY_INFO!$T$9:$T$1000="MDA3 (IVM)", COUNTRY_INFO!$T$9:$T$1000, " ") -> MDA3 (IVM) | E48: Sept-decembre | F48: 8428 | G48: 26690 | H48: 35118 | I48: 6486 | J48: 20537 | K48: 27023 | N48: 0 | O48: 6486 | P48: 20537 | Q48: 27023 | R48: 76.95775985 | S48: 76.94642188 | T48: 76.94914289
A49: =IF(COUNTRY_INFO!A49=0," ",COUNTRY_INFO!A49) -> Congo | B49: =IF(COUNTRY_INFO!B49=0," ",COUNTRY_INFO!B49) -> Pool | C49: =IF(COUNTRY_INFO!C49=0," ",COUNTRY_INFO!C49) -> Mindouli | D49: =IF(COUNTRY_INFO!$T$9:$T$1000="MDA3 (IVM)", COUNTRY_INFO!$T$9:$T$1000, " ") -> MDA3 (IVM) | E49: Sept-decembre | F49: 6158 | G49: 19501 | H49: 25659 | I49: 4465 | J49: 14140 | K49: 18605 | N49: 0 | O49: 4465 | P49: 14140 | Q49: 18605 | R49: 72.50730757 | S49: 72.5091021 | T49: 72.50867142
A50: =IF(COUNTRY_INFO!A50=0," ",COUNTRY_INFO!A50) -> Congo | B50: =IF(COUNTRY_INFO!B50=0," ",COUNTRY_INFO!B50) -> Sangha | C50: =IF(COUNTRY_INFO!C50=0," ",COUNTRY_INFO!C50) -> Ouesso | D50: =IF(COUNTRY_INFO!$T$9:$T$1000="MDA3 (IVM)", COUNTRY_INFO!$T$9:$T$1000, " ") ->  | H50: 0 | K50: 0 | N50: 0 | O50: 0 | P50: 0 | Q50: 0
A51: =IF(COUNTRY_INFO!A51=0," ",COUNTRY_INFO!A51) -> Congo | B51: =IF(COUNTRY_INFO!B51=0," ",COUNTRY_INFO!B51) -> Sangha | C51: =IF(COUNTRY_INFO!C51=0," ",COUNTRY_INFO!C51) -> Sembé-Souanké | D51: =IF(COUNTRY_INFO!$T$9:$T$1000="MDA3 (IVM)", COUNTRY_INFO!$T$9:$T$1000, " ") ->  | H51: 0 | K51: 0 | N51: 0 | O51: 0 | P51: 0 | Q51: 0

Sheet T1
A1: T 1 - Praziquantel (PZQ) et Albendazole (ALB) ou Mebendazole (MBD)
A2: Structure administrative, population nécessitant une chimioprévention par groupe d'âge, population traitée par groupe d'âge et couverture
A4: TOTAL | G4: =SUM(G$9:G$1000) -> 0 | H4: 84015 | I4: 84015 | J4: 1127 | K4: =SUM(K$9:K$1000) -> 85142 | L4: 0 | M4: 73953 | N4: 850 | O4: 74803 | P4: =IF(G4<>0, IF(L4/G4*100=0, "-", L4/G4*100), " ") ->  | Q4: =IF(OR(I4<>0,H4<>0), IF(M4/MAX(H4,I4)*100=0, "-", M4/MAX(H4,I4)*100), " ") -> 88.02356722 | R4: =IF(J4<>0, IF(N4/J4*100=0, "-", N4/J4*100), " ") -> 75.42147294 | S4: =IF(K4<>0, IF(O4/K4*100=0, "-", O4/K4*100), " ") -> 87.85675695
A6: Structure administrative du pays | D6: Mise en oeuvre de la CP | E6: Médica-ment | F6: Date | G6: Population ciblée pour T1 | L6: Population traitée | P6: Couverture du Programme (%)
A7: Pays | B7: Région/Département | C7: District | G7: EAPréS (ALB) | H7: EAS (ALB) | I7: EAS (PZQ) | J7: Adultes (PZQ) | K7: Total | L7: EAPréS | M7: EAS | N7: Adultes | O7: Total | P7: EAPréS | Q7: EAS | R7: Adultes | S7: Total
A9: =IF(COUNTRY_INFO!A9=0," ",COUNTRY_INFO!A9) -> Congo | B9: =IF(COUNTRY_INFO!B9=0," ",COUNTRY_INFO!B9) -> Bouenza | C9: =IF(COUNTRY_INFO!C9=0," ",COUNTRY_INFO!C9) -> Loudima | D9: =IF(OR(COUNTRY_INFO!$T$9:$T$1000="T1 (PZQ+ALB/MBD)",COUNTRY_INFO!$U$9:$U$1000="T1 (PZQ+ALB/MBD)"), "T1 (PZQ+ALB/MBD)", " ") -> T1 (PZQ+ALB/MBD) | E9: PZQ+ALB | F9: Nov | H9: 26014 | I9: 26014 | J9: 207 | K9: =MAX(H9:I9)+G9+J9 -> 26221 | M9: 22670 | N9: 112 | O9: =SUM(L9:N9) -> 22782 | P9: =IF(G9<>0, IF(L9/G9*100=0, "-", L9/G9*100), " ") ->  | Q9: =IF(OR(I9<>0,H9<>0), IF(M9/MAX(H9,I9)*100=0, "-", M9/MAX(H9,I9)*100), " ") -> 87.14538326 | R9: =IF(J9<>0, IF(N9/J9*100=0, "-", N9/J9*100), " ") -> 54.10628019 | S9: 86.88455818
A10: =IF(COUNTRY_INFO!A10=0," ",COUNTRY_INFO!A10) -> Congo | B10: =IF(COUNTRY_INFO!B10=0," ",COUNTRY_INFO!B10) -> Bouenza | C10: =IF(COUNTRY_INFO!C10=0," ",COUNTRY_INFO!C10) -> Loutété | D10: =IF(OR(COUNTRY_INFO!$T$9:$T$1000="T1 (PZQ+ALB/MBD)",COUNTRY_INFO!$U$9:$U$1000="T1 (PZQ+ALB/MBD)"), "T1 (PZQ+ALB/MBD)", " ") -> T1 (PZQ+ALB/MBD) | E10: PZQ+ALB | F10: Nov | H10: 8423 | I10: 8423 | J10: 87 | K10: =MAX(H10:I10)+G10+J10 -> 8510 | M10: 7391 | N10: 75 | O10: =SUM(L10:N10) -> 7466 | P10: =IF(G10<>0, IF(L10/G10*100=0, "-", L10/G10*100), " ") ->  | Q10: 87.74783331 | R10: 86.20689655 | S10: =IF(K10<>0, IF(O10/K10*100=0, "-", O10/K10*100), " ") -> 87.73207991
A11: =IF(COUNTRY_INFO!A11=0," ",COUNTRY_INFO!A11) -> Congo | B11: =IF(COUNTRY_INFO!B11=0," ",COUNTRY_INFO!B11) -> Bouenza | C11: =IF(COUNTRY_INFO!C11=0," ",COUNTRY_INFO!C11) -> Madingou | D11: =IF(OR(COUNTRY_INFO!$T$9:$T$1000="T1 (PZQ+ALB/MBD)",COUNTRY_INFO!$U$9:$U$1000="T1 (PZQ+ALB/MBD)"), "T1 (PZQ+ALB/MBD)", " ") ->  | K11: 0 | O11: =SUM(L11:N11) -> 0 | Q11: =IF(OR(I11<>0,H11<>0), IF(M10/MAX(H11,I11)*100=0, "-", M10/MAX(H11,I11)*100), " ") ->  | R11: =IF(J11<>0, IF(N10/J11*100=0, "-", N10/J11*100), " ") -> 
A12: =IF(COUNTRY_INFO!A12=0," ",COUNTRY_INFO!A12) -> Congo | B12: =IF(COUNTRY_INFO!B12=0," ",COUNTRY_INFO!B12) -> Bouenza | C12: =IF(COUNTRY_INFO!C12=0," ",COUNTRY_INFO!C12) -> Mouyondzi | D12: =IF(OR(COUNTRY_INFO!$T$9:$T$1000="T1 (PZQ+ALB/MBD)",COUNTRY_INFO!$U$9:$U$1000="T1 (PZQ+ALB/MBD)"), "T1 (PZQ+ALB/MBD)", " ") -> T1 (PZQ+ALB/MBD) | E12: PZQ+ALB | F12: Nov | H12: 12033 | I12: 12033 | J12: 114 | K12: 12147 | M12: 10721 | N12: 73 | O12: 10794 | Q12: =IF(OR(I12<>0,H12<>0), IF(M12/MAX(H12,I12)*100=0, "-", M12/MAX(H12,I12)*100), " ") -> 89.09665088 | R12: =IF(J12<>0, IF(N12/J12*100=0, "-", N12/J12*100), " ") -> 64.03508772 | S12: 88.86144727
A13: =IF(COUNTRY_INFO!A13=0," ",COUNTRY_INFO!A13) -> Congo | B13: =IF(COUNTRY_INFO!B13=0," ",COUNTRY_INFO!B13) -> Brazzaville | C13: =IF(COUNTRY_INFO!C13=0," ",COUNTRY_INFO!C13) -> Bacongo | D13: =IF(OR(COUNTRY_INFO!$T$9:$T$1000="T1 (PZQ+ALB/MBD)",COUNTRY_INFO!$U$9:$U$1000="T1 (PZQ+ALB/MBD)"), "T1 (PZQ+ALB/MBD)", " ") ->  | K13: 0 | O13: 0
A14: =IF(COUNTRY_INFO!A14=0," ",COUNTRY_INFO!A14) -> Congo | B14: =IF(COUNTRY_INFO!B14=0," ",COUNTRY_INFO!B14) -> Brazzaville | C14: =IF(COUNTRY_INFO!C14=0," ",COUNTRY_INFO!C14) -> Makélékélé | D14: =IF(OR(COUNTRY_INFO!$T$9:$T$1000="T1 (PZQ+ALB/MBD)",COUNTRY_INFO!$U$9:$U$1000="T1 (PZQ+ALB/MBD)"), "T1 (PZQ+ALB/MBD)", " ") ->  | K14: 0 | O14: 0
A15: =IF(COUNTRY_INFO!A15=0," ",COUNTRY_INFO!A15) -> Congo | B15: =IF(COUNTRY_INFO!B15=0," ",COUNTRY_INFO!B15) -> Brazzaville | C15: =IF(COUNTRY_INFO!C15=0," ",COUNTRY_INFO!C15) -> Mfilou | D15: =IF(OR(COUNTRY_INFO!$T$9:$T$1000="T1 (PZQ+ALB/MBD)",COUNTRY_INFO!$U$9:$U$1000="T1 (PZQ+ALB/MBD)"), "T1 (PZQ+ALB/MBD)", " ") ->  | K15: 0 | O15: 0
A16: =IF(COUNTRY_INFO!A16=0," ",COUNTRY_INFO!A16) -> Congo | B16: =IF(COUNTRY_INFO!B16=0," ",COUNTRY_INFO!B16) -> Brazzaville | C16: =IF(COUNTRY_INFO!C16=0," ",COUNTRY_INFO!C16) -> Moungali | D16: =IF(OR(COUNTRY_INFO!$T$9:$T$1000="T1 (PZQ+ALB/MBD)",COUNTRY_INFO!$U$9:$U$1000="T1 (PZQ+ALB/MBD)"), "T1 (PZQ+ALB/MBD)", " ") ->  | K16: 0 | O16: 0
A17: =IF(COUNTRY_INFO!A17=0," ",COUNTRY_INFO!A17) -> Congo | B17: =IF(COUNTRY_INFO!B17=0," ",COUNTRY_INFO!B17) -> Brazzaville | C17: =IF(COUNTRY_INFO!C17=0," ",COUNTRY_INFO!C17) -> Ouenzé | D17: =IF(OR(COUNTRY_INFO!$T$9:$T$1000="T1 (PZQ+ALB/MBD)",COUNTRY_INFO!$U$9:$U$1000="T1 (PZQ+ALB/MBD)"), "T1 (PZQ+ALB/MBD)", " ") ->  | K17: 0 | O17: 0
A18: =IF(COUNTRY_INFO!A18=0," ",COUNTRY_INFO!A18) -> Congo | B18: =IF(COUNTRY_INFO!B18=0," ",COUNTRY_INFO!B18) -> Brazzaville | C18: =IF(COUNTRY_INFO!C18=0," ",COUNTRY_INFO!C18) -> Poto-Poto | D18: =IF(OR(COUNTRY_INFO!$T$9:$T$1000="T1 (PZQ+ALB/MBD)",COUNTRY_INFO!$U$9:$U$1000="T1 (PZQ+ALB/MBD)"), "T1 (PZQ+ALB/MBD)", " ") ->  | K18: 0 | O18: 0
A19: =IF(COUNTRY_INFO!A19=0," ",COUNTRY_INFO!A19) -> Congo | B19: =IF(COUNTRY_INFO!B19=0," ",COUNTRY_INFO!B19) -> Brazzaville | C19: =IF(COUNTRY_INFO!C19=0," ",COUNTRY_INFO!C19) -> Talangaî | D19: =IF(OR(COUNTRY_INFO!$T$9:$T$1000="T1 (PZQ+ALB/MBD)",COUNTRY_INFO!$U$9:$U$1000="T1 (PZQ+ALB/MBD)"), "T1 (PZQ+ALB/MBD)", " ") ->  | K19: 0 | O19: 0
A20: =IF(COUNTRY_INFO!A20=0," ",COUNTRY_INFO!A20) -> Congo | B20: =IF(COUNTRY_INFO!B20=0," ",COUNTRY_INFO!B20) -> Brazzaville | C20: =IF(COUNTRY_INFO!C20=0," ",COUNTRY_INFO!C20) -> Madibou | D20: =IF(OR(COUNTRY_INFO!$T$9:$T$1000="T1 (PZQ+ALB/MBD)",COUNTRY_INFO!$U$9:$U$1000="T1 (PZQ+ALB/MBD)"), "T1 (PZQ+ALB/MBD)", " ") ->  | K20: 0 | O20: 0
A21: =IF(COUNTRY_INFO!A21=0," ",COUNTRY_INFO!A21) -> Congo | B21: =IF(COUNTRY_INFO!B21=0," ",COUNTRY_INFO!B21) -> Brazzaville | C21: =IF(COUNTRY_INFO!C21=0," ",COUNTRY_INFO!C21) -> Djiri | D21: =IF(OR(COUNTRY_INFO!$T$9:$T$1000="T1 (PZQ+ALB/MBD)",COUNTRY_INFO!$U$9:$U$1000="T1 (PZQ+ALB/MBD)"), "T1 (PZQ+ALB/MBD)", " ") ->  | K21: 0 | O21: 0
A22: =IF(COUNTRY_INFO!A22=0," ",COUNTRY_INFO!A22) -> Congo | B22: =IF(COUNTRY_INFO!B22=0," ",COUNTRY_INFO!B22) -> Cuvette | C22: =IF(COUNTRY_INFO!C22=0," ",COUNTRY_INFO!C22) -> Mossaka Loukoléla | D22: =IF(OR(COUNTRY_INFO!$T$9:$T$1000="T1 (PZQ+ALB/MBD)",COUNTRY_INFO!$U$9:$U$1000="T1 (PZQ+ALB/MBD)"), "T1 (PZQ+ALB/MBD)", " ") ->  | K22: 0 | O22: 0 | Q22: =IF(OR(I22<>0,H22<>0), IF(M22/MAX(H22,I22)*100=0, "-", M22/MAX(H22,I22)*100), " ") -> 
A23: =IF(COUNTRY_INFO!A23=0," ",COUNTRY_INFO!A23) -> Congo | B23: =IF(COUNTRY_INFO!B23=0," ",COUNTRY_INFO!B23) -> Cuvette | C23: =IF(COUNTRY_INFO!C23=0," ",COUNTRY_INFO!C23) -> Owando | D23: =IF(OR(COUNTRY_INFO!$T$9:$T$1000="T1 (PZQ+ALB/MBD)",COUNTRY_INFO!$U$9:$U$1000="T1 (PZQ+ALB/MBD)"), "T1 (PZQ+ALB/MBD)", " ") ->  | K23: 0 | O23: 0
A24: =IF(COUNTRY_INFO!A24=0," ",COUNTRY_INFO!A24) -> Congo | B24: =IF(COUNTRY_INFO!B24=0," ",COUNTRY_INFO!B24) -> Cuvette | C24: =IF(COUNTRY_INFO!C24=0," ",COUNTRY_INFO!C24) -> Oyo | D24: =IF(OR(COUNTRY_INFO!$T$9:$T$1000="T1 (PZQ+ALB/MBD)",COUNTRY_INFO!$U$9:$U$1000="T1 (PZQ+ALB/MBD)"), "T1 (PZQ+ALB/MBD)", " ") ->  | K24: 0 | O24: 0
A25: =IF(COUNTRY_INFO!A25=0," ",COUNTRY_INFO!A25) -> Congo | B25: =IF(COUNTRY_INFO!B25=0," ",COUNTRY_INFO!B25) -> Cuvette-Ouest | C25: =IF(COUNTRY_INFO!C25=0," ",COUNTRY_INFO!C25) -> Etoumbi | D25: =IF(OR(COUNTRY_INFO!$T$9:$T$1000="T1 (PZQ+ALB/MBD)",COUNTRY_INFO!$U$9:$U$1000="T1 (PZQ+ALB/MBD)"), "T1 (PZQ+ALB/MBD)", " ") ->  | K25: 0 | O25: 0
A26: =IF(COUNTRY_INFO!A26=0," ",COUNTRY_INFO!A26) -> Congo | B26: =IF(COUNTRY_INFO!B26=0," ",COUNTRY_INFO!B26) -> Cuvette-Ouest | C26: =IF(COUNTRY_INFO!C26=0," ",COUNTRY_INFO!C26) -> Ewo | D26: =IF(OR(COUNTRY_INFO!$T$9:$T$1000="T1 (PZQ+ALB/MBD)",COUNTRY_INFO!$U$9:$U$1000="T1 (PZQ+ALB/MBD)"), "T1 (PZQ+ALB/MBD)", " ") ->  | K26: 0 | O26: 0
A27: =IF(COUNTRY_INFO!A27=0," ",COUNTRY_INFO!A27) -> Congo | B27: =IF(COUNTRY_INFO!B27=0," ",COUNTRY_INFO!B27) -> Kouilou | C27: =IF(COUNTRY_INFO!C27=0," ",COUNTRY_INFO!C27) -> Hinda-Mvouti | D27: =IF(OR(COUNTRY_INFO!$T$9:$T$1000="T1 (PZQ+ALB/MBD)",COUNTRY_INFO!$U$9:$U$1000="T1 (PZQ+ALB/MBD)"), "T1 (PZQ+ALB/MBD)", " ") -> T1 (PZQ+ALB/MBD) | E27: PZQ+ALB | F27: Nov | H27: 18052 | I27: 18052 | J27: 243 | K27: 18295 | M27: 15288 | N27: 187 | O27: 15475 | Q27: 84.68867715 | R27: 76.95473251 | S27: 84.58595245
A28: =IF(COUNTRY_INFO!A28=0," ",COUNTRY_INFO!A28) -> Congo | B28: =IF(COUNTRY_INFO!B28=0," ",COUNTRY_INFO!B28) -> Kouilou | C28: =IF(COUNTRY_INFO!C28=0," ",COUNTRY_INFO!C28) -> Madingo Kayes | D28: =IF(OR(COUNTRY_INFO!$T$9:$T$1000="T1 (PZQ+ALB/MBD)",COUNTRY_INFO!$U$9:$U$1000="T1 (PZQ+ALB/MBD)"), "T1 (PZQ+ALB/MBD)", " ") -> T1 (PZQ+ALB/MBD) | E28: PZQ+ALB | F28: Nov | H28: 4205 | I28: 4205 | J28: 87 | K28: 4292 | M28: 3702 | N28: 66 | O28: 3768 | Q28: 88.03804994 | R28: 75.86206897 | S28: 87.79123952
A29: =IF(COUNTRY_INFO!A29=0," ",COUNTRY_INFO!A29) -> Congo | B29: =IF(COUNTRY_INFO!B29=0," ",COUNTRY_INFO!B29) -> Lékoumou | C29: =IF(COUNTRY_INFO!C29=0," ",COUNTRY_INFO!C29) -> Sibiti | D29: =IF(OR(COUNTRY_INFO!$T$9:$T$1000="T1 (PZQ+ALB/MBD)",COUNTRY_INFO!$U$9:$U$1000="T1 (PZQ+ALB/MBD)"), "T1 (PZQ+ALB/MBD)", " ") -> T1 (PZQ+ALB/MBD) | E29: PZQ+ALB | F29: Nov | H29: 15288 | I29: 15288 | J29: 389 | K29: 15677 | M29: 14181 | N29: 337 | O29: 14518 | Q29: 92.75902669 | R29: 86.63239075 | S29: 92.60700389
A30: =IF(COUNTRY_INFO!A30=0," ",COUNTRY_INFO!A30) -> Congo | B30: =IF(COUNTRY_INFO!B30=0," ",COUNTRY_INFO!B30) -> Lékoumou | C30: =IF(COUNTRY_INFO!C30=0," ",COUNTRY_INFO!C30) -> Zanaga | D30: =IF(OR(COUNTRY_INFO!$T$9:$T$1000="T1 (PZQ+ALB/MBD)",COUNTRY_INFO!$U$9:$U$1000="T1 (PZQ+ALB/MBD)"), "T1 (PZQ+ALB/MBD)", " ") ->  | K30: 0 | O30: 0
A31: =IF(COUNTRY_INFO!A31=0," ",COUNTRY_INFO!A31) -> Congo | B31: =IF(COUNTRY_INFO!B31=0," ",COUNTRY_INFO!B31) -> Likouala | C31: =IF(COUNTRY_INFO!C31=0," ",COUNTRY_INFO!C31) -> Bétou | D31: =IF(OR(COUNTRY_INFO!$T$9:$T$1000="T1 (PZQ+ALB/MBD)",COUNTRY_INFO!$U$9:$U$1000="T1 (PZQ+ALB/MBD)"), "T1 (PZQ+ALB/MBD)", " ") ->  | K31: 0 | O31: 0
A32: =IF(COUNTRY_INFO!A32=0," ",COUNTRY_INFO!A32) -> Congo | B32: =IF(COUNTRY_INFO!B32=0," ",COUNTRY_INFO!B32) -> Likouala | C32: =IF(COUNTRY_INFO!C32=0," ",COUNTRY_INFO!C32) -> Impfondo | D32: =IF(OR(COUNTRY_INFO!$T$9:$T$1000="T1 (PZQ+ALB/MBD)",COUNTRY_INFO!$U$9:$U$1000="T1 (PZQ+ALB/MBD)"), "T1 (PZQ+ALB/MBD)", " ") ->  | K32: 0 | O32: 0
A33: =IF(COUNTRY_INFO!A33=0," ",COUNTRY_INFO!A33) -> Congo | B33: =IF(COUNTRY_INFO!B33=0," ",COUNTRY_INFO!B33) -> Niari | C33: =IF(COUNTRY_INFO!C33=0," ",COUNTRY_INFO!C33) -> Dolisie | D33: =IF(OR(COUNTRY_INFO!$T$9:$T$1000="T1 (PZQ+ALB/MBD)",COUNTRY_INFO!$U$9:$U$1000="T1 (PZQ+ALB/MBD)"), "T1 (PZQ+ALB/MBD)", " ") ->  | K33: 0 | O33: 0
A34: =IF(COUNTRY_INFO!A34=0," ",COUNTRY_INFO!A34) -> Congo | B34: =IF(COUNTRY_INFO!B34=0," ",COUNTRY_INFO!B34) -> Niari | C34: =IF(COUNTRY_INFO!C34=0," ",COUNTRY_INFO!C34) -> Kibangou | D34: =IF(OR(COUNTRY_INFO!$T$9:$T$1000="T1 (PZQ+ALB/MBD)",COUNTRY_INFO!$U$9:$U$1000="T1 (PZQ+ALB/MBD)"), "T1 (PZQ+ALB/MBD)", " ") ->  | K34: 0 | O34: 0
A35: =IF(COUNTRY_INFO!A35=0," ",COUNTRY_INFO!A35) -> Congo | B35: =IF(COUNTRY_INFO!B35=0," ",COUNTRY_INFO!B35) -> Niari | C35: =IF(COUNTRY_INFO!C35=0," ",COUNTRY_INFO!C35) -> Mossendjo | D35: =IF(OR(COUNTRY_INFO!$T$9:$T$1000="T1 (PZQ+ALB/MBD)",COUNTRY_INFO!$U$9:$U$1000="T1 (PZQ+ALB/MBD)"), "T1 (PZQ+ALB/MBD)", " ") ->  | K35: 0 | O35: 0
A36: =IF(COUNTRY_INFO!A36=0," ",COUNTRY_INFO!A36) -> Congo | B36: =IF(COUNTRY_INFO!B36=0," ",COUNTRY_INFO!B36) -> Plateaux | C36: =IF(COUNTRY_INFO!C36=0," ",COUNTRY_INFO!C36) -> Abala | D36: =IF(OR(COUNTRY_INFO!$T$9:$T$1000="T1 (PZQ+ALB/MBD)",COUNTRY_INFO!$U$9:$U$1000="T1 (PZQ+ALB/MBD)"), "T1 (PZQ+ALB/MBD)", " ") ->  | K36: 0 | O36: 0
A37: =IF(COUNTRY_INFO!A37=0," ",COUNTRY_INFO!A37) -> Congo | B37: =IF(COUNTRY_INFO!B37=0," ",COUNTRY_INFO!B37) -> Plateaux | C37: =IF(COUNTRY_INFO!C37=0," ",COUNTRY_INFO!C37) -> Djambala-Lékana | D37: =IF(OR(COUNTRY_INFO!$T$9:$T$1000="T1 (PZQ+ALB/MBD)",COUNTRY_INFO!$U$9:$U$1000="T1 (PZQ+ALB/MBD)"), "T1 (PZQ+ALB/MBD)", " ") ->  | K37: 0 | O37: 0
A38: =IF(COUNTRY_INFO!A38=0," ",COUNTRY_INFO!A38) -> Congo | B38: =IF(COUNTRY_INFO!B38=0," ",COUNTRY_INFO!B38) -> Plateaux | C38: =IF(COUNTRY_INFO!C38=0," ",COUNTRY_INFO!C38) -> Gamboma | D38: =IF(OR(COUNTRY_INFO!$T$9:$T$1000="T1 (PZQ+ALB/MBD)",COUNTRY_INFO!$U$9:$U$1000="T1 (PZQ+ALB/MBD)"), "T1 (PZQ+ALB/MBD)", " ") ->  | K38: 0 | O38: 0
A39: =IF(COUNTRY_INFO!A39=0," ",COUNTRY_INFO!A39) -> Congo | B39: =IF(COUNTRY_INFO!B39=0," ",COUNTRY_INFO!B39) -> Pointe-Noire | C39: =IF(COUNTRY_INFO!C39=0," ",COUNTRY_INFO!C39) -> Ngoyo | D39: =IF(OR(COUNTRY_INFO!$T$9:$T$1000="T1 (PZQ+ALB/MBD)",COUNTRY_INFO!$U$9:$U$1000="T1 (PZQ+ALB/MBD)"), "T1 (PZQ+ALB/MBD)", " ") ->  | K39: 0 | O39: 0
A40: =IF(COUNTRY_INFO!A40=0," ",COUNTRY_INFO!A40) -> Congo | B40: =IF(COUNTRY_INFO!B40=0," ",COUNTRY_INFO!B40) -> Pointe-Noire | C40: =IF(COUNTRY_INFO!C40=0," ",COUNTRY_INFO!C40) -> Mongo-Poukou | D40: =IF(OR(COUNTRY_INFO!$T$9:$T$1000="T1 (PZQ+ALB/MBD)",COUNTRY_INFO!$U$9:$U$1000="T1 (PZQ+ALB/MBD)"), "T1 (PZQ+ALB/MBD)", " ") ->  | K40: 0 | O40: 0
A41: =IF(COUNTRY_INFO!A41=0," ",COUNTRY_INFO!A41) -> Congo | B41: =IF(COUNTRY_INFO!B41=0," ",COUNTRY_INFO!B41) -> Pointe-Noire | C41: =IF(COUNTRY_INFO!C41=0," ",COUNTRY_INFO!C41) -> Loandjili | D41: =IF(OR(COUNTRY_INFO!$T$9:$T$1000="T1 (PZQ+ALB/MBD)",COUNTRY_INFO!$U$9:$U$1000="T1 (PZQ+ALB/MBD)"), "T1 (PZQ+ALB/MBD)", " ") ->  | K41: 0 | O41: 0
A42: =IF(COUNTRY_INFO!A42=0," ",COUNTRY_INFO!A42) -> Congo | B42: =IF(COUNTRY_INFO!B42=0," ",COUNTRY_INFO!B42) -> Pointe-Noire | C42: =IF(COUNTRY_INFO!C42=0," ",COUNTRY_INFO!C42) -> Lumumba | D42: =IF(OR(COUNTRY_INFO!$T$9:$T$1000="T1 (PZQ+ALB/MBD)",COUNTRY_INFO!$U$9:$U$1000="T1 (PZQ+ALB/MBD)"), "T1 (PZQ+ALB/MBD)", " ") ->  | K42: 0 | O42: 0
A43: =IF(COUNTRY_INFO!A43=0," ",COUNTRY_INFO!A43) -> Congo | B43: =IF(COUNTRY_INFO!B43=0," ",COUNTRY_INFO!B43) -> Pointe-Noire | C43: =IF(COUNTRY_INFO!C43=0," ",COUNTRY_INFO!C43) -> Mvoumvou | D43: =IF(OR(COUNTRY_INFO!$T$9:$T$1000="T1 (PZQ+ALB/MBD)",COUNTRY_INFO!$U$9:$U$1000="T1 (PZQ+ALB/MBD)"), "T1 (PZQ+ALB/MBD)", " ") ->  | K43: 0 | O43: 0
A44: =IF(COUNTRY_INFO!A44=0," ",COUNTRY_INFO!A44) -> Congo | B44: =IF(COUNTRY_INFO!B44=0," ",COUNTRY_INFO!B44) -> Pointe-Noire | C44: =IF(COUNTRY_INFO!C44=0," ",COUNTRY_INFO!C44) -> Tie-Tie | D44: =IF(OR(COUNTRY_INFO!$T$9:$T$1000="T1 (PZQ+ALB/MBD)",COUNTRY_INFO!$U$9:$U$1000="T1 (PZQ+ALB/MBD)"), "T1 (PZQ+ALB/MBD)", " ") ->  | K44: 0 | O44: 0
A45: =IF(COUNTRY_INFO!A45=0," ",COUNTRY_INFO!A45) -> Congo | B45: =IF(COUNTRY_INFO!B45=0," ",COUNTRY_INFO!B45) -> Pool | C45: =IF(COUNTRY_INFO!C45=0," ",COUNTRY_INFO!C45) -> Goma tsétsé | D45: =IF(OR(COUNTRY_INFO!$T$9:$T$1000="T1 (PZQ+ALB/MBD)",COUNTRY_INFO!$U$9:$U$1000="T1 (PZQ+ALB/MBD)"), "T1 (PZQ+ALB/MBD)", " ") ->  | K45: 0 | O45: 0
A46: =IF(COUNTRY_INFO!A46=0," ",COUNTRY_INFO!A46) -> Congo | B46: =IF(COUNTRY_INFO!B46=0," ",COUNTRY_INFO!B46) -> Pool | C46: =IF(COUNTRY_INFO!C46=0," ",COUNTRY_INFO!C46) -> Ignié | D46: =IF(OR(COUNTRY_INFO!$T$9:$T$1000="T1 (PZQ+ALB/MBD)",COUNTRY_INFO!$U$9:$U$1000="T1 (PZQ+ALB/MBD)"), "T1 (PZQ+ALB/MBD)", " ") ->  | K46: 0 | O46: 0
A47: =IF(COUNTRY_INFO!A47=0," ",COUNTRY_INFO!A47) -> Congo | B47: =IF(COUNTRY_INFO!B47=0," ",COUNTRY_INFO!B47) -> Pool | C47: =IF(COUNTRY_INFO!C47=0," ",COUNTRY_INFO!C47) -> Kindamba | D47: =IF(OR(COUNTRY_INFO!$T$9:$T$1000="T1 (PZQ+ALB/MBD)",COUNTRY_INFO!$U$9:$U$1000="T1 (PZQ+ALB/MBD)"), "T1 (PZQ+ALB/MBD)", " ") ->  | K47: 0 | O47: 0
A48: =IF(COUNTRY_INFO!A48=0," ",COUNTRY_INFO!A48) -> Congo | B48: =IF(COUNTRY_INFO!B48=0," ",COUNTRY_INFO!B48) -> Pool | C48: =IF(COUNTRY_INFO!C48=0," ",COUNTRY_INFO!C48) -> Kinkala-Boko | D48: =IF(OR(COUNTRY_INFO!$T$9:$T$1000="T1 (PZQ+ALB/MBD)",COUNTRY_INFO!$U$9:$U$1000="T1 (PZQ+ALB/MBD)"), "T1 (PZQ+ALB/MBD)", " ") ->  | K48: 0 | O48: 0
A49: =IF(COUNTRY_INFO!A49=0," ",COUNTRY_INFO!A49) -> Congo | B49: =IF(COUNTRY_INFO!B49=0," ",COUNTRY_INFO!B49) -> Pool | C49: =IF(COUNTRY_INFO!C49=0," ",COUNTRY_INFO!C49) -> Mindouli | D49: =IF(OR(COUNTRY_INFO!$T$9:$T$1000="T1 (PZQ+ALB/MBD)",COUNTRY_INFO!$U$9:$U$1000="T1 (PZQ+ALB/MBD)"), "T1 (PZQ+ALB/MBD)", " ") ->  | K49: 0 | O49: 0
A50: =IF(COUNTRY_INFO!A50=0," ",COUNTRY_INFO!A50) -> Congo | B50: =IF(COUNTRY_INFO!B50=0," ",COUNTRY_INFO!B50) -> Sangha | C50: =IF(COUNTRY_INFO!C50=0," ",COUNTRY_INFO!C50) -> Ouesso | D50: =IF(OR(COUNTRY_INFO!$T$9:$T$1000="T1 (PZQ+ALB/MBD)",COUNTRY_INFO!$U$9:$U$1000="T1 (PZQ+ALB/MBD)"), "T1 (PZQ+ALB/MBD)", " ") ->  | K50: 0 | O50: 0
A51: =IF(COUNTRY_INFO!A51=0," ",COUNTRY_INFO!A51) -> Congo | B51: =IF(COUNTRY_INFO!B51=0," ",COUNTRY_INFO!B51) -> Sangha | C51: =IF(COUNTRY_INFO!C51=0," ",COUNTRY_INFO!C51) -> Sembé-Souanké | D51: =IF(OR(COUNTRY_INFO!$T$9:$T$1000="T1 (PZQ+ALB/MBD)",COUNTRY_INFO!$U$9:$U$1000="T1 (PZQ+ALB/MBD)"), "T1 (PZQ+ALB/MBD)", " ") ->  | K51: 0 | O51: 0

Sheet T2
A1: T 2 - Praziquantel (PZQ)
A2: Structure administrative, population nécessitant une chimioprévention par groupe d'âge, population traitée par groupe d'âge et couverture
A4: TOTAL | F4: =SUM(F$9:F$1000) -> 0 | G4: 0 | H4: 0 | I4: 0 | J4: 0 | K4: 0 | L4: 0 | M4: 0 | N4: =IF(F4<>0, IF(J4/F4*100=0, "-", J4/F4*100), " ") ->  | O4: =IF(G4<>0, IF(K4/G4*100=0, "-", K4/G4*100), " ") ->  | P4: =IF(H4<>0, IF(L4/H4*100=0, "-", L4/H4*100), " ") ->  | Q4: =IF(I4<>0, IF(M4/I4*100=0, "-", M4/I4*100), " ") -> 
A6: Structure administrative du pays | D6: Mise en oeuvre de la CP | E6: Date | F6: Population ciblée pour T2 | J6: Population traitée | N6: Couverture du Programme (%)
A7: Pays | B7: Région/Département | C7: District | F7: EAPréS | G7: EAS | H7: Adultes | I7: Total | J7: EAPréS | K7: EAS | L7: Adultes | M7: Total | N7: EAPréS | O7: EAS | P7: Adultes | Q7: Total
A9: =IF(COUNTRY_INFO!A9=0," ",COUNTRY_INFO!A9) -> Congo | B9: =IF(COUNTRY_INFO!B9=0," ",COUNTRY_INFO!B9) -> Bouenza | C9: =IF(COUNTRY_INFO!C9=0," ",COUNTRY_INFO!C9) -> Loudima | D9: =IF(OR(COUNTRY_INFO!$T$9:$T$1000="T2 (PZQ)",COUNTRY_INFO!$U$9:$U$1000="T2 (PZQ)"), "T2 (PZQ)", " ") ->  | I9: =SUM(F9:H9) -> 0 | M9: =SUM(J9:L9) -> 0 | N9: =IF(F9<>0, IF(J9/F9*100=0, "-", J9/F9*100), " ") -> 
A10: =IF(COUNTRY_INFO!A10=0," ",COUNTRY_INFO!A10) -> Congo | B10: =IF(COUNTRY_INFO!B10=0," ",COUNTRY_INFO!B10) -> Bouenza | C10: =IF(COUNTRY_INFO!C10=0," ",COUNTRY_INFO!C10) -> Loutété | D10: =IF(OR(COUNTRY_INFO!$T$9:$T$1000="T2 (PZQ)",COUNTRY_INFO!$U$9:$U$1000="T2 (PZQ)"), "T2 (PZQ)", " ") ->  | I10: =SUM(F10:H10) -> 0 | M10: =SUM(J10:L10) -> 0 | N10: =IF(F10<>0, IF(J10/F10*100=0, "-", J10/F10*100), " ") ->  | O10: =IF(G10<>0, IF(K10/G10*100=0, "-", K10/G10*100), " ") ->  | P10: =IF(H10<>0, IF(L10/H10*100=0, "-", L10/H10*100), " ") ->  | Q10: =IF(I10<>0, IF(M10/I10*100=0, "-", M10/I10*100), " ") -> 
A11: =IF(COUNTRY_INFO!A11=0," ",COUNTRY_INFO!A11) -> Congo | B11: =IF(COUNTRY_INFO!B11=0," ",COUNTRY_INFO!B11) -> Bouenza | C11: =IF(COUNTRY_INFO!C11=0," ",COUNTRY_INFO!C11) -> Madingou | D11: =IF(OR(COUNTRY_INFO!$T$9:$T$1000="T2 (PZQ)",COUNTRY_INFO!$U$9:$U$1000="T2 (PZQ)"), "T2 (PZQ)", " ") ->  | I11: 0 | M11: 0
A12: =IF(COUNTRY_INFO!A12=0," ",COUNTRY_INFO!A12) -> Congo | B12: =IF(COUNTRY_INFO!B12=0," ",COUNTRY_INFO!B12) -> Bouenza | C12: =IF(COUNTRY_INFO!C12=0," ",COUNTRY_INFO!C12) -> Mouyondzi | D12: =IF(OR(COUNTRY_INFO!$T$9:$T$1000="T2 (PZQ)",COUNTRY_INFO!$U$9:$U$1000="T2 (PZQ)"), "T2 (PZQ)", " ") ->  | I12: 0 | M12: 0
A13: =IF(COUNTRY_INFO!A13=0," ",COUNTRY_INFO!A13) -> Congo | B13: =IF(COUNTRY_INFO!B13=0," ",COUNTRY_INFO!B13) -> Brazzaville | C13: =IF(COUNTRY_INFO!C13=0," ",COUNTRY_INFO!C13) -> Bacongo | D13: =IF(OR(COUNTRY_INFO!$T$9:$T$1000="T2 (PZQ)",COUNTRY_INFO!$U$9:$U$1000="T2 (PZQ)"), "T2 (PZQ)", " ") ->  | I13: 0 | M13: 0
A14: =IF(COUNTRY_INFO!A14=0," ",COUNTRY_INFO!A14) -> Congo | B14: =IF(COUNTRY_INFO!B14=0," ",COUNTRY_INFO!B14) -> Brazzaville | C14: =IF(COUNTRY_INFO!C14=0," ",COUNTRY_INFO!C14) -> Makélékélé | D14: =IF(OR(COUNTRY_INFO!$T$9:$T$1000="T2 (PZQ)",COUNTRY_INFO!$U$9:$U$1000="T2 (PZQ)"), "T2 (PZQ)", " ") ->  | I14: 0 | M14: 0
A15: =IF(COUNTRY_INFO!A15=0," ",COUNTRY_INFO!A15) -> Congo | B15: =IF(COUNTRY_INFO!B15=0," ",COUNTRY_INFO!B15) -> Brazzaville | C15: =IF(COUNTRY_INFO!C15=0," ",COUNTRY_INFO!C15) -> Mfilou | D15: =IF(OR(COUNTRY_INFO!$T$9:$T$1000="T2 (PZQ)",COUNTRY_INFO!$U$9:$U$1000="T2 (PZQ)"), "T2 (PZQ)", " ") ->  | I15: 0 | M15: 0
A16: =IF(COUNTRY_INFO!A16=0," ",COUNTRY_INFO!A16) -> Congo | B16: =IF(COUNTRY_INFO!B16=0," ",COUNTRY_INFO!B16) -> Brazzaville | C16: =IF(COUNTRY_INFO!C16=0," ",COUNTRY_INFO!C16) -> Moungali | D16: =IF(OR(COUNTRY_INFO!$T$9:$T$1000="T2 (PZQ)",COUNTRY_INFO!$U$9:$U$1000="T2 (PZQ)"), "T2 (PZQ)", " ") ->  | I16: 0 | M16: 0
A17: =IF(COUNTRY_INFO!A17=0," ",COUNTRY_INFO!A17) -> Congo | B17: =IF(COUNTRY_INFO!B17=0," ",COUNTRY_INFO!B17) -> Brazzaville | C17: =IF(COUNTRY_INFO!C17=0," ",COUNTRY_INFO!C17) -> Ouenzé | D17: =IF(OR(COUNTRY_INFO!$T$9:$T$1000="T2 (PZQ)",COUNTRY_INFO!$U$9:$U$1000="T2 (PZQ)"), "T2 (PZQ)", " ") ->  | I17: 0 | M17: 0
A18: =IF(COUNTRY_INFO!A18=0," ",COUNTRY_INFO!A18) -> Congo | B18: =IF(COUNTRY_INFO!B18=0," ",COUNTRY_INFO!B18) -> Brazzaville | C18: =IF(COUNTRY_INFO!C18=0," ",COUNTRY_INFO!C18) -> Poto-Poto | D18: =IF(OR(COUNTRY_INFO!$T$9:$T$1000="T2 (PZQ)",COUNTRY_INFO!$U$9:$U$1000="T2 (PZQ)"), "T2 (PZQ)", " ") ->  | I18: 0 | M18: 0
A19: =IF(COUNTRY_INFO!A19=0," ",COUNTRY_INFO!A19) -> Congo | B19: =IF(COUNTRY_INFO!B19=0," ",COUNTRY_INFO!B19) -> Brazzaville | C19: =IF(COUNTRY_INFO!C19=0," ",COUNTRY_INFO!C19) -> Talangaî | D19: =IF(OR(COUNTRY_INFO!$T$9:$T$1000="T2 (PZQ)",COUNTRY_INFO!$U$9:$U$1000="T2 (PZQ)"), "T2 (PZQ)", " ") ->  | I19: 0 | M19: 0
A20: =IF(COUNTRY_INFO!A20=0," ",COUNTRY_INFO!A20) -> Congo | B20: =IF(COUNTRY_INFO!B20=0," ",COUNTRY_INFO!B20) -> Brazzaville | C20: =IF(COUNTRY_INFO!C20=0," ",COUNTRY_INFO!C20) -> Madibou | D20: =IF(OR(COUNTRY_INFO!$T$9:$T$1000="T2 (PZQ)",COUNTRY_INFO!$U$9:$U$1000="T2 (PZQ)"), "T2 (PZQ)", " ") ->  | I20: 0 | M20: 0
A21: =IF(COUNTRY_INFO!A21=0," ",COUNTRY_INFO!A21) -> Congo | B21: =IF(COUNTRY_INFO!B21=0," ",COUNTRY_INFO!B21) -> Brazzaville | C21: =IF(COUNTRY_INFO!C21=0," ",COUNTRY_INFO!C21) -> Djiri | D21: =IF(OR(COUNTRY_INFO!$T$9:$T$1000="T2 (PZQ)",COUNTRY_INFO!$U$9:$U$1000="T2 (PZQ)"), "T2 (PZQ)", " ") ->  | I21: 0 | M21: 0
A22: =IF(COUNTRY_INFO!A22=0," ",COUNTRY_INFO!A22) -> Congo | B22: =IF(COUNTRY_INFO!B22=0," ",COUNTRY_INFO!B22) -> Cuvette | C22: =IF(COUNTRY_INFO!C22=0," ",COUNTRY_INFO!C22) -> Mossaka Loukoléla | D22: =IF(OR(COUNTRY_INFO!$T$9:$T$1000="T2 (PZQ)",COUNTRY_INFO!$U$9:$U$1000="T2 (PZQ)"), "T2 (PZQ)", " ") ->  | I22: 0 | M22: 0
A23: =IF(COUNTRY_INFO!A23=0," ",COUNTRY_INFO!A23) -> Congo | B23: =IF(COUNTRY_INFO!B23=0," ",COUNTRY_INFO!B23) -> Cuvette | C23: =IF(COUNTRY_INFO!C23=0," ",COUNTRY_INFO!C23) -> Owando | D23: =IF(OR(COUNTRY_INFO!$T$9:$T$1000="T2 (PZQ)",COUNTRY_INFO!$U$9:$U$1000="T2 (PZQ)"), "T2 (PZQ)", " ") ->  | I23: 0 | M23: 0
A24: =IF(COUNTRY_INFO!A24=0," ",COUNTRY_INFO!A24) -> Congo | B24: =IF(COUNTRY_INFO!B24=0," ",COUNTRY_INFO!B24) -> Cuvette | C24: =IF(COUNTRY_INFO!C24=0," ",COUNTRY_INFO!C24) -> Oyo | D24: =IF(OR(COUNTRY_INFO!$T$9:$T$1000="T2 (PZQ)",COUNTRY_INFO!$U$9:$U$1000="T2 (PZQ)"), "T2 (PZQ)", " ") ->  | I24: 0 | M24: 0
A25: =IF(COUNTRY_INFO!A25=0," ",COUNTRY_INFO!A25) -> Congo | B25: =IF(COUNTRY_INFO!B25=0," ",COUNTRY_INFO!B25) -> Cuvette-Ouest | C25: =IF(COUNTRY_INFO!C25=0," ",COUNTRY_INFO!C25) -> Etoumbi | D25: =IF(OR(COUNTRY_INFO!$T$9:$T$1000="T2 (PZQ)",COUNTRY_INFO!$U$9:$U$1000="T2 (PZQ)"), "T2 (PZQ)", " ") ->  | I25: 0 | M25: 0
A26: =IF(COUNTRY_INFO!A26=0," ",COUNTRY_INFO!A26) -> Congo | B26: =IF(COUNTRY_INFO!B26=0," ",COUNTRY_INFO!B26) -> Cuvette-Ouest | C26: =IF(COUNTRY_INFO!C26=0," ",COUNTRY_INFO!C26) -> Ewo | D26: =IF(OR(COUNTRY_INFO!$T$9:$T$1000="T2 (PZQ)",COUNTRY_INFO!$U$9:$U$1000="T2 (PZQ)"), "T2 (PZQ)", " ") ->  | I26: 0 | M26: 0
A27: =IF(COUNTRY_INFO!A27=0," ",COUNTRY_INFO!A27) -> Congo | B27: =IF(COUNTRY_INFO!B27=0," ",COUNTRY_INFO!B27) -> Kouilou | C27: =IF(COUNTRY_INFO!C27=0," ",COUNTRY_INFO!C27) -> Hinda-Mvouti | D27: =IF(OR(COUNTRY_INFO!$T$9:$T$1000="T2 (PZQ)",COUNTRY_INFO!$U$9:$U$1000="T2 (PZQ)"), "T2 (PZQ)", " ") ->  | I27: 0 | M27: 0
A28: =IF(COUNTRY_INFO!A28=0," ",COUNTRY_INFO!A28) -> Congo | B28: =IF(COUNTRY_INFO!B28=0," ",COUNTRY_INFO!B28) -> Kouilou | C28: =IF(COUNTRY_INFO!C28=0," ",COUNTRY_INFO!C28) -> Madingo Kayes | D28: =IF(OR(COUNTRY_INFO!$T$9:$T$1000="T2 (PZQ)",COUNTRY_INFO!$U$9:$U$1000="T2 (PZQ)"), "T2 (PZQ)", " ") ->  | I28: 0 | M28: 0
A29: =IF(COUNTRY_INFO!A29=0," ",COUNTRY_INFO!A29) -> Congo | B29: =IF(COUNTRY_INFO!B29=0," ",COUNTRY_INFO!B29) -> Lékoumou | C29: =IF(COUNTRY_INFO!C29=0," ",COUNTRY_INFO!C29) -> Sibiti | D29: =IF(OR(COUNTRY_INFO!$T$9:$T$1000="T2 (PZQ)",COUNTRY_INFO!$U$9:$U$1000="T2 (PZQ)"), "T2 (PZQ)", " ") ->  | I29: 0 | M29: 0
A30: =IF(COUNTRY_INFO!A30=0," ",COUNTRY_INFO!A30) -> Congo | B30: =IF(COUNTRY_INFO!B30=0," ",COUNTRY_INFO!B30) -> Lékoumou | C30: =IF(COUNTRY_INFO!C30=0," ",COUNTRY_INFO!C30) -> Zanaga | D30: =IF(OR(COUNTRY_INFO!$T$9:$T$1000="T2 (PZQ)",COUNTRY_INFO!$U$9:$U$1000="T2 (PZQ)"), "T2 (PZQ)", " ") ->  | I30: 0 | M30: 0
A31: =IF(COUNTRY_INFO!A31=0," ",COUNTRY_INFO!A31) -> Congo | B31: =IF(COUNTRY_INFO!B31=0," ",COUNTRY_INFO!B31) -> Likouala | C31: =IF(COUNTRY_INFO!C31=0," ",COUNTRY_INFO!C31) -> Bétou | D31: =IF(OR(COUNTRY_INFO!$T$9:$T$1000="T2 (PZQ)",COUNTRY_INFO!$U$9:$U$1000="T2 (PZQ)"), "T2 (PZQ)", " ") ->  | I31: 0 | M31: 0
A32: =IF(COUNTRY_INFO!A32=0," ",COUNTRY_INFO!A32) -> Congo | B32: =IF(COUNTRY_INFO!B32=0," ",COUNTRY_INFO!B32) -> Likouala | C32: =IF(COUNTRY_INFO!C32=0," ",COUNTRY_INFO!C32) -> Impfondo | D32: =IF(OR(COUNTRY_INFO!$T$9:$T$1000="T2 (PZQ)",COUNTRY_INFO!$U$9:$U$1000="T2 (PZQ)"), "T2 (PZQ)", " ") ->  | I32: 0 | M32: 0
A33: =IF(COUNTRY_INFO!A33=0," ",COUNTRY_INFO!A33) -> Congo | B33: =IF(COUNTRY_INFO!B33=0," ",COUNTRY_INFO!B33) -> Niari | C33: =IF(COUNTRY_INFO!C33=0," ",COUNTRY_INFO!C33) -> Dolisie | D33: =IF(OR(COUNTRY_INFO!$T$9:$T$1000="T2 (PZQ)",COUNTRY_INFO!$U$9:$U$1000="T2 (PZQ)"), "T2 (PZQ)", " ") ->  | I33: 0 | M33: 0
A34: =IF(COUNTRY_INFO!A34=0," ",COUNTRY_INFO!A34) -> Congo | B34: =IF(COUNTRY_INFO!B34=0," ",COUNTRY_INFO!B34) -> Niari | C34: =IF(COUNTRY_INFO!C34=0," ",COUNTRY_INFO!C34) -> Kibangou | D34: =IF(OR(COUNTRY_INFO!$T$9:$T$1000="T2 (PZQ)",COUNTRY_INFO!$U$9:$U$1000="T2 (PZQ)"), "T2 (PZQ)", " ") ->  | I34: 0 | M34: 0
A35: =IF(COUNTRY_INFO!A35=0," ",COUNTRY_INFO!A35) -> Congo | B35: =IF(COUNTRY_INFO!B35=0," ",COUNTRY_INFO!B35) -> Niari | C35: =IF(COUNTRY_INFO!C35=0," ",COUNTRY_INFO!C35) -> Mossendjo | D35: =IF(OR(COUNTRY_INFO!$T$9:$T$1000="T2 (PZQ)",COUNTRY_INFO!$U$9:$U$1000="T2 (PZQ)"), "T2 (PZQ)", " ") ->  | I35: 0 | M35: 0
A36: =IF(COUNTRY_INFO!A36=0," ",COUNTRY_INFO!A36) -> Congo | B36: =IF(COUNTRY_INFO!B36=0," ",COUNTRY_INFO!B36) -> Plateaux | C36: =IF(COUNTRY_INFO!C36=0," ",COUNTRY_INFO!C36) -> Abala | D36: =IF(OR(COUNTRY_INFO!$T$9:$T$1000="T2 (PZQ)",COUNTRY_INFO!$U$9:$U$1000="T2 (PZQ)"), "T2 (PZQ)", " ") ->  | I36: 0 | M36: 0
A37: =IF(COUNTRY_INFO!A37=0," ",COUNTRY_INFO!A37) -> Congo | B37: =IF(COUNTRY_INFO!B37=0," ",COUNTRY_INFO!B37) -> Plateaux | C37: =IF(COUNTRY_INFO!C37=0," ",COUNTRY_INFO!C37) -> Djambala-Lékana | D37: =IF(OR(COUNTRY_INFO!$T$9:$T$1000="T2 (PZQ)",COUNTRY_INFO!$U$9:$U$1000="T2 (PZQ)"), "T2 (PZQ)", " ") ->  | I37: 0 | M37: 0
A38: =IF(COUNTRY_INFO!A38=0," ",COUNTRY_INFO!A38) -> Congo | B38: =IF(COUNTRY_INFO!B38=0," ",COUNTRY_INFO!B38) -> Plateaux | C38: =IF(COUNTRY_INFO!C38=0," ",COUNTRY_INFO!C38) -> Gamboma | D38: =IF(OR(COUNTRY_INFO!$T$9:$T$1000="T2 (PZQ)",COUNTRY_INFO!$U$9:$U$1000="T2 (PZQ)"), "T2 (PZQ)", " ") ->  | I38: 0 | M38: 0
A39: =IF(COUNTRY_INFO!A39=0," ",COUNTRY_INFO!A39) -> Congo | B39: =IF(COUNTRY_INFO!B39=0," ",COUNTRY_INFO!B39) -> Pointe-Noire | C39: =IF(COUNTRY_INFO!C39=0," ",COUNTRY_INFO!C39) -> Ngoyo | D39: =IF(OR(COUNTRY_INFO!$T$9:$T$1000="T2 (PZQ)",COUNTRY_INFO!$U$9:$U$1000="T2 (PZQ)"), "T2 (PZQ)", " ") ->  | I39: 0 | M39: 0
A40: =IF(COUNTRY_INFO!A40=0," ",COUNTRY_INFO!A40) -> Congo | B40: =IF(COUNTRY_INFO!B40=0," ",COUNTRY_INFO!B40) -> Pointe-Noire | C40: =IF(COUNTRY_INFO!C40=0," ",COUNTRY_INFO!C40) -> Mongo-Poukou | D40: =IF(OR(COUNTRY_INFO!$T$9:$T$1000="T2 (PZQ)",COUNTRY_INFO!$U$9:$U$1000="T2 (PZQ)"), "T2 (PZQ)", " ") ->  | I40: 0 | M40: 0
A41: =IF(COUNTRY_INFO!A41=0," ",COUNTRY_INFO!A41) -> Congo | B41: =IF(COUNTRY_INFO!B41=0," ",COUNTRY_INFO!B41) -> Pointe-Noire | C41: =IF(COUNTRY_INFO!C41=0," ",COUNTRY_INFO!C41) -> Loandjili | D41: =IF(OR(COUNTRY_INFO!$T$9:$T$1000="T2 (PZQ)",COUNTRY_INFO!$U$9:$U$1000="T2 (PZQ)"), "T2 (PZQ)", " ") ->  | I41: 0 | M41: 0
A42: =IF(COUNTRY_INFO!A42=0," ",COUNTRY_INFO!A42) -> Congo | B42: =IF(COUNTRY_INFO!B42=0," ",COUNTRY_INFO!B42) -> Pointe-Noire | C42: =IF(COUNTRY_INFO!C42=0," ",COUNTRY_INFO!C42) -> Lumumba | D42: =IF(OR(COUNTRY_INFO!$T$9:$T$1000="T2 (PZQ)",COUNTRY_INFO!$U$9:$U$1000="T2 (PZQ)"), "T2 (PZQ)", " ") ->  | I42: 0 | M42: 0
A43: =IF(COUNTRY_INFO!A43=0," ",COUNTRY_INFO!A43) -> Congo | B43: =IF(COUNTRY_INFO!B43=0," ",COUNTRY_INFO!B43) -> Pointe-Noire | C43: =IF(COUNTRY_INFO!C43=0," ",COUNTRY_INFO!C43) -> Mvoumvou | D43: =IF(OR(COUNTRY_INFO!$T$9:$T$1000="T2 (PZQ)",COUNTRY_INFO!$U$9:$U$1000="T2 (PZQ)"), "T2 (PZQ)", " ") ->  | I43: 0 | M43: 0
A44: =IF(COUNTRY_INFO!A44=0," ",COUNTRY_INFO!A44) -> Congo | B44: =IF(COUNTRY_INFO!B44=0," ",COUNTRY_INFO!B44) -> Pointe-Noire | C44: =IF(COUNTRY_INFO!C44=0," ",COUNTRY_INFO!C44) -> Tie-Tie | D44: =IF(OR(COUNTRY_INFO!$T$9:$T$1000="T2 (PZQ)",COUNTRY_INFO!$U$9:$U$1000="T2 (PZQ)"), "T2 (PZQ)", " ") ->  | I44: 0 | M44: 0
A45: =IF(COUNTRY_INFO!A45=0," ",COUNTRY_INFO!A45) -> Congo | B45: =IF(COUNTRY_INFO!B45=0," ",COUNTRY_INFO!B45) -> Pool | C45: =IF(COUNTRY_INFO!C45=0," ",COUNTRY_INFO!C45) -> Goma tsétsé | D45: =IF(OR(COUNTRY_INFO!$T$9:$T$1000="T2 (PZQ)",COUNTRY_INFO!$U$9:$U$1000="T2 (PZQ)"), "T2 (PZQ)", " ") ->  | I45: 0 | M45: 0
A46: =IF(COUNTRY_INFO!A46=0," ",COUNTRY_INFO!A46) -> Congo | B46: =IF(COUNTRY_INFO!B46=0," ",COUNTRY_INFO!B46) -> Pool | C46: =IF(COUNTRY_INFO!C46=0," ",COUNTRY_INFO!C46) -> Ignié | D46: =IF(OR(COUNTRY_INFO!$T$9:$T$1000="T2 (PZQ)",COUNTRY_INFO!$U$9:$U$1000="T2 (PZQ)"), "T2 (PZQ)", " ") ->  | I46: 0 | M46: 0
A47: =IF(COUNTRY_INFO!A47=0," ",COUNTRY_INFO!A47) -> Congo | B47: =IF(COUNTRY_INFO!B47=0," ",COUNTRY_INFO!B47) -> Pool | C47: =IF(COUNTRY_INFO!C47=0," ",COUNTRY_INFO!C47) -> Kindamba | D47: =IF(OR(COUNTRY_INFO!$T$9:$T$1000="T2 (PZQ)",COUNTRY_INFO!$U$9:$U$1000="T2 (PZQ)"), "T2 (PZQ)", " ") ->  | I47: 0 | M47: 0
A48: =IF(COUNTRY_INFO!A48=0," ",COUNTRY_INFO!A48) -> Congo | B48: =IF(COUNTRY_INFO!B48=0," ",COUNTRY_INFO!B48) -> Pool | C48: =IF(COUNTRY_INFO!C48=0," ",COUNTRY_INFO!C48) -> Kinkala-Boko | D48: =IF(OR(COUNTRY_INFO!$T$9:$T$1000="T2 (PZQ)",COUNTRY_INFO!$U$9:$U$1000="T2 (PZQ)"), "T2 (PZQ)", " ") ->  | I48: 0 | M48: 0
A49: =IF(COUNTRY_INFO!A49=0," ",COUNTRY_INFO!A49) -> Congo | B49: =IF(COUNTRY_INFO!B49=0," ",COUNTRY_INFO!B49) -> Pool | C49: =IF(COUNTRY_INFO!C49=0," ",COUNTRY_INFO!C49) -> Mindouli | D49: =IF(OR(COUNTRY_INFO!$T$9:$T$1000="T2 (PZQ)",COUNTRY_INFO!$U$9:$U$1000="T2 (PZQ)"), "T2 (PZQ)", " ") ->  | I49: 0 | M49: 0
A50: =IF(COUNTRY_INFO!A50=0," ",COUNTRY_INFO!A50) -> Congo | B50: =IF(COUNTRY_INFO!B50=0," ",COUNTRY_INFO!B50) -> Sangha | C50: =IF(COUNTRY_INFO!C50=0," ",COUNTRY_INFO!C50) -> Ouesso | D50: =IF(OR(COUNTRY_INFO!$T$9:$T$1000="T2 (PZQ)",COUNTRY_INFO!$U$9:$U$1000="T2 (PZQ)"), "T2 (PZQ)", " ") ->  | I50: 0 | M50: 0
A51: =IF(COUNTRY_INFO!A51=0," ",COUNTRY_INFO!A51) -> Congo | B51: =IF(COUNTRY_INFO!B51=0," ",COUNTRY_INFO!B51) -> Sangha | C51: =IF(COUNTRY_INFO!C51=0," ",COUNTRY_INFO!C51) -> Sembé-Souanké | D51: =IF(OR(COUNTRY_INFO!$T$9:$T$1000="T2 (PZQ)",COUNTRY_INFO!$U$9:$U$1000="T2 (PZQ)"), "T2 (PZQ)", " ") ->  | I51: 0 | M51: 0

Sheet T3_R1
A1: T 3 - Albendazole (ALB) ou Mebendazole (MBD) - Tournée 1
A2: Structure administrative, population nécessitant une chimioprévention par groupe d'âge, population traitée par groupe d'âge et couverture
A4: TOTAL | G4: =SUM(G$9:G$1000) -> 0 | H4: 780253 | I4: 129353 | J4: 909606 | K4: 0 | L4: 674902 | M4: 106358 | N4: 781260 | O4: =IF(G4<>0, IF(K4/G4*100=0, "-", K4/G4*100), " ") ->  | P4: =IF(H4<>0, IF(L4/H4*100=0, "-", L4/H4*100), " ") -> 86.49784108 | Q4: =IF(I4<>0, IF(M4/I4*100=0, "-", M4/I4*100), " ") -> 82.22306402 | R4: =IF(J4<>0, IF(N4/J4*100=0, "-", N4/J4*100), " ") -> 85.88993476
A6: Structure administrative du pays | D6: Mise en oeuvre de la CP | E6: Médica-ment | F6: Date | G6: Population ciblée pour T3 | K6: Population traitée | O6: Couverture du Programme (%)
A7: Pays | B7: Région/Département | C7: District | G7: EAPréS | H7: EAS | I7: Adultes | J7: Total | K7: EAPréS | L7: EAS | M7: Adultes | N7: Total | O7: EAPréS | P7: EAS | Q7: Adultes | R7: Total
A9: =IF(COUNTRY_INFO!A9=0," ",COUNTRY_INFO!A9) -> Congo | B9: =IF(COUNTRY_INFO!B9=0," ",COUNTRY_INFO!B9) -> Bouenza | C9: =IF(COUNTRY_INFO!C9=0," ",COUNTRY_INFO!C9) -> Loudima | D9: =IF(OR(COUNTRY_INFO!$T$9:$T$1000="T3 (ALB/MBD)",COUNTRY_INFO!$U$9:$U$1000="T3 (ALB/MBD)"), "T3 (ALB/MBD)", " ") ->  | J9: =SUM(G9:I9) -> 0 | N9: =SUM(K9:M9) -> 0 | O9: =IF(G9<>0, IF(K9/G9*100=0, "-", K9/G9*100), " ") -> 
A10: =IF(COUNTRY_INFO!A10=0," ",COUNTRY_INFO!A10) -> Congo | B10: =IF(COUNTRY_INFO!B10=0," ",COUNTRY_INFO!B10) -> Bouenza | C10: =IF(COUNTRY_INFO!C10=0," ",COUNTRY_INFO!C10) -> Loutété | D10: T3 (ALB/MBD) | E10: ALB | F10: Avril-Mai | H10: 666 | I10: 2194 | J10: =SUM(G10:I10) -> 2860 | L10: 564 | M10: 1785 | N10: =SUM(K10:M10) -> 2349 | O10: =IF(G10<>0, IF(K10/G10*100=0, "-", K10/G10*100), " ") ->  | P10: =IF(H10<>0, IF(L10/H10*100=0, "-", L10/H10*100), " ") -> 84.68468468 | Q10: =IF(I10<>0, IF(M10/I10*100=0, "-", M10/I10*100), " ") -> 81.35824977 | R10: =IF(J10<>0, IF(N10/J10*100=0, "-", N10/J10*100), " ") -> 82.13286713
A11: =IF(COUNTRY_INFO!A11=0," ",COUNTRY_INFO!A11) -> Congo | B11: =IF(COUNTRY_INFO!B11=0," ",COUNTRY_INFO!B11) -> Bouenza | C11: =IF(COUNTRY_INFO!C11=0," ",COUNTRY_INFO!C11) -> Madingou | D11: =IF(OR(COUNTRY_INFO!$T$9:$T$1000="T3 (ALB/MBD)",COUNTRY_INFO!$U$9:$U$1000="T3 (ALB/MBD)"), "T3 (ALB/MBD)", " ") -> T3 (ALB/MBD) | E11: ALB | F11: Avril-Mai | H11: 4032 | I11: 12770 | J11: 16802 | L11: 2947 | M11: 9334 | N11: 12281 | P11: 73.09027778 | Q11: 73.09318716 | R11: 73.09248899
A12: =IF(COUNTRY_INFO!A12=0," ",COUNTRY_INFO!A12) -> Congo | B12: =IF(COUNTRY_INFO!B12=0," ",COUNTRY_INFO!B12) -> Bouenza | C12: =IF(COUNTRY_INFO!C12=0," ",COUNTRY_INFO!C12) -> Mouyondzi | D12: T3 (ALB/MBD) | E12: ALB | F12: Avril-Mai | H12: 1700 | I12: 5384 | J12: 7084 | L12: 1339 | M12: 4240 | N12: 5579 | P12: 78.76470588 | Q12: 78.75185736 | R12: 78.75494071
A13: =IF(COUNTRY_INFO!A13=0," ",COUNTRY_INFO!A13) -> Congo | B13: =IF(COUNTRY_INFO!B13=0," ",COUNTRY_INFO!B13) -> Brazzaville | C13: =IF(COUNTRY_INFO!C13=0," ",COUNTRY_INFO!C13) -> Bacongo | D13: =IF(OR(COUNTRY_INFO!$T$9:$T$1000="T3 (ALB/MBD)",COUNTRY_INFO!$U$9:$U$1000="T3 (ALB/MBD)"), "T3 (ALB/MBD)", " ") -> T3 (ALB/MBD) | E13: ALB | F13: Nov | H13: 11676 | J13: 11676 | L13: 10698 | N13: 10698 | P13: 91.62384378 | R13: 91.62384378
A14: =IF(COUNTRY_INFO!A14=0," ",COUNTRY_INFO!A14) -> Congo | B14: =IF(COUNTRY_INFO!B14=0," ",COUNTRY_INFO!B14) -> Brazzaville | C14: =IF(COUNTRY_INFO!C14=0," ",COUNTRY_INFO!C14) -> Makélékélé | D14: =IF(OR(COUNTRY_INFO!$T$9:$T$1000="T3 (ALB/MBD)",COUNTRY_INFO!$U$9:$U$1000="T3 (ALB/MBD)"), "T3 (ALB/MBD)", " ") -> T3 (ALB/MBD) | E14: ALB | F14: Nov | H14: 38279 | J14: 38279 | L14: 34650 | N14: 34650 | P14: 90.51960605 | R14: 90.51960605
A15: =IF(COUNTRY_INFO!A15=0," ",COUNTRY_INFO!A15) -> Congo | B15: =IF(COUNTRY_INFO!B15=0," ",COUNTRY_INFO!B15) -> Brazzaville | C15: =IF(COUNTRY_INFO!C15=0," ",COUNTRY_INFO!C15) -> Mfilou | D15: =IF(OR(COUNTRY_INFO!$T$9:$T$1000="T3 (ALB/MBD)",COUNTRY_INFO!$U$9:$U$1000="T3 (ALB/MBD)"), "T3 (ALB/MBD)", " ") -> T3 (ALB/MBD) | E15: ALB | F15: Nov | H15: 42969 | J15: 42969 | L15: 39381 | N15: 39381 | P15: 91.64979404 | R15: 91.64979404
A16: =IF(COUNTRY_INFO!A16=0," ",COUNTRY_INFO!A16) -> Congo | B16: =IF(COUNTRY_INFO!B16=0," ",COUNTRY_INFO!B16) -> Brazzaville | C16: =IF(COUNTRY_INFO!C16=0," ",COUNTRY_INFO!C16) -> Moungali | D16: =IF(OR(COUNTRY_INFO!$T$9:$T$1000="T3 (ALB/MBD)",COUNTRY_INFO!$U$9:$U$1000="T3 (ALB/MBD)"), "T3 (ALB/MBD)", " ") -> T3 (ALB/MBD) | E16: ALB | F16: Nov | H16: 27244 | J16: 27244 | L16: 23659 | N16: 23659 | P16: 86.84113933 | R16: 86.84113933
A17: =IF(COUNTRY_INFO!A17=0," ",COUNTRY_INFO!A17) -> Congo | B17: =IF(COUNTRY_INFO!B17=0," ",COUNTRY_INFO!B17) -> Brazzaville | C17: =IF(COUNTRY_INFO!C17=0," ",COUNTRY_INFO!C17) -> Ouenzé | D17: =IF(OR(COUNTRY_INFO!$T$9:$T$1000="T3 (ALB/MBD)",COUNTRY_INFO!$U$9:$U$1000="T3 (ALB/MBD)"), "T3 (ALB/MBD)", " ") -> T3 (ALB/MBD) | E17: ALB | F17: Nov | H17: 38364 | J17: 38364 | L17: 32748 | N17: 32748 | P17: 85.3612762 | R17: 85.3612762
A18: =IF(COUNTRY_INFO!A18=0," ",COUNTRY_INFO!A18) -> Congo | B18: =IF(COUNTRY_INFO!B18=0," ",COUNTRY_INFO!B18) -> Brazzaville | C18: =IF(COUNTRY_INFO!C18=0," ",COUNTRY_INFO!C18) -> Poto-Poto | D18: T3 (ALB/MBD) | E18: ALB | F18: Nov | H18: 11098 | J18: 11098 | L18: 10549 | N18: 10549 | P18: 95.05316273 | R18: 95.05316273
A19: =IF(COUNTRY_INFO!A19=0," ",COUNTRY_INFO!A19) -> Congo | B19: =IF(COUNTRY_INFO!B19=0," ",COUNTRY_INFO!B19) -> Brazzaville | C19: =IF(COUNTRY_INFO!C19=0," ",COUNTRY_INFO!C19) -> Talangaî | D19: T3 (ALB/MBD) | E19: ALB | F19: Nov | H19: 46409 | J19: 46409 | L19: 30114 | N19: 30114 | P19: 64.88827598 | R19: 64.88827598
A20: =IF(COUNTRY_INFO!A20=0," ",COUNTRY_INFO!A20) -> Congo | B20: =IF(COUNTRY_INFO!B20=0," ",COUNTRY_INFO!B20) -> Brazzaville | C20: =IF(COUNTRY_INFO!C20=0," ",COUNTRY_INFO!C20) -> Madibou | D20: T3 (ALB/MBD) | E20: ALB | F20: Nov | H20: 35899 | J20: 35899 | L20: 32109 | N20: 32109 | P20: 89.44260286 | R20: 89.44260286
A21: =IF(COUNTRY_INFO!A21=0," ",COUNTRY_INFO!A21) -> Congo | B21: =IF(COUNTRY_INFO!B21=0," ",COUNTRY_INFO!B21) -> Brazzaville | C21: =IF(COUNTRY_INFO!C21=0," ",COUNTRY_INFO!C21) -> Djiri | D21: T3 (ALB/MBD) | E21: ALB | F21: Nov | H21: 39216 | J21: 39216 | L21: 34845 | N21: 34845 | P21: 88.85403917 | R21: 88.85403917
A22: =IF(COUNTRY_INFO!A22=0," ",COUNTRY_INFO!A22) -> Congo | B22: =IF(COUNTRY_INFO!B22=0," ",COUNTRY_INFO!B22) -> Cuvette | C22: =IF(COUNTRY_INFO!C22=0," ",COUNTRY_INFO!C22) -> Mossaka Loukoléla | D22: =IF(OR(COUNTRY_INFO!$T$9:$T$1000="T3 (ALB/MBD)",COUNTRY_INFO!$U$9:$U$1000="T3 (ALB/MBD)"), "T3 (ALB/MBD)", " ") ->  | J22: 0 | N22: 0
A23: =IF(COUNTRY_INFO!A23=0," ",COUNTRY_INFO!A23) -> Congo | B23: =IF(COUNTRY_INFO!B23=0," ",COUNTRY_INFO!B23) -> Cuvette | C23: =IF(COUNTRY_INFO!C23=0," ",COUNTRY_INFO!C23) -> Owando | D23: =IF(OR(COUNTRY_INFO!$T$9:$T$1000="T3 (ALB/MBD)",COUNTRY_INFO!$U$9:$U$1000="T3 (ALB/MBD)"), "T3 (ALB/MBD)", " ") ->  | J23: 0 | N23: 0
A24: =IF(COUNTRY_INFO!A24=0," ",COUNTRY_INFO!A24) -> Congo | B24: =IF(COUNTRY_INFO!B24=0," ",COUNTRY_INFO!B24) -> Cuvette | C24: =IF(COUNTRY_INFO!C24=0," ",COUNTRY_INFO!C24) -> Oyo | D24: =IF(OR(COUNTRY_INFO!$T$9:$T$1000="T3 (ALB/MBD)",COUNTRY_INFO!$U$9:$U$1000="T3 (ALB/MBD)"), "T3 (ALB/MBD)", " ") ->  | J24: 0 | N24: 0
A25: =IF(COUNTRY_INFO!A25=0," ",COUNTRY_INFO!A25) -> Congo | B25: =IF(COUNTRY_INFO!B25=0," ",COUNTRY_INFO!B25) -> Cuvette-Ouest | C25: =IF(COUNTRY_INFO!C25=0," ",COUNTRY_INFO!C25) -> Etoumbi | D25: T3 (ALB/MBD) | E25: ALB | F25: Janv | H25: 8213 | J25: 8213 | L25: 5444 | N25: 5444 | P25: 66.28515768 | R25: 66.28515768
A26: =IF(COUNTRY_INFO!A26=0," ",COUNTRY_INFO!A26) -> Congo | B26: =IF(COUNTRY_INFO!B26=0," ",COUNTRY_INFO!B26) -> Cuvette-Ouest | C26: =IF(COUNTRY_INFO!C26=0," ",COUNTRY_INFO!C26) -> Ewo | D26: T3 (ALB/MBD) | E26: ALB | F26: Janv | H26: 11357 | J26: 11357 | L26: 9861 | N26: 9861 | P26: 86.82750726 | R26: 86.82750726
A27: =IF(COUNTRY_INFO!A27=0," ",COUNTRY_INFO!A27) -> Congo | B27: =IF(COUNTRY_INFO!B27=0," ",COUNTRY_INFO!B27) -> Kouilou | C27: =IF(COUNTRY_INFO!C27=0," ",COUNTRY_INFO!C27) -> Hinda-Mvouti | D27: =IF(OR(COUNTRY_INFO!$T$9:$T$1000="T3 (ALB/MBD)",COUNTRY_INFO!$U$9:$U$1000="T3 (ALB/MBD)"), "T3 (ALB/MBD)", " ") ->  | J27: 0 | N27: 0
A28: =IF(COUNTRY_INFO!A28=0," ",COUNTRY_INFO!A28) -> Congo | B28: =IF(COUNTRY_INFO!B28=0," ",COUNTRY_INFO!B28) -> Kouilou | C28: =IF(COUNTRY_INFO!C28=0," ",COUNTRY_INFO!C28) -> Madingo Kayes | D28: =IF(OR(COUNTRY_INFO!$T$9:$T$1000="T3 (ALB/MBD)",COUNTRY_INFO!$U$9:$U$1000="T3 (ALB/MBD)"), "T3 (ALB/MBD)", " ") ->  | J28: 0 | N28: 0
A29: =IF(COUNTRY_INFO!A29=0," ",COUNTRY_INFO!A29) -> Congo | B29: =IF(COUNTRY_INFO!B29=0," ",COUNTRY_INFO!B29) -> Lékoumou | C29: =IF(COUNTRY_INFO!C29=0," ",COUNTRY_INFO!C29) -> Sibiti | D29: =IF(OR(COUNTRY_INFO!$T$9:$T$1000="T3 (ALB/MBD)",COUNTRY_INFO!$U$9:$U$1000="T3 (ALB/MBD)"), "T3 (ALB/MBD)", " ") ->  | J29: 0 | N29: 0
A30: =IF(COUNTRY_INFO!A30=0," ",COUNTRY_INFO!A30) -> Congo | B30: =IF(COUNTRY_INFO!B30=0," ",COUNTRY_INFO!B30) -> Lékoumou | C30: =IF(COUNTRY_INFO!C30=0," ",COUNTRY_INFO!C30) -> Zanaga | D30: T3 (ALB/MBD) | E30: ALB | F30: Nov | H30: 14665 | J30: 14665 | L30: 4000 | N30: 4000 | P30: 27.2758268 | R30: 27.2758268
A31: =IF(COUNTRY_INFO!A31=0," ",COUNTRY_INFO!A31) -> Congo | B31: =IF(COUNTRY_INFO!B31=0," ",COUNTRY_INFO!B31) -> Likouala | C31: =IF(COUNTRY_INFO!C31=0," ",COUNTRY_INFO!C31) -> Bétou | D31: T3 (ALB/MBD) | E31: ALB | F31: Nov | H31: 14665 | J31: 14665 | L31: 13976 | N31: 13976 | P31: 95.30173883 | R31: 95.30173883
A32: =IF(COUNTRY_INFO!A32=0," ",COUNTRY_INFO!A32) -> Congo | B32: =IF(COUNTRY_INFO!B32=0," ",COUNTRY_INFO!B32) -> Likouala | C32: =IF(COUNTRY_INFO!C32=0," ",COUNTRY_INFO!C32) -> Impfondo | D32: T3 (ALB/MBD) | E32: ALB | F32: Nov | H32: 18585 | J32: 18585 | L32: 17227 | N32: 17227 | P32: 92.69303202 | R32: 92.69303202
A33: =IF(COUNTRY_INFO!A33=0," ",COUNTRY_INFO!A33) -> Congo | B33: =IF(COUNTRY_INFO!B33=0," ",COUNTRY_INFO!B33) -> Niari | C33: =IF(COUNTRY_INFO!C33=0," ",COUNTRY_INFO!C33) -> Dolisie | D33: =IF(OR(COUNTRY_INFO!$T$9:$T$1000="T3 (ALB/MBD)",COUNTRY_INFO!$U$9:$U$1000="T3 (ALB/MBD)"), "T3 (ALB/MBD)", " ") -> T3 (ALB/MBD) | E33: ALB | F33: Avril-Mai | H33: 21584 | I33: 68348 | J33: 89932 | L33: 17785 | M33: 56320 | N33: 74105 | P33: 82.39899926 | Q33: 82.40182595 | R33: 82.40114753
A34: =IF(COUNTRY_INFO!A34=0," ",COUNTRY_INFO!A34) -> Congo | B34: =IF(COUNTRY_INFO!B34=0," ",COUNTRY_INFO!B34) -> Niari | C34: =IF(COUNTRY_INFO!C34=0," ",COUNTRY_INFO!C34) -> Kibangou | D34: =IF(OR(COUNTRY_INFO!$T$9:$T$1000="T3 (ALB/MBD)",COUNTRY_INFO!$U$9:$U$1000="T3 (ALB/MBD)"), "T3 (ALB/MBD)", " ") -> T3 (ALB/MBD) | E34: ALB | F34: Avril-Mai | H34: 4753 | I34: 15050 | J34: 19803 | L34: 4133 | M34: 13087 | N34: 17220 | P34: 86.95560699 | Q34: 86.95681063 | R34: 86.95652174
A35: =IF(COUNTRY_INFO!A35=0," ",COUNTRY_INFO!A35) -> Congo | B35: =IF(COUNTRY_INFO!B35=0," ",COUNTRY_INFO!B35) -> Niari | C35: =IF(COUNTRY_INFO!C35=0," ",COUNTRY_INFO!C35) -> Mossendjo | D35: T3 (ALB/MBD) | E35: ALB | F35: Nov | H35: 9374 | J35: 9374 | L35: 8449 | N35: 8449 | P35: 90.13228078 | R35: 90.13228078
A36: =IF(COUNTRY_INFO!A36=0," ",COUNTRY_INFO!A36) -> Congo | B36: =IF(COUNTRY_INFO!B36=0," ",COUNTRY_INFO!B36) -> Plateaux | C36: =IF(COUNTRY_INFO!C36=0," ",COUNTRY_INFO!C36) -> Abala | D36: T3 (ALB/MBD) | E36: ALB | F36: Nov | H36: 10527 | J36: 10527 | L36: 10064 | N36: 10064 | P36: 95.60178588 | R36: 95.60178588
A37: =IF(COUNTRY_INFO!A37=0," ",COUNTRY_INFO!A37) -> Congo | B37: =IF(COUNTRY_INFO!B37=0," ",COUNTRY_INFO!B37) -> Plateaux | C37: =IF(COUNTRY_INFO!C37=0," ",COUNTRY_INFO!C37) -> Djambala-Lékana | D37: T3 (ALB/MBD) | E37: ALB | F37: Nov | H37: 13766 | J37: 13766 | L37: 12841 | N37: 12841 | P37: 93.28054627 | R37: 93.28054627
A38: =IF(COUNTRY_INFO!A38=0," ",COUNTRY_INFO!A38) -> Congo | B38: =IF(COUNTRY_INFO!B38=0," ",COUNTRY_INFO!B38) -> Plateaux | C38: =IF(COUNTRY_INFO!C38=0," ",COUNTRY_INFO!C38) -> Gamboma | D38: T3 (ALB/MBD) | E38: ALB | F38: Nov | H38: 20893 | J38: 20893 | L38: 20010 | N38: 20010 | P38: 95.77370411 | R38: 95.77370411
A39: =IF(COUNTRY_INFO!A39=0," ",COUNTRY_INFO!A39) -> Congo | B39: =IF(COUNTRY_INFO!B39=0," ",COUNTRY_INFO!B39) -> Pointe-Noire | C39: =IF(COUNTRY_INFO!C39=0," ",COUNTRY_INFO!C39) -> Ngoyo | D39: T3 (ALB/MBD) | E39: ALB | F39: Nov | H39: 58295 | J39: 58295 | L39: 49197 | N39: 49197 | P39: 84.39317266 | R39: 84.39317266
A40: =IF(COUNTRY_INFO!A40=0," ",COUNTRY_INFO!A40) -> Congo | B40: =IF(COUNTRY_INFO!B40=0," ",COUNTRY_INFO!B40) -> Pointe-Noire | C40: =IF(COUNTRY_INFO!C40=0," ",COUNTRY_INFO!C40) -> Mongo-Poukou | D40: T3 (ALB/MBD) | E40: ALB | F40: Nov | H40: 49135 | J40: 49135 | L40: 43202 | N40: 43202 | P40: 87.9251043 | R40: 87.9251043
A41: =IF(COUNTRY_INFO!A41=0," ",COUNTRY_INFO!A41) -> Congo | B41: =IF(COUNTRY_INFO!B41=0," ",COUNTRY_INFO!B41) -> Pointe-Noire | C41: =IF(COUNTRY_INFO!C41=0," ",COUNTRY_INFO!C41) -> Loandjili | D41: T3 (ALB/MBD) | E41: ALB | F41: Nov | H41: 75708 | J41: 75708 | L41: 66481 | N41: 66481 | P41: 87.81238442 | R41: 87.81238442
A42: =IF(COUNTRY_INFO!A42=0," ",COUNTRY_INFO!A42) -> Congo | B42: =IF(COUNTRY_INFO!B42=0," ",COUNTRY_INFO!B42) -> Pointe-Noire | C42: =IF(COUNTRY_INFO!C42=0," ",COUNTRY_INFO!C42) -> Lumumba | D42: T3 (ALB/MBD) | E42: ALB | F42: Nov | H42: 20321 | J42: 20321 | L42: 17861 | N42: 17861 | P42: 87.89429654 | R42: 87.89429654
A43: =IF(COUNTRY_INFO!A43=0," ",COUNTRY_INFO!A43) -> Congo | B43: =IF(COUNTRY_INFO!B43=0," ",COUNTRY_INFO!B43) -> Pointe-Noire | C43: =IF(COUNTRY_INFO!C43=0," ",COUNTRY_INFO!C43) -> Mvoumvou | D43: T3 (ALB/MBD) | E43: ALB | F43: Nov | H43: 12592 | J43: 12592 | L43: 11552 | N43: 11552 | P43: 91.7407878 | R43: 91.7407878
A44: =IF(COUNTRY_INFO!A44=0," ",COUNTRY_INFO!A44) -> Congo | B44: =IF(COUNTRY_INFO!B44=0," ",COUNTRY_INFO!B44) -> Pointe-Noire | C44: =IF(COUNTRY_INFO!C44=0," ",COUNTRY_INFO!C44) -> Tie-Tie | D44: T3 (ALB/MBD) | E44: ALB | F44: Nov | H44: 62713 | J44: 62713 | L44: 57563 | N44: 57563 | P44: 91.78798654 | R44: 91.78798654
A45: =IF(COUNTRY_INFO!A45=0," ",COUNTRY_INFO!A45) -> Congo | B45: =IF(COUNTRY_INFO!B45=0," ",COUNTRY_INFO!B45) -> Pool | C45: =IF(COUNTRY_INFO!C45=0," ",COUNTRY_INFO!C45) -> Goma tsétsé | D45: =IF(OR(COUNTRY_INFO!$T$9:$T$1000="T3 (ALB/MBD)",COUNTRY_INFO!$U$9:$U$1000="T3 (ALB/MBD)"), "T3 (ALB/MBD)", " ") -> T3 (ALB/MBD) | E45: ALB | F45: Nov | H45: 1369 | J45: 1369 | L45: 1303 | N45: 1303 | P45: 95.17896275 | R45: 95.17896275
A46: =IF(COUNTRY_INFO!A46=0," ",COUNTRY_INFO!A46) -> Congo | B46: =IF(COUNTRY_INFO!B46=0," ",COUNTRY_INFO!B46) -> Pool | C46: =IF(COUNTRY_INFO!C46=0," ",COUNTRY_INFO!C46) -> Ignié | D46: =IF(OR(COUNTRY_INFO!$T$9:$T$1000="T3 (ALB/MBD)",COUNTRY_INFO!$U$9:$U$1000="T3 (ALB/MBD)"), "T3 (ALB/MBD)", " ") -> T3 (ALB/MBD) | E46: ALB | F46: Avril-Mai | H46: 8086 | I46: 25607 | J46: 33693 | L46: 6818 | M46: 21592 | N46: 28410 | P46: 84.31857532 | Q46: 84.32069356 | R46: 84.3201852
A47: =IF(COUNTRY_INFO!A47=0," ",COUNTRY_INFO!A47) -> Congo | B47: =IF(COUNTRY_INFO!B47=0," ",COUNTRY_INFO!B47) -> Pool | C47: =IF(COUNTRY_INFO!C47=0," ",COUNTRY_INFO!C47) -> Kindamba | D47: =IF(OR(COUNTRY_INFO!$T$9:$T$1000="T3 (ALB/MBD)",COUNTRY_INFO!$U$9:$U$1000="T3 (ALB/MBD)"), "T3 (ALB/MBD)", " ") -> T3 (ALB/MBD) | E47: ALB | F47: Nov | H47: 6515 | J47: 6515 | L47: 5714 | N47: 5714 | P47: 87.70529547 | R47: 87.70529547
A48: =IF(COUNTRY_INFO!A48=0," ",COUNTRY_INFO!A48) -> Congo | B48: =IF(COUNTRY_INFO!B48=0," ",COUNTRY_INFO!B48) -> Pool | C48: =IF(COUNTRY_INFO!C48=0," ",COUNTRY_INFO!C48) -> Kinkala-Boko | D48: =IF(OR(COUNTRY_INFO!$T$9:$T$1000="T3 (ALB/MBD)",COUNTRY_INFO!$U$9:$U$1000="T3 (ALB/MBD)"), "T3 (ALB/MBD)", " ") -> T3 (ALB/MBD) | E48: ALB | F48: Nov | H48: 10367 | J48: 10367 | L48: 10176 | N48: 10176 | P48: 98.15761551 | R48: 98.15761551
A49: =IF(COUNTRY_INFO!A49=0," ",COUNTRY_INFO!A49) -> Congo | B49: =IF(COUNTRY_INFO!B49=0," ",COUNTRY_INFO!B49) -> Pool | C49: =IF(COUNTRY_INFO!C49=0," ",COUNTRY_INFO!C49) -> Mindouli | D49: =IF(OR(COUNTRY_INFO!$T$9:$T$1000="T3 (ALB/MBD)",COUNTRY_INFO!$U$9:$U$1000="T3 (ALB/MBD)"), "T3 (ALB/MBD)", " ") -> T3 (ALB/MBD) | E49: ALB | F49: Nov | H49: 7627 | J49: 7627 | L49: 7443 | N49: 7443 | P49: 97.58751803 | R49: 97.58751803
A50: =IF(COUNTRY_INFO!A50=0," ",COUNTRY_INFO!A50) -> Congo | B50: =IF(COUNTRY_INFO!B50=0," ",COUNTRY_INFO!B50) -> Sangha | C50: =IF(COUNTRY_INFO!C50=0," ",COUNTRY_INFO!C50) -> Ouesso | D50: =IF(OR(COUNTRY_INFO!$T$9:$T$1000="T3 (ALB/MBD)",COUNTRY_INFO!$U$9:$U$1000="T3 (ALB/MBD)"), "T3 (ALB/MBD)", " ") -> T3 (ALB/MBD) | E50: ALB | F50: Nov | H50: 17219 | J50: 17219 | L50: 16026 | N50: 16026 | P50: 93.07160695 | R50: 93.07160695
A51: =IF(COUNTRY_INFO!A51=0," ",COUNTRY_INFO!A51) -> Congo | B51: =IF(COUNTRY_INFO!B51=0," ",COUNTRY_INFO!B51) -> Sangha | C51: =IF(COUNTRY_INFO!C51=0," ",COUNTRY_INFO!C51) -> Sembé-Souanké | D51: =IF(OR(COUNTRY_INFO!$T$9:$T$1000="T3 (ALB/MBD)",COUNTRY_INFO!$U$9:$U$1000="T3 (ALB/MBD)"), "T3 (ALB/MBD)", " ") -> T3 (ALB/MBD) | E51: ALB | F51: Nov | H51: 4372 | J51: 4372 | L51: 4173 | N51: 4173 | P51: 95.44830741 | R51: 95.44830741

Sheet T3_R2
A1: T 3 - Albendazole (ALB) ou Mebendazole (MBD) - Tournée 2
A2: Structure administrative, population nécessitant une chimioprévention par groupe d'âge, population traitée par groupe d'âge et couverture
A4: TOTAL | G4: =SUM(G$9:G$1000) -> 0 | H4: 39397 | I4: 124758 | J4: 164155 | K4: 0 | L4: 31045 | M4: 98310 | N4: 129355 | O4: =IF(G4<>0, IF(K4/G4*100=0, "-", K4/G4*100), " ") ->  | P4: =IF(H4<>0, IF(L4/H4*100=0, "-", L4/H4*100), " ") -> 78.80041628 | Q4: =IF(I4<>0, IF(M4/I4*100=0, "-", M4/I4*100), " ") -> 78.80055788 | R4: =IF(J4<>0, IF(N4/J4*100=0, "-", N4/J4*100), " ") -> 78.8005239
A6: Structure administrative du pays | D6: Mise en oeuvre de la CP | E6: Médica-ment | F6: Date | G6: Population ciblée pour T3 | K6: Population traitée | O6: Couverture du Programme (%)
A7: Pays | B7: Région/Département | C7: District | G7: EAPréS | H7: EAS | I7: Adultes | J7: Total | K7: EAPréS | L7: EAS | M7: Adultes | N7: Total | O7: EAPréS | P7: EAS | Q7: Adultes | R7: Total
A9: =IF(COUNTRY_INFO!A9=0," ",COUNTRY_INFO!A9) -> Congo | B9: =IF(COUNTRY_INFO!B9=0," ",COUNTRY_INFO!B9) -> Bouenza | C9: =IF(COUNTRY_INFO!C9=0," ",COUNTRY_INFO!C9) -> Loudima | D9: =IF(AND(COUNTRY_INFO!$T$9:$T$1000="T3 (ALB/MBD)",COUNTRY_INFO!$U$9:$U$1000="T3 (ALB/MBD)"), "T3 (ALB/MBD)", " ") ->  | J9: =SUM(G9:I9) -> 0 | N9: =SUM(K9:M9) -> 0 | O9: =IF(G9<>0, IF(K9/G9*100=0, "-", K9/G9*100), " ") -> 
A10: =IF(COUNTRY_INFO!A10=0," ",COUNTRY_INFO!A10) -> Congo | B10: =IF(COUNTRY_INFO!B10=0," ",COUNTRY_INFO!B10) -> Bouenza | C10: =IF(COUNTRY_INFO!C10=0," ",COUNTRY_INFO!C10) -> Loutété | D10: T3 (ALB/MBD) | E10: ALB | F10: Sept-Oct | H10: 795 | I10: 2518 | J10: =SUM(G10:I10) -> 3313 | L10: 564 | M10: 1785 | N10: =SUM(K10:M10) -> 2349 | O10: =IF(G10<>0, IF(K10/G10*100=0, "-", K10/G10*100), " ") ->  | P10: =IF(H10<>0, IF(L10/H10*100=0, "-", L10/H10*100), " ") -> 70.94339623 | Q10: =IF(I10<>0, IF(M10/I10*100=0, "-", M10/I10*100), " ") -> 70.88959492 | R10: =IF(J10<>0, IF(N10/J10*100=0, "-", N10/J10*100), " ") -> 70.90250528
A11: =IF(COUNTRY_INFO!A11=0," ",COUNTRY_INFO!A11) -> Congo | B11: =IF(COUNTRY_INFO!B11=0," ",COUNTRY_INFO!B11) -> Bouenza | C11: =IF(COUNTRY_INFO!C11=0," ",COUNTRY_INFO!C11) -> Madingou | D11: T3 (ALB/MBD) | E11: ALB | F11: Sept-Oct | H11: 4451 | I11: 14094 | J11: 18545 | L11: 3381 | M11: 10707 | N11: 14088 | P11: 75.96045832 | Q11: 75.96849723 | R11: 75.96656781
A12: =IF(COUNTRY_INFO!A12=0," ",COUNTRY_INFO!A12) -> Congo | B12: =IF(COUNTRY_INFO!B12=0," ",COUNTRY_INFO!B12) -> Bouenza | C12: =IF(COUNTRY_INFO!C12=0," ",COUNTRY_INFO!C12) -> Mouyondzi | D12: T3 (ALB/MBD) | E12: ALB | F12: Sept-Oct | H12: 1835 | I12: 5812 | J12: 7647 | L12: 1513 | M12: 4791 | N12: 6304 | P12: 82.45231608 | Q12: 82.43289745 | R12: 82.43755721
A13: =IF(COUNTRY_INFO!A13=0," ",COUNTRY_INFO!A13) -> Congo | B13: =IF(COUNTRY_INFO!B13=0," ",COUNTRY_INFO!B13) -> Brazzaville | C13: =IF(COUNTRY_INFO!C13=0," ",COUNTRY_INFO!C13) -> Bacongo | D13: =IF(AND(COUNTRY_INFO!$T$9:$T$1000="T3 (ALB/MBD)",COUNTRY_INFO!$U$9:$U$1000="T3 (ALB/MBD)"), "T3 (ALB/MBD)", " ") ->  | J13: 0 | N13: 0
A14: =IF(COUNTRY_INFO!A14=0," ",COUNTRY_INFO!A14) -> Congo | B14: =IF(COUNTRY_INFO!B14=0," ",COUNTRY_INFO!B14) -> Brazzaville | C14: =IF(COUNTRY_INFO!C14=0," ",COUNTRY_INFO!C14) -> Makélékélé | D14: =IF(AND(COUNTRY_INFO!$T$9:$T$1000="T3 (ALB/MBD)",COUNTRY_INFO!$U$9:$U$1000="T3 (ALB/MBD)"), "T3 (ALB/MBD)", " ") ->  | J14: 0 | N14: 0
A15: =IF(COUNTRY_INFO!A15=0," ",COUNTRY_INFO!A15) -> Congo | B15: =IF(COUNTRY_INFO!B15=0," ",COUNTRY_INFO!B15) -> Brazzaville | C15: =IF(COUNTRY_INFO!C15=0," ",COUNTRY_INFO!C15) -> Mfilou | D15: =IF(AND(COUNTRY_INFO!$T$9:$T$1000="T3 (ALB/MBD)",COUNTRY_INFO!$U$9:$U$1000="T3 (ALB/MBD)"), "T3 (ALB/MBD)", " ") ->  | J15: 0 | N15: 0
A16: =IF(COUNTRY_INFO!A16=0," ",COUNTRY_INFO!A16) -> Congo | B16: =IF(COUNTRY_INFO!B16=0," ",COUNTRY_INFO!B16) -> Brazzaville | C16: =IF(COUNTRY_INFO!C16=0," ",COUNTRY_INFO!C16) -> Moungali | D16: =IF(AND(COUNTRY_INFO!$T$9:$T$1000="T3 (ALB/MBD)",COUNTRY_INFO!$U$9:$U$1000="T3 (ALB/MBD)"), "T3 (ALB/MBD)", " ") ->  | J16: 0 | N16: 0
A17: =IF(COUNTRY_INFO!A17=0," ",COUNTRY_INFO!A17) -> Congo | B17: =IF(COUNTRY_INFO!B17=0," ",COUNTRY_INFO!B17) -> Brazzaville | C17: =IF(COUNTRY_INFO!C17=0," ",COUNTRY_INFO!C17) -> Ouenzé | D17: =IF(AND(COUNTRY_INFO!$T$9:$T$1000="T3 (ALB/MBD)",COUNTRY_INFO!$U$9:$U$1000="T3 (ALB/MBD)"), "T3 (ALB/MBD)", " ") ->  | J17: 0 | N17: 0
A18: =IF(COUNTRY_INFO!A18=0," ",COUNTRY_INFO!A18) -> Congo | B18: =IF(COUNTRY_INFO!B18=0," ",COUNTRY_INFO!B18) -> Brazzaville | C18: =IF(COUNTRY_INFO!C18=0," ",COUNTRY_INFO!C18) -> Poto-Poto | D18: =IF(AND(COUNTRY_INFO!$T$9:$T$1000="T3 (ALB/MBD)",COUNTRY_INFO!$U$9:$U$1000="T3 (ALB/MBD)"), "T3 (ALB/MBD)", " ") ->  | J18: 0 | N18: 0
A19: =IF(COUNTRY_INFO!A19=0," ",COUNTRY_INFO!A19) -> Congo | B19: =IF(COUNTRY_INFO!B19=0," ",COUNTRY_INFO!B19) -> Brazzaville | C19: =IF(COUNTRY_INFO!C19=0," ",COUNTRY_INFO!C19) -> Talangaî | D19: =IF(AND(COUNTRY_INFO!$T$9:$T$1000="T3 (ALB/MBD)",COUNTRY_INFO!$U$9:$U$1000="T3 (ALB/MBD)"), "T3 (ALB/MBD)", " ") ->  | J19: 0 | N19: 0
A20: =IF(COUNTRY_INFO!A20=0," ",COUNTRY_INFO!A20) -> Congo | B20: =IF(COUNTRY_INFO!B20=0," ",COUNTRY_INFO!B20) -> Brazzaville | C20: =IF(COUNTRY_INFO!C20=0," ",COUNTRY_INFO!C20) -> Madibou | D20: =IF(AND(COUNTRY_INFO!$T$9:$T$1000="T3 (ALB/MBD)",COUNTRY_INFO!$U$9:$U$1000="T3 (ALB/MBD)"), "T3 (ALB/MBD)", " ") ->  | J20: 0 | N20: 0
A21: =IF(COUNTRY_INFO!A21=0," ",COUNTRY_INFO!A21) -> Congo | B21: =IF(COUNTRY_INFO!B21=0," ",COUNTRY_INFO!B21) -> Brazzaville | C21: =IF(COUNTRY_INFO!C21=0," ",COUNTRY_INFO!C21) -> Djiri | D21: =IF(AND(COUNTRY_INFO!$T$9:$T$1000="T3 (ALB/MBD)",COUNTRY_INFO!$U$9:$U$1000="T3 (ALB/MBD)"), "T3 (ALB/MBD)", " ") ->  | J21: 0 | N21: 0
A22: =IF(COUNTRY_INFO!A22=0," ",COUNTRY_INFO!A22) -> Congo | B22: =IF(COUNTRY_INFO!B22=0," ",COUNTRY_INFO!B22) -> Cuvette | C22: =IF(COUNTRY_INFO!C22=0," ",COUNTRY_INFO!C22) -> Mossaka Loukoléla | D22: =IF(AND(COUNTRY_INFO!$T$9:$T$1000="T3 (ALB/MBD)",COUNTRY_INFO!$U$9:$U$1000="T3 (ALB/MBD)"), "T3 (ALB/MBD)", " ") ->  | J22: 0 | N22: 0
A23: =IF(COUNTRY_INFO!A23=0," ",COUNTRY_INFO!A23) -> Congo | B23: =IF(COUNTRY_INFO!B23=0," ",COUNTRY_INFO!B23) -> Cuvette | C23: =IF(COUNTRY_INFO!C23=0," ",COUNTRY_INFO!C23) -> Owando | D23: =IF(AND(COUNTRY_INFO!$T$9:$T$1000="T3 (ALB/MBD)",COUNTRY_INFO!$U$9:$U$1000="T3 (ALB/MBD)"), "T3 (ALB/MBD)", " ") ->  | J23: 0 | N23: 0
A24: =IF(COUNTRY_INFO!A24=0," ",COUNTRY_INFO!A24) -> Congo | B24: =IF(COUNTRY_INFO!B24=0," ",COUNTRY_INFO!B24) -> Cuvette | C24: =IF(COUNTRY_INFO!C24=0," ",COUNTRY_INFO!C24) -> Oyo | D24: =IF(AND(COUNTRY_INFO!$T$9:$T$1000="T3 (ALB/MBD)",COUNTRY_INFO!$U$9:$U$1000="T3 (ALB/MBD)"), "T3 (ALB/MBD)", " ") ->  | J24: 0 | N24: 0
A25: =IF(COUNTRY_INFO!A25=0," ",COUNTRY_INFO!A25) -> Congo | B25: =IF(COUNTRY_INFO!B25=0," ",COUNTRY_INFO!B25) -> Cuvette-Ouest | C25: =IF(COUNTRY_INFO!C25=0," ",COUNTRY_INFO!C25) -> Etoumbi | D25: =IF(AND(COUNTRY_INFO!$T$9:$T$1000="T3 (ALB/MBD)",COUNTRY_INFO!$U$9:$U$1000="T3 (ALB/MBD)"), "T3 (ALB/MBD)", " ") ->  | J25: 0 | N25: 0
A26: =IF(COUNTRY_INFO!A26=0," ",COUNTRY_INFO!A26) -> Congo | B26: =IF(COUNTRY_INFO!B26=0," ",COUNTRY_INFO!B26) -> Cuvette-Ouest | C26: =IF(COUNTRY_INFO!C26=0," ",COUNTRY_INFO!C26) -> Ewo | D26: =IF(AND(COUNTRY_INFO!$T$9:$T$1000="T3 (ALB/MBD)",COUNTRY_INFO!$U$9:$U$1000="T3 (ALB/MBD)"), "T3 (ALB/MBD)", " ") ->  | J26: 0 | N26: 0
A27: =IF(COUNTRY_INFO!A27=0," ",COUNTRY_INFO!A27) -> Congo | B27: =IF(COUNTRY_INFO!B27=0," ",COUNTRY_INFO!B27) -> Kouilou | C27: =IF(COUNTRY_INFO!C27=0," ",COUNTRY_INFO!C27) -> Hinda-Mvouti | D27: =IF(AND(COUNTRY_INFO!$T$9:$T$1000="T3 (ALB/MBD)",COUNTRY_INFO!$U$9:$U$1000="T3 (ALB/MBD)"), "T3 (ALB/MBD)", " ") ->  | J27: 0 | N27: 0
A28: =IF(COUNTRY_INFO!A28=0," ",COUNTRY_INFO!A28) -> Congo | B28: =IF(COUNTRY_INFO!B28=0," ",COUNTRY_INFO!B28) -> Kouilou | C28: =IF(COUNTRY_INFO!C28=0," ",COUNTRY_INFO!C28) -> Madingo Kayes | D28: =IF(AND(COUNTRY_INFO!$T$9:$T$1000="T3 (ALB/MBD)",COUNTRY_INFO!$U$9:$U$1000="T3 (ALB/MBD)"), "T3 (ALB/MBD)", " ") ->  | J28: 0 | N28: 0
A29: =IF(COUNTRY_INFO!A29=0," ",COUNTRY_INFO!A29) -> Congo | B29: =IF(COUNTRY_INFO!B29=0," ",COUNTRY_INFO!B29) -> Lékoumou | C29: =IF(COUNTRY_INFO!C29=0," ",COUNTRY_INFO!C29) -> Sibiti | D29: =IF(AND(COUNTRY_INFO!$T$9:$T$1000="T3 (ALB/MBD)",COUNTRY_INFO!$U$9:$U$1000="T3 (ALB/MBD)"), "T3 (ALB/MBD)", " ") ->  | J29: 0 | N29: 0
A30: =IF(COUNTRY_INFO!A30=0," ",COUNTRY_INFO!A30) -> Congo | B30: =IF(COUNTRY_INFO!B30=0," ",COUNTRY_INFO!B30) -> Lékoumou | C30: =IF(COUNTRY_INFO!C30=0," ",COUNTRY_INFO!C30) -> Zanaga | D30: =IF(AND(COUNTRY_INFO!$T$9:$T$1000="T3 (ALB/MBD)",COUNTRY_INFO!$U$9:$U$1000="T3 (ALB/MBD)"), "T3 (ALB/MBD)", " ") ->  | J30: 0 | N30: 0
A31: =IF(COUNTRY_INFO!A31=0," ",COUNTRY_INFO!A31) -> Congo | B31: =IF(COUNTRY_INFO!B31=0," ",COUNTRY_INFO!B31) -> Likouala | C31: =IF(COUNTRY_INFO!C31=0," ",COUNTRY_INFO!C31) -> Bétou | D31: =IF(AND(COUNTRY_INFO!$T$9:$T$1000="T3 (ALB/MBD)",COUNTRY_INFO!$U$9:$U$1000="T3 (ALB/MBD)"), "T3 (ALB/MBD)", " ") ->  | J31: 0 | N31: 0
A32: =IF(COUNTRY_INFO!A32=0," ",COUNTRY_INFO!A32) -> Congo | B32: =IF(COUNTRY_INFO!B32=0," ",COUNTRY_INFO!B32) -> Likouala | C32: =IF(COUNTRY_INFO!C32=0," ",COUNTRY_INFO!C32) -> Impfondo | D32: =IF(AND(COUNTRY_INFO!$T$9:$T$1000="T3 (ALB/MBD)",COUNTRY_INFO!$U$9:$U$1000="T3 (ALB/MBD)"), "T3 (ALB/MBD)", " ") ->  | J32: 0 | N32: 0
A33: =IF(COUNTRY_INFO!A33=0," ",COUNTRY_INFO!A33) -> Congo | B33: =IF(COUNTRY_INFO!B33=0," ",COUNTRY_INFO!B33) -> Niari | C33: =IF(COUNTRY_INFO!C33=0," ",COUNTRY_INFO!C33) -> Dolisie | D33: T3 (ALB/MBD) | E33: ALB | F33: Sept-Oct | H33: 18811 | I33: 59569 | J33: 78380 | L33: 15362 | M33: 48648 | N33: 64010 | P33: 81.66498325 | Q33: 81.66663869 | R33: 81.66624139
A34: =IF(COUNTRY_INFO!A34=0," ",COUNTRY_INFO!A34) -> Congo | B34: =IF(COUNTRY_INFO!B34=0," ",COUNTRY_INFO!B34) -> Niari | C34: =IF(COUNTRY_INFO!C34=0," ",COUNTRY_INFO!C34) -> Kibangou | D34: T3 (ALB/MBD) | E34: ALB | F34: Sept-Oct | H34: 5339 | I34: 16905 | J34: 22244 | L34: 3681 | M34: 11657 | N34: 15338 | P34: 68.94549541 | Q34: 68.9559302 | R34: 68.95342564
A35: =IF(COUNTRY_INFO!A35=0," ",COUNTRY_INFO!A35) -> Congo | B35: =IF(COUNTRY_INFO!B35=0," ",COUNTRY_INFO!B35) -> Niari | C35: =IF(COUNTRY_INFO!C35=0," ",COUNTRY_INFO!C35) -> Mossendjo | D35: =IF(AND(COUNTRY_INFO!$T$9:$T$1000="T3 (ALB/MBD)",COUNTRY_INFO!$U$9:$U$1000="T3 (ALB/MBD)"), "T3 (ALB/MBD)", " ") ->  | J35: 0 | N35: 0
A36: =IF(COUNTRY_INFO!A36=0," ",COUNTRY_INFO!A36) -> Congo | B36: =IF(COUNTRY_INFO!B36=0," ",COUNTRY_INFO!B36) -> Plateaux | C36: =IF(COUNTRY_INFO!C36=0," ",COUNTRY_INFO!C36) -> Abala | D36: =IF(AND(COUNTRY_INFO!$T$9:$T$1000="T3 (ALB/MBD)",COUNTRY_INFO!$U$9:$U$1000="T3 (ALB/MBD)"), "T3 (ALB/MBD)", " ") ->  | J36: 0 | N36: 0
A37: =IF(COUNTRY_INFO!A37=0," ",COUNTRY_INFO!A37) -> Congo | B37: =IF(COUNTRY_INFO!B37=0," ",COUNTRY_INFO!B37) -> Plateaux | C37: =IF(COUNTRY_INFO!C37=0," ",COUNTRY_INFO!C37) -> Djambala-Lékana | D37: =IF(AND(COUNTRY_INFO!$T$9:$T$1000="T3 (ALB/MBD)",COUNTRY_INFO!$U$9:$U$1000="T3 (ALB/MBD)"), "T3 (ALB/MBD)", " ") ->  | J37: 0 | N37: 0
A38: =IF(COUNTRY_INFO!A38=0," ",COUNTRY_INFO!A38) -> Congo | B38: =IF(COUNTRY_INFO!B38=0," ",COUNTRY_INFO!B38) -> Plateaux | C38: =IF(COUNTRY_INFO!C38=0," ",COUNTRY_INFO!C38) -> Gamboma | D38: =IF(AND(COUNTRY_INFO!$T$9:$T$1000="T3 (ALB/MBD)",COUNTRY_INFO!$U$9:$U$1000="T3 (ALB/MBD)"), "T3 (ALB/MBD)", " ") ->  | J38: 0 | N38: 0
A39: =IF(COUNTRY_INFO!A39=0," ",COUNTRY_INFO!A39) -> Congo | B39: =IF(COUNTRY_INFO!B39=0," ",COUNTRY_INFO!B39) -> Pointe-Noire | C39: =IF(COUNTRY_INFO!C39=0," ",COUNTRY_INFO!C39) -> Ngoyo | D39: =IF(AND(COUNTRY_INFO!$T$9:$T$1000="T3 (ALB/MBD)",COUNTRY_INFO!$U$9:$U$1000="T3 (ALB/MBD)"), "T3 (ALB/MBD)", " ") ->  | J39: 0 | N39: 0
A40: =IF(COUNTRY_INFO!A40=0," ",COUNTRY_INFO!A40) -> Congo | B40: =IF(COUNTRY_INFO!B40=0," ",COUNTRY_INFO!B40) -> Pointe-Noire | C40: =IF(COUNTRY_INFO!C40=0," ",COUNTRY_INFO!C40) -> Mongo-Poukou | D40: =IF(AND(COUNTRY_INFO!$T$9:$T$1000="T3 (ALB/MBD)",COUNTRY_INFO!$U$9:$U$1000="T3 (ALB/MBD)"), "T3 (ALB/MBD)", " ") ->  | J40: 0 | N40: 0
A41: =IF(COUNTRY_INFO!A41=0," ",COUNTRY_INFO!A41) -> Congo | B41: =IF(COUNTRY_INFO!B41=0," ",COUNTRY_INFO!B41) -> Pointe-Noire | C41: =IF(COUNTRY_INFO!C41=0," ",COUNTRY_INFO!C41) -> Loandjili | D41: =IF(AND(COUNTRY_INFO!$T$9:$T$1000="T3 (ALB/MBD)",COUNTRY_INFO!$U$9:$U$1000="T3 (ALB/MBD)"), "T3 (ALB/MBD)", " ") ->  | J41: 0 | N41: 0
A42: =IF(COUNTRY_INFO!A42=0," ",COUNTRY_INFO!A42) -> Congo | B42: =IF(COUNTRY_INFO!B42=0," ",COUNTRY_INFO!B42) -> Pointe-Noire | C42: =IF(COUNTRY_INFO!C42=0," ",COUNTRY_INFO!C42) -> Lumumba | D42: =IF(AND(COUNTRY_INFO!$T$9:$T$1000="T3 (ALB/MBD)",COUNTRY_INFO!$U$9:$U$1000="T3 (ALB/MBD)"), "T3 (ALB/MBD)", " ") ->  | J42: 0 | N42: 0
A43: =IF(COUNTRY_INFO!A43=0," ",COUNTRY_INFO!A43) -> Congo | B43: =IF(COUNTRY_INFO!B43=0," ",COUNTRY_INFO!B43) -> Pointe-Noire | C43: =IF(COUNTRY_INFO!C43=0," ",COUNTRY_INFO!C43) -> Mvoumvou | D43: =IF(AND(COUNTRY_INFO!$T$9:$T$1000="T3 (ALB/MBD)",COUNTRY_INFO!$U$9:$U$1000="T3 (ALB/MBD)"), "T3 (ALB/MBD)", " ") ->  | J43: 0 | N43: 0
A44: =IF(COUNTRY_INFO!A44=0," ",COUNTRY_INFO!A44) -> Congo | B44: =IF(COUNTRY_INFO!B44=0," ",COUNTRY_INFO!B44) -> Pointe-Noire | C44: =IF(COUNTRY_INFO!C44=0," ",COUNTRY_INFO!C44) -> Tie-Tie | D44: =IF(AND(COUNTRY_INFO!$T$9:$T$1000="T3 (ALB/MBD)",COUNTRY_INFO!$U$9:$U$1000="T3 (ALB/MBD)"), "T3 (ALB/MBD)", " ") ->  | J44: 0 | N44: 0
A45: =IF(COUNTRY_INFO!A45=0," ",COUNTRY_INFO!A45) -> Congo | B45: =IF(COUNTRY_INFO!B45=0," ",COUNTRY_INFO!B45) -> Pool | C45: =IF(COUNTRY_INFO!C45=0," ",COUNTRY_INFO!C45) -> Goma tsétsé | D45: =IF(AND(COUNTRY_INFO!$T$9:$T$1000="T3 (ALB/MBD)",COUNTRY_INFO!$U$9:$U$1000="T3 (ALB/MBD)"), "T3 (ALB/MBD)", " ") ->  | J45: 0 | N45: 0
A46: =IF(COUNTRY_INFO!A46=0," ",COUNTRY_INFO!A46) -> Congo | B46: =IF(COUNTRY_INFO!B46=0," ",COUNTRY_INFO!B46) -> Pool | C46: =IF(COUNTRY_INFO!C46=0," ",COUNTRY_INFO!C46) -> Ignié | D46: T3 (ALB/MBD) | E46: ALB | F46: Sept-Oct | H46: 8166 | I46: 25860 | J46: 34026 | L46: 6544 | M46: 20722 | N46: 27266 | P46: 80.13715405 | Q46: 80.13147718 | R46: 80.13283959
A47: =IF(COUNTRY_INFO!A47=0," ",COUNTRY_INFO!A47) -> Congo | B47: =IF(COUNTRY_INFO!B47=0," ",COUNTRY_INFO!B47) -> Pool | C47: =IF(COUNTRY_INFO!C47=0," ",COUNTRY_INFO!C47) -> Kindamba | D47: =IF(AND(COUNTRY_INFO!$T$9:$T$1000="T3 (ALB/MBD)",COUNTRY_INFO!$U$9:$U$1000="T3 (ALB/MBD)"), "T3 (ALB/MBD)", " ") ->  | J47: 0 | N47: 0
A48: =IF(COUNTRY_INFO!A48=0," ",COUNTRY_INFO!A48) -> Congo | B48: =IF(COUNTRY_INFO!B48=0," ",COUNTRY_INFO!B48) -> Pool | C48: =IF(COUNTRY_INFO!C48=0," ",COUNTRY_INFO!C48) -> Kinkala-Boko | D48: =IF(AND(COUNTRY_INFO!$T$9:$T$1000="T3 (ALB/MBD)",COUNTRY_INFO!$U$9:$U$1000="T3 (ALB/MBD)"), "T3 (ALB/MBD)", " ") ->  | J48: 0 | N48: 0
A49: =IF(COUNTRY_INFO!A49=0," ",COUNTRY_INFO!A49) -> Congo | B49: =IF(COUNTRY_INFO!B49=0," ",COUNTRY_INFO!B49) -> Pool | C49: =IF(COUNTRY_INFO!C49=0," ",COUNTRY_INFO!C49) -> Mindouli | D49: =IF(AND(COUNTRY_INFO!$T$9:$T$1000="T3 (ALB/MBD)",COUNTRY_INFO!$U$9:$U$1000="T3 (ALB/MBD)"), "T3 (ALB/MBD)", " ") ->  | J49: 0 | N49: 0
A50: =IF(COUNTRY_INFO!A50=0," ",COUNTRY_INFO!A50) -> Congo | B50: =IF(COUNTRY_INFO!B50=0," ",COUNTRY_INFO!B50) -> Sangha | C50: =IF(COUNTRY_INFO!C50=0," ",COUNTRY_INFO!C50) -> Ouesso | D50: =IF(AND(COUNTRY_INFO!$T$9:$T$1000="T3 (ALB/MBD)",COUNTRY_INFO!$U$9:$U$1000="T3 (ALB/MBD)"), "T3 (ALB/MBD)", " ") ->  | J50: 0 | N50: 0
A51: =IF(COUNTRY_INFO!A51=0," ",COUNTRY_INFO!A51) -> Congo | B51: =IF(COUNTRY_INFO!B51=0," ",COUNTRY_INFO!B51) -> Sangha | C51: =IF(COUNTRY_INFO!C51=0," ",COUNTRY_INFO!C51) -> Sembé-Souanké | D51: =IF(AND(COUNTRY_INFO!$T$9:$T$1000="T3 (ALB/MBD)",COUNTRY_INFO!$U$9:$U$1000="T3 (ALB/MBD)"), "T3 (ALB/MBD)", " ") ->  | J51: 0 | N51: 0

Sheet DISTRICT
A1: Nombre d'individus traités
A2: Structure administrative, population traitée par groupe d'âge et sexe
A4: TOTAL | D4: =SUM(D$9:D$1000) -> 770373 | E4: =SUM(E$9:E$1000) -> 45216 | F4: =SUM(F$9:F$1000) -> 60865 | G4: =SUM(G$9:G$1000) -> 106081 | H4: =SUM(H$9:H$1000) -> 106081 | I4: =IF(D4>0, IF(H4/D4*100<>0, H4/D4*100, "-"),0) -> 13.7700828 | J4: =SUM(J$9:J$1000) -> 1668029 | K4: =SUM(K$9:K$1000) -> 211303 | L4: =SUM(L$9:L$1000) -> 266826 | M4: =SUM(M$9:M$1000) -> 509072 | N4: =SUM(N$9:N$1000) -> 490467 | O4: =IF(J4>0, IF(N4/J4*100<>0, N4/J4*100, "-"),0) -> 29.40398518 | P4: =SUM(P$9:P$1000) -> 711155 | Q4: =SUM(Q$9:Q$1000) -> 33693 | R4: =SUM(R$9:R$1000) -> 38010 | S4: =SUM(S$9:S$1000) -> 916785 | T4: =SUM(T$9:T$1000) -> 0 | V4: 249922 | X4: =SUM(X$9:X$1000) -> 249922 | Y4: =IF(P4>0, IF(X4/P4*100<>0, X4/P4*100, "-"),0) -> 35.14311226 | Z4: =SUM(Z$9:Z$1000) -> 183465.53 | AA4: 0 | AB4: 0 | AC4: 82269 | AD4: 53715.79 | AF4: 777 | AH4: 54492.79 | AI4: =IF(Z4>0, IF(AH4/Z4*100<>0, AH4/Z4*100, "-"),0) -> 29.70192275
A6: Structure administrative du pays | D6: Population nécessitant la CP pour FL | E6: Population traitée pour la filariose lymphatique | J6: Population nécessitant la CP pour ONCHO | K6: Population traitée pour l'onchocercose | P6: Population nécessitant la CP pour STH | Q6: Population traitée pour les géohelminthiases | Z6: Population nécessitant la CP pour SCH | AA6: Population traitée pour la schistosomiase | AP6: =SUM(AP9:AP1000) -> 89194.38864 | AQ6: 400048.4759 | AR6: 662733.1655 | AS6: 1058573.727 | AT6: =SUM(AT9:AT1000) -> 2210549.757 | AU6: =COUNTIF(AU9:AU1000,"Y") -> 23 | AV6: =SUM(AV9:AV1000) -> 0 | AW6: 780273 | AX6: 467949 | AY6: =SUM(AY9:AY1000) -> 1248222 | AZ6: 0 | BA6: 323661 | BB6: 387083 | BC6: 710744 | BD6: =IF(AT6<>0,BC6/AT6,0) -> 0.3215236381
A7: Pays | B7: Région/Département | C7: District | E7: Masculine | F7: Féminine | G7: Total traité | H7: Total traité ayant besoin de CP | I7: (%) | K7: Masculine | L7: Féminine | M7: Total traité | N7: Total traité ayant besoin de CP | O7: (%) | Q7: Masculine | R7: Féminine | S7: Total traité | T7: EAPréS traité ayant besoin de CP | U7: EAPréS (%) | V7: EAS traité ayant besoin de CP | W7: EAS (%) | X7: Total traité ayant besoin de CP | Y7: (%) | AA7: Masculine | AB7: Féminine | AC7: Total traité | AD7: EAS traité ayant besoin de CP | AE7: EAS (%) | AF7: Adultes traité ayant besoin de CP | AG7: Adultes (%) | AH7: Total traité ayant besoin de CP | AI7: (%) | AK7: LF | AL7: ONCHO | AM7: STH | AN7: SCH-SAC | AO7: SCH_Adults | AP7: <1 | AQ7: PreSAC | AR7: SAC | AS7: Adults | AT7: Total | AU7: Dis | AV7: PreSAC | AW7: SAC | AX7: Adults | AY7: Total | AZ7: PreSAC | BA7: SAC | BB7: Adults | BC7: Total | BD7: Coverage
A9: =IF(COUNTRY_INFO!A9=0," ",COUNTRY_INFO!A9) -> Congo | B9: =IF(COUNTRY_INFO!B9=0," ",COUNTRY_INFO!B9) -> Bouenza | C9: =IF(COUNTRY_INFO!C9=0," ",COUNTRY_INFO!C9) -> Loudima | D9: =COUNTRY_INFO!L9 -> 0 | G9: =MAX('MDA1'!M9,'MDA2'!M9) -> 0 | H9: =IF(AND(COUNTRY_INFO!H9>0,COUNTRY_INFO!H9<4),IF(D9>MAX('MDA1'!M9,'MDA2'!M9),MAX('MDA1'!M9,'MDA2'!M9),D9),0) -> 0 | I9: =IF(AND(COUNTRY_INFO!H9>0,COUNTRY_INFO!H9<4), IF(G9/D9*100<>0, IF(G9/D9*100>100,100,G9/D9*100), "-"),0) -> 0 | J9: =COUNTRY_INFO!M9 -> 142827 | K9: 18399 | L9: 20878 | M9: =MAX('MDA1'!M9,MAX('MDA3'!I9,'MDA3'!L9)+MAX('MDA3'!J9,'MDA3'!M9)) -> 39277 | N9: =IF(AND(COUNTRY_INFO!I9>0,COUNTRY_INFO!I9<4),IF(J9>MAX('MDA1'!M9,MAX('MDA3'!I9,'MDA3'!L9)+MAX('MDA3'!J9,'MDA3'!M9)),MAX('MDA1'!M9,MAX('MDA3'!I9,'MDA3'!L9)+MAX('MDA3'!J9,'MDA3'!M9)),J9),0) -> 39277 | O9: =IF(AND(COUNTRY_INFO!I9>0,COUNTRY_INFO!I9<4), IF(M9/J9*100<>0, IF(M9/J9*100>100,100,M9/J9*100), "-"),0) -> 27.49970244 | P9: =COUNTRY_INFO!N9 -> 57130 | S9: =SUM(MAX('MDA2'!J9, 'T1'!L9, MAX(T3_R1!K9, T3_R2!K9)), MAX('MDA1'!K9, 'MDA2'!K9, 'T1'!M9, MAX(T3_R1!L9, T3_R2!L9)), MAX('MDA1'!L9, 'MDA2'!L9, 'T1'!N9, MAX(T3_R1!M9, T3_R2!M9))) -> 22782 | T9: =IF(AND(COUNTRY_INFO!J9>1,COUNTRY_INFO!J9<4),IF(COUNTRY_INFO!E9>MAX('MDA2'!J9,'T1'!L9,MAX(T3_R1!K9,T3_R2!K9)),MAX('MDA2'!J9,'T1'!L9,MAX(T3_R1!K9,T3_R2!K9)),COUNTRY_INFO!E9),0) -> 0 | U9: =IF(AND(COUNTRY_INFO!J9>1,COUNTRY_INFO!J9<4), IF(T9/COUNTRY_INFO!E9*100<>0, IF(T9/COUNTRY_INFO!E9*100>100,100,T9/COUNTRY_INFO!E9*100), "-"),0) -> - | V9: =IF(AND(COUNTRY_INFO!J9>1,COUNTRY_INFO!J9<4),IF(COUNTRY_INFO!F9>MAX('MDA1'!K9,'MDA2'!K9,'T1'!M9,MAX(T3_R1!L9,T3_R2!L9)),MAX('MDA1'!K9,'MDA2'!K9,'T1'!M9,MAX(T3_R1!L9,T3_R2!L9)),COUNTRY_INFO!F9),0) -> 22670 | W9: =IF(AND(COUNTRY_INFO!J9>1,COUNTRY_INFO!J9<4), IF(V9/COUNTRY_INFO!F9*100<>0, IF(V9/COUNTRY_INFO!F9*100>100,100,V9/COUNTRY_INFO!F9*100), "-"),0) -> 66.13571387 | X9: =SUM(T9,V9) -> 22670 | Y9: =IF(AND(COUNTRY_INFO!J9>1,COUNTRY_INFO!J9<4), IF(S9/P9*100<>0, IF(X9/P9*100>100,100,X9/P9*100), "-"),0) -> 39.68142832 | Z9: =COUNTRY_INFO!O9 -> 32935.6 | AC9: =MAX('T1'!L9,'T2'!J9)+MAX('T1'!M9,'T2'!K9)+MAX('T1'!N9,'T2'!L9) -> 22782 | AD9: =IF(COUNTRY_INFO!K9=1,IF(COUNTRY_INFO!F9*0.33>MAX('T1'!M9,'T2'!K9),MAX('T1'!M9,'T2'!K9),COUNTRY_INFO!F9*0.33),IF(COUNTRY_INFO!K9=2,IF(COUNTRY_INFO!F9*0.5>MAX('T1'!M9,'T2'!K9),MAX('T1'!M9,'T2'!K9),COUNTRY_INFO!F9*0.5),IF(COUNTRY_INFO!K9=3,IF(COUNTRY_INFO!F9>MAX('T1'!M9,'T2'!K9),MAX('T1'!M9,'T2'!K9),COUNTRY_INFO!F9),0))) -> 17139 | AE9: =IF(AND(COUNTRY_INFO!K9>0,COUNTRY_INFO!K9<4),IF(Z9>0,IF(COUNTRY_INFO!K9=1, AD9/(COUNTRY_INFO!F9*0.33)*100, IF(COUNTRY_INFO!K9=2, AD9/(COUNTRY_INFO!F9*0.5)*100, IF(COUNTRY_INFO!K9=3, AD9/COUNTRY_INFO!F9*100))),"-"),0) -> 100 | AF9: =IF(COUNTRY_INFO!K9=2,IF(COUNTRY_INFO!G9*0.2>MAX('T1'!N9,'T2'!L9),MAX('T1'!N9,'T2'!L9),COUNTRY_INFO!G9*0.2),IF(COUNTRY_INFO!K9=3,IF(COUNTRY_INFO!G9>MAX('T1'!N9,'T2'!L9),MAX('T1'!N9,'T2'!L9),COUNTRY_INFO!G9),0)) -> 112 | AG9: =IF(AND(COUNTRY_INFO!K9>0,COUNTRY_INFO!K9<4),IF(Z9>0,IF(COUNTRY_INFO!K9=1, 0, IF(COUNTRY_INFO!K9=2, AF9/(COUNTRY_INFO!G9*0.2)*100, IF(COUNTRY_INFO!K9=3, AF9/COUNTRY_INFO!G9*100))),"-"),0) -> 0.709013332 | AH9: =SUM(AD9,AF9) -> 17251 | AI9: =IF(AND(COUNTRY_INFO!K9>0,COUNTRY_INFO!K9<4), IF(AC9/Z9*100<>0, IF(AH9/Z9*100>100,100,AH9/Z9*100), "-"),0) -> 52.37797399 | AK9: =IF(AND(D9<>0, D9<>"Inconnu",D9<>"Interrompu",D9<>"Non requis"),D9/COUNTRY_INFO!D9, 0) -> 0 | AL9: =IF(AND(J9<>0,J9<>"Inconnu",J9<>"Interrompu",J9<>"Non requis"),J9/COUNTRY_INFO!D9, 0) -> 1 | AM9: =IF(AND(P9<>0,P9<>"Inconnu",P9<>"Non requis"),P9/(COUNTRY_INFO!E9+COUNTRY_INFO!F9), 0) -> 1 | AN9: =IF(AND(Z9<>0,Z9<>"Inconnu",Z9<>"Non requis"),IF(COUNTRY_INFO!K9=1,1,IF(COUNTRY_INFO!K9=2,0.5*COUNTRY_INFO!F9/(0.5*COUNTRY_INFO!F9+0.2*COUNTRY_INFO!G9),IF(COUNTRY_INFO!K9=3,COUNTRY_INFO!F9/(COUNTRY_INFO!F9+COUNTRY_INFO!G9)))),0) -> 0.5203791642 | AO9: =IF(AND(Z9<>0,Z9<>"Inconnu",Z9<>"Non requis"),IF(COUNTRY_INFO!K9=1,0,IF(COUNTRY_INFO!K9=2,0.2*COUNTRY_INFO!G9/(0.5*COUNTRY_INFO!F9+0.2*COUNTRY_INFO!G9),IF(COUNTRY_INFO!K9=3,COUNTRY_INFO!G9/(COUNTRY_INFO!F9+COUNTRY_INFO!G9)))),0) -> 0.4796208358 | AP9: =MAX(COUNTRY_INFO!D9*AK9*PROFILE!$G$7,COUNTRY_INFO!D9*AL9*PROFILE!$G$7) -> 6712.815764 | AQ9: =MAX(COUNTRY_INFO!D9*AK9*PROFILE!$G$8,COUNTRY_INFO!D9*AL9*PROFILE!$G$8,COUNTRY_INFO!D9*AM9*PROFILE!$G$8) -> 22852.3289 | AR9: =MAX(COUNTRY_INFO!D9*AK9*PROFILE!$G$9,COUNTRY_INFO!D9*AL9*PROFILE!$G$9,COUNTRY_INFO!D9*AM9*PROFILE!$G$9,IF(AND(DISTRICT!Z9<>"Inconnu",Z9<>"Non requis"),COUNTRY_INFO!O9*DISTRICT!AN9,0)) -> 34278.47746 | AS9: =MAX(COUNTRY_INFO!D9*AK9*PROFILE!$G$10,COUNTRY_INFO!D9*AL9*PROFILE!$G$10,IF(AND(DISTRICT!Z9<>"Inconnu",Z9<>"Non requis"),COUNTRY_INFO!O9*DISTRICT!AO9,0)) -> 78983.37788 | AT9: =SUM(AP9:AS9) -> 142827 | AU9: =IF(COUNTIFS(AK9:AN9,">0")=0,0, IF(COUNTIFS(AK9:AN9,">0")<=IF(AND(OR(D9>=0,D9="Non requis",D9="Inconnu",D9="Interrompu"),D9>0,H9>0),1,0)+IF(AND(OR(J9>=0,J9="Non requis",J9="Inconnu",J9="Interrompu"),J9>0,N9>0),1,0)+IF(AND(OR(P9>=0,P9="Non requis",P9="Inconnu"),P9>0,X9>0),1,0)+IF(AND(OR(Z9>=0,Z9="Non requis",Z9="Inconnu"),Z9>0,AH9>0),1,0),"Y",0)) -> Y | AV9: =MAX('MDA2'!J9,'T1'!L9,'T2'!J9,T3_R1!K9,T3_R2!K9) -> 0 | AW9: =MAX('MDA1'!K9,'MDA2'!K9,'MDA3'!I9,'MDA3'!L9,'T1'!M9,'T2'!K9,T3_R1!L9,T3_R2!L9) -> 22670 | AX9: =MAX('MDA1'!L9,'MDA2'!L9,'MDA3'!J9,'MDA3'!M9,'T1'!N9,'T2'!L9,T3_R1!M9,T3_R2!M9) -> 29851 | AY9: =SUM(AV9:AX9) -> 52521 | AZ9: =MAX('MDA2'!J9,T9) -> 0 | BA9: =MAX('MDA1'!K9,'MDA2'!K9,'MDA3'!I9,'MDA3'!L9,V9,AD9) -> 22670 | BB9: =MAX('MDA1'!L9,'MDA2'!L9,'MDA3'!J9,'MDA3'!M9,AF9) -> 29851 | BC9: =IF(AT9<SUM(AZ9:BB9), AT9,SUM(AZ9:BB9)) -> 52521 | BD9: =IF(AT9<>0,BC9/AT9*100,0) -> 36.77245899
A10: =IF(COUNTRY_INFO!A10=0," ",COUNTRY_INFO!A10) -> Congo | B10: =IF(COUNTRY_INFO!B10=0," ",COUNTRY_INFO!B10) -> Bouenza | C10: =IF(COUNTRY_INFO!C10=0," ",COUNTRY_INFO!C10) -> Loutété | D10: =COUNTRY_INFO!L10 -> 53848 | E10: 5051 | F10: 15995 | G10: =MAX('MDA1'!M10,'MDA2'!M10) -> 21046 | H10: =IF(AND(COUNTRY_INFO!H10>0,COUNTRY_INFO!H10<4),IF(D10>MAX('MDA1'!M10,'MDA2'!M10),MAX('MDA1'!M10,'MDA2'!M10),D10),0) -> 21046 | I10: =IF(AND(COUNTRY_INFO!H10>0,COUNTRY_INFO!H10<4), IF(G10/D10*100<>0, IF(G10/D10*100>100,100,G10/D10*100), "-"),0) -> 39.08408855 | J10: =COUNTRY_INFO!M10 -> 53848 | M10: =MAX('MDA1'!M10,MAX('MDA3'!I10,'MDA3'!L10)+MAX('MDA3'!J10,'MDA3'!M10)) -> 21046 | N10: =IF(AND(COUNTRY_INFO!I10>0,COUNTRY_INFO!I10<4),IF(J10>MAX('MDA1'!M10,MAX('MDA3'!I10,'MDA3'!L10)+MAX('MDA3'!J10,'MDA3'!M10)),MAX('MDA1'!M10,MAX('MDA3'!I10,'MDA3'!L10)+MAX('MDA3'!J10,'MDA3'!M10)),J10),0) -> 21046 | O10: =IF(AND(COUNTRY_INFO!I10>0,COUNTRY_INFO!I10<4), IF(M10/J10*100<>0, IF(M10/J10*100>100,100,M10/J10*100), "-"),0) -> 39.08408855 | P10: =COUNTRY_INFO!N10 -> 21540 | S10: =SUM(MAX('MDA2'!J10, 'T1'!L10, MAX(T3_R1!K10, T3_R2!K10)), MAX('MDA1'!K10, 'MDA2'!K10, 'T1'!M10, MAX(T3_R1!L10, T3_R2!L10)), MAX('MDA1'!L10, 'MDA2'!L10, 'T1'!N10, MAX(T3_R1!M10, T3_R2!M10))) -> 23386 | T10: =IF(AND(COUNTRY_INFO!J10>1,COUNTRY_INFO!J10<4),IF(COUNTRY_INFO!E10>MAX('MDA2'!J10,'T1'!L10,MAX(T3_R1!K10,T3_R2!K10)),MAX('MDA2'!J10,'T1'!L10,MAX(T3_R1!K10,T3_R2!K10)),COUNTRY_INFO!E10),0) -> 0 | U10: =IF(AND(COUNTRY_INFO!J10>1,COUNTRY_INFO!J10<4), IF(T10/COUNTRY_INFO!E10*100<>0, IF(T10/COUNTRY_INFO!E10*100>100,100,T10/COUNTRY_INFO!E10*100), "-"),0) -> - | V10: =IF(AND(COUNTRY_INFO!J10>1,COUNTRY_INFO!J10<4),IF(COUNTRY_INFO!F10>MAX('MDA1'!K10,'MDA2'!K10,'T1'!M10,MAX(T3_R1!L10,T3_R2!L10)),MAX('MDA1'!K10,'MDA2'!K10,'T1'!M10,MAX(T3_R1!L10,T3_R2!L10)),COUNTRY_INFO!F10),0) -> 7391 | W10: =IF(AND(COUNTRY_INFO!J10>1,COUNTRY_INFO!J10<4), IF(V10/COUNTRY_INFO!F10*100<>0, IF(V10/COUNTRY_INFO!F10*100>100,100,V10/COUNTRY_INFO!F10*100), "-"),0) -> 57.18817703 | X10: =SUM(T10,V10) -> 7391 | Y10: =IF(AND(COUNTRY_INFO!J10>1,COUNTRY_INFO!J10<4), IF(S10/P10*100<>0, IF(X10/P10*100>100,100,X10/P10*100), "-"),0) -> 34.31290622 | Z10: =COUNTRY_INFO!O10 -> 12417.6 | AC10: =MAX('T1'!L10,'T2'!J10)+MAX('T1'!M10,'T2'!K10)+MAX('T1'!N10,'T2'!L10) -> 7466 | AD10: =IF(COUNTRY_INFO!K10=1,IF(COUNTRY_INFO!F10*0.33>MAX('T1'!M10,'T2'!K10),MAX('T1'!M10,'T2'!K10),COUNTRY_INFO!F10*0.33),IF(COUNTRY_INFO!K10=2,IF(COUNTRY_INFO!F10*0.5>MAX('T1'!M10,'T2'!K10),MAX('T1'!M10,'T2'!K10),COUNTRY_INFO!F10*0.5),IF(COUNTRY_INFO!K10=3,IF(COUNTRY_INFO!F10>MAX('T1'!M10,'T2'!K10),MAX('T1'!M10,'T2'!K10),COUNTRY_INFO!F10),0))) -> 6462 | AE10: =IF(AND(COUNTRY_INFO!K10>0,COUNTRY_INFO!K10<4),IF(Z10>0,IF(COUNTRY_INFO!K10=1, AD10/(COUNTRY_INFO!F10*0.33)*100, IF(COUNTRY_INFO!K10=2, AD10/(COUNTRY_INFO!F10*0.5)*100, IF(COUNTRY_INFO!K10=3, AD10/COUNTRY_INFO!F10*100))),"-"),0) -> 100 | AF10: =IF(COUNTRY_INFO!K10=2,IF(COUNTRY_INFO!G10*0.2>MAX('T1'!N10,'T2'!L10),MAX('T1'!N10,'T2'!L10),COUNTRY_INFO!G10*0.2),IF(COUNTRY_INFO!K10=3,IF(COUNTRY_INFO!G10>MAX('T1'!N10,'T2'!L10),MAX('T1'!N10,'T2'!L10),COUNTRY_INFO!G10),0)) -> 75 | AG10: =IF(AND(COUNTRY_INFO!K10>0,COUNTRY_INFO!K10<4),IF(Z10>0,IF(COUNTRY_INFO!K10=1, 0, IF(COUNTRY_INFO!K10=2, AF10/(COUNTRY_INFO!G10*0.2)*100, IF(COUNTRY_INFO!K10=3, AF10/COUNTRY_INFO!G10*100))),"-"),0) -> 1.25931896 | AH10: =SUM(AD10,AF10) -> 6537 | AI10: =IF(AND(COUNTRY_INFO!K10>0,COUNTRY_INFO!K10<4), IF(AC10/Z10*100<>0, IF(AH10/Z10*100>100,100,AH10/Z10*100), "-"),0) -> 52.64302281 | AK10: =IF(AND(D10<>0, D10<>"Inconnu",D10<>"Interrompu",D10<>"Non requis"),D10/COUNTRY_INFO!D10, 0) -> 1 | AL10: =IF(AND(J10<>0,J10<>"Inconnu",J10<>"Interrompu",J10<>"Non requis"),J10/COUNTRY_INFO!D10, 0) -> 1 | AM10: =IF(AND(P10<>0,P10<>"Inconnu",P10<>"Non requis"),P10/(COUNTRY_INFO!E10+COUNTRY_INFO!F10), 0) -> 1 | AN10: =IF(AND(Z10<>0,Z10<>"Inconnu",Z10<>"Non requis"),IF(COUNTRY_INFO!K10=1,1,IF(COUNTRY_INFO!K10=2,0.5*COUNTRY_INFO!F10/(0.5*COUNTRY_INFO!F10+0.2*COUNTRY_INFO!G10),IF(COUNTRY_INFO!K10=3,COUNTRY_INFO!F10/(COUNTRY_INFO!F10+COUNTRY_INFO!G10)))),0) -> 0.5203904136 | AO10: =IF(AND(Z10<>0,Z10<>"Inconnu",Z10<>"Non requis"),IF(COUNTRY_INFO!K10=1,0,IF(COUNTRY_INFO!K10=2,0.2*COUNTRY_INFO!G10/(0.5*COUNTRY_INFO!F10+0.2*COUNTRY_INFO!G10),IF(COUNTRY_INFO!K10=3,COUNTRY_INFO!G10/(COUNTRY_INFO!F10+COUNTRY_INFO!G10)))),0) -> 0.4796095864 | AP10: =MAX(COUNTRY_INFO!D10*AK10*PROFILE!$G$7,COUNTRY_INFO!D10*AL10*PROFILE!$G$7) -> 2530.835929 | AQ10: =MAX(COUNTRY_INFO!D10*AK10*PROFILE!$G$8,COUNTRY_INFO!D10*AL10*PROFILE!$G$8,COUNTRY_INFO!D10*AM10*PROFILE!$G$8) -> 8615.683357 | AR10: =MAX(COUNTRY_INFO!D10*AK10*PROFILE!$G$9,COUNTRY_INFO!D10*AL10*PROFILE!$G$9,COUNTRY_INFO!D10*AM10*PROFILE!$G$9,IF(AND(DISTRICT!Z10<>"Inconnu",Z10<>"Non requis"),COUNTRY_INFO!O10*DISTRICT!AN10,0)) -> 12923.51904 | AS10: =MAX(COUNTRY_INFO!D10*AK10*PROFILE!$G$10,COUNTRY_INFO!D10*AL10*PROFILE!$G$10,IF(AND(DISTRICT!Z10<>"Inconnu",Z10<>"Non requis"),COUNTRY_INFO!O10*DISTRICT!AO10,0)) -> 29777.96167 | AT10: =SUM(AP10:AS10) -> 53848 | AU10: Y | AV10: =MAX('MDA2'!J10,'T1'!L10,'T2'!J10,T3_R1!K10,T3_R2!K10) -> 0 | AW10: =MAX('MDA1'!K10,'MDA2'!K10,'MDA3'!I10,'MDA3'!L10,'T1'!M9,'T2'!K10,T3_R1!L10,T3_R2!L10) -> 22670 | AX10: =MAX('MDA1'!L10,'MDA2'!L10,'MDA3'!J10,'MDA3'!M10,'T1'!N9,'T2'!L10,T3_R1!M10,T3_R2!M10) -> 15995 | AY10: 38665 | AZ10: =MAX('MDA2'!J10,T10) -> 0 | BA10: =MAX('MDA1'!K10,'MDA2'!K10,'MDA3'!I10,'MDA3'!L10,V10,AD10) -> 7391 | BB10: =MAX('MDA1'!L10,'MDA2'!L10,'MDA3'!J10,'MDA3'!M10,AF10) -> 15995 | BC10: 23386 | BD10: 43.42965384
A11: =IF(COUNTRY_INFO!A11=0," ",COUNTRY_INFO!A11) -> Congo | B11: =IF(COUNTRY_INFO!B11=0," ",COUNTRY_INFO!B11) -> Bouenza | C11: =IF(COUNTRY_INFO!C11=0," ",COUNTRY_INFO!C11) -> Madingou | D11: =COUNTRY_INFO!L11 -> 106017 | E11: 20457 | F11: 23668 | G11: =MAX('MDA1'!M11,'MDA2'!M11) -> 44125 | H11: =IF(AND(COUNTRY_INFO!H11>0,COUNTRY_INFO!H11<4),IF(D11>MAX('MDA1'!M11,'MDA2'!M11),MAX('MDA1'!M11,'MDA2'!M11),D11),0) -> 44125 | I11: =IF(AND(COUNTRY_INFO!H11>0,COUNTRY_INFO!H11<4), IF(G11/D11*100<>0, IF(G11/D11*100>100,100,G11/D11*100), "-"),0) -> 41.62068348 | J11: =COUNTRY_INFO!M11 -> 106017 | K11: 20457 | L11: 23668 | M11: =MAX('MDA1'!M11,MAX('MDA3'!I11,'MDA3'!L11)+MAX('MDA3'!J11,'MDA3'!M11)) -> 44125 | N11: =IF(AND(COUNTRY_INFO!I11>0,COUNTRY_INFO!I11<4),IF(J11>MAX('MDA1'!M11,MAX('MDA3'!I11,'MDA3'!L11)+MAX('MDA3'!J11,'MDA3'!M11)),MAX('MDA1'!M11,MAX('MDA3'!I11,'MDA3'!L11)+MAX('MDA3'!J11,'MDA3'!M11)),J11),0) -> 44125 | O11: =IF(AND(COUNTRY_INFO!I11>0,COUNTRY_INFO!I11<4), IF(M11/J11*100<>0, IF(M11/J11*100>100,100,M11/J11*100), "-"),0) -> 41.62068348 | P11: =COUNTRY_INFO!N11 -> 42407 | Q11: 20457 | R11: 23668 | S11: =SUM(MAX('MDA2'!J11, 'T1'!L11, MAX(T3_R1!K11, T3_R2!K11)), MAX('MDA1'!K11, 'MDA2'!K11, 'T1'!M10, MAX(T3_R1!L11, T3_R2!L11)), MAX('MDA1'!L11, 'MDA2'!L11, 'T1'!N10, MAX(T3_R1!M11, T3_R2!M11))) -> 44125 | T11: =IF(AND(COUNTRY_INFO!J11>1,COUNTRY_INFO!J11<4),IF(COUNTRY_INFO!E11>MAX('MDA2'!J11,'T1'!L11,MAX(T3_R1!K11,T3_R2!K11)),MAX('MDA2'!J11,'T1'!L11,MAX(T3_R1!K11,T3_R2!K11)),COUNTRY_INFO!E11),0) -> 0 | U11: =IF(AND(COUNTRY_INFO!J11>1,COUNTRY_INFO!J11<4), IF(T11/COUNTRY_INFO!E11*100<>0, IF(T11/COUNTRY_INFO!E11*100>100,100,T11/COUNTRY_INFO!E11*100), "-"),0) -> - | V11: =IF(AND(COUNTRY_INFO!J11>1,COUNTRY_INFO!J11<4),IF(COUNTRY_INFO!F11>MAX('MDA1'!K11,'MDA2'!K11,'T1'!M10,MAX(T3_R1!L11,T3_R2!L11)),MAX('MDA1'!K11,'MDA2'!K11,'T1'!M10,MAX(T3_R1!L11,T3_R2!L11)),COUNTRY_INFO!F11),0) -> 10590 | W11: =IF(AND(COUNTRY_INFO!J11>1,COUNTRY_INFO!J11<4), IF(V11/COUNTRY_INFO!F11*100<>0, IF(V11/COUNTRY_INFO!F11*100>100,100,V11/COUNTRY_INFO!F11*100), "-"),0) -> 41.62081434 | X11: 10590 | Y11: =IF(AND(COUNTRY_INFO!J11>1,COUNTRY_INFO!J11<4), IF(S11/P11*100<>0, IF(X11/P11*100>100,100,X11/P11*100), "-"),0) -> 24.97229231 | Z11: =COUNTRY_INFO!O11 -> 0 | AC11: =MAX('T1'!L11,'T2'!J11)+MAX('T1'!M10,'T2'!K11)+MAX('T1'!N10,'T2'!L11) -> 7466 | AD11: =IF(COUNTRY_INFO!K11=1,IF(COUNTRY_INFO!F11*0.33>MAX('T1'!M10,'T2'!K11),MAX('T1'!M10,'T2'!K11),COUNTRY_INFO!F11*0.33),IF(COUNTRY_INFO!K11=2,IF(COUNTRY_INFO!F11*0.5>MAX('T1'!M10,'T2'!K11),MAX('T1'!M10,'T2'!K11),COUNTRY_INFO!F11*0.5),IF(COUNTRY_INFO!K11=3,IF(COUNTRY_INFO!F11>MAX('T1'!M10,'T2'!K11),MAX('T1'!M10,'T2'!K11),COUNTRY_INFO!F11),0))) -> 0 | AE11: =IF(AND(COUNTRY_INFO!K11>0,COUNTRY_INFO!K11<4),IF(Z11>0,IF(COUNTRY_INFO!K11=1, AD11/(COUNTRY_INFO!F11*0.33)*100, IF(COUNTRY_INFO!K11=2, AD11/(COUNTRY_INFO!F11*0.5)*100, IF(COUNTRY_INFO!K11=3, AD11/COUNTRY_INFO!F11*100))),"-"),0) -> 0 | AF11: =IF(COUNTRY_INFO!K11=2,IF(COUNTRY_INFO!G11*0.2>MAX('T1'!N10,'T2'!L11),MAX('T1'!N10,'T2'!L11),COUNTRY_INFO!G11*0.2),IF(COUNTRY_INFO!K11=3,IF(COUNTRY_INFO!G11>MAX('T1'!N10,'T2'!L11),MAX('T1'!N10,'T2'!L11),COUNTRY_INFO!G11),0)) -> 0 | AG11: =IF(AND(COUNTRY_INFO!K11>0,COUNTRY_INFO!K11<4),IF(Z11>0,IF(COUNTRY_INFO!K11=1, 0, IF(COUNTRY_INFO!K11=2, AF11/(COUNTRY_INFO!G11*0.2)*100, IF(COUNTRY_INFO!K11=3, AF11/COUNTRY_INFO!G11*100))),"-"),0) -> 0 | AH11: 0 | AI11: =IF(AND(COUNTRY_INFO!K11>0,COUNTRY_INFO!K11<4), IF(AC11/Z11*100<>0, IF(AH11/Z11*100>100,100,AH11/Z11*100), "-"),0) -> 0 | AK11: =IF(AND(D11<>0, D11<>"Inconnu",D11<>"Interrompu",D11<>"Non requis"),D11/COUNTRY_INFO!D11, 0) -> 1 | AL11: =IF(AND(J11<>0,J11<>"Inconnu",J11<>"Interrompu",J11<>"Non requis"),J11/COUNTRY_INFO!D11, 0) -> 1 | AM11: =IF(AND(P11<>0,P11<>"Inconnu",P11<>"Non requis"),P11/(COUNTRY_INFO!E11+COUNTRY_INFO!F11), 0) -> 1 | AN11: =IF(AND(Z11<>0,Z11<>"Inconnu",Z11<>"Non requis"),IF(COUNTRY_INFO!K11=1,1,IF(COUNTRY_INFO!K11=2,0.5*COUNTRY_INFO!F11/(0.5*COUNTRY_INFO!F11+0.2*COUNTRY_INFO!G11),IF(COUNTRY_INFO!K11=3,COUNTRY_INFO!F11/(COUNTRY_INFO!F11+COUNTRY_INFO!G11)))),0) -> 0 | AO11: =IF(AND(Z11<>0,Z11<>"Inconnu",Z11<>"Non requis"),IF(COUNTRY_INFO!K11=1,0,IF(COUNTRY_INFO!K11=2,0.2*COUNTRY_INFO!G11/(0.5*COUNTRY_INFO!F11+0.2*COUNTRY_INFO!G11),IF(COUNTRY_INFO!K11=3,COUNTRY_INFO!G11/(COUNTRY_INFO!F11+COUNTRY_INFO!G11)))),0) -> 0 | AP11: =MAX(COUNTRY_INFO!D11*AK11*PROFILE!$G$7,COUNTRY_INFO!D11*AL11*PROFILE!$G$7) -> 4982.759484 | AQ11: =MAX(COUNTRY_INFO!D11*AK11*PROFILE!$G$8,COUNTRY_INFO!D11*AL11*PROFILE!$G$8,COUNTRY_INFO!D11*AM11*PROFILE!$G$8) -> 16962.72661 | AR11: =MAX(COUNTRY_INFO!D11*AK11*PROFILE!$G$9,COUNTRY_INFO!D11*AL11*PROFILE!$G$9,COUNTRY_INFO!D11*AM11*PROFILE!$G$9,IF(AND(DISTRICT!Z11<>"Inconnu",Z11<>"Non requis"),COUNTRY_INFO!O11*DISTRICT!AN11,0)) -> 25444.07811 | AS11: =MAX(COUNTRY_INFO!D11*AK11*PROFILE!$G$10,COUNTRY_INFO!D11*AL11*PROFILE!$G$10,IF(AND(DISTRICT!Z11<>"Inconnu",Z11<>"Non requis"),COUNTRY_INFO!O11*DISTRICT!AO11,0)) -> 58627.43579 | AT11: 106017 | AU11: Y | AV11: =MAX('MDA2'!J11,'T1'!L11,'T2'!J11,T3_R1!K11,T3_R2!K11) -> 0 | AW11: =MAX('MDA1'!K11,'MDA2'!K11,'MDA3'!I11,'MDA3'!L11,'T1'!M10,'T2'!K11,T3_R1!L11,T3_R2!L11) -> 10590 | AX11: =MAX('MDA1'!L11,'MDA2'!L11,'MDA3'!J11,'MDA3'!M11,'T1'!N10,'T2'!L11,T3_R1!M11,T3_R2!M11) -> 33535 | AY11: =SUM(AV11:AX11) -> 44125 | AZ11: =MAX('MDA2'!J11,T11) -> 0 | BA11: =MAX('MDA1'!K11,'MDA2'!K11,'MDA3'!I11,'MDA3'!L11,V11,AD11) -> 10590 | BB11: =MAX('MDA1'!L11,'MDA2'!L11,'MDA3'!J11,'MDA3'!M11,AF11) -> 33535 | BC11: 44125 | BD11: 41.62068348
A12: =IF(COUNTRY_INFO!A12=0," ",COUNTRY_INFO!A12) -> Congo | B12: =IF(COUNTRY_INFO!B12=0," ",COUNTRY_INFO!B12) -> Bouenza | C12: =IF(COUNTRY_INFO!C12=0," ",COUNTRY_INFO!C12) -> Mouyondzi | D12: =COUNTRY_INFO!L12 -> 72971 | E12: 13236 | F12: 14342 | G12: =MAX('MDA1'!M12,'MDA2'!M12) -> 27578 | H12: =IF(AND(COUNTRY_INFO!H12>0,COUNTRY_INFO!H12<4),IF(D12>MAX('MDA1'!M12,'MDA2'!M12),MAX('MDA1'!M12,'MDA2'!M12),D12),0) -> 27578 | I12: =IF(AND(COUNTRY_INFO!H12>0,COUNTRY_INFO!H12<4), IF(G12/D12*100<>0, IF(G12/D12*100>100,100,G12/D12*100), "-"),0) -> 37.79309589 | J12: =COUNTRY_INFO!M12 -> 72971 | K12: 13236 | L12: 14342 | M12: =MAX('MDA1'!M12,MAX('MDA3'!I12,'MDA3'!L12)+MAX('MDA3'!J12,'MDA3'!M12)) -> 27578 | N12: =IF(AND(COUNTRY_INFO!I12>0,COUNTRY_INFO!I12<4),IF(J12>MAX('MDA1'!M12,MAX('MDA3'!I12,'MDA3'!L12)+MAX('MDA3'!J12,'MDA3'!M12)),MAX('MDA1'!M12,MAX('MDA3'!I12,'MDA3'!L12)+MAX('MDA3'!J12,'MDA3'!M12)),J12),0) -> 27578 | O12: =IF(AND(COUNTRY_INFO!I12>0,COUNTRY_INFO!I12<4), IF(M12/J12*100<>0, IF(M12/J12*100>100,100,M12/J12*100), "-"),0) -> 37.79309589 | P12: =COUNTRY_INFO!N12 -> 29188 | Q12: 13236 | R12: 14342 | S12: =SUM(MAX('MDA2'!J12, 'T1'!L12, MAX(T3_R1!K12, T3_R2!K12)), MAX('MDA1'!K12, 'MDA2'!K12, 'T1'!M12, MAX(T3_R1!L12, T3_R2!L12)), MAX('MDA1'!L12, 'MDA2'!L12, 'T1'!N12, MAX(T3_R1!M12, T3_R2!M12))) -> 31680 | T12: =IF(AND(COUNTRY_INFO!J12>1,COUNTRY_INFO!J12<4),IF(COUNTRY_INFO!E12>MAX('MDA2'!J12,'T1'!L12,MAX(T3_R1!K12,T3_R2!K12)),MAX('MDA2'!J12,'T1'!L12,MAX(T3_R1!K12,T3_R2!K12)),COUNTRY_INFO!E12),0) -> 0 | U12: =IF(AND(COUNTRY_INFO!J12>1,COUNTRY_INFO!J12<4), IF(T12/COUNTRY_INFO!E12*100<>0, IF(T12/COUNTRY_INFO!E12*100>100,100,T12/COUNTRY_INFO!E12*100), "-"),0) -> - | V12: =IF(AND(COUNTRY_INFO!J12>1,COUNTRY_INFO!J12<4),IF(COUNTRY_INFO!F12>MAX('MDA1'!K12,'MDA2'!K12,'T1'!M12,MAX(T3_R1!L12,T3_R2!L12)),MAX('MDA1'!K12,'MDA2'!K12,'T1'!M12,MAX(T3_R1!L12,T3_R2!L12)),COUNTRY_INFO!F12),0) -> 10721 | W12: =IF(AND(COUNTRY_INFO!J12>1,COUNTRY_INFO!J12<4), IF(V12/COUNTRY_INFO!F12*100<>0, IF(V12/COUNTRY_INFO!F12*100>100,100,V12/COUNTRY_INFO!F12*100), "-"),0) -> 61.21738137 | X12: 10721 | Y12: =IF(AND(COUNTRY_INFO!J12>1,COUNTRY_INFO!J12<4), IF(S12/P12*100<>0, IF(X12/P12*100>100,100,X12/P12*100), "-"),0) -> 36.73084829 | Z12: =COUNTRY_INFO!O12 -> 5779.29 | AC12: =MAX('T1'!L12,'T2'!J12)+MAX('T1'!M12,'T2'!K12)+MAX('T1'!N12,'T2'!L12) -> 10794 | AD12: =IF(COUNTRY_INFO!K12=1,IF(COUNTRY_INFO!F12*0.33>MAX('T1'!M12,'T2'!K12),MAX('T1'!M12,'T2'!K12),COUNTRY_INFO!F12*0.33),IF(COUNTRY_INFO!K12=2,IF(COUNTRY_INFO!F12*0.5>MAX('T1'!M12,'T2'!K12),MAX('T1'!M12,'T2'!K12),COUNTRY_INFO!F12*0.5),IF(COUNTRY_INFO!K12=3,IF(COUNTRY_INFO!F12>MAX('T1'!M12,'T2'!K12),MAX('T1'!M12,'T2'!K12),COUNTRY_INFO!F12),0))) -> 5779.29 | AE12: =IF(AND(COUNTRY_INFO!K12>0,COUNTRY_INFO!K12<4),IF(Z12>0,IF(COUNTRY_INFO!K12=1, AD12/(COUNTRY_INFO!F12*0.33)*100, IF(COUNTRY_INFO!K12=2, AD12/(COUNTRY_INFO!F12*0.5)*100, IF(COUNTRY_INFO!K12=3, AD12/COUNTRY_INFO!F12*100))),"-"),0) -> 100 | AF12: =IF(COUNTRY_INFO!K12=2,IF(COUNTRY_INFO!G12*0.2>MAX('T1'!N12,'T2'!L12),MAX('T1'!N12,'T2'!L12),COUNTRY_INFO!G12*0.2),IF(COUNTRY_INFO!K12=3,IF(COUNTRY_INFO!G12>MAX('T1'!N12,'T2'!L12),MAX('T1'!N12,'T2'!L12),COUNTRY_INFO!G12),0)) -> 0 | AG12: =IF(AND(COUNTRY_INFO!K12>0,COUNTRY_INFO!K12<4),IF(Z12>0,IF(COUNTRY_INFO!K12=1, 0, IF(COUNTRY_INFO!K12=2, AF12/(COUNTRY_INFO!G12*0.2)*100, IF(COUNTRY_INFO!K12=3, AF12/COUNTRY_INFO!G12*100))),"-"),0) -> 0 | AH12: 5779.29 | AI12: =IF(AND(COUNTRY_INFO!K12>0,COUNTRY_INFO!K12<4), IF(AC12/Z12*100<>0, IF(AH12/Z12*100>100,100,AH12/Z12*100), "-"),0) -> 100 | AK12: =IF(AND(D12<>0, D12<>"Inconnu",D12<>"Interrompu",D12<>"Non requis"),D12/COUNTRY_INFO!D12, 0) -> 1 | AL12: =IF(AND(J12<>0,J12<>"Inconnu",J12<>"Interrompu",J12<>"Non requis"),J12/COUNTRY_INFO!D12, 0) -> 1 | AM12: =IF(AND(P12<>0,P12<>"Inconnu",P12<>"Non requis"),P12/(COUNTRY_INFO!E12+COUNTRY_INFO!F12), 0) -> 1 | AN12: =IF(AND(Z12<>0,Z12<>"Inconnu",Z12<>"Non requis"),IF(COUNTRY_INFO!K12=1,1,IF(COUNTRY_INFO!K12=2,0.5*COUNTRY_INFO!F12/(0.5*COUNTRY_INFO!F12+0.2*COUNTRY_INFO!G12),IF(COUNTRY_INFO!K12=3,COUNTRY_INFO!F12/(COUNTRY_INFO!F12+COUNTRY_INFO!G12)))),0) -> 1 | AO12: =IF(AND(Z12<>0,Z12<>"Inconnu",Z12<>"Non requis"),IF(COUNTRY_INFO!K12=1,0,IF(COUNTRY_INFO!K12=2,0.2*COUNTRY_INFO!G12/(0.5*COUNTRY_INFO!F12+0.2*COUNTRY_INFO!G12),IF(COUNTRY_INFO!K12=3,COUNTRY_INFO!G12/(COUNTRY_INFO!F12+COUNTRY_INFO!G12)))),0) -> 0 | AP12: =MAX(COUNTRY_INFO!D12*AK12*PROFILE!$G$7,COUNTRY_INFO!D12*AL12*PROFILE!$G$7) -> 3429.609801 | AQ12: =MAX(COUNTRY_INFO!D12*AK12*PROFILE!$G$8,COUNTRY_INFO!D12*AL12*PROFILE!$G$8,COUNTRY_INFO!D12*AM12*PROFILE!$G$8) -> 11675.36455 | AR12: =MAX(COUNTRY_INFO!D12*AK12*PROFILE!$G$9,COUNTRY_INFO!D12*AL12*PROFILE!$G$9,COUNTRY_INFO!D12*AM12*PROFILE!$G$9,IF(AND(DISTRICT!Z12<>"Inconnu",Z12<>"Non requis"),COUNTRY_INFO!O12*DISTRICT!AN12,0)) -> 17513.0387 | AS12: =MAX(COUNTRY_INFO!D12*AK12*PROFILE!$G$10,COUNTRY_INFO!D12*AL12*PROFILE!$G$10,IF(AND(DISTRICT!Z12<>"Inconnu",Z12<>"Non requis"),COUNTRY_INFO!O12*DISTRICT!AO12,0)) -> 40352.98695 | AT12: 72971 | AU12: Y | AV12: =MAX('MDA2'!J12,'T1'!L12,'T2'!J12,T3_R1!K12,T3_R2!K12) -> 0 | AW12: =MAX('MDA1'!K12,'MDA2'!K12,'MDA3'!I12,'MDA3'!L12,'T1'!M12,'T2'!K12,T3_R1!L12,T3_R2!L12) -> 10721 | AX12: =MAX('MDA1'!L12,'MDA2'!L12,'MDA3'!J12,'MDA3'!M12,'T1'!N12,'T2'!L12,T3_R1!M12,T3_R2!M12) -> 20959 | AY12: 31680 | AZ12: =MAX('MDA2'!J12,T12) -> 0 | BA12: =MAX('MDA1'!K12,'MDA2'!K12,'MDA3'!I12,'MDA3'!L12,V12,AD12) -> 10721 | BB12: =MAX('MDA1'!L12,'MDA2'!L12,'MDA3'!J12,'MDA3'!M12,AF12) -> 20959 | BC12: 31680 | BD12: 43.41450713
A13: =IF(COUNTRY_INFO!A13=0," ",COUNTRY_INFO!A13) -> Congo | B13: =IF(COUNTRY_INFO!B13=0," ",COUNTRY_INFO!B13) -> Brazzaville | C13: =IF(COUNTRY_INFO!C13=0," ",COUNTRY_INFO!C13) -> Bacongo | D13: =COUNTRY_INFO!L13 -> 0 | G13: =MAX('MDA1'!M13,'MDA2'!M13) -> 0 | H13: =IF(AND(COUNTRY_INFO!H13>0,COUNTRY_INFO!H13<4),IF(D13>MAX('MDA1'!M13,'MDA2'!M13),MAX('MDA1'!M13,'MDA2'!M13),D13),0) -> 0 | I13: =IF(AND(COUNTRY_INFO!H13>0,COUNTRY_INFO!H13<4), IF(G13/D13*100<>0, IF(G13/D13*100>100,100,G13/D13*100), "-"),0) -> 0 | J13: =COUNTRY_INFO!M13 -> 120188 | K13: 26874 | L13: 57803 | M13: =MAX('MDA1'!M13,MAX('MDA3'!I13,'MDA3'!L13)+MAX('MDA3'!J13,'MDA3'!M13)) -> 84677 | N13: =IF(AND(COUNTRY_INFO!I13>0,COUNTRY_INFO!I13<4),IF(J13>MAX('MDA1'!M13,MAX('MDA3'!I13,'MDA3'!L13)+MAX('MDA3'!J13,'MDA3'!M13)),MAX('MDA1'!M13,MAX('MDA3'!I13,'MDA3'!L13)+MAX('MDA3'!J13,'MDA3'!M13)),J13),0) -> 84677 | O13: =IF(AND(COUNTRY_INFO!I13>0,COUNTRY_INFO!I13<4), IF(M13/J13*100<>0, IF(M13/J13*100>100,100,M13/J13*100), "-"),0) -> 70.45378906 | P13: =COUNTRY_INFO!N13 -> 0 | S13: =SUM(MAX('MDA2'!J13, 'T1'!L13, MAX(T3_R1!K13, T3_R2!K13)), MAX('MDA1'!K13, 'MDA2'!K13, 'T1'!M13, MAX(T3_R1!L13, T3_R2!L13)), MAX('MDA1'!L13, 'MDA2'!L13, 'T1'!N13, MAX(T3_R1!M13, T3_R2!M13))) -> 10698 | T13: =IF(AND(COUNTRY_INFO!J13>1,COUNTRY_INFO!J13<4),IF(COUNTRY_INFO!E13>MAX('MDA2'!J13,'T1'!L13,MAX(T3_R1!K13,T3_R2!K13)),MAX('MDA2'!J13,'T1'!L13,MAX(T3_R1!K13,T3_R2!K13)),COUNTRY_INFO!E13),0) -> 0 | U13: =IF(AND(COUNTRY_INFO!J13>1,COUNTRY_INFO!J13<4), IF(T13/COUNTRY_INFO!E13*100<>0, IF(T13/COUNTRY_INFO!E13*100>100,100,T13/COUNTRY_INFO!E13*100), "-"),0) -> 0 | V13: =IF(AND(COUNTRY_INFO!J13>1,COUNTRY_INFO!J13<4),IF(COUNTRY_INFO!F13>MAX('MDA1'!K13,'MDA2'!K13,'T1'!M13,MAX(T3_R1!L13,T3_R2!L13)),MAX('MDA1'!K13,'MDA2'!K13,'T1'!M13,MAX(T3_R1!L13,T3_R2!L13)),COUNTRY_INFO!F13),0) -> 0 | W13: =IF(AND(COUNTRY_INFO!J13>1,COUNTRY_INFO!J13<4), IF(V13/COUNTRY_INFO!F13*100<>0, IF(V13/COUNTRY_INFO!F13*100>100,100,V13/COUNTRY_INFO!F13*100), "-"),0) -> 0 | X13: 0 | Y13: =IF(AND(COUNTRY_INFO!J13>1,COUNTRY_INFO!J13<4), IF(S13/P13*100<>0, IF(X13/P13*100>100,100,X13/P13*100), "-"),0) -> 0 | Z13: =COUNTRY_INFO!O13 -> 9518.85 | AC13: =MAX('T1'!L13,'T2'!J13)+MAX('T1'!M13,'T2'!K13)+MAX('T1'!N13,'T2'!L13) -> 0 | AD13: =IF(COUNTRY_INFO!K13=1,IF(COUNTRY_INFO!F13*0.33>MAX('T1'!M13,'T2'!K13),MAX('T1'!M13,'T2'!K13),COUNTRY_INFO!F13*0.33),IF(COUNTRY_INFO!K13=2,IF(COUNTRY_INFO!F13*0.5>MAX('T1'!M13,'T2'!K13),MAX('T1'!M13,'T2'!K13),COUNTRY_INFO!F13*0.5),IF(COUNTRY_INFO!K13=3,IF(COUNTRY_INFO!F13>MAX('T1'!M13,'T2'!K13),MAX('T1'!M13,'T2'!K13),COUNTRY_INFO!F13),0))) -> 0 | AE13: =IF(AND(COUNTRY_INFO!K13>0,COUNTRY_INFO!K13<4),IF(Z13>0,IF(COUNTRY_INFO!K13=1, AD13/(COUNTRY_INFO!F13*0.33)*100, IF(COUNTRY_INFO!K13=2, AD13/(COUNTRY_INFO!F13*0.5)*100, IF(COUNTRY_INFO!K13=3, AD13/COUNTRY_INFO!F13*100))),"-"),0) -> 0 | AF13: =IF(COUNTRY_INFO!K13=2,IF(COUNTRY_INFO!G13*0.2>MAX('T1'!N13,'T2'!L13),MAX('T1'!N13,'T2'!L13),COUNTRY_INFO!G13*0.2),IF(COUNTRY_INFO!K13=3,IF(COUNTRY_INFO!G13>MAX('T1'!N13,'T2'!L13),MAX('T1'!N13,'T2'!L13),COUNTRY_INFO!G13),0)) -> 0 | AG13: =IF(AND(COUNTRY_INFO!K13>0,COUNTRY_INFO!K13<4),IF(Z13>0,IF(COUNTRY_INFO!K13=1, 0, IF(COUNTRY_INFO!K13=2, AF13/(COUNTRY_INFO!G13*0.2)*100, IF(COUNTRY_INFO!K13=3, AF13/COUNTRY_INFO!G13*100))),"-"),0) -> 0 | AH13: 0 | AI13: =IF(AND(COUNTRY_INFO!K13>0,COUNTRY_INFO!K13<4), IF(AC13/Z13*100<>0, IF(AH13/Z13*100>100,100,AH13/Z13*100), "-"),0) -> - | AK13: =IF(AND(D13<>0, D13<>"Inconnu",D13<>"Interrompu",D13<>"Non requis"),D13/COUNTRY_INFO!D13, 0) -> 0 | AL13: =IF(AND(J13<>0,J13<>"Inconnu",J13<>"Interrompu",J13<>"Non requis"),J13/COUNTRY_INFO!D13, 0) -> 1 | AM13: =IF(AND(P13<>0,P13<>"Inconnu",P13<>"Non requis"),P13/(COUNTRY_INFO!E13+COUNTRY_INFO!F13), 0) -> 0 | AN13: =IF(AND(Z13<>0,Z13<>"Inconnu",Z13<>"Non requis"),IF(COUNTRY_INFO!K13=1,1,IF(COUNTRY_INFO!K13=2,0.5*COUNTRY_INFO!F13/(0.5*COUNTRY_INFO!F13+0.2*COUNTRY_INFO!G13),IF(COUNTRY_INFO!K13=3,COUNTRY_INFO!F13/(COUNTRY_INFO!F13+COUNTRY_INFO!G13)))),0) -> 1 | AO13: =IF(AND(Z13<>0,Z13<>"Inconnu",Z13<>"Non requis"),IF(COUNTRY_INFO!K13=1,0,IF(COUNTRY_INFO!K13=2,0.2*COUNTRY_INFO!G13/(0.5*COUNTRY_INFO!F13+0.2*COUNTRY_INFO!G13),IF(COUNTRY_INFO!K13=3,COUNTRY_INFO!G13/(COUNTRY_INFO!F13+COUNTRY_INFO!G13)))),0) -> 0 | AP13: =MAX(COUNTRY_INFO!D13*AK13*PROFILE!$G$7,COUNTRY_INFO!D13*AL13*PROFILE!$G$7) -> 5648.791202 | AQ13: =MAX(COUNTRY_INFO!D13*AK13*PROFILE!$G$8,COUNTRY_INFO!D13*AL13*PROFILE!$G$8,COUNTRY_INFO!D13*AM13*PROFILE!$G$8) -> 19230.08749 | AR13: =MAX(COUNTRY_INFO!D13*AK13*PROFILE!$G$9,COUNTRY_INFO!D13*AL13*PROFILE!$G$9,COUNTRY_INFO!D13*AM13*PROFILE!$G$9,IF(AND(DISTRICT!Z13<>"Inconnu",Z13<>"Non requis"),COUNTRY_INFO!O13*DISTRICT!AN13,0)) -> 28845.11786 | AS13: =MAX(COUNTRY_INFO!D13*AK13*PROFILE!$G$10,COUNTRY_INFO!D13*AL13*PROFILE!$G$10,IF(AND(DISTRICT!Z13<>"Inconnu",Z13<>"Non requis"),COUNTRY_INFO!O13*DISTRICT!AO13,0)) -> 66464.00345 | AT13: 120188 | AU13: 0 | AV13: =MAX('MDA2'!J13,'T1'!L13,'T2'!J13,T3_R1!K13,T3_R2!K13) -> 0 | AW13: =MAX('MDA1'!K13,'MDA2'!K13,'MDA3'!I13,'MDA3'!L13,'T1'!M13,'T2'!K13,T3_R1!L13,T3_R2!L13) -> 20322 | AX13: =MAX('MDA1'!L13,'MDA2'!L13,'MDA3'!J13,'MDA3'!M13,'T1'!N13,'T2'!L13,T3_R1!M13,T3_R2!M13) -> 64355 | AY13: 84677 | AZ13: =MAX('MDA2'!J13,T13) -> 0 | BA13: =MAX('MDA1'!K13,'MDA2'!K13,'MDA3'!I13,'MDA3'!L13,V13,AD13) -> 20322 | BB13: =MAX('MDA1'!L13,'MDA2'!L13,'MDA3'!J13,'MDA3'!M13,AF13) -> 64355 | BC13: 84677 | BD13: 70.45378906
A14: =IF(COUNTRY_INFO!A14=0," ",COUNTRY_INFO!A14) -> Congo | B14: =IF(COUNTRY_INFO!B14=0," ",COUNTRY_INFO!B14) -> Brazzaville | C14: =IF(COUNTRY_INFO!C14=0," ",COUNTRY_INFO!C14) -> Makélékélé | D14: =COUNTRY_INFO!L14 -> 0 | G14: =MAX('MDA1'!M14,'MDA2'!M14) -> 0 | H14: =IF(AND(COUNTRY_INFO!H14>0,COUNTRY_INFO!H14<4),IF(D14>MAX('MDA1'!M14,'MDA2'!M14),MAX('MDA1'!M14,'MDA2'!M14),D14),0) -> 0 | I14: =IF(AND(COUNTRY_INFO!H14>0,COUNTRY_INFO!H14<4), IF(G14/D14*100<>0, IF(G14/D14*100>100,100,G14/D14*100), "-"),0) -> 0 | J14: =COUNTRY_INFO!M14 -> 212604 | K14: 26503 | L14: 26135 | M14: =MAX('MDA1'!M14,MAX('MDA3'!I14,'MDA3'!L14)+MAX('MDA3'!J14,'MDA3'!M14)) -> 52728 | N14: =IF(AND(COUNTRY_INFO!I14>0,COUNTRY_INFO!I14<4),IF(J14>MAX('MDA1'!M14,MAX('MDA3'!I14,'MDA3'!L14)+MAX('MDA3'!J14,'MDA3'!M14)),MAX('MDA1'!M14,MAX('MDA3'!I14,'MDA3'!L14)+MAX('MDA3'!J14,'MDA3'!M14)),J14),0) -> 52728 | O14: =IF(AND(COUNTRY_INFO!I14>0,COUNTRY_INFO!I14<4), IF(M14/J14*100<>0, IF(M14/J14*100>100,100,M14/J14*100), "-"),0) -> 24.80103855 | P14: =COUNTRY_INFO!N14 -> 0 | S14: =SUM(MAX('MDA2'!J14, 'T1'!L14, MAX(T3_R1!K14, T3_R2!K14)), MAX('MDA1'!K14, 'MDA2'!K14, 'T1'!M14, MAX(T3_R1!L14, T3_R2!L14)), MAX('MDA1'!L14, 'MDA2'!L14, 'T1'!N14, MAX(T3_R1!M14, T3_R2!M14))) -> 34650 | T14: =IF(AND(COUNTRY_INFO!J14>1,COUNTRY_INFO!J14<4),IF(COUNTRY_INFO!E14>MAX('MDA2'!J14,'T1'!L14,MAX(T3_R1!K14,T3_R2!K14)),MAX('MDA2'!J14,'T1'!L14,MAX(T3_R1!K14,T3_R2!K14)),COUNTRY_INFO!E14),0) -> 0 | U14: =IF(AND(COUNTRY_INFO!J14>1,COUNTRY_INFO!J14<4), IF(T14/COUNTRY_INFO!E14*100<>0, IF(T14/COUNTRY_INFO!E14*100>100,100,T14/COUNTRY_INFO!E14*100), "-"),0) -> 0 | V14: =IF(AND(COUNTRY_INFO!J14>1,COUNTRY_INFO!J14<4),IF(COUNTRY_INFO!F14>MAX('MDA1'!K14,'MDA2'!K14,'T1'!M14,MAX(T3_R1!L14,T3_R2!L14)),MAX('MDA1'!K14,'MDA2'!K14,'T1'!M14,MAX(T3_R1!L14,T3_R2!L14)),COUNTRY_INFO!F14),0) -> 0 | W14: =IF(AND(COUNTRY_INFO!J14>1,COUNTRY_INFO!J14<4), IF(V14/COUNTRY_INFO!F14*100<>0, IF(V14/COUNTRY_INFO!F14*100>100,100,V14/COUNTRY_INFO!F14*100), "-"),0) -> 0 | X14: 0 | Y14: =IF(AND(COUNTRY_INFO!J14>1,COUNTRY_INFO!J14<4), IF(S14/P14*100<>0, IF(X14/P14*100>100,100,X14/P14*100), "-"),0) -> 0 | Z14: =COUNTRY_INFO!O14 -> 0 | AC14: =MAX('T1'!L14,'T2'!J14)+MAX('T1'!M14,'T2'!K14)+MAX('T1'!N14,'T2'!L14) -> 0 | AD14: =IF(COUNTRY_INFO!K14=1,IF(COUNTRY_INFO!F14*0.33>MAX('T1'!M14,'T2'!K14),MAX('T1'!M14,'T2'!K14),COUNTRY_INFO!F14*0.33),IF(COUNTRY_INFO!K14=2,IF(COUNTRY_INFO!F14*0.5>MAX('T1'!M14,'T2'!K14),MAX('T1'!M14,'T2'!K14),COUNTRY_INFO!F14*0.5),IF(COUNTRY_INFO!K14=3,IF(COUNTRY_INFO!F14>MAX('T1'!M14,'T2'!K14),MAX('T1'!M14,'T2'!K14),COUNTRY_INFO!F14),0))) -> 0 | AE14: =IF(AND(COUNTRY_INFO!K14>0,COUNTRY_INFO!K14<4),IF(Z14>0,IF(COUNTRY_INFO!K14=1, AD14/(COUNTRY_INFO!F14*0.33)*100, IF(COUNTRY_INFO!K14=2, AD14/(COUNTRY_INFO!F14*0.5)*100, IF(COUNTRY_INFO!K14=3, AD14/COUNTRY_INFO!F14*100))),"-"),0) -> 0 | AF14: =IF(COUNTRY_INFO!K14=2,IF(COUNTRY_INFO!G14*0.2>MAX('T1'!N14,'T2'!L14),MAX('T1'!N14,'T2'!L14),COUNTRY_INFO!G14*0.2),IF(COUNTRY_INFO!K14=3,IF(COUNTRY_INFO!G14>MAX('T1'!N14,'T2'!L14),MAX('T1'!N14,'T2'!L14),COUNTRY_INFO!G14),0)) -> 0 | AG14: =IF(AND(COUNTRY_INFO!K14>0,COUNTRY_INFO!K14<4),IF(Z14>0,IF(COUNTRY_INFO!K14=1, 0, IF(COUNTRY_INFO!K14=2, AF14/(COUNTRY_INFO!G14*0.2)*100, IF(COUNTRY_INFO!K14=3, AF14/COUNTRY_INFO!G14*100))),"-"),0) -> 0 | AH14: 0 | AI14: =IF(AND(COUNTRY_INFO!K14>0,COUNTRY_INFO!K14<4), IF(AC14/Z14*100<>0, IF(AH14/Z14*100>100,100,AH14/Z14*100), "-"),0) -> 0 | AK14: =IF(AND(D14<>0, D14<>"Inconnu",D14<>"Interrompu",D14<>"Non requis"),D14/COUNTRY_INFO!D14, 0) -> 0 | AL14: =IF(AND(J14<>0,J14<>"Inconnu",J14<>"Interrompu",J14<>"Non requis"),J14/COUNTRY_INFO!D14, 0) -> 1 | AM14: =IF(AND(P14<>0,P14<>"Inconnu",P14<>"Non requis"),P14/(COUNTRY_INFO!E14+COUNTRY_INFO!F14), 0) -> 0 | AN14: =IF(AND(Z14<>0,Z14<>"Inconnu",Z14<>"Non requis"),IF(COUNTRY_INFO!K14=1,1,IF(COUNTRY_INFO!K14=2,0.5*COUNTRY_INFO!F14/(0.5*COUNTRY_INFO!F14+0.2*COUNTRY_INFO!G14),IF(COUNTRY_INFO!K14=3,COUNTRY_INFO!F14/(COUNTRY_INFO!F14+COUNTRY_INFO!G14)))),0) -> 0 | AO14: =IF(AND(Z14<>0,Z14<>"Inconnu",Z14<>"Non requis"),IF(COUNTRY_INFO!K14=1,0,IF(COUNTRY_INFO!K14=2,0.2*COUNTRY_INFO!G14/(0.5*COUNTRY_INFO!F14+0.2*COUNTRY_INFO!G14),IF(COUNTRY_INFO!K14=3,COUNTRY_INFO!G14/(COUNTRY_INFO!F14+COUNTRY_INFO!G14)))),0) -> 0 | AP14: =MAX(COUNTRY_INFO!D14*AK14*PROFILE!$G$7,COUNTRY_INFO!D14*AL14*PROFILE!$G$7) -> 9992.308755 | AQ14: =MAX(COUNTRY_INFO!D14*AK14*PROFILE!$G$8,COUNTRY_INFO!D14*AL14*PROFILE!$G$8,COUNTRY_INFO!D14*AM14*PROFILE!$G$8) -> 34016.65325 | AR14: =MAX(COUNTRY_INFO!D14*AK14*PROFILE!$G$9,COUNTRY_INFO!D14*AL14*PROFILE!$G$9,COUNTRY_INFO!D14*AM14*PROFILE!$G$9,IF(AND(DISTRICT!Z14<>"Inconnu",Z14<>"Non requis"),COUNTRY_INFO!O14*DISTRICT!AN14,0)) -> 51024.95621 | AS14: =MAX(COUNTRY_INFO!D14*AK14*PROFILE!$G$10,COUNTRY_INFO!D14*AL14*PROFILE!$G$10,IF(AND(DISTRICT!Z14<>"Inconnu",Z14<>"Non requis"),COUNTRY_INFO!O14*DISTRICT!AO14,0)) -> 117570.0818 | AT14: 212604 | AU14: Y | AV14: =MAX('MDA2'!J14,'T1'!L14,'T2'!J14,T3_R1!K14,T3_R2!K14) -> 0 | AW14: =MAX('MDA1'!K14,'MDA2'!K14,'MDA3'!I14,'MDA3'!L14,'T1'!M14,'T2'!K14,T3_R1!L14,T3_R2!L14) -> 34650 | AX14: =MAX('MDA1'!L14,'MDA2'!L14,'MDA3'!J14,'MDA3'!M14,'T1'!N14,'T2'!L14,T3_R1!M14,T3_R2!M14) -> 40073 | AY14: 74723 | AZ14: =MAX('MDA2'!J14,T14) -> 0 | BA14: =MAX('MDA1'!K14,'MDA2'!K14,'MDA3'!I14,'MDA3'!L14,V14,AD14) -> 12655 | BB14: =MAX('MDA1'!L14,'MDA2'!L14,'MDA3'!J14,'MDA3'!M14,AF14) -> 40073 | BC14: 52728 | BD14: 24.80103855
A15: =IF(COUNTRY_INFO!A15=0," ",COUNTRY_INFO!A15) -> Congo | B15: =IF(COUNTRY_INFO!B15=0," ",COUNTRY_INFO!B15) -> Brazzaville | C15: =IF(COUNTRY_INFO!C15=0," ",COUNTRY_INFO!C15) -> Mfilou | D15: =COUNTRY_INFO!L15 -> 0 | G15: =MAX('MDA1'!M15,'MDA2'!M15) -> 0 | H15: =IF(AND(COUNTRY_INFO!H15>0,COUNTRY_INFO!H15<4),IF(D15>MAX('MDA1'!M15,'MDA2'!M15),MAX('MDA1'!M15,'MDA2'!M15),D15),0) -> 0 | I15: =IF(AND(COUNTRY_INFO!H15>0,COUNTRY_INFO!H15<4), IF(G15/D15*100<>0, IF(G15/D15*100>100,100,G15/D15*100), "-"),0) -> 0 | J15: =COUNTRY_INFO!M15 -> 239238 | K15: 37465 | L15: 39316 | M15: =MAX('MDA1'!M15,MAX('MDA3'!I15,'MDA3'!L15)+MAX('MDA3'!J15,'MDA3'!M15)) -> 76785 | N15: =IF(AND(COUNTRY_INFO!I15>0,COUNTRY_INFO!I15<4),IF(J15>MAX('MDA1'!M15,MAX('MDA3'!I15,'MDA3'!L15)+MAX('MDA3'!J15,'MDA3'!M15)),MAX('MDA1'!M15,MAX('MDA3'!I15,'MDA3'!L15)+MAX('MDA3'!J15,'MDA3'!M15)),J15),0) -> 76785 | O15: =IF(AND(COUNTRY_INFO!I15>0,COUNTRY_INFO!I15<4), IF(M15/J15*100<>0, IF(M15/J15*100>100,100,M15/J15*100), "-"),0) -> 32.0956537 | P15: =COUNTRY_INFO!N15 -> 0 | S15: =SUM(MAX('MDA2'!J15, 'T1'!L15, MAX(T3_R1!K15, T3_R2!K15)), MAX('MDA1'!K15, 'MDA2'!K15, 'T1'!M15, MAX(T3_R1!L15, T3_R2!L15)), MAX('MDA1'!L15, 'MDA2'!L15, 'T1'!N15, MAX(T3_R1!M15, T3_R2!M15))) -> 39381 | T15: =IF(AND(COUNTRY_INFO!J15>1,COUNTRY_INFO!J15<4),IF(COUNTRY_INFO!E15>MAX('MDA2'!J15,'T1'!L15,MAX(T3_R1!K15,T3_R2!K15)),MAX('MDA2'!J15,'T1'!L15,MAX(T3_R1!K15,T3_R2!K15)),COUNTRY_INFO!E15),0) -> 0 | U15: =IF(AND(COUNTRY_INFO!J15>1,COUNTRY_INFO!J15<4), IF(T15/COUNTRY_INFO!E15*100<>0, IF(T15/COUNTRY_INFO!E15*100>100,100,T15/COUNTRY_INFO!E15*100), "-"),0) -> 0 | V15: =IF(AND(COUNTRY_INFO!J15>1,COUNTRY_INFO!J15<4),IF(COUNTRY_INFO!F15>MAX('MDA1'!K15,'MDA2'!K15,'T1'!M15,MAX(T3_R1!L15,T3_R2!L15)),MAX('MDA1'!K15,'MDA2'!K15,'T1'!M15,MAX(T3_R1!L15,T3_R2!L15)),COUNTRY_INFO!F15),0) -> 0 | W15: =IF(AND(COUNTRY_INFO!J15>1,COUNTRY_INFO!J15<4), IF(V15/COUNTRY_INFO!F15*100<>0, IF(V15/COUNTRY_INFO!F15*100>100,100,V15/COUNTRY_INFO!F15*100), "-"),0) -> 0 | X15: 0 | Y15: =IF(AND(COUNTRY_INFO!J15>1,COUNTRY_INFO!J15<4), IF(S15/P15*100<>0, IF(X15/P15*100>100,100,X15/P15*100), "-"),0) -> 0 | Z15: =COUNTRY_INFO!O15 -> 0 | AC15: =MAX('T1'!L15,'T2'!J15)+MAX('T1'!M15,'T2'!K15)+MAX('T1'!N15,'T2'!L15) -> 0 | AD15: =IF(COUNTRY_INFO!K15=1,IF(COUNTRY_INFO!F15*0.33>MAX('T1'!M15,'T2'!K15),MAX('T1'!M15,'T2'!K15),COUNTRY_INFO!F15*0.33),IF(COUNTRY_INFO!K15=2,IF(COUNTRY_INFO!F15*0.5>MAX('T1'!M15,'T2'!K15),MAX('T1'!M15,'T2'!K15),COUNTRY_INFO!F15*0.5),IF(COUNTRY_INFO!K15=3,IF(COUNTRY_INFO!F15>MAX('T1'!M15,'T2'!K15),MAX('T1'!M15,'T2'!K15),COUNTRY_INFO!F15),0))) -> 0 | AE15: =IF(AND(COUNTRY_INFO!K15>0,COUNTRY_INFO!K15<4),IF(Z15>0,IF(COUNTRY_INFO!K15=1, AD15/(COUNTRY_INFO!F15*0.33)*100, IF(COUNTRY_INFO!K15=2, AD15/(COUNTRY_INFO!F15*0.5)*100, IF(COUNTRY_INFO!K15=3, AD15/COUNTRY_INFO!F15*100))),"-"),0) -> 0 | AF15: =IF(COUNTRY_INFO!K15=2,IF(COUNTRY_INFO!G15*0.2>MAX('T1'!N15,'T2'!L15),MAX('T1'!N15,'T2'!L15),COUNTRY_INFO!G15*0.2),IF(COUNTRY_INFO!K15=3,IF(COUNTRY_INFO!G15>MAX('T1'!N15,'T2'!L15),MAX('T1'!N15,'T2'!L15),COUNTRY_INFO!G15),0)) -> 0 | AG15: =IF(AND(COUNTRY_INFO!K15>0,COUNTRY_INFO!K15<4),IF(Z15>0,IF(COUNTRY_INFO!K15=1, 0, IF(COUNTRY_INFO!K15=2, AF15/(COUNTRY_INFO!G15*0.2)*100, IF(COUNTRY_INFO!K15=3, AF15/COUNTRY_INFO!G15*100))),"-"),0) -> 0 | AH15: 0 | AI15: =IF(AND(COUNTRY_INFO!K15>0,COUNTRY_INFO!K15<4), IF(AC15/Z15*100<>0, IF(AH15/Z15*100>100,100,AH15/Z15*100), "-"),0) -> 0 | AK15: =IF(AND(D15<>0, D15<>"Inconnu",D15<>"Interrompu",D15<>"Non requis"),D15/COUNTRY_INFO!D15, 0) -> 0 | AL15: =IF(AND(J15<>0,J15<>"Inconnu",J15<>"Interrompu",J15<>"Non requis"),J15/COUNTRY_INFO!D15, 0) -> 1 | AM15: =IF(AND(P15<>0,P15<>"Inconnu",P15<>"Non requis"),P15/(COUNTRY_INFO!E15+COUNTRY_INFO!F15), 0) -> 0 | AN15: =IF(AND(Z15<>0,Z15<>"Inconnu",Z15<>"Non requis"),IF(COUNTRY_INFO!K15=1,1,IF(COUNTRY_INFO!K15=2,0.5*COUNTRY_INFO!F15/(0.5*COUNTRY_INFO!F15+0.2*COUNTRY_INFO!G15),IF(COUNTRY_INFO!K15=3,COUNTRY_INFO!F15/(COUNTRY_INFO!F15+COUNTRY_INFO!G15)))),0) -> 0 | AO15: =IF(AND(Z15<>0,Z15<>"Inconnu",Z15<>"Non requis"),IF(COUNTRY_INFO!K15=1,0,IF(COUNTRY_INFO!K15=2,0.2*COUNTRY_INFO!G15/(0.5*COUNTRY_INFO!F15+0.2*COUNTRY_INFO!G15),IF(COUNTRY_INFO!K15=3,COUNTRY_INFO!G15/(COUNTRY_INFO!F15+COUNTRY_INFO!G15)))),0) -> 0 | AP15: =MAX(COUNTRY_INFO!D15*AK15*PROFILE!$G$7,COUNTRY_INFO!D15*AL15*PROFILE!$G$7) -> 11244.09683 | AQ15: =MAX(COUNTRY_INFO!D15*AK15*PROFILE!$G$8,COUNTRY_INFO!D15*AL15*PROFILE!$G$8,COUNTRY_INFO!D15*AM15*PROFILE!$G$8) -> 38278.09492 | AR15: =MAX(COUNTRY_INFO!D15*AK15*PROFILE!$G$9,COUNTRY_INFO!D15*AL15*PROFILE!$G$9,COUNTRY_INFO!D15*AM15*PROFILE!$G$9,IF(AND(DISTRICT!Z15<>"Inconnu",Z15<>"Non requis"),COUNTRY_INFO!O15*DISTRICT!AN15,0)) -> 57417.11574 | AS15: =MAX(COUNTRY_INFO!D15*AK15*PROFILE!$G$10,COUNTRY_INFO!D15*AL15*PROFILE!$G$10,IF(AND(DISTRICT!Z15<>"Inconnu",Z15<>"Non requis"),COUNTRY_INFO!O15*DISTRICT!AO15,0)) -> 132298.6925 | AT15: 239238 | AU15: Y | AV15: =MAX('MDA2'!J15,'T1'!L15,'T2'!J15,T3_R1!K15,T3_R2!K15) -> 0 | AW15: =MAX('MDA1'!K15,'MDA2'!K15,'MDA3'!I15,'MDA3'!L15,'T1'!M15,'T2'!K15,T3_R1!L15,T3_R2!L15) -> 39381 | AX15: =MAX('MDA1'!L15,'MDA2'!L15,'MDA3'!J15,'MDA3'!M15,'T1'!N15,'T2'!L15,T3_R1!M15,T3_R2!M15) -> 58357 | AY15: 97738 | AZ15: =MAX('MDA2'!J15,T15) -> 0 | BA15: =MAX('MDA1'!K15,'MDA2'!K15,'MDA3'!I15,'MDA3'!L15,V15,AD15) -> 18428 | BB15: =MAX('MDA1'!L15,'MDA2'!L15,'MDA3'!J15,'MDA3'!M15,AF15) -> 58357 | BC15: 76785 | BD15: 32.0956537
A16: =IF(COUNTRY_INFO!A16=0," ",COUNTRY_INFO!A16) -> Congo | B16: =IF(COUNTRY_INFO!B16=0," ",COUNTRY_INFO!B16) -> Brazzaville | C16: =IF(COUNTRY_INFO!C16=0," ",COUNTRY_INFO!C16) -> Moungali | D16: =COUNTRY_INFO!L16 -> 0 | G16: =MAX('MDA1'!M16,'MDA2'!M16) -> 0 | H16: =IF(AND(COUNTRY_INFO!H16>0,COUNTRY_INFO!H16<4),IF(D16>MAX('MDA1'!M16,'MDA2'!M16),MAX('MDA1'!M16,'MDA2'!M16),D16),0) -> 0 | I16: =IF(AND(COUNTRY_INFO!H16>0,COUNTRY_INFO!H16<4), IF(G16/D16*100<>0, IF(G16/D16*100>100,100,G16/D16*100), "-"),0) -> 0 | J16: =COUNTRY_INFO!M16 -> 0 | M16: =MAX('MDA1'!M16,MAX('MDA3'!I16,'MDA3'!L16)+MAX('MDA3'!J16,'MDA3'!M16)) -> 0 | N16: =IF(AND(COUNTRY_INFO!I16>0,COUNTRY_INFO!I16<4),IF(J16>MAX('MDA1'!M16,MAX('MDA3'!I16,'MDA3'!L16)+MAX('MDA3'!J16,'MDA3'!M16)),MAX('MDA1'!M16,MAX('MDA3'!I16,'MDA3'!L16)+MAX('MDA3'!J16,'MDA3'!M16)),J16),0) -> 0 | O16: =IF(AND(COUNTRY_INFO!I16>0,COUNTRY_INFO!I16<4), IF(M16/J16*100<>0, IF(M16/J16*100>100,100,M16/J16*100), "-"),0) -> 0 | P16: =COUNTRY_INFO!N16 -> 0 | S16: =SUM(MAX('MDA2'!J16, 'T1'!L16, MAX(T3_R1!K16, T3_R2!K16)), MAX('MDA1'!K16, 'MDA2'!K16, 'T1'!M16, MAX(T3_R1!L16, T3_R2!L16)), MAX('MDA1'!L16, 'MDA2'!L16, 'T1'!N16, MAX(T3_R1!M16, T3_R2!M16))) -> 23659 | T16: =IF(AND(COUNTRY_INFO!J16>1,COUNTRY_INFO!J16<4),IF(COUNTRY_INFO!E16>MAX('MDA2'!J16,'T1'!L16,MAX(T3_R1!K16,T3_R2!K16)),MAX('MDA2'!J16,'T1'!L16,MAX(T3_R1!K16,T3_R2!K16)),COUNTRY_INFO!E16),0) -> 0 | U16: =IF(AND(COUNTRY_INFO!J16>1,COUNTRY_INFO!J16<4), IF(T16/COUNTRY_INFO!E16*100<>0, IF(T16/COUNTRY_INFO!E16*100>100,100,T16/COUNTRY_INFO!E16*100), "-"),0) -> 0 | V16: =IF(AND(COUNTRY_INFO!J16>1,COUNTRY_INFO!J16<4),IF(COUNTRY_INFO!F16>MAX('MDA1'!K16,'MDA2'!K16,'T1'!M16,MAX(T3_R1!L16,T3_R2!L16)),MAX('MDA1'!K16,'MDA2'!K16,'T1'!M16,MAX(T3_R1!L16,T3_R2!L16)),COUNTRY_INFO!F16),0) -> 0 | W16: =IF(AND(COUNTRY_INFO!J16>1,COUNTRY_INFO!J16<4), IF(V16/COUNTRY_INFO!F16*100<>0, IF(V16/COUNTRY_INFO!F16*100>100,100,V16/COUNTRY_INFO!F16*100), "-"),0) -> 0 | X16: 0 | Y16: =IF(AND(COUNTRY_INFO!J16>1,COUNTRY_INFO!J16<4), IF(S16/P16*100<>0, IF(X16/P16*100>100,100,X16/P16*100), "-"),0) -> 0 | Z16: =COUNTRY_INFO!O16 -> 16075.29 | AC16: =MAX('T1'!L16,'T2'!J16)+MAX('T1'!M16,'T2'!K16)+MAX('T1'!N16,'T2'!L16) -> 0 | AD16: =IF(COUNTRY_INFO!K16=1,IF(COUNTRY_INFO!F16*0.33>MAX('T1'!M16,'T2'!K16),MAX('T1'!M16,'T2'!K16),COUNTRY_INFO!F16*0.33),IF(COUNTRY_INFO!K16=2,IF(COUNTRY_INFO!F16*0.5>MAX('T1'!M16,'T2'!K16),MAX('T1'!M16,'T2'!K16),COUNTRY_INFO!F16*0.5),IF(COUNTRY_INFO!K16=3,IF(COUNTRY_INFO!F16>MAX('T1'!M16,'T2'!K16),MAX('T1'!M16,'T2'!K16),COUNTRY_INFO!F16),0))) -> 0 | AE16: =IF(AND(COUNTRY_INFO!K16>0,COUNTRY_INFO!K16<4),IF(Z16>0,IF(COUNTRY_INFO!K16=1, AD16/(COUNTRY_INFO!F16*0.33)*100, IF(COUNTRY_INFO!K16=2, AD16/(COUNTRY_INFO!F16*0.5)*100, IF(COUNTRY_INFO!K16=3, AD16/COUNTRY_INFO!F16*100))),"-"),0) -> 0 | AF16: =IF(COUNTRY_INFO!K16=2,IF(COUNTRY_INFO!G16*0.2>MAX('T1'!N16,'T2'!L16),MAX('T1'!N16,'T2'!L16),COUNTRY_INFO!G16*0.2),IF(COUNTRY_INFO!K16=3,IF(COUNTRY_INFO!G16>MAX('T1'!N16,'T2'!L16),MAX('T1'!N16,'T2'!L16),COUNTRY_INFO!G16),0)) -> 0 | AG16: =IF(AND(COUNTRY_INFO!K16>0,COUNTRY_INFO!K16<4),IF(Z16>0,IF(COUNTRY_INFO!K16=1, 0, IF(COUNTRY_INFO!K16=2, AF16/(COUNTRY_INFO!G16*0.2)*100, IF(COUNTRY_INFO!K16=3, AF16/COUNTRY_INFO!G16*100))),"-"),0) -> 0 | AH16: 0 | AI16: =IF(AND(COUNTRY_INFO!K16>0,COUNTRY_INFO!K16<4), IF(AC16/Z16*100<>0, IF(AH16/Z16*100>100,100,AH16/Z16*100), "-"),0) -> - | AK16: =IF(AND(D16<>0, D16<>"Inconnu",D16<>"Interrompu",D16<>"Non requis"),D16/COUNTRY_INFO!D16, 0) -> 0 | AL16: =IF(AND(J16<>0,J16<>"Inconnu",J16<>"Interrompu",J16<>"Non requis"),J16/COUNTRY_INFO!D16, 0) -> 0 | AM16: =IF(AND(P16<>0,P16<>"Inconnu",P16<>"Non requis"),P16/(COUNTRY_INFO!E16+COUNTRY_INFO!F16), 0) -> 0 | AN16: =IF(AND(Z16<>0,Z16<>"Inconnu",Z16<>"Non requis"),IF(COUNTRY_INFO!K16=1,1,IF(COUNTRY_INFO!K16=2,0.5*COUNTRY_INFO!F16/(0.5*COUNTRY_INFO!F16+0.2*COUNTRY_INFO!G16),IF(COUNTRY_INFO!K16=3,COUNTRY_INFO!F16/(COUNTRY_INFO!F16+COUNTRY_INFO!G16)))),0) -> 1 | AO16: =IF(AND(Z16<>0,Z16<>"Inconnu",Z16<>"Non requis"),IF(COUNTRY_INFO!K16=1,0,IF(COUNTRY_INFO!K16=2,0.2*COUNTRY_INFO!G16/(0.5*COUNTRY_INFO!F16+0.2*COUNTRY_INFO!G16),IF(COUNTRY_INFO!K16=3,COUNTRY_INFO!G16/(COUNTRY_INFO!F16+COUNTRY_INFO!G16)))),0) -> 0 | AP16: =MAX(COUNTRY_INFO!D16*AK16*PROFILE!$G$7,COUNTRY_INFO!D16*AL16*PROFILE!$G$7) -> 0 | AQ16: =MAX(COUNTRY_INFO!D16*AK16*PROFILE!$G$8,COUNTRY_INFO!D16*AL16*PROFILE!$G$8,COUNTRY_INFO!D16*AM16*PROFILE!$G$8) -> 0 | AR16: =MAX(COUNTRY_INFO!D16*AK16*PROFILE!$G$9,COUNTRY_INFO!D16*AL16*PROFILE!$G$9,COUNTRY_INFO!D16*AM16*PROFILE!$G$9,IF(AND(DISTRICT!Z16<>"Inconnu",Z16<>"Non requis"),COUNTRY_INFO!O16*DISTRICT!AN16,0)) -> 16075.29 | AS16: =MAX(COUNTRY_INFO!D16*AK16*PROFILE!$G$10,COUNTRY_INFO!D16*AL16*PROFILE!$G$10,IF(AND(DISTRICT!Z16<>"Inconnu",Z16<>"Non requis"),COUNTRY_INFO!O16*DISTRICT!AO16,0)) -> 0 | AT16: 16075.29 | AU16: 0 | AV16: =MAX('MDA2'!J16,'T1'!L16,'T2'!J16,T3_R1!K16,T3_R2!K16) -> 0 | AW16: =MAX('MDA1'!K16,'MDA2'!K16,'MDA3'!I16,'MDA3'!L16,'T1'!M16,'T2'!K16,T3_R1!L16,T3_R2!L16) -> 23659 | AX16: =MAX('MDA1'!L16,'MDA2'!L16,'MDA3'!J16,'MDA3'!M16,'T1'!N16,'T2'!L16,T3_R1!M16,T3_R2!M16) -> 0 | AY16: 23659 | AZ16: =MAX('MDA2'!J16,T16) -> 0 | BA16: =MAX('MDA1'!K16,'MDA2'!K16,'MDA3'!I16,'MDA3'!L16,V16,AD16) -> 0 | BB16: =MAX('MDA1'!L16,'MDA2'!L16,'MDA3'!J16,'MDA3'!M16,AF16) -> 0 | BC16: 0 | BD16: 0
A17: =IF(COUNTRY_INFO!A17=0," ",COUNTRY_INFO!A17) -> Congo | B17: =IF(COUNTRY_INFO!B17=0," ",COUNTRY_INFO!B17) -> Brazzaville | C17: =IF(COUNTRY_INFO!C17=0," ",COUNTRY_INFO!C17) -> Ouenzé | D17: =COUNTRY_INFO!L17 -> 0 | G17: =MAX('MDA1'!M17,'MDA2'!M17) -> 0 | H17: =IF(AND(COUNTRY_INFO!H17>0,COUNTRY_INFO!H17<4),IF(D17>MAX('MDA1'!M17,'MDA2'!M17),MAX('MDA1'!M17,'MDA2'!M17),D17),0) -> 0 | I17: =IF(AND(COUNTRY_INFO!H17>0,COUNTRY_INFO!H17<4), IF(G17/D17*100<>0, IF(G17/D17*100>100,100,G17/D17*100), "-"),0) -> 0 | J17: =COUNTRY_INFO!M17 -> 0 | M17: =MAX('MDA1'!M17,MAX('MDA3'!I17,'MDA3'!L17)+MAX('MDA3'!J17,'MDA3'!M17)) -> 0 | N17: =IF(AND(COUNTRY_INFO!I17>0,COUNTRY_INFO!I17<4),IF(J17>MAX('MDA1'!M17,MAX('MDA3'!I17,'MDA3'!L17)+MAX('MDA3'!J17,'MDA3'!M17)),MAX('MDA1'!M17,MAX('MDA3'!I17,'MDA3'!L17)+MAX('MDA3'!J17,'MDA3'!M17)),J17),0) -> 0 | O17: =IF(AND(COUNTRY_INFO!I17>0,COUNTRY_INFO!I17<4), IF(M17/J17*100<>0, IF(M17/J17*100>100,100,M17/J17*100), "-"),0) -> 0 | P17: =COUNTRY_INFO!N17 -> 0 | S17: =SUM(MAX('MDA2'!J17, 'T1'!L17, MAX(T3_R1!K17, T3_R2!K17)), MAX('MDA1'!K17, 'MDA2'!K17, 'T1'!M17, MAX(T3_R1!L17, T3_R2!L17)), MAX('MDA1'!L17, 'MDA2'!L17, 'T1'!N17, MAX(T3_R1!M17, T3_R2!M17))) -> 32748 | T17: =IF(AND(COUNTRY_INFO!J17>1,COUNTRY_INFO!J17<4),IF(COUNTRY_INFO!E17>MAX('MDA2'!J17,'T1'!L17,MAX(T3_R1!K17,T3_R2!K17)),MAX('MDA2'!J17,'T1'!L17,MAX(T3_R1!K17,T3_R2!K17)),COUNTRY_INFO!E17),0) -> 0 | U17: =IF(AND(COUNTRY_INFO!J17>1,COUNTRY_INFO!J17<4), IF(T17/COUNTRY_INFO!E17*100<>0, IF(T17/COUNTRY_INFO!E17*100>100,100,T17/COUNTRY_INFO!E17*100), "-"),0) -> 0 | V17: =IF(AND(COUNTRY_INFO!J17>1,COUNTRY_INFO!J17<4),IF(COUNTRY_INFO!F17>MAX('MDA1'!K17,'MDA2'!K17,'T1'!M17,MAX(T3_R1!L17,T3_R2!L17)),MAX('MDA1'!K17,'MDA2'!K17,'T1'!M17,MAX(T3_R1!L17,T3_R2!L17)),COUNTRY_INFO!F17),0) -> 0 | W17: =IF(AND(COUNTRY_INFO!J17>1,COUNTRY_INFO!J17<4), IF(V17/COUNTRY_INFO!F17*100<>0, IF(V17/COUNTRY_INFO!F17*100>100,100,V17/COUNTRY_INFO!F17*100), "-"),0) -> 0 | X17: 0 | Y17: =IF(AND(COUNTRY_INFO!J17>1,COUNTRY_INFO!J17<4), IF(S17/P17*100<>0, IF(X17/P17*100>100,100,X17/P17*100), "-"),0) -> 0 | Z17: =COUNTRY_INFO!O17 -> 0 | AC17: =MAX('T1'!L17,'T2'!J17)+MAX('T1'!M17,'T2'!K17)+MAX('T1'!N17,'T2'!L17) -> 0 | AD17: =IF(COUNTRY_INFO!K17=1,IF(COUNTRY_INFO!F17*0.33>MAX('T1'!M17,'T2'!K17),MAX('T1'!M17,'T2'!K17),COUNTRY_INFO!F17*0.33),IF(COUNTRY_INFO!K17=2,IF(COUNTRY_INFO!F17*0.5>MAX('T1'!M17,'T2'!K17),MAX('T1'!M17,'T2'!K17),COUNTRY_INFO!F17*0.5),IF(COUNTRY_INFO!K17=3,IF(COUNTRY_INFO!F17>MAX('T1'!M17,'T2'!K17),MAX('T1'!M17,'T2'!K17),COUNTRY_INFO!F17),0))) -> 0 | AE17: =IF(AND(COUNTRY_INFO!K17>0,COUNTRY_INFO!K17<4),IF(Z17>0,IF(COUNTRY_INFO!K17=1, AD17/(COUNTRY_INFO!F17*0.33)*100, IF(COUNTRY_INFO!K17=2, AD17/(COUNTRY_INFO!F17*0.5)*100, IF(COUNTRY_INFO!K17=3, AD17/COUNTRY_INFO!F17*100))),"-"),0) -> 0 | AF17: =IF(COUNTRY_INFO!K17=2,IF(COUNTRY_INFO!G17*0.2>MAX('T1'!N17,'T2'!L17),MAX('T1'!N17,'T2'!L17),COUNTRY_INFO!G17*0.2),IF(COUNTRY_INFO!K17=3,IF(COUNTRY_INFO!G17>MAX('T1'!N17,'T2'!L17),MAX('T1'!N17,'T2'!L17),COUNTRY_INFO!G17),0)) -> 0 | AG17: =IF(AND(COUNTRY_INFO!K17>0,COUNTRY_INFO!K17<4),IF(Z17>0,IF(COUNTRY_INFO!K17=1, 0, IF(COUNTRY_INFO!K17=2, AF17/(COUNTRY_INFO!G17*0.2)*100, IF(COUNTRY_INFO!K17=3, AF17/COUNTRY_INFO!G17*100))),"-"),0) -> 0 | AH17: 0 | AI17: =IF(AND(COUNTRY_INFO!K17>0,COUNTRY_INFO!K17<4), IF(AC17/Z17*100<>0, IF(AH17/Z17*100>100,100,AH17/Z17*100), "-"),0) -> 0 | AK17: =IF(AND(D17<>0, D17<>"Inconnu",D17<>"Interrompu",D17<>"Non requis"),D17/COUNTRY_INFO!D17, 0) -> 0 | AL17: =IF(AND(J17<>0,J17<>"Inconnu",J17<>"Interrompu",J17<>"Non requis"),J17/COUNTRY_INFO!D17, 0) -> 0 | AM17: =IF(AND(P17<>0,P17<>"Inconnu",P17<>"Non requis"),P17/(COUNTRY_INFO!E17+COUNTRY_INFO!F17), 0) -> 0 | AN17: =IF(AND(Z17<>0,Z17<>"Inconnu",Z17<>"Non requis"),IF(COUNTRY_INFO!K17=1,1,IF(COUNTRY_INFO!K17=2,0.5*COUNTRY_INFO!F17/(0.5*COUNTRY_INFO!F17+0.2*COUNTRY_INFO!G17),IF(COUNTRY_INFO!K17=3,COUNTRY_INFO!F17/(COUNTRY_INFO!F17+COUNTRY_INFO!G17)))),0) -> 0 | AO17: =IF(AND(Z17<>0,Z17<>"Inconnu",Z17<>"Non requis"),IF(COUNTRY_INFO!K17=1,0,IF(COUNTRY_INFO!K17=2,0.2*COUNTRY_INFO!G17/(0.5*COUNTRY_INFO!F17+0.2*COUNTRY_INFO!G17),IF(COUNTRY_INFO!K17=3,COUNTRY_INFO!G17/(COUNTRY_INFO!F17+COUNTRY_INFO!G17)))),0) -> 0 | AP17: =MAX(COUNTRY_INFO!D17*AK17*PROFILE!$G$7,COUNTRY_INFO!D17*AL17*PROFILE!$G$7) -> 0 | AQ17: =MAX(COUNTRY_INFO!D17*AK17*PROFILE!$G$8,COUNTRY_INFO!D17*AL17*PROFILE!$G$8,COUNTRY_INFO!D17*AM17*PROFILE!$G$8) -> 0 | AR17: =MAX(COUNTRY_INFO!D17*AK17*PROFILE!$G$9,COUNTRY_INFO!D17*AL17*PROFILE!$G$9,COUNTRY_INFO!D17*AM17*PROFILE!$G$9,IF(AND(DISTRICT!Z17<>"Inconnu",Z17<>"Non requis"),COUNTRY_INFO!O17*DISTRICT!AN17,0)) -> 0 | AS17: =MAX(COUNTRY_INFO!D17*AK17*PROFILE!$G$10,COUNTRY_INFO!D17*AL17*PROFILE!$G$10,IF(AND(DISTRICT!Z17<>"Inconnu",Z17<>"Non requis"),COUNTRY_INFO!O17*DISTRICT!AO17,0)) -> 0 | AT17: 0 | AU17: 0 | AV17: =MAX('MDA2'!J17,'T1'!L17,'T2'!J17,T3_R1!K17,T3_R2!K17) -> 0 | AW17: =MAX('MDA1'!K17,'MDA2'!K17,'MDA3'!I17,'MDA3'!L17,'T1'!M17,'T2'!K17,T3_R1!L17,T3_R2!L17) -> 32748 | AX17: =MAX('MDA1'!L17,'MDA2'!L17,'MDA3'!J17,'MDA3'!M17,'T1'!N17,'T2'!L17,T3_R1!M17,T3_R2!M17) -> 0 | AY17: 32748 | AZ17: =MAX('MDA2'!J17,T17) -> 0 | BA17: =MAX('MDA1'!K17,'MDA2'!K17,'MDA3'!I17,'MDA3'!L17,V17,AD17) -> 0 | BB17: =MAX('MDA1'!L17,'MDA2'!L17,'MDA3'!J17,'MDA3'!M17,AF17) -> 0 | BC17: 0 | BD17: 0
A18: =IF(COUNTRY_INFO!A18=0," ",COUNTRY_INFO!A18) -> Congo | B18: =IF(COUNTRY_INFO!B18=0," ",COUNTRY_INFO!B18) -> Brazzaville | C18: =IF(COUNTRY_INFO!C18=0," ",COUNTRY_INFO!C18) -> Poto-Poto | D18: =COUNTRY_INFO!L18 -> 0 | G18: =MAX('MDA1'!M18,'MDA2'!M18) -> 0 | H18: =IF(AND(COUNTRY_INFO!H18>0,COUNTRY_INFO!H18<4),IF(D18>MAX('MDA1'!M18,'MDA2'!M18),MAX('MDA1'!M18,'MDA2'!M18),D18),0) -> 0 | I18: =IF(AND(COUNTRY_INFO!H18>0,COUNTRY_INFO!H18<4), IF(G18/D18*100<>0, IF(G18/D18*100>100,100,G18/D18*100), "-"),0) -> 0 | J18: =COUNTRY_INFO!M18 -> 0 | M18: =MAX('MDA1'!M18,MAX('MDA3'!I18,'MDA3'!L18)+MAX('MDA3'!J18,'MDA3'!M18)) -> 0 | N18: =IF(AND(COUNTRY_INFO!I18>0,COUNTRY_INFO!I18<4),IF(J18>MAX('MDA1'!M18,MAX('MDA3'!I18,'MDA3'!L18)+MAX('MDA3'!J18,'MDA3'!M18)),MAX('MDA1'!M18,MAX('MDA3'!I18,'MDA3'!L18)+MAX('MDA3'!J18,'MDA3'!M18)),J18),0) -> 0 | O18: =IF(AND(COUNTRY_INFO!I18>0,COUNTRY_INFO!I18<4), IF(M18/J18*100<>0, IF(M18/J18*100>100,100,M18/J18*100), "-"),0) -> 0 | P18: =COUNTRY_INFO!N18 -> 0 | S18: =SUM(MAX('MDA2'!J18, 'T1'!L18, MAX(T3_R1!K18, T3_R2!K18)), MAX('MDA1'!K18, 'MDA2'!K18, 'T1'!M18, MAX(T3_R1!L18, T3_R2!L18)), MAX('MDA1'!L18, 'MDA2'!L18, 'T1'!N18, MAX(T3_R1!M18, T3_R2!M18))) -> 10549 | T18: =IF(AND(COUNTRY_INFO!J18>1,COUNTRY_INFO!J18<4),IF(COUNTRY_INFO!E18>MAX('MDA2'!J18,'T1'!L18,MAX(T3_R1!K18,T3_R2!K18)),MAX('MDA2'!J18,'T1'!L18,MAX(T3_R1!K18,T3_R2!K18)),COUNTRY_INFO!E18),0) -> 0 | U18: =IF(AND(COUNTRY_INFO!J18>1,COUNTRY_INFO!J18<4), IF(T18/COUNTRY_INFO!E18*100<>0, IF(T18/COUNTRY_INFO!E18*100>100,100,T18/COUNTRY_INFO!E18*100), "-"),0) -> 0 | V18: =IF(AND(COUNTRY_INFO!J18>1,COUNTRY_INFO!J18<4),IF(COUNTRY_INFO!F18>MAX('MDA1'!K18,'MDA2'!K18,'T1'!M18,MAX(T3_R1!L18,T3_R2!L18)),MAX('MDA1'!K18,'MDA2'!K18,'T1'!M18,MAX(T3_R1!L18,T3_R2!L18)),COUNTRY_INFO!F18),0) -> 0 | W18: =IF(AND(COUNTRY_INFO!J18>1,COUNTRY_INFO!J18<4), IF(V18/COUNTRY_INFO!F18*100<>0, IF(V18/COUNTRY_INFO!F18*100>100,100,V18/COUNTRY_INFO!F18*100), "-"),0) -> 0 | X18: 0 | Y18: =IF(AND(COUNTRY_INFO!J18>1,COUNTRY_INFO!J18<4), IF(S18/P18*100<>0, IF(X18/P18*100>100,100,X18/P18*100), "-"),0) -> 0 | Z18: =COUNTRY_INFO!O18 -> 0 | AC18: =MAX('T1'!L18,'T2'!J18)+MAX('T1'!M18,'T2'!K18)+MAX('T1'!N18,'T2'!L18) -> 0 | AD18: =IF(COUNTRY_INFO!K18=1,IF(COUNTRY_INFO!F18*0.33>MAX('T1'!M18,'T2'!K18),MAX('T1'!M18,'T2'!K18),COUNTRY_INFO!F18*0.33),IF(COUNTRY_INFO!K18=2,IF(COUNTRY_INFO!F18*0.5>MAX('T1'!M18,'T2'!K18),MAX('T1'!M18,'T2'!K18),COUNTRY_INFO!F18*0.5),IF(COUNTRY_INFO!K18=3,IF(COUNTRY_INFO!F18>MAX('T1'!M18,'T2'!K18),MAX('T1'!M18,'T2'!K18),COUNTRY_INFO!F18),0))) -> 0 | AE18: =IF(AND(COUNTRY_INFO!K18>0,COUNTRY_INFO!K18<4),IF(Z18>0,IF(COUNTRY_INFO!K18=1, AD18/(COUNTRY_INFO!F18*0.33)*100, IF(COUNTRY_INFO!K18=2, AD18/(COUNTRY_INFO!F18*0.5)*100, IF(COUNTRY_INFO!K18=3, AD18/COUNTRY_INFO!F18*100))),"-"),0) -> 0 | AF18: =IF(COUNTRY_INFO!K18=2,IF(COUNTRY_INFO!G18*0.2>MAX('T1'!N18,'T2'!L18),MAX('T1'!N18,'T2'!L18),COUNTRY_INFO!G18*0.2),IF(COUNTRY_INFO!K18=3,IF(COUNTRY_INFO!G18>MAX('T1'!N18,'T2'!L18),MAX('T1'!N18,'T2'!L18),COUNTRY_INFO!G18),0)) -> 0 | AG18: =IF(AND(COUNTRY_INFO!K18>0,COUNTRY_INFO!K18<4),IF(Z18>0,IF(COUNTRY_INFO!K18=1, 0, IF(COUNTRY_INFO!K18=2, AF18/(COUNTRY_INFO!G18*0.2)*100, IF(COUNTRY_INFO!K18=3, AF18/COUNTRY_INFO!G18*100))),"-"),0) -> 0 | AH18: 0 | AI18: =IF(AND(COUNTRY_INFO!K18>0,COUNTRY_INFO!K18<4), IF(AC18/Z18*100<>0, IF(AH18/Z18*100>100,100,AH18/Z18*100), "-"),0) -> 0 | AK18: =IF(AND(D18<>0, D18<>"Inconnu",D18<>"Interrompu",D18<>"Non requis"),D18/COUNTRY_INFO!D18, 0) -> 0 | AL18: =IF(AND(J18<>0,J18<>"Inconnu",J18<>"Interrompu",J18<>"Non requis"),J18/COUNTRY_INFO!D18, 0) -> 0 | AM18: =IF(AND(P18<>0,P18<>"Inconnu",P18<>"Non requis"),P18/(COUNTRY_INFO!E18+COUNTRY_INFO!F18), 0) -> 0 | AN18: =IF(AND(Z18<>0,Z18<>"Inconnu",Z18<>"Non requis"),IF(COUNTRY_INFO!K18=1,1,IF(COUNTRY_INFO!K18=2,0.5*COUNTRY_INFO!F18/(0.5*COUNTRY_INFO!F18+0.2*COUNTRY_INFO!G18),IF(COUNTRY_INFO!K18=3,COUNTRY_INFO!F18/(COUNTRY_INFO!F18+COUNTRY_INFO!G18)))),0) -> 0 | AO18: =IF(AND(Z18<>0,Z18<>"Inconnu",Z18<>"Non requis"),IF(COUNTRY_INFO!K18=1,0,IF(COUNTRY_INFO!K18=2,0.2*COUNTRY_INFO!G18/(0.5*COUNTRY_INFO!F18+0.2*COUNTRY_INFO!G18),IF(COUNTRY_INFO!K18=3,COUNTRY_INFO!G18/(COUNTRY_INFO!F18+COUNTRY_INFO!G18)))),0) -> 0 | AP18: =MAX(COUNTRY_INFO!D18*AK18*PROFILE!$G$7,COUNTRY_INFO!D18*AL18*PROFILE!$G$7) -> 0 | AQ18: =MAX(COUNTRY_INFO!D18*AK18*PROFILE!$G$8,COUNTRY_INFO!D18*AL18*PROFILE!$G$8,COUNTRY_INFO!D18*AM18*PROFILE!$G$8) -> 0 | AR18: =MAX(COUNTRY_INFO!D18*AK18*PROFILE!$G$9,COUNTRY_INFO!D18*AL18*PROFILE!$G$9,COUNTRY_INFO!D18*AM18*PROFILE!$G$9,IF(AND(DISTRICT!Z18<>"Inconnu",Z18<>"Non requis"),COUNTRY_INFO!O18*DISTRICT!AN18,0)) -> 0 | AS18: =MAX(COUNTRY_INFO!D18*AK18*PROFILE!$G$10,COUNTRY_INFO!D18*AL18*PROFILE!$G$10,IF(AND(DISTRICT!Z18<>"Inconnu",Z18<>"Non requis"),COUNTRY_INFO!O18*DISTRICT!AO18,0)) -> 0 | AT18: 0 | AU18: 0 | AV18: =MAX('MDA2'!J18,'T1'!L18,'T2'!J18,T3_R1!K18,T3_R2!K18) -> 0 | AW18: =MAX('MDA1'!K18,'MDA2'!K18,'MDA3'!I18,'MDA3'!L18,'T1'!M18,'T2'!K18,T3_R1!L18,T3_R2!L18) -> 10549 | AX18: =MAX('MDA1'!L18,'MDA2'!L18,'MDA3'!J18,'MDA3'!M18,'T1'!N18,'T2'!L18,T3_R1!M18,T3_R2!M18) -> 0 | AY18: 10549 | AZ18: =MAX('MDA2'!J18,T18) -> 0 | BA18: =MAX('MDA1'!K18,'MDA2'!K18,'MDA3'!I18,'MDA3'!L18,V18,AD18) -> 0 | BB18: =MAX('MDA1'!L18,'MDA2'!L18,'MDA3'!J18,'MDA3'!M18,AF18) -> 0 | BC18: 0 | BD18: 0
A19: =IF(COUNTRY_INFO!A19=0," ",COUNTRY_INFO!A19) -> Congo | B19: =IF(COUNTRY_INFO!B19=0," ",COUNTRY_INFO!B19) -> Brazzaville | C19: =IF(COUNTRY_INFO!C19=0," ",COUNTRY_INFO!C19) -> Talangaî | D19: =COUNTRY_INFO!L19 -> 0 | G19: =MAX('MDA1'!M19,'MDA2'!M19) -> 0 | H19: =IF(AND(COUNTRY_INFO!H19>0,COUNTRY_INFO!H19<4),IF(D19>MAX('MDA1'!M19,'MDA2'!M19),MAX('MDA1'!M19,'MDA2'!M19),D19),0) -> 0 | I19: =IF(AND(COUNTRY_INFO!H19>0,COUNTRY_INFO!H19<4), IF(G19/D19*100<>0, IF(G19/D19*100>100,100,G19/D19*100), "-"),0) -> 0 | J19: =COUNTRY_INFO!M19 -> 0 | M19: =MAX('MDA1'!M19,MAX('MDA3'!I19,'MDA3'!L19)+MAX('MDA3'!J19,'MDA3'!M19)) -> 0 | N19: =IF(AND(COUNTRY_INFO!I19>0,COUNTRY_INFO!I19<4),IF(J19>MAX('MDA1'!M19,MAX('MDA3'!I19,'MDA3'!L19)+MAX('MDA3'!J19,'MDA3'!M19)),MAX('MDA1'!M19,MAX('MDA3'!I19,'MDA3'!L19)+MAX('MDA3'!J19,'MDA3'!M19)),J19),0) -> 0 | O19: =IF(AND(COUNTRY_INFO!I19>0,COUNTRY_INFO!I19<4), IF(M19/J19*100<>0, IF(M19/J19*100>100,100,M19/J19*100), "-"),0) -> 0 | P19: =COUNTRY_INFO!N19 -> 0 | S19: =SUM(MAX('MDA2'!J19, 'T1'!L19, MAX(T3_R1!K19, T3_R2!K19)), MAX('MDA1'!K19, 'MDA2'!K19, 'T1'!M19, MAX(T3_R1!L19, T3_R2!L19)), MAX('MDA1'!L19, 'MDA2'!L19, 'T1'!N19, MAX(T3_R1!M19, T3_R2!M19))) -> 30114 | T19: =IF(AND(COUNTRY_INFO!J19>1,COUNTRY_INFO!J19<4),IF(COUNTRY_INFO!E19>MAX('MDA2'!J19,'T1'!L19,MAX(T3_R1!K19,T3_R2!K19)),MAX('MDA2'!J19,'T1'!L19,MAX(T3_R1!K19,T3_R2!K19)),COUNTRY_INFO!E19),0) -> 0 | U19: =IF(AND(COUNTRY_INFO!J19>1,COUNTRY_INFO!J19<4), IF(T19/COUNTRY_INFO!E19*100<>0, IF(T19/COUNTRY_INFO!E19*100>100,100,T19/COUNTRY_INFO!E19*100), "-"),0) -> 0 | V19: =IF(AND(COUNTRY_INFO!J19>1,COUNTRY_INFO!J19<4),IF(COUNTRY_INFO!F19>MAX('MDA1'!K19,'MDA2'!K19,'T1'!M19,MAX(T3_R1!L19,T3_R2!L19)),MAX('MDA1'!K19,'MDA2'!K19,'T1'!M19,MAX(T3_R1!L19,T3_R2!L19)),COUNTRY_INFO!F19),0) -> 0 | W19: =IF(AND(COUNTRY_INFO!J19>1,COUNTRY_INFO!J19<4), IF(V19/COUNTRY_INFO!F19*100<>0, IF(V19/COUNTRY_INFO!F19*100>100,100,V19/COUNTRY_INFO!F19*100), "-"),0) -> 0 | X19: 0 | Y19: =IF(AND(COUNTRY_INFO!J19>1,COUNTRY_INFO!J19<4), IF(S19/P19*100<>0, IF(X19/P19*100>100,100,X19/P19*100), "-"),0) -> 0 | Z19: =COUNTRY_INFO!O19 -> 0 | AC19: =MAX('T1'!L19,'T2'!J19)+MAX('T1'!M19,'T2'!K19)+MAX('T1'!N19,'T2'!L19) -> 0 | AD19: =IF(COUNTRY_INFO!K19=1,IF(COUNTRY_INFO!F19*0.33>MAX('T1'!M19,'T2'!K19),MAX('T1'!M19,'T2'!K19),COUNTRY_INFO!F19*0.33),IF(COUNTRY_INFO!K19=2,IF(COUNTRY_INFO!F19*0.5>MAX('T1'!M19,'T2'!K19),MAX('T1'!M19,'T2'!K19),COUNTRY_INFO!F19*0.5),IF(COUNTRY_INFO!K19=3,IF(COUNTRY_INFO!F19>MAX('T1'!M19,'T2'!K19),MAX('T1'!M19,'T2'!K19),COUNTRY_INFO!F19),0))) -> 0 | AE19: =IF(AND(COUNTRY_INFO!K19>0,COUNTRY_INFO!K19<4),IF(Z19>0,IF(COUNTRY_INFO!K19=1, AD19/(COUNTRY_INFO!F19*0.33)*100, IF(COUNTRY_INFO!K19=2, AD19/(COUNTRY_INFO!F19*0.5)*100, IF(COUNTRY_INFO!K19=3, AD19/COUNTRY_INFO!F19*100))),"-"),0) -> 0 | AF19: =IF(COUNTRY_INFO!K19=2,IF(COUNTRY_INFO!G19*0.2>MAX('T1'!N19,'T2'!L19),MAX('T1'!N19,'T2'!L19),COUNTRY_INFO!G19*0.2),IF(COUNTRY_INFO!K19=3,IF(COUNTRY_INFO!G19>MAX('T1'!N19,'T2'!L19),MAX('T1'!N19,'T2'!L19),COUNTRY_INFO!G19),0)) -> 0 | AG19: =IF(AND(COUNTRY_INFO!K19>0,COUNTRY_INFO!K19<4),IF(Z19>0,IF(COUNTRY_INFO!K19=1, 0, IF(COUNTRY_INFO!K19=2, AF19/(COUNTRY_INFO!G19*0.2)*100, IF(COUNTRY_INFO!K19=3, AF19/COUNTRY_INFO!G19*100))),"-"),0) -> 0 | AH19: 0 | AI19: =IF(AND(COUNTRY_INFO!K19>0,COUNTRY_INFO!K19<4), IF(AC19/Z19*100<>0, IF(AH19/Z19*100>100,100,AH19/Z19*100), "-"),0) -> 0 | AK19: =IF(AND(D19<>0, D19<>"Inconnu",D19<>"Interrompu",D19<>"Non requis"),D19/COUNTRY_INFO!D19, 0) -> 0 | AL19: =IF(AND(J19<>0,J19<>"Inconnu",J19<>"Interrompu",J19<>"Non requis"),J19/COUNTRY_INFO!D19, 0) -> 0 | AM19: =IF(AND(P19<>0,P19<>"Inconnu",P19<>"Non requis"),P19/(COUNTRY_INFO!E19+COUNTRY_INFO!F19), 0) -> 0 | AN19: =IF(AND(Z19<>0,Z19<>"Inconnu",Z19<>"Non requis"),IF(COUNTRY_INFO!K19=1,1,IF(COUNTRY_INFO!K19=2,0.5*COUNTRY_INFO!F19/(0.5*COUNTRY_INFO!F19+0.2*COUNTRY_INFO!G19),IF(COUNTRY_INFO!K19=3,COUNTRY_INFO!F19/(COUNTRY_INFO!F19+COUNTRY_INFO!G19)))),0) -> 0 | AO19: =IF(AND(Z19<>0,Z19<>"Inconnu",Z19<>"Non requis"),IF(COUNTRY_INFO!K19=1,0,IF(COUNTRY_INFO!K19=2,0.2*COUNTRY_INFO!G19/(0.5*COUNTRY_INFO!F19+0.2*COUNTRY_INFO!G19),IF(COUNTRY_INFO!K19=3,COUNTRY_INFO!G19/(COUNTRY_INFO!F19+COUNTRY_INFO!G19)))),0) -> 0 | AP19: =MAX(COUNTRY_INFO!D19*AK19*PROFILE!$G$7,COUNTRY_INFO!D19*AL19*PROFILE!$G$7) -> 0 | AQ19: =MAX(COUNTRY_INFO!D19*AK19*PROFILE!$G$8,COUNTRY_INFO!D19*AL19*PROFILE!$G$8,COUNTRY_INFO!D19*AM19*PROFILE!$G$8) -> 0 | AR19: =MAX(COUNTRY_INFO!D19*AK19*PROFILE!$G$9,COUNTRY_INFO!D19*AL19*PROFILE!$G$9,COUNTRY_INFO!D19*AM19*PROFILE!$G$9,IF(AND(DISTRICT!Z19<>"Inconnu",Z19<>"Non requis"),COUNTRY_INFO!O19*DISTRICT!AN19,0)) -> 0 | AS19: =MAX(COUNTRY_INFO!D19*AK19*PROFILE!$G$10,COUNTRY_INFO!D19*AL19*PROFILE!$G$10,IF(AND(DISTRICT!Z19<>"Inconnu",Z19<>"Non requis"),COUNTRY_INFO!O19*DISTRICT!AO19,0)) -> 0 | AT19: 0 | AU19: 0 | AV19: =MAX('MDA2'!J19,'T1'!L19,'T2'!J19,T3_R1!K19,T3_R2!K19) -> 0 | AW19: =MAX('MDA1'!K19,'MDA2'!K19,'MDA3'!I19,'MDA3'!L19,'T1'!M19,'T2'!K19,T3_R1!L19,T3_R2!L19) -> 30114 | AX19: =MAX('MDA1'!L19,'MDA2'!L19,'MDA3'!J19,'MDA3'!M19,'T1'!N19,'T2'!L19,T3_R1!M19,T3_R2!M19) -> 0 | AY19: 30114 | AZ19: =MAX('MDA2'!J19,T19) -> 0 | BA19: =MAX('MDA1'!K19,'MDA2'!K19,'MDA3'!I19,'MDA3'!L19,V19,AD19) -> 0 | BB19: =MAX('MDA1'!L19,'MDA2'!L19,'MDA3'!J19,'MDA3'!M19,AF19) -> 0 | BC19: 0 | BD19: 0
A20: =IF(COUNTRY_INFO!A20=0," ",COUNTRY_INFO!A20) -> Congo | B20: =IF(COUNTRY_INFO!B20=0," ",COUNTRY_INFO!B20) -> Brazzaville | C20: =IF(COUNTRY_INFO!C20=0," ",COUNTRY_INFO!C20) -> Madibou | D20: =COUNTRY_INFO!L20 -> 0 | G20: =MAX('MDA1'!M20,'MDA2'!M20) -> 0 | H20: =IF(AND(COUNTRY_INFO!H20>0,COUNTRY_INFO!H20<4),IF(D20>MAX('MDA1'!M20,'MDA2'!M20),MAX('MDA1'!M20,'MDA2'!M20),D20),0) -> 0 | I20: =IF(AND(COUNTRY_INFO!H20>0,COUNTRY_INFO!H20<4), IF(G20/D20*100<>0, IF(G20/D20*100>100,100,G20/D20*100), "-"),0) -> 0 | J20: =COUNTRY_INFO!M20 -> 150383 | K20: 38248 | L20: 51027 | M20: =MAX('MDA1'!M20,MAX('MDA3'!I20,'MDA3'!L20)+MAX('MDA3'!J20,'MDA3'!M20)) -> 89828 | N20: =IF(AND(COUNTRY_INFO!I20>0,COUNTRY_INFO!I20<4),IF(J20>MAX('MDA1'!M20,MAX('MDA3'!I20,'MDA3'!L20)+MAX('MDA3'!J20,'MDA3'!M20)),MAX('MDA1'!M20,MAX('MDA3'!I20,'MDA3'!L20)+MAX('MDA3'!J20,'MDA3'!M20)),J20),0) -> 89828 | O20: =IF(AND(COUNTRY_INFO!I20>0,COUNTRY_INFO!I20<4), IF(M20/J20*100<>0, IF(M20/J20*100>100,100,M20/J20*100), "-"),0) -> 59.73281554 | P20: =COUNTRY_INFO!N20 -> 0 | S20: =SUM(MAX('MDA2'!J20, 'T1'!L20, MAX(T3_R1!K20, T3_R2!K20)), MAX('MDA1'!K20, 'MDA2'!K20, 'T1'!M20, MAX(T3_R1!L20, T3_R2!L20)), MAX('MDA1'!L20, 'MDA2'!L20, 'T1'!N20, MAX(T3_R1!M20, T3_R2!M20))) -> 32109 | T20: =IF(AND(COUNTRY_INFO!J20>1,COUNTRY_INFO!J20<4),IF(COUNTRY_INFO!E20>MAX('MDA2'!J20,'T1'!L20,MAX(T3_R1!K20,T3_R2!K20)),MAX('MDA2'!J20,'T1'!L20,MAX(T3_R1!K20,T3_R2!K20)),COUNTRY_INFO!E20),0) -> 0 | U20: =IF(AND(COUNTRY_INFO!J20>1,COUNTRY_INFO!J20<4), IF(T20/COUNTRY_INFO!E20*100<>0, IF(T20/COUNTRY_INFO!E20*100>100,100,T20/COUNTRY_INFO!E20*100), "-"),0) -> 0 | V20: =IF(AND(COUNTRY_INFO!J20>1,COUNTRY_INFO!J20<4),IF(COUNTRY_INFO!F20>MAX('MDA1'!K20,'MDA2'!K20,'T1'!M20,MAX(T3_R1!L20,T3_R2!L20)),MAX('MDA1'!K20,'MDA2'!K20,'T1'!M20,MAX(T3_R1!L20,T3_R2!L20)),COUNTRY_INFO!F20),0) -> 0 | W20: =IF(AND(COUNTRY_INFO!J20>1,COUNTRY_INFO!J20<4), IF(V20/COUNTRY_INFO!F20*100<>0, IF(V20/COUNTRY_INFO!F20*100>100,100,V20/COUNTRY_INFO!F20*100), "-"),0) -> 0 | X20: 0 | Y20: =IF(AND(COUNTRY_INFO!J20>1,COUNTRY_INFO!J20<4), IF(S20/P20*100<>0, IF(X20/P20*100>100,100,X20/P20*100), "-"),0) -> 0 | Z20: =COUNTRY_INFO!O20 -> 0 | AC20: =MAX('T1'!L20,'T2'!J20)+MAX('T1'!M20,'T2'!K20)+MAX('T1'!N20,'T2'!L20) -> 0 | AD20: =IF(COUNTRY_INFO!K20=1,IF(COUNTRY_INFO!F20*0.33>MAX('T1'!M20,'T2'!K20),MAX('T1'!M20,'T2'!K20),COUNTRY_INFO!F20*0.33),IF(COUNTRY_INFO!K20=2,IF(COUNTRY_INFO!F20*0.5>MAX('T1'!M20,'T2'!K20),MAX('T1'!M20,'T2'!K20),COUNTRY_INFO!F20*0.5),IF(COUNTRY_INFO!K20=3,IF(COUNTRY_INFO!F20>MAX('T1'!M20,'T2'!K20),MAX('T1'!M20,'T2'!K20),COUNTRY_INFO!F20),0))) -> 0 | AE20: =IF(AND(COUNTRY_INFO!K20>0,COUNTRY_INFO!K20<4),IF(Z20>0,IF(COUNTRY_INFO!K20=1, AD20/(COUNTRY_INFO!F20*0.33)*100, IF(COUNTRY_INFO!K20=2, AD20/(COUNTRY_INFO!F20*0.5)*100, IF(COUNTRY_INFO!K20=3, AD20/COUNTRY_INFO!F20*100))),"-"),0) -> 0 | AF20: =IF(COUNTRY_INFO!K20=2,IF(COUNTRY_INFO!G20*0.2>MAX('T1'!N20,'T2'!L20),MAX('T1'!N20,'T2'!L20),COUNTRY_INFO!G20*0.2),IF(COUNTRY_INFO!K20=3,IF(COUNTRY_INFO!G20>MAX('T1'!N20,'T2'!L20),MAX('T1'!N20,'T2'!L20),COUNTRY_INFO!G20),0)) -> 0 | AG20: =IF(AND(COUNTRY_INFO!K20>0,COUNTRY_INFO!K20<4),IF(Z20>0,IF(COUNTRY_INFO!K20=1, 0, IF(COUNTRY_INFO!K20=2, AF20/(COUNTRY_INFO!G20*0.2)*100, IF(COUNTRY_INFO!K20=3, AF20/COUNTRY_INFO!G20*100))),"-"),0) -> 0 | AH20: 0 | AI20: =IF(AND(COUNTRY_INFO!K20>0,COUNTRY_INFO!K20<4), IF(AC20/Z20*100<>0, IF(AH20/Z20*100>100,100,AH20/Z20*100), "-"),0) -> 0 | AK20: =IF(AND(D20<>0, D20<>"Inconnu",D20<>"Interrompu",D20<>"Non requis"),D20/COUNTRY_INFO!D20, 0) -> 0 | AL20: =IF(AND(J20<>0,J20<>"Inconnu",J20<>"Interrompu",J20<>"Non requis"),J20/COUNTRY_INFO!D20, 0) -> 1 | AM20: =IF(AND(P20<>0,P20<>"Inconnu",P20<>"Non requis"),P20/(COUNTRY_INFO!E20+COUNTRY_INFO!F20), 0) -> 0 | AN20: =IF(AND(Z20<>0,Z20<>"Inconnu",Z20<>"Non requis"),IF(COUNTRY_INFO!K20=1,1,IF(COUNTRY_INFO!K20=2,0.5*COUNTRY_INFO!F20/(0.5*COUNTRY_INFO!F20+0.2*COUNTRY_INFO!G20),IF(COUNTRY_INFO!K20=3,COUNTRY_INFO!F20/(COUNTRY_INFO!F20+COUNTRY_INFO!G20)))),0) -> 0 | AO20: =IF(AND(Z20<>0,Z20<>"Inconnu",Z20<>"Non requis"),IF(COUNTRY_INFO!K20=1,0,IF(COUNTRY_INFO!K20=2,0.2*COUNTRY_INFO!G20/(0.5*COUNTRY_INFO!F20+0.2*COUNTRY_INFO!G20),IF(COUNTRY_INFO!K20=3,COUNTRY_INFO!G20/(COUNTRY_INFO!F20+COUNTRY_INFO!G20)))),0) -> 0 | AP20: =MAX(COUNTRY_INFO!D20*AK20*PROFILE!$G$7,COUNTRY_INFO!D20*AL20*PROFILE!$G$7) -> 7067.944947 | AQ20: =MAX(COUNTRY_INFO!D20*AK20*PROFILE!$G$8,COUNTRY_INFO!D20*AL20*PROFILE!$G$8,COUNTRY_INFO!D20*AM20*PROFILE!$G$8) -> 24061.28938 | AR20: =MAX(COUNTRY_INFO!D20*AK20*PROFILE!$G$9,COUNTRY_INFO!D20*AL20*PROFILE!$G$9,COUNTRY_INFO!D20*AM20*PROFILE!$G$9,IF(AND(DISTRICT!Z20<>"Inconnu",Z20<>"Non requis"),COUNTRY_INFO!O20*DISTRICT!AN20,0)) -> 36091.91732 | AS20: =MAX(COUNTRY_INFO!D20*AK20*PROFILE!$G$10,COUNTRY_INFO!D20*AL20*PROFILE!$G$10,IF(AND(DISTRICT!Z20<>"Inconnu",Z20<>"Non requis"),COUNTRY_INFO!O20*DISTRICT!AO20,0)) -> 83161.84836 | AT20: 150383 | AU20: Y | AV20: =MAX('MDA2'!J20,'T1'!L20,'T2'!J20,T3_R1!K20,T3_R2!K20) -> 0 | AW20: =MAX('MDA1'!K20,'MDA2'!K20,'MDA3'!I20,'MDA3'!L20,'T1'!M20,'T2'!K20,T3_R1!L20,T3_R2!L20) -> 32109 | AX20: =MAX('MDA1'!L20,'MDA2'!L20,'MDA3'!J20,'MDA3'!M20,'T1'!N20,'T2'!L20,T3_R1!M20,T3_R2!M20) -> 68269 | AY20: 100378 | AZ20: =MAX('MDA2'!J20,T20) -> 0 | BA20: =MAX('MDA1'!K20,'MDA2'!K20,'MDA3'!I20,'MDA3'!L20,V20,AD20) -> 21559 | BB20: =MAX('MDA1'!L20,'MDA2'!L20,'MDA3'!J20,'MDA3'!M20,AF20) -> 68269 | BC20: 89828 | BD20: 59.73281554
A21: =IF(COUNTRY_INFO!A21=0," ",COUNTRY_INFO!A21) -> Congo | B21: =IF(COUNTRY_INFO!B21=0," ",COUNTRY_INFO!B21) -> Brazzaville | C21: =IF(COUNTRY_INFO!C21=0," ",COUNTRY_INFO!C21) -> Djiri | D21: =COUNTRY_INFO!L21 -> 0 | G21: =MAX('MDA1'!M21,'MDA2'!M21) -> 0 | H21: =IF(AND(COUNTRY_INFO!H21>0,COUNTRY_INFO!H21<4),IF(D21>MAX('MDA1'!M21,'MDA2'!M21),MAX('MDA1'!M21,'MDA2'!M21),D21),0) -> 0 | I21: =IF(AND(COUNTRY_INFO!H21>0,COUNTRY_INFO!H21<4), IF(G21/D21*100<>0, IF(G21/D21*100>100,100,G21/D21*100), "-"),0) -> 0 | J21: =COUNTRY_INFO!M21 -> 0 | M21: =MAX('MDA1'!M21,MAX('MDA3'!I21,'MDA3'!L21)+MAX('MDA3'!J21,'MDA3'!M21)) -> 0 | N21: =IF(AND(COUNTRY_INFO!I21>0,COUNTRY_INFO!I21<4),IF(J21>MAX('MDA1'!M21,MAX('MDA3'!I21,'MDA3'!L21)+MAX('MDA3'!J21,'MDA3'!M21)),MAX('MDA1'!M21,MAX('MDA3'!I21,'MDA3'!L21)+MAX('MDA3'!J21,'MDA3'!M21)),J21),0) -> 0 | O21: =IF(AND(COUNTRY_INFO!I21>0,COUNTRY_INFO!I21<4), IF(M21/J21*100<>0, IF(M21/J21*100>100,100,M21/J21*100), "-"),0) -> 0 | P21: =COUNTRY_INFO!N21 -> 0 | S21: =SUM(MAX('MDA2'!J21, 'T1'!L21, MAX(T3_R1!K21, T3_R2!K21)), MAX('MDA1'!K21, 'MDA2'!K21, 'T1'!M21, MAX(T3_R1!L21, T3_R2!L21)), MAX('MDA1'!L21, 'MDA2'!L21, 'T1'!N21, MAX(T3_R1!M21, T3_R2!M21))) -> 34845 | T21: =IF(AND(COUNTRY_INFO!J21>1,COUNTRY_INFO!J21<4),IF(COUNTRY_INFO!E21>MAX('MDA2'!J21,'T1'!L21,MAX(T3_R1!K21,T3_R2!K21)),MAX('MDA2'!J21,'T1'!L21,MAX(T3_R1!K21,T3_R2!K21)),COUNTRY_INFO!E21),0) -> 0 | U21: =IF(AND(COUNTRY_INFO!J21>1,COUNTRY_INFO!J21<4), IF(T21/COUNTRY_INFO!E21*100<>0, IF(T21/COUNTRY_INFO!E21*100>100,100,T21/COUNTRY_INFO!E21*100), "-"),0) -> 0 | V21: =IF(AND(COUNTRY_INFO!J21>1,COUNTRY_INFO!J21<4),IF(COUNTRY_INFO!F21>MAX('MDA1'!K21,'MDA2'!K21,'T1'!M21,MAX(T3_R1!L21,T3_R2!L21)),MAX('MDA1'!K21,'MDA2'!K21,'T1'!M21,MAX(T3_R1!L21,T3_R2!L21)),COUNTRY_INFO!F21),0) -> 0 | W21: =IF(AND(COUNTRY_INFO!J21>1,COUNTRY_INFO!J21<4), IF(V21/COUNTRY_INFO!F21*100<>0, IF(V21/COUNTRY_INFO!F21*100>100,100,V21/COUNTRY_INFO!F21*100), "-"),0) -> 0 | X21: 0 | Y21: =IF(AND(COUNTRY_INFO!J21>1,COUNTRY_INFO!J21<4), IF(S21/P21*100<>0, IF(X21/P21*100>100,100,X21/P21*100), "-"),0) -> 0 | Z21: =COUNTRY_INFO!O21 -> 0 | AC21: =MAX('T1'!L21,'T2'!J21)+MAX('T1'!M21,'T2'!K21)+MAX('T1'!N21,'T2'!L21) -> 0 | AD21: =IF(COUNTRY_INFO!K21=1,IF(COUNTRY_INFO!F21*0.33>MAX('T1'!M21,'T2'!K21),MAX('T1'!M21,'T2'!K21),COUNTRY_INFO!F21*0.33),IF(COUNTRY_INFO!K21=2,IF(COUNTRY_INFO!F21*0.5>MAX('T1'!M21,'T2'!K21),MAX('T1'!M21,'T2'!K21),COUNTRY_INFO!F21*0.5),IF(COUNTRY_INFO!K21=3,IF(COUNTRY_INFO!F21>MAX('T1'!M21,'T2'!K21),MAX('T1'!M21,'T2'!K21),COUNTRY_INFO!F21),0))) -> 0 | AE21: =IF(AND(COUNTRY_INFO!K21>0,COUNTRY_INFO!K21<4),IF(Z21>0,IF(COUNTRY_INFO!K21=1, AD21/(COUNTRY_INFO!F21*0.33)*100, IF(COUNTRY_INFO!K21=2, AD21/(COUNTRY_INFO!F21*0.5)*100, IF(COUNTRY_INFO!K21=3, AD21/COUNTRY_INFO!F21*100))),"-"),0) -> 0 | AF21: =IF(COUNTRY_INFO!K21=2,IF(COUNTRY_INFO!G21*0.2>MAX('T1'!N21,'T2'!L21),MAX('T1'!N21,'T2'!L21),COUNTRY_INFO!G21*0.2),IF(COUNTRY_INFO!K21=3,IF(COUNTRY_INFO!G21>MAX('T1'!N21,'T2'!L21),MAX('T1'!N21,'T2'!L21),COUNTRY_INFO!G21),0)) -> 0 | AG21: =IF(AND(COUNTRY_INFO!K21>0,COUNTRY_INFO!K21<4),IF(Z21>0,IF(COUNTRY_INFO!K21=1, 0, IF(COUNTRY_INFO!K21=2, AF21/(COUNTRY_INFO!G21*0.2)*100, IF(COUNTRY_INFO!K21=3, AF21/COUNTRY_INFO!G21*100))),"-"),0) -> 0 | AH21: 0 | AI21: =IF(AND(COUNTRY_INFO!K21>0,COUNTRY_INFO!K21<4), IF(AC21/Z21*100<>0, IF(AH21/Z21*100>100,100,AH21/Z21*100), "-"),0) -> 0 | AK21: =IF(AND(D21<>0, D21<>"Inconnu",D21<>"Interrompu",D21<>"Non requis"),D21/COUNTRY_INFO!D21, 0) -> 0 | AL21: =IF(AND(J21<>0,J21<>"Inconnu",J21<>"Interrompu",J21<>"Non requis"),J21/COUNTRY_INFO!D21, 0) -> 0 | AM21: =IF(AND(P21<>0,P21<>"Inconnu",P21<>"Non requis"),P21/(COUNTRY_INFO!E21+COUNTRY_INFO!F21), 0) -> 0 | AN21: =IF(AND(Z21<>0,Z21<>"Inconnu",Z21<>"Non requis"),IF(COUNTRY_INFO!K21=1,1,IF(COUNTRY_INFO!K21=2,0.5*COUNTRY_INFO!F21/(0.5*COUNTRY_INFO!F21+0.2*COUNTRY_INFO!G21),IF(COUNTRY_INFO!K21=3,COUNTRY_INFO!F21/(COUNTRY_INFO!F21+COUNTRY_INFO!G21)))),0) -> 0 | AO21: =IF(AND(Z21<>0,Z21<>"Inconnu",Z21<>"Non requis"),IF(COUNTRY_INFO!K21=1,0,IF(COUNTRY_INFO!K21=2,0.2*COUNTRY_INFO!G21/(0.5*COUNTRY_INFO!F21+0.2*COUNTRY_INFO!G21),IF(COUNTRY_INFO!K21=3,COUNTRY_INFO!G21/(COUNTRY_INFO!F21+COUNTRY_INFO!G21)))),0) -> 0 | AP21: =MAX(COUNTRY_INFO!D21*AK21*PROFILE!$G$7,COUNTRY_INFO!D21*AL21*PROFILE!$G$7) -> 0 | AQ21: =MAX(COUNTRY_INFO!D21*AK21*PROFILE!$G$8,COUNTRY_INFO!D21*AL21*PROFILE!$G$8,COUNTRY_INFO!D21*AM21*PROFILE!$G$8) -> 0 | AR21: =MAX(COUNTRY_INFO!D21*AK21*PROFILE!$G$9,COUNTRY_INFO!D21*AL21*PROFILE!$G$9,COUNTRY_INFO!D21*AM21*PROFILE!$G$9,IF(AND(DISTRICT!Z21<>"Inconnu",Z21<>"Non requis"),COUNTRY_INFO!O21*DISTRICT!AN21,0)) -> 0 | AS21: =MAX(COUNTRY_INFO!D21*AK21*PROFILE!$G$10,COUNTRY_INFO!D21*AL21*PROFILE!$G$10,IF(AND(DISTRICT!Z21<>"Inconnu",Z21<>"Non requis"),COUNTRY_INFO!O21*DISTRICT!AO21,0)) -> 0 | AT21: 0 | AU21: 0 | AV21: =MAX('MDA2'!J21,'T1'!L21,'T2'!J21,T3_R1!K21,T3_R2!K21) -> 0 | AW21: =MAX('MDA1'!K21,'MDA2'!K21,'MDA3'!I21,'MDA3'!L21,'T1'!M21,'T2'!K21,T3_R1!L21,T3_R2!L21) -> 34845 | AX21: =MAX('MDA1'!L21,'MDA2'!L21,'MDA3'!J21,'MDA3'!M21,'T1'!N21,'T2'!L21,T3_R1!M21,T3_R2!M21) -> 0 | AY21: 34845 | AZ21: =MAX('MDA2'!J21,T21) -> 0 | BA21: =MAX('MDA1'!K21,'MDA2'!K21,'MDA3'!I21,'MDA3'!L21,V21,AD21) -> 0 | BB21: =MAX('MDA1'!L21,'MDA2'!L21,'MDA3'!J21,'MDA3'!M21,AF21) -> 0 | BC21: 0 | BD21: 0
A22: =IF(COUNTRY_INFO!A22=0," ",COUNTRY_INFO!A22) -> Congo | B22: =IF(COUNTRY_INFO!B22=0," ",COUNTRY_INFO!B22) -> Cuvette | C22: =IF(COUNTRY_INFO!C22=0," ",COUNTRY_INFO!C22) -> Mossaka Loukoléla | D22: =COUNTRY_INFO!L22 -> 0 | G22: =MAX('MDA1'!M22,'MDA2'!M22) -> 0 | H22: =IF(AND(COUNTRY_INFO!H22>0,COUNTRY_INFO!H22<4),IF(D22>MAX('MDA1'!M22,'MDA2'!M22),MAX('MDA1'!M22,'MDA2'!M22),D22),0) -> 0 | I22: =IF(AND(COUNTRY_INFO!H22>0,COUNTRY_INFO!H22<4), IF(G22/D22*100<>0, IF(G22/D22*100>100,100,G22/D22*100), "-"),0) -> 0 | J22: =COUNTRY_INFO!M22 -> 0 | M22: =MAX('MDA1'!M22,MAX('MDA3'!I22,'MDA3'!L22)+MAX('MDA3'!J22,'MDA3'!M22)) -> 0 | N22: =IF(AND(COUNTRY_INFO!I22>0,COUNTRY_INFO!I22<4),IF(J22>MAX('MDA1'!M22,MAX('MDA3'!I22,'MDA3'!L22)+MAX('MDA3'!J22,'MDA3'!M22)),MAX('MDA1'!M22,MAX('MDA3'!I22,'MDA3'!L22)+MAX('MDA3'!J22,'MDA3'!M22)),J22),0) -> 0 | O22: =IF(AND(COUNTRY_INFO!I22>0,COUNTRY_INFO!I22<4), IF(M22/J22*100<>0, IF(M22/J22*100>100,100,M22/J22*100), "-"),0) -> 0 | P22: =COUNTRY_INFO!N22 -> 22890 | S22: =SUM(MAX('MDA2'!J22, 'T1'!L22, MAX(T3_R1!K22, T3_R2!K22)), MAX('MDA1'!K22, 'MDA2'!K22, 'T1'!M22, MAX(T3_R1!L22, T3_R2!L22)), MAX('MDA1'!L22, 'MDA2'!L22, 'T1'!N22, MAX(T3_R1!M22, T3_R2!M22))) -> 0 | T22: =IF(AND(COUNTRY_INFO!J22>1,COUNTRY_INFO!J22<4),IF(COUNTRY_INFO!E22>MAX('MDA2'!J22,'T1'!L22,MAX(T3_R1!K22,T3_R2!K22)),MAX('MDA2'!J22,'T1'!L22,MAX(T3_R1!K22,T3_R2!K22)),COUNTRY_INFO!E22),0) -> 0 | U22: =IF(AND(COUNTRY_INFO!J22>1,COUNTRY_INFO!J22<4), IF(T22/COUNTRY_INFO!E22*100<>0, IF(T22/COUNTRY_INFO!E22*100>100,100,T22/COUNTRY_INFO!E22*100), "-"),0) -> - | V22: =IF(AND(COUNTRY_INFO!J22>1,COUNTRY_INFO!J22<4),IF(COUNTRY_INFO!F22>MAX('MDA1'!K22,'MDA2'!K22,'T1'!M22,MAX(T3_R1!L22,T3_R2!L22)),MAX('MDA1'!K22,'MDA2'!K22,'T1'!M22,MAX(T3_R1!L22,T3_R2!L22)),COUNTRY_INFO!F22),0) -> 0 | W22: =IF(AND(COUNTRY_INFO!J22>1,COUNTRY_INFO!J22<4), IF(V22/COUNTRY_INFO!F22*100<>0, IF(V22/COUNTRY_INFO!F22*100>100,100,V22/COUNTRY_INFO!F22*100), "-"),0) -> - | X22: 0 | Y22: =IF(AND(COUNTRY_INFO!J22>1,COUNTRY_INFO!J22<4), IF(S22/P22*100<>0, IF(X22/P22*100>100,100,X22/P22*100), "-"),0) -> - | Z22: =COUNTRY_INFO!O22 -> 0 | AC22: =MAX('T1'!L22,'T2'!J22)+MAX('T1'!M22,'T2'!K22)+MAX('T1'!N22,'T2'!L22) -> 0 | AD22: =IF(COUNTRY_INFO!K22=1,IF(COUNTRY_INFO!F22*0.33>MAX('T1'!M22,'T2'!K22),MAX('T1'!M22,'T2'!K22),COUNTRY_INFO!F22*0.33),IF(COUNTRY_INFO!K22=2,IF(COUNTRY_INFO!F22*0.5>MAX('T1'!M22,'T2'!K22),MAX('T1'!M22,'T2'!K22),COUNTRY_INFO!F22*0.5),IF(COUNTRY_INFO!K22=3,IF(COUNTRY_INFO!F22>MAX('T1'!M22,'T2'!K22),MAX('T1'!M22,'T2'!K22),COUNTRY_INFO!F22),0))) -> 0 | AE22: =IF(AND(COUNTRY_INFO!K22>0,COUNTRY_INFO!K22<4),IF(Z22>0,IF(COUNTRY_INFO!K22=1, AD22/(COUNTRY_INFO!F22*0.33)*100, IF(COUNTRY_INFO!K22=2, AD22/(COUNTRY_INFO!F22*0.5)*100, IF(COUNTRY_INFO!K22=3, AD22/COUNTRY_INFO!F22*100))),"-"),0) -> 0 | AF22: =IF(COUNTRY_INFO!K22=2,IF(COUNTRY_INFO!G22*0.2>MAX('T1'!N22,'T2'!L22),MAX('T1'!N22,'T2'!L22),COUNTRY_INFO!G22*0.2),IF(COUNTRY_INFO!K22=3,IF(COUNTRY_INFO!G22>MAX('T1'!N22,'T2'!L22),MAX('T1'!N22,'T2'!L22),COUNTRY_INFO!G22),0)) -> 0 | AG22: =IF(AND(COUNTRY_INFO!K22>0,COUNTRY_INFO!K22<4),IF(Z22>0,IF(COUNTRY_INFO!K22=1, 0, IF(COUNTRY_INFO!K22=2, AF22/(COUNTRY_INFO!G22*0.2)*100, IF(COUNTRY_INFO!K22=3, AF22/COUNTRY_INFO!G22*100))),"-"),0) -> 0 | AH22: 0 | AI22: =IF(AND(COUNTRY_INFO!K22>0,COUNTRY_INFO!K22<4), IF(AC22/Z22*100<>0, IF(AH22/Z22*100>100,100,AH22/Z22*100), "-"),0) -> 0 | AK22: =IF(AND(D22<>0, D22<>"Inconnu",D22<>"Interrompu",D22<>"Non requis"),D22/COUNTRY_INFO!D22, 0) -> 0 | AL22: =IF(AND(J22<>0,J22<>"Inconnu",J22<>"Interrompu",J22<>"Non requis"),J22/COUNTRY_INFO!D22, 0) -> 0 | AM22: =IF(AND(P22<>0,P22<>"Inconnu",P22<>"Non requis"),P22/(COUNTRY_INFO!E22+COUNTRY_INFO!F22), 0) -> 1 | AN22: =IF(AND(Z22<>0,Z22<>"Inconnu",Z22<>"Non requis"),IF(COUNTRY_INFO!K22=1,1,IF(COUNTRY_INFO!K22=2,0.5*COUNTRY_INFO!F22/(0.5*COUNTRY_INFO!F22+0.2*COUNTRY_INFO!G22),IF(COUNTRY_INFO!K22=3,COUNTRY_INFO!F22/(COUNTRY_INFO!F22+COUNTRY_INFO!G22)))),0) -> 0 | AO22: =IF(AND(Z22<>0,Z22<>"Inconnu",Z22<>"Non requis"),IF(COUNTRY_INFO!K22=1,0,IF(COUNTRY_INFO!K22=2,0.2*COUNTRY_INFO!G22/(0.5*COUNTRY_INFO!F22+0.2*COUNTRY_INFO!G22),IF(COUNTRY_INFO!K22=3,COUNTRY_INFO!G22/(COUNTRY_INFO!F22+COUNTRY_INFO!G22)))),0) -> 0 | AP22: =MAX(COUNTRY_INFO!D22*AK22*PROFILE!$G$7,COUNTRY_INFO!D22*AL22*PROFILE!$G$7) -> 0 | AQ22: =MAX(COUNTRY_INFO!D22*AK22*PROFILE!$G$8,COUNTRY_INFO!D22*AL22*PROFILE!$G$8,COUNTRY_INFO!D22*AM22*PROFILE!$G$8) -> 9156.003568 | AR22: =MAX(COUNTRY_INFO!D22*AK22*PROFILE!$G$9,COUNTRY_INFO!D22*AL22*PROFILE!$G$9,COUNTRY_INFO!D22*AM22*PROFILE!$G$9,IF(AND(DISTRICT!Z22<>"Inconnu",Z22<>"Non requis"),COUNTRY_INFO!O22*DISTRICT!AN22,0)) -> 13733.99898 | AS22: =MAX(COUNTRY_INFO!D22*AK22*PROFILE!$G$10,COUNTRY_INFO!D22*AL22*PROFILE!$G$10,IF(AND(DISTRICT!Z22<>"Inconnu",Z22<>"Non requis"),COUNTRY_INFO!O22*DISTRICT!AO22,0)) -> 0 | AT22: 22890.00255 | AU22: 0 | AV22: =MAX('MDA2'!J22,'T1'!L22,'T2'!J22,T3_R1!K22,T3_R2!K22) -> 0 | AW22: =MAX('MDA1'!K22,'MDA2'!K22,'MDA3'!I22,'MDA3'!L22,'T1'!M22,'T2'!K22,T3_R1!L22,T3_R2!L22) -> 0 | AX22: =MAX('MDA1'!L22,'MDA2'!L22,'MDA3'!J22,'MDA3'!M22,'T1'!N22,'T2'!L22,T3_R1!M22,T3_R2!M22) -> 0 | AY22: 0 | AZ22: =MAX('MDA2'!J22,T22) -> 0 | BA22: =MAX('MDA1'!K22,'MDA2'!K22,'MDA3'!I22,'MDA3'!L22,V22,AD22) -> 0 | BB22: =MAX('MDA1'!L22,'MDA2'!L22,'MDA3'!J22,'MDA3'!M22,AF22) -> 0 | BC22: 0 | BD22: 0
A23: =IF(COUNTRY_INFO!A23=0," ",COUNTRY_INFO!A23) -> Congo | B23: =IF(COUNTRY_INFO!B23=0," ",COUNTRY_INFO!B23) -> Cuvette | C23: =IF(COUNTRY_INFO!C23=0," ",COUNTRY_INFO!C23) -> Owando | D23: =COUNTRY_INFO!L23 -> 0 | G23: =MAX('MDA1'!M23,'MDA2'!M23) -> 0 | H23: =IF(AND(COUNTRY_INFO!H23>0,COUNTRY_INFO!H23<4),IF(D23>MAX('MDA1'!M23,'MDA2'!M23),MAX('MDA1'!M23,'MDA2'!M23),D23),0) -> 0 | I23: =IF(AND(COUNTRY_INFO!H23>0,COUNTRY_INFO!H23<4), IF(G23/D23*100<>0, IF(G23/D23*100>100,100,G23/D23*100), "-"),0) -> 0 | J23: =COUNTRY_INFO!M23 -> 0 | M23: =MAX('MDA1'!M23,MAX('MDA3'!I23,'MDA3'!L23)+MAX('MDA3'!J23,'MDA3'!M23)) -> 0 | N23: =IF(AND(COUNTRY_INFO!I23>0,COUNTRY_INFO!I23<4),IF(J23>MAX('MDA1'!M23,MAX('MDA3'!I23,'MDA3'!L23)+MAX('MDA3'!J23,'MDA3'!M23)),MAX('MDA1'!M23,MAX('MDA3'!I23,'MDA3'!L23)+MAX('MDA3'!J23,'MDA3'!M23)),J23),0) -> 0 | O23: =IF(AND(COUNTRY_INFO!I23>0,COUNTRY_INFO!I23<4), IF(M23/J23*100<>0, IF(M23/J23*100>100,100,M23/J23*100), "-"),0) -> 0 | P23: =COUNTRY_INFO!N23 -> 0 | S23: =SUM(MAX('MDA2'!J23, 'T1'!L23, MAX(T3_R1!K23, T3_R2!K23)), MAX('MDA1'!K23, 'MDA2'!K23, 'T1'!M23, MAX(T3_R1!L23, T3_R2!L23)), MAX('MDA1'!L23, 'MDA2'!L23, 'T1'!N23, MAX(T3_R1!M23, T3_R2!M23))) -> 0 | T23: =IF(AND(COUNTRY_INFO!J23>1,COUNTRY_INFO!J23<4),IF(COUNTRY_INFO!E23>MAX('MDA2'!J23,'T1'!L23,MAX(T3_R1!K23,T3_R2!K23)),MAX('MDA2'!J23,'T1'!L23,MAX(T3_R1!K23,T3_R2!K23)),COUNTRY_INFO!E23),0) -> 0 | U23: =IF(AND(COUNTRY_INFO!J23>1,COUNTRY_INFO!J23<4), IF(T23/COUNTRY_INFO!E23*100<>0, IF(T23/COUNTRY_INFO!E23*100>100,100,T23/COUNTRY_INFO!E23*100), "-"),0) -> 0 | V23: =IF(AND(COUNTRY_INFO!J23>1,COUNTRY_INFO!J23<4),IF(COUNTRY_INFO!F23>MAX('MDA1'!K23,'MDA2'!K23,'T1'!M23,MAX(T3_R1!L23,T3_R2!L23)),MAX('MDA1'!K23,'MDA2'!K23,'T1'!M23,MAX(T3_R1!L23,T3_R2!L23)),COUNTRY_INFO!F23),0) -> 0 | W23: =IF(AND(COUNTRY_INFO!J23>1,COUNTRY_INFO!J23<4), IF(V23/COUNTRY_INFO!F23*100<>0, IF(V23/COUNTRY_INFO!F23*100>100,100,V23/COUNTRY_INFO!F23*100), "-"),0) -> 0 | X23: 0 | Y23: =IF(AND(COUNTRY_INFO!J23>1,COUNTRY_INFO!J23<4), IF(S23/P23*100<>0, IF(X23/P23*100>100,100,X23/P23*100), "-"),0) -> 0 | Z23: =COUNTRY_INFO!O23 -> 0 | AC23: =MAX('T1'!L23,'T2'!J23)+MAX('T1'!M23,'T2'!K23)+MAX('T1'!N23,'T2'!L23) -> 0 | AD23: =IF(COUNTRY_INFO!K23=1,IF(COUNTRY_INFO!F23*0.33>MAX('T1'!M23,'T2'!K23),MAX('T1'!M23,'T2'!K23),COUNTRY_INFO!F23*0.33),IF(COUNTRY_INFO!K23=2,IF(COUNTRY_INFO!F23*0.5>MAX('T1'!M23,'T2'!K23),MAX('T1'!M23,'T2'!K23),COUNTRY_INFO!F23*0.5),IF(COUNTRY_INFO!K23=3,IF(COUNTRY_INFO!F23>MAX('T1'!M23,'T2'!K23),MAX('T1'!M23,'T2'!K23),COUNTRY_INFO!F23),0))) -> 0 | AE23: =IF(AND(COUNTRY_INFO!K23>0,COUNTRY_INFO!K23<4),IF(Z23>0,IF(COUNTRY_INFO!K23=1, AD23/(COUNTRY_INFO!F23*0.33)*100, IF(COUNTRY_INFO!K23=2, AD23/(COUNTRY_INFO!F23*0.5)*100, IF(COUNTRY_INFO!K23=3, AD23/COUNTRY_INFO!F23*100))),"-"),0) -> 0 | AF23: =IF(COUNTRY_INFO!K23=2,IF(COUNTRY_INFO!G23*0.2>MAX('T1'!N23,'T2'!L23),MAX('T1'!N23,'T2'!L23),COUNTRY_INFO!G23*0.2),IF(COUNTRY_INFO!K23=3,IF(COUNTRY_INFO!G23>MAX('T1'!N23,'T2'!L23),MAX('T1'!N23,'T2'!L23),COUNTRY_INFO!G23),0)) -> 0 | AG23: =IF(AND(COUNTRY_INFO!K23>0,COUNTRY_INFO!K23<4),IF(Z23>0,IF(COUNTRY_INFO!K23=1, 0, IF(COUNTRY_INFO!K23=2, AF23/(COUNTRY_INFO!G23*0.2)*100, IF(COUNTRY_INFO!K23=3, AF23/COUNTRY_INFO!G23*100))),"-"),0) -> 0 | AH23: 0 | AI23: =IF(AND(COUNTRY_INFO!K23>0,COUNTRY_INFO!K23<4), IF(AC23/Z23*100<>0, IF(AH23/Z23*100>100,100,AH23/Z23*100), "-"),0) -> 0 | AK23: =IF(AND(D23<>0, D23<>"Inconnu",D23<>"Interrompu",D23<>"Non requis"),D23/COUNTRY_INFO!D23, 0) -> 0 | AL23: =IF(AND(J23<>0,J23<>"Inconnu",J23<>"Interrompu",J23<>"Non requis"),J23/COUNTRY_INFO!D23, 0) -> 0 | AM23: =IF(AND(P23<>0,P23<>"Inconnu",P23<>"Non requis"),P23/(COUNTRY_INFO!E23+COUNTRY_INFO!F23), 0) -> 0 | AN23: =IF(AND(Z23<>0,Z23<>"Inconnu",Z23<>"Non requis"),IF(COUNTRY_INFO!K23=1,1,IF(COUNTRY_INFO!K23=2,0.5*COUNTRY_INFO!F23/(0.5*COUNTRY_INFO!F23+0.2*COUNTRY_INFO!G23),IF(COUNTRY_INFO!K23=3,COUNTRY_INFO!F23/(COUNTRY_INFO!F23+COUNTRY_INFO!G23)))),0) -> 0 | AO23: =IF(AND(Z23<>0,Z23<>"Inconnu",Z23<>"Non requis"),IF(COUNTRY_INFO!K23=1,0,IF(COUNTRY_INFO!K23=2,0.2*COUNTRY_INFO!G23/(0.5*COUNTRY_INFO!F23+0.2*COUNTRY_INFO!G23),IF(COUNTRY_INFO!K23=3,COUNTRY_INFO!G23/(COUNTRY_INFO!F23+COUNTRY_INFO!G23)))),0) -> 0 | AP23: =MAX(COUNTRY_INFO!D23*AK23*PROFILE!$G$7,COUNTRY_INFO!D23*AL23*PROFILE!$G$7) -> 0 | AQ23: =MAX(COUNTRY_INFO!D23*AK23*PROFILE!$G$8,COUNTRY_INFO!D23*AL23*PROFILE!$G$8,COUNTRY_INFO!D23*AM23*PROFILE!$G$8) -> 0 | AR23: =MAX(COUNTRY_INFO!D23*AK23*PROFILE!$G$9,COUNTRY_INFO!D23*AL23*PROFILE!$G$9,COUNTRY_INFO!D23*AM23*PROFILE!$G$9,IF(AND(DISTRICT!Z23<>"Inconnu",Z23<>"Non requis"),COUNTRY_INFO!O23*DISTRICT!AN23,0)) -> 0 | AS23: =MAX(COUNTRY_INFO!D23*AK23*PROFILE!$G$10,COUNTRY_INFO!D23*AL23*PROFILE!$G$10,IF(AND(DISTRICT!Z23<>"Inconnu",Z23<>"Non requis"),COUNTRY_INFO!O23*DISTRICT!AO23,0)) -> 0 | AT23: 0 | AU23: 0 | AV23: =MAX('MDA2'!J23,'T1'!L23,'T2'!J23,T3_R1!K23,T3_R2!K23) -> 0 | AW23: =MAX('MDA1'!K23,'MDA2'!K23,'MDA3'!I23,'MDA3'!L23,'T1'!M23,'T2'!K23,T3_R1!L23,T3_R2!L23) -> 0 | AX23: =MAX('MDA1'!L23,'MDA2'!L23,'MDA3'!J23,'MDA3'!M23,'T1'!N23,'T2'!L23,T3_R1!M23,T3_R2!M23) -> 0 | AY23: 0 | AZ23: =MAX('MDA2'!J23,T23) -> 0 | BA23: =MAX('MDA1'!K23,'MDA2'!K23,'MDA3'!I23,'MDA3'!L23,V23,AD23) -> 0 | BB23: =MAX('MDA1'!L23,'MDA2'!L23,'MDA3'!J23,'MDA3'!M23,AF23) -> 0 | BC23: 0 | BD23: 0
A24: =IF(COUNTRY_INFO!A24=0," ",COUNTRY_INFO!A24) -> Congo | B24: =IF(COUNTRY_INFO!B24=0," ",COUNTRY_INFO!B24) -> Cuvette | C24: =IF(COUNTRY_INFO!C24=0," ",COUNTRY_INFO!C24) -> Oyo | D24: =COUNTRY_INFO!L24 -> 0 | G24: =MAX('MDA1'!M24,'MDA2'!M24) -> 0 | H24: =IF(AND(COUNTRY_INFO!H24>0,COUNTRY_INFO!H24<4),IF(D24>MAX('MDA1'!M24,'MDA2'!M24),MAX('MDA1'!M24,'MDA2'!M24),D24),0) -> 0 | I24: =IF(AND(COUNTRY_INFO!H24>0,COUNTRY_INFO!H24<4), IF(G24/D24*100<>0, IF(G24/D24*100>100,100,G24/D24*100), "-"),0) -> 0 | J24: =COUNTRY_INFO!M24 -> 0 | M24: =MAX('MDA1'!M24,MAX('MDA3'!I24,'MDA3'!L24)+MAX('MDA3'!J24,'MDA3'!M24)) -> 0 | N24: =IF(AND(COUNTRY_INFO!I24>0,COUNTRY_INFO!I24<4),IF(J24>MAX('MDA1'!M24,MAX('MDA3'!I24,'MDA3'!L24)+MAX('MDA3'!J24,'MDA3'!M24)),MAX('MDA1'!M24,MAX('MDA3'!I24,'MDA3'!L24)+MAX('MDA3'!J24,'MDA3'!M24)),J24),0) -> 0 | O24: =IF(AND(COUNTRY_INFO!I24>0,COUNTRY_INFO!I24<4), IF(M24/J24*100<>0, IF(M24/J24*100>100,100,M24/J24*100), "-"),0) -> 0 | P24: =COUNTRY_INFO!N24 -> 0 | S24: =SUM(MAX('MDA2'!J24, 'T1'!L24, MAX(T3_R1!K24, T3_R2!K24)), MAX('MDA1'!K24, 'MDA2'!K24, 'T1'!M24, MAX(T3_R1!L24, T3_R2!L24)), MAX('MDA1'!L24, 'MDA2'!L24, 'T1'!N24, MAX(T3_R1!M24, T3_R2!M24))) -> 0 | T24: =IF(AND(COUNTRY_INFO!J24>1,COUNTRY_INFO!J24<4),IF(COUNTRY_INFO!E24>MAX('MDA2'!J24,'T1'!L24,MAX(T3_R1!K24,T3_R2!K24)),MAX('MDA2'!J24,'T1'!L24,MAX(T3_R1!K24,T3_R2!K24)),COUNTRY_INFO!E24),0) -> 0 | U24: =IF(AND(COUNTRY_INFO!J24>1,COUNTRY_INFO!J24<4), IF(T24/COUNTRY_INFO!E24*100<>0, IF(T24/COUNTRY_INFO!E24*100>100,100,T24/COUNTRY_INFO!E24*100), "-"),0) -> 0 | V24: =IF(AND(COUNTRY_INFO!J24>1,COUNTRY_INFO!J24<4),IF(COUNTRY_INFO!F24>MAX('MDA1'!K24,'MDA2'!K24,'T1'!M24,MAX(T3_R1!L24,T3_R2!L24)),MAX('MDA1'!K24,'MDA2'!K24,'T1'!M24,MAX(T3_R1!L24,T3_R2!L24)),COUNTRY_INFO!F24),0) -> 0 | W24: =IF(AND(COUNTRY_INFO!J24>1,COUNTRY_INFO!J24<4), IF(V24/COUNTRY_INFO!F24*100<>0, IF(V24/COUNTRY_INFO!F24*100>100,100,V24/COUNTRY_INFO!F24*100), "-"),0) -> 0 | X24: 0 | Y24: =IF(AND(COUNTRY_INFO!J24>1,COUNTRY_INFO!J24<4), IF(S24/P24*100<>0, IF(X24/P24*100>100,100,X24/P24*100), "-"),0) -> 0 | Z24: =COUNTRY_INFO!O24 -> 0 | AC24: =MAX('T1'!L24,'T2'!J24)+MAX('T1'!M24,'T2'!K24)+MAX('T1'!N24,'T2'!L24) -> 0 | AD24: =IF(COUNTRY_INFO!K24=1,IF(COUNTRY_INFO!F24*0.33>MAX('T1'!M24,'T2'!K24),MAX('T1'!M24,'T2'!K24),COUNTRY_INFO!F24*0.33),IF(COUNTRY_INFO!K24=2,IF(COUNTRY_INFO!F24*0.5>MAX('T1'!M24,'T2'!K24),MAX('T1'!M24,'T2'!K24),COUNTRY_INFO!F24*0.5),IF(COUNTRY_INFO!K24=3,IF(COUNTRY_INFO!F24>MAX('T1'!M24,'T2'!K24),MAX('T1'!M24,'T2'!K24),COUNTRY_INFO!F24),0))) -> 0 | AE24: =IF(AND(COUNTRY_INFO!K24>0,COUNTRY_INFO!K24<4),IF(Z24>0,IF(COUNTRY_INFO!K24=1, AD24/(COUNTRY_INFO!F24*0.33)*100, IF(COUNTRY_INFO!K24=2, AD24/(COUNTRY_INFO!F24*0.5)*100, IF(COUNTRY_INFO!K24=3, AD24/COUNTRY_INFO!F24*100))),"-"),0) -> 0 | AF24: =IF(COUNTRY_INFO!K24=2,IF(COUNTRY_INFO!G24*0.2>MAX('T1'!N24,'T2'!L24),MAX('T1'!N24,'T2'!L24),COUNTRY_INFO!G24*0.2),IF(COUNTRY_INFO!K24=3,IF(COUNTRY_INFO!G24>MAX('T1'!N24,'T2'!L24),MAX('T1'!N24,'T2'!L24),COUNTRY_INFO!G24),0)) -> 0 | AG24: =IF(AND(COUNTRY_INFO!K24>0,COUNTRY_INFO!K24<4),IF(Z24>0,IF(COUNTRY_INFO!K24=1, 0, IF(COUNTRY_INFO!K24=2, AF24/(COUNTRY_INFO!G24*0.2)*100, IF(COUNTRY_INFO!K24=3, AF24/COUNTRY_INFO!G24*100))),"-"),0) -> 0 | AH24: 0 | AI24: =IF(AND(COUNTRY_INFO!K24>0,COUNTRY_INFO!K24<4), IF(AC24/Z24*100<>0, IF(AH24/Z24*100>100,100,AH24/Z24*100), "-"),0) -> 0 | AK24: =IF(AND(D24<>0, D24<>"Inconnu",D24<>"Interrompu",D24<>"Non requis"),D24/COUNTRY_INFO!D24, 0) -> 0 | AL24: =IF(AND(J24<>0,J24<>"Inconnu",J24<>"Interrompu",J24<>"Non requis"),J24/COUNTRY_INFO!D24, 0) -> 0 | AM24: =IF(AND(P24<>0,P24<>"Inconnu",P24<>"Non requis"),P24/(COUNTRY_INFO!E24+COUNTRY_INFO!F24), 0) -> 0 | AN24: =IF(AND(Z24<>0,Z24<>"Inconnu",Z24<>"Non requis"),IF(COUNTRY_INFO!K24=1,1,IF(COUNTRY_INFO!K24=2,0.5*COUNTRY_INFO!F24/(0.5*COUNTRY_INFO!F24+0.2*COUNTRY_INFO!G24),IF(COUNTRY_INFO!K24=3,COUNTRY_INFO!F24/(COUNTRY_INFO!F24+COUNTRY_INFO!G24)))),0) -> 0 | AO24: =IF(AND(Z24<>0,Z24<>"Inconnu",Z24<>"Non requis"),IF(COUNTRY_INFO!K24=1,0,IF(COUNTRY_INFO!K24=2,0.2*COUNTRY_INFO!G24/(0.5*COUNTRY_INFO!F24+0.2*COUNTRY_INFO!G24),IF(COUNTRY_INFO!K24=3,COUNTRY_INFO!G24/(COUNTRY_INFO!F24+COUNTRY_INFO!G24)))),0) -> 0 | AP24: =MAX(COUNTRY_INFO!D24*AK24*PROFILE!$G$7,COUNTRY_INFO!D24*AL24*PROFILE!$G$7) -> 0 | AQ24: =MAX(COUNTRY_INFO!D24*AK24*PROFILE!$G$8,COUNTRY_INFO!D24*AL24*PROFILE!$G$8,COUNTRY_INFO!D24*AM24*PROFILE!$G$8) -> 0 | AR24: =MAX(COUNTRY_INFO!D24*AK24*PROFILE!$G$9,COUNTRY_INFO!D24*AL24*PROFILE!$G$9,COUNTRY_INFO!D24*AM24*PROFILE!$G$9,IF(AND(DISTRICT!Z24<>"Inconnu",Z24<>"Non requis"),COUNTRY_INFO!O24*DISTRICT!AN24,0)) -> 0 | AS24: =MAX(COUNTRY_INFO!D24*AK24*PROFILE!$G$10,COUNTRY_INFO!D24*AL24*PROFILE!$G$10,IF(AND(DISTRICT!Z24<>"Inconnu",Z24<>"Non requis"),COUNTRY_INFO!O24*DISTRICT!AO24,0)) -> 0 | AT24: 0 | AU24: 0 | AV24: =MAX('MDA2'!J24,'T1'!L24,'T2'!J24,T3_R1!K24,T3_R2!K24) -> 0 | AW24: =MAX('MDA1'!K24,'MDA2'!K24,'MDA3'!I24,'MDA3'!L24,'T1'!M24,'T2'!K24,T3_R1!L24,T3_R2!L24) -> 0 | AX24: =MAX('MDA1'!L24,'MDA2'!L24,'MDA3'!J24,'MDA3'!M24,'T1'!N24,'T2'!L24,T3_R1!M24,T3_R2!M24) -> 0 | AY24: 0 | AZ24: =MAX('MDA2'!J24,T24) -> 0 | BA24: =MAX('MDA1'!K24,'MDA2'!K24,'MDA3'!I24,'MDA3'!L24,V24,AD24) -> 0 | BB24: =MAX('MDA1'!L24,'MDA2'!L24,'MDA3'!J24,'MDA3'!M24,AF24) -> 0 | BC24: 0 | BD24: 0
A25: =IF(COUNTRY_INFO!A25=0," ",COUNTRY_INFO!A25) -> Congo | B25: =IF(COUNTRY_INFO!B25=0," ",COUNTRY_INFO!B25) -> Cuvette-Ouest | C25: =IF(COUNTRY_INFO!C25=0," ",COUNTRY_INFO!C25) -> Etoumbi | D25: =COUNTRY_INFO!L25 -> 0 | G25: =MAX('MDA1'!M25,'MDA2'!M25) -> 0 | H25: =IF(AND(COUNTRY_INFO!H25>0,COUNTRY_INFO!H25<4),IF(D25>MAX('MDA1'!M25,'MDA2'!M25),MAX('MDA1'!M25,'MDA2'!M25),D25),0) -> 0 | I25: =IF(AND(COUNTRY_INFO!H25>0,COUNTRY_INFO!H25<4), IF(G25/D25*100<>0, IF(G25/D25*100>100,100,G25/D25*100), "-"),0) -> 0 | J25: =COUNTRY_INFO!M25 -> 0 | M25: =MAX('MDA1'!M25,MAX('MDA3'!I25,'MDA3'!L25)+MAX('MDA3'!J25,'MDA3'!M25)) -> 0 | N25: =IF(AND(COUNTRY_INFO!I25>0,COUNTRY_INFO!I25<4),IF(J25>MAX('MDA1'!M25,MAX('MDA3'!I25,'MDA3'!L25)+MAX('MDA3'!J25,'MDA3'!M25)),MAX('MDA1'!M25,MAX('MDA3'!I25,'MDA3'!L25)+MAX('MDA3'!J25,'MDA3'!M25)),J25),0) -> 0 | O25: =IF(AND(COUNTRY_INFO!I25>0,COUNTRY_INFO!I25<4), IF(M25/J25*100<>0, IF(M25/J25*100>100,100,M25/J25*100), "-"),0) -> 0 | P25: =COUNTRY_INFO!N25 -> 16898 | S25: =SUM(MAX('MDA2'!J25, 'T1'!L25, MAX(T3_R1!K25, T3_R2!K25)), MAX('MDA1'!K25, 'MDA2'!K25, 'T1'!M25, MAX(T3_R1!L25, T3_R2!L25)), MAX('MDA1'!L25, 'MDA2'!L25, 'T1'!N25, MAX(T3_R1!M25, T3_R2!M25))) -> 5444 | T25: =IF(AND(COUNTRY_INFO!J25>1,COUNTRY_INFO!J25<4),IF(COUNTRY_INFO!E25>MAX('MDA2'!J25,'T1'!L25,MAX(T3_R1!K25,T3_R2!K25)),MAX('MDA2'!J25,'T1'!L25,MAX(T3_R1!K25,T3_R2!K25)),COUNTRY_INFO!E25),0) -> 0 | U25: =IF(AND(COUNTRY_INFO!J25>1,COUNTRY_INFO!J25<4), IF(T25/COUNTRY_INFO!E25*100<>0, IF(T25/COUNTRY_INFO!E25*100>100,100,T25/COUNTRY_INFO!E25*100), "-"),0) -> - | V25: =IF(AND(COUNTRY_INFO!J25>1,COUNTRY_INFO!J25<4),IF(COUNTRY_INFO!F25>MAX('MDA1'!K25,'MDA2'!K25,'T1'!M25,MAX(T3_R1!L25,T3_R2!L25)),MAX('MDA1'!K25,'MDA2'!K25,'T1'!M25,MAX(T3_R1!L25,T3_R2!L25)),COUNTRY_INFO!F25),0) -> 5444 | W25: =IF(AND(COUNTRY_INFO!J25>1,COUNTRY_INFO!J25<4), IF(V25/COUNTRY_INFO!F25*100<>0, IF(V25/COUNTRY_INFO!F25*100>100,100,V25/COUNTRY_INFO!F25*100), "-"),0) -> 53.69365815 | X25: 5444 | Y25: =IF(AND(COUNTRY_INFO!J25>1,COUNTRY_INFO!J25<4), IF(S25/P25*100<>0, IF(X25/P25*100>100,100,X25/P25*100), "-"),0) -> 32.21683039 | Z25: =COUNTRY_INFO!O25 -> 0 | AC25: =MAX('T1'!L25,'T2'!J25)+MAX('T1'!M25,'T2'!K25)+MAX('T1'!N25,'T2'!L25) -> 0 | AD25: =IF(COUNTRY_INFO!K25=1,IF(COUNTRY_INFO!F25*0.33>MAX('T1'!M25,'T2'!K25),MAX('T1'!M25,'T2'!K25),COUNTRY_INFO!F25*0.33),IF(COUNTRY_INFO!K25=2,IF(COUNTRY_INFO!F25*0.5>MAX('T1'!M25,'T2'!K25),MAX('T1'!M25,'T2'!K25),COUNTRY_INFO!F25*0.5),IF(COUNTRY_INFO!K25=3,IF(COUNTRY_INFO!F25>MAX('T1'!M25,'T2'!K25),MAX('T1'!M25,'T2'!K25),COUNTRY_INFO!F25),0))) -> 0 | AE25: =IF(AND(COUNTRY_INFO!K25>0,COUNTRY_INFO!K25<4),IF(Z25>0,IF(COUNTRY_INFO!K25=1, AD25/(COUNTRY_INFO!F25*0.33)*100, IF(COUNTRY_INFO!K25=2, AD25/(COUNTRY_INFO!F25*0.5)*100, IF(COUNTRY_INFO!K25=3, AD25/COUNTRY_INFO!F25*100))),"-"),0) -> 0 | AF25: =IF(COUNTRY_INFO!K25=2,IF(COUNTRY_INFO!G25*0.2>MAX('T1'!N25,'T2'!L25),MAX('T1'!N25,'T2'!L25),COUNTRY_INFO!G25*0.2),IF(COUNTRY_INFO!K25=3,IF(COUNTRY_INFO!G25>MAX('T1'!N25,'T2'!L25),MAX('T1'!N25,'T2'!L25),COUNTRY_INFO!G25),0)) -> 0 | AG25: =IF(AND(COUNTRY_INFO!K25>0,COUNTRY_INFO!K25<4),IF(Z25>0,IF(COUNTRY_INFO!K25=1, 0, IF(COUNTRY_INFO!K25=2, AF25/(COUNTRY_INFO!G25*0.2)*100, IF(COUNTRY_INFO!K25=3, AF25/COUNTRY_INFO!G25*100))),"-"),0) -> 0 | AH25: 0 | AI25: =IF(AND(COUNTRY_INFO!K25>0,COUNTRY_INFO!K25<4), IF(AC25/Z25*100<>0, IF(AH25/Z25*100>100,100,AH25/Z25*100), "-"),0) -> 0 | AK25: =IF(AND(D25<>0, D25<>"Inconnu",D25<>"Interrompu",D25<>"Non requis"),D25/COUNTRY_INFO!D25, 0) -> 0 | AL25: =IF(AND(J25<>0,J25<>"Inconnu",J25<>"Interrompu",J25<>"Non requis"),J25/COUNTRY_INFO!D25, 0) -> 0 | AM25: =IF(AND(P25<>0,P25<>"Inconnu",P25<>"Non requis"),P25/(COUNTRY_INFO!E25+COUNTRY_INFO!F25), 0) -> 1 | AN25: =IF(AND(Z25<>0,Z25<>"Inconnu",Z25<>"Non requis"),IF(COUNTRY_INFO!K25=1,1,IF(COUNTRY_INFO!K25=2,0.5*COUNTRY_INFO!F25/(0.5*COUNTRY_INFO!F25+0.2*COUNTRY_INFO!G25),IF(COUNTRY_INFO!K25=3,COUNTRY_INFO!F25/(COUNTRY_INFO!F25+COUNTRY_INFO!G25)))),0) -> 0 | AO25: =IF(AND(Z25<>0,Z25<>"Inconnu",Z25<>"Non requis"),IF(COUNTRY_INFO!K25=1,0,IF(COUNTRY_INFO!K25=2,0.2*COUNTRY_INFO!G25/(0.5*COUNTRY_INFO!F25+0.2*COUNTRY_INFO!G25),IF(COUNTRY_INFO!K25=3,COUNTRY_INFO!G25/(COUNTRY_INFO!F25+COUNTRY_INFO!G25)))),0) -> 0 | AP25: =MAX(COUNTRY_INFO!D25*AK25*PROFILE!$G$7,COUNTRY_INFO!D25*AL25*PROFILE!$G$7) -> 0 | AQ25: =MAX(COUNTRY_INFO!D25*AK25*PROFILE!$G$8,COUNTRY_INFO!D25*AL25*PROFILE!$G$8,COUNTRY_INFO!D25*AM25*PROFILE!$G$8) -> 6759.362634 | AR25: =MAX(COUNTRY_INFO!D25*AK25*PROFILE!$G$9,COUNTRY_INFO!D25*AL25*PROFILE!$G$9,COUNTRY_INFO!D25*AM25*PROFILE!$G$9,IF(AND(DISTRICT!Z25<>"Inconnu",Z25<>"Non requis"),COUNTRY_INFO!O25*DISTRICT!AN25,0)) -> 10139.03925 | AS25: =MAX(COUNTRY_INFO!D25*AK25*PROFILE!$G$10,COUNTRY_INFO!D25*AL25*PROFILE!$G$10,IF(AND(DISTRICT!Z25<>"Inconnu",Z25<>"Non requis"),COUNTRY_INFO!O25*DISTRICT!AO25,0)) -> 0 | AT25: 16898.40188 | AU25: Y | AV25: =MAX('MDA2'!J25,'T1'!L25,'T2'!J25,T3_R1!K25,T3_R2!K25) -> 0 | AW25: =MAX('MDA1'!K25,'MDA2'!K25,'MDA3'!I25,'MDA3'!L25,'T1'!M25,'T2'!K25,T3_R1!L25,T3_R2!L25) -> 5444 | AX25: =MAX('MDA1'!L25,'MDA2'!L25,'MDA3'!J25,'MDA3'!M25,'T1'!N25,'T2'!L25,T3_R1!M25,T3_R2!M25) -> 0 | AY25: 5444 | AZ25: =MAX('MDA2'!J25,T25) -> 0 | BA25: =MAX('MDA1'!K25,'MDA2'!K25,'MDA3'!I25,'MDA3'!L25,V25,AD25) -> 5444 | BB25: =MAX('MDA1'!L25,'MDA2'!L25,'MDA3'!J25,'MDA3'!M25,AF25) -> 0 | BC25: 5444 | BD25: 32.21606421
A26: =IF(COUNTRY_INFO!A26=0," ",COUNTRY_INFO!A26) -> Congo | B26: =IF(COUNTRY_INFO!B26=0," ",COUNTRY_INFO!B26) -> Cuvette-Ouest | C26: =IF(COUNTRY_INFO!C26=0," ",COUNTRY_INFO!C26) -> Ewo | D26: =COUNTRY_INFO!L26 -> 0 | G26: =MAX('MDA1'!M26,'MDA2'!M26) -> 0 | H26: =IF(AND(COUNTRY_INFO!H26>0,COUNTRY_INFO!H26<4),IF(D26>MAX('MDA1'!M26,'MDA2'!M26),MAX('MDA1'!M26,'MDA2'!M26),D26),0) -> 0 | I26: =IF(AND(COUNTRY_INFO!H26>0,COUNTRY_INFO!H26<4), IF(G26/D26*100<>0, IF(G26/D26*100>100,100,G26/D26*100), "-"),0) -> 0 | J26: =COUNTRY_INFO!M26 -> 0 | M26: =MAX('MDA1'!M26,MAX('MDA3'!I26,'MDA3'!L26)+MAX('MDA3'!J26,'MDA3'!M26)) -> 0 | N26: =IF(AND(COUNTRY_INFO!I26>0,COUNTRY_INFO!I26<4),IF(J26>MAX('MDA1'!M26,MAX('MDA3'!I26,'MDA3'!L26)+MAX('MDA3'!J26,'MDA3'!M26)),MAX('MDA1'!M26,MAX('MDA3'!I26,'MDA3'!L26)+MAX('MDA3'!J26,'MDA3'!M26)),J26),0) -> 0 | O26: =IF(AND(COUNTRY_INFO!I26>0,COUNTRY_INFO!I26<4), IF(M26/J26*100<>0, IF(M26/J26*100>100,100,M26/J26*100), "-"),0) -> 0 | P26: =COUNTRY_INFO!N26 -> 18593 | S26: =SUM(MAX('MDA2'!J26, 'T1'!L26, MAX(T3_R1!K26, T3_R2!K26)), MAX('MDA1'!K26, 'MDA2'!K26, 'T1'!M26, MAX(T3_R1!L26, T3_R2!L26)), MAX('MDA1'!L26, 'MDA2'!L26, 'T1'!N26, MAX(T3_R1!M26, T3_R2!M26))) -> 9861 | T26: =IF(AND(COUNTRY_INFO!J26>1,COUNTRY_INFO!J26<4),IF(COUNTRY_INFO!E26>MAX('MDA2'!J26,'T1'!L26,MAX(T3_R1!K26,T3_R2!K26)),MAX('MDA2'!J26,'T1'!L26,MAX(T3_R1!K26,T3_R2!K26)),COUNTRY_INFO!E26),0) -> 0 | U26: =IF(AND(COUNTRY_INFO!J26>1,COUNTRY_INFO!J26<4), IF(T26/COUNTRY_INFO!E26*100<>0, IF(T26/COUNTRY_INFO!E26*100>100,100,T26/COUNTRY_INFO!E26*100), "-"),0) -> - | V26: =IF(AND(COUNTRY_INFO!J26>1,COUNTRY_INFO!J26<4),IF(COUNTRY_INFO!F26>MAX('MDA1'!K26,'MDA2'!K26,'T1'!M26,MAX(T3_R1!L26,T3_R2!L26)),MAX('MDA1'!K26,'MDA2'!K26,'T1'!M26,MAX(T3_R1!L26,T3_R2!L26)),COUNTRY_INFO!F26),0) -> 9861 | W26: =IF(AND(COUNTRY_INFO!J26>1,COUNTRY_INFO!J26<4), IF(V26/COUNTRY_INFO!F26*100<>0, IF(V26/COUNTRY_INFO!F26*100>100,100,V26/COUNTRY_INFO!F26*100), "-"),0) -> 88.39189674 | X26: 9861 | Y26: =IF(AND(COUNTRY_INFO!J26>1,COUNTRY_INFO!J26<4), IF(S26/P26*100<>0, IF(X26/P26*100>100,100,X26/P26*100), "-"),0) -> 53.03608885 | Z26: =COUNTRY_INFO!O26 -> 0 | AC26: =MAX('T1'!L26,'T2'!J26)+MAX('T1'!M26,'T2'!K26)+MAX('T1'!N26,'T2'!L26) -> 0 | AD26: =IF(COUNTRY_INFO!K26=1,IF(COUNTRY_INFO!F26*0.33>MAX('T1'!M26,'T2'!K26),MAX('T1'!M26,'T2'!K26),COUNTRY_INFO!F26*0.33),IF(COUNTRY_INFO!K26=2,IF(COUNTRY_INFO!F26*0.5>MAX('T1'!M26,'T2'!K26),MAX('T1'!M26,'T2'!K26),COUNTRY_INFO!F26*0.5),IF(COUNTRY_INFO!K26=3,IF(COUNTRY_INFO!F26>MAX('T1'!M26,'T2'!K26),MAX('T1'!M26,'T2'!K26),COUNTRY_INFO!F26),0))) -> 0 | AE26: =IF(AND(COUNTRY_INFO!K26>0,COUNTRY_INFO!K26<4),IF(Z26>0,IF(COUNTRY_INFO!K26=1, AD26/(COUNTRY_INFO!F26*0.33)*100, IF(COUNTRY_INFO!K26=2, AD26/(COUNTRY_INFO!F26*0.5)*100, IF(COUNTRY_INFO!K26=3, AD26/COUNTRY_INFO!F26*100))),"-"),0) -> 0 | AF26: =IF(COUNTRY_INFO!K26=2,IF(COUNTRY_INFO!G26*0.2>MAX('T1'!N26,'T2'!L26),MAX('T1'!N26,'T2'!L26),COUNTRY_INFO!G26*0.2),IF(COUNTRY_INFO!K26=3,IF(COUNTRY_INFO!G26>MAX('T1'!N26,'T2'!L26),MAX('T1'!N26,'T2'!L26),COUNTRY_INFO!G26),0)) -> 0 | AG26: =IF(AND(COUNTRY_INFO!K26>0,COUNTRY_INFO!K26<4),IF(Z26>0,IF(COUNTRY_INFO!K26=1, 0, IF(COUNTRY_INFO!K26=2, AF26/(COUNTRY_INFO!G26*0.2)*100, IF(COUNTRY_INFO!K26=3, AF26/COUNTRY_INFO!G26*100))),"-"),0) -> 0 | AH26: 0 | AI26: =IF(AND(COUNTRY_INFO!K26>0,COUNTRY_INFO!K26<4), IF(AC26/Z26*100<>0, IF(AH26/Z26*100>100,100,AH26/Z26*100), "-"),0) -> 0 | AK26: =IF(AND(D26<>0, D26<>"Inconnu",D26<>"Interrompu",D26<>"Non requis"),D26/COUNTRY_INFO!D26, 0) -> 0 | AL26: =IF(AND(J26<>0,J26<>"Inconnu",J26<>"Interrompu",J26<>"Non requis"),J26/COUNTRY_INFO!D26, 0) -> 0 | AM26: =IF(AND(P26<>0,P26<>"Inconnu",P26<>"Non requis"),P26/(COUNTRY_INFO!E26+COUNTRY_INFO!F26), 0) -> 1 | AN26: =IF(AND(Z26<>0,Z26<>"Inconnu",Z26<>"Non requis"),IF(COUNTRY_INFO!K26=1,1,IF(COUNTRY_INFO!K26=2,0.5*COUNTRY_INFO!F26/(0.5*COUNTRY_INFO!F26+0.2*COUNTRY_INFO!G26),IF(COUNTRY_INFO!K26=3,COUNTRY_INFO!F26/(COUNTRY_INFO!F26+COUNTRY_INFO!G26)))),0) -> 0 | AO26: =IF(AND(Z26<>0,Z26<>"Inconnu",Z26<>"Non requis"),IF(COUNTRY_INFO!K26=1,0,IF(COUNTRY_INFO!K26=2,0.2*COUNTRY_INFO!G26/(0.5*COUNTRY_INFO!F26+0.2*COUNTRY_INFO!G26),IF(COUNTRY_INFO!K26=3,COUNTRY_INFO!G26/(COUNTRY_INFO!F26+COUNTRY_INFO!G26)))),0) -> 0 | AP26: =MAX(COUNTRY_INFO!D26*AK26*PROFILE!$G$7,COUNTRY_INFO!D26*AL26*PROFILE!$G$7) -> 0 | AQ26: =MAX(COUNTRY_INFO!D26*AK26*PROFILE!$G$8,COUNTRY_INFO!D26*AL26*PROFILE!$G$8,COUNTRY_INFO!D26*AM26*PROFILE!$G$8) -> 7437.122898 | AR26: =MAX(COUNTRY_INFO!D26*AK26*PROFILE!$G$9,COUNTRY_INFO!D26*AL26*PROFILE!$G$9,COUNTRY_INFO!D26*AM26*PROFILE!$G$9,IF(AND(DISTRICT!Z26<>"Inconnu",Z26<>"Non requis"),COUNTRY_INFO!O26*DISTRICT!AN26,0)) -> 11155.67917 | AS26: =MAX(COUNTRY_INFO!D26*AK26*PROFILE!$G$10,COUNTRY_INFO!D26*AL26*PROFILE!$G$10,IF(AND(DISTRICT!Z26<>"Inconnu",Z26<>"Non requis"),COUNTRY_INFO!O26*DISTRICT!AO26,0)) -> 0 | AT26: 18592.80207 | AU26: Y | AV26: =MAX('MDA2'!J26,'T1'!L26,'T2'!J26,T3_R1!K26,T3_R2!K26) -> 0 | AW26: =MAX('MDA1'!K26,'MDA2'!K26,'MDA3'!I26,'MDA3'!L26,'T1'!M26,'T2'!K26,T3_R1!L26,T3_R2!L26) -> 9861 | AX26: =MAX('MDA1'!L26,'MDA2'!L26,'MDA3'!J26,'MDA3'!M26,'T1'!N26,'T2'!L26,T3_R1!M26,T3_R2!M26) -> 0 | AY26: 9861 | AZ26: =MAX('MDA2'!J26,T26) -> 0 | BA26: =MAX('MDA1'!K26,'MDA2'!K26,'MDA3'!I26,'MDA3'!L26,V26,AD26) -> 9861 | BB26: =MAX('MDA1'!L26,'MDA2'!L26,'MDA3'!J26,'MDA3'!M26,AF26) -> 0 | BC26: 9861 | BD26: 53.03665345
A27: =IF(COUNTRY_INFO!A27=0," ",COUNTRY_INFO!A27) -> Congo | B27: =IF(COUNTRY_INFO!B27=0," ",COUNTRY_INFO!B27) -> Kouilou | C27: =IF(COUNTRY_INFO!C27=0," ",COUNTRY_INFO!C27) -> Hinda-Mvouti | D27: =COUNTRY_INFO!L27 -> 0 | G27: =MAX('MDA1'!M27,'MDA2'!M27) -> 0 | H27: =IF(AND(COUNTRY_INFO!H27>0,COUNTRY_INFO!H27<4),IF(D27>MAX('MDA1'!M27,'MDA2'!M27),MAX('MDA1'!M27,'MDA2'!M27),D27),0) -> 0 | I27: =IF(AND(COUNTRY_INFO!H27>0,COUNTRY_INFO!H27<4), IF(G27/D27*100<>0, IF(G27/D27*100>100,100,G27/D27*100), "-"),0) -> 0 | J27: =COUNTRY_INFO!M27 -> 0 | M27: =MAX('MDA1'!M27,MAX('MDA3'!I27,'MDA3'!L27)+MAX('MDA3'!J27,'MDA3'!M27)) -> 0 | N27: =IF(AND(COUNTRY_INFO!I27>0,COUNTRY_INFO!I27<4),IF(J27>MAX('MDA1'!M27,MAX('MDA3'!I27,'MDA3'!L27)+MAX('MDA3'!J27,'MDA3'!M27)),MAX('MDA1'!M27,MAX('MDA3'!I27,'MDA3'!L27)+MAX('MDA3'!J27,'MDA3'!M27)),J27),0) -> 0 | O27: =IF(AND(COUNTRY_INFO!I27>0,COUNTRY_INFO!I27<4), IF(M27/J27*100<>0, IF(M27/J27*100>100,100,M27/J27*100), "-"),0) -> 0 | P27: =COUNTRY_INFO!N27 -> 32938 | S27: =SUM(MAX('MDA2'!J27, 'T1'!L27, MAX(T3_R1!K27, T3_R2!K27)), MAX('MDA1'!K27, 'MDA2'!K27, 'T1'!M27, MAX(T3_R1!L27, T3_R2!L27)), MAX('MDA1'!L27, 'MDA2'!L27, 'T1'!N27, MAX(T3_R1!M27, T3_R2!M27))) -> 15475 | T27: =IF(AND(COUNTRY_INFO!J27>1,COUNTRY_INFO!J27<4),IF(COUNTRY_INFO!E27>MAX('MDA2'!J27,'T1'!L27,MAX(T3_R1!K27,T3_R2!K27)),MAX('MDA2'!J27,'T1'!L27,MAX(T3_R1!K27,T3_R2!K27)),COUNTRY_INFO!E27),0) -> 0 | U27: =IF(AND(COUNTRY_INFO!J27>1,COUNTRY_INFO!J27<4), IF(T27/COUNTRY_INFO!E27*100<>0, IF(T27/COUNTRY_INFO!E27*100>100,100,T27/COUNTRY_INFO!E27*100), "-"),0) -> - | V27: =IF(AND(COUNTRY_INFO!J27>1,COUNTRY_INFO!J27<4),IF(COUNTRY_INFO!F27>MAX('MDA1'!K27,'MDA2'!K27,'T1'!M27,MAX(T3_R1!L27,T3_R2!L27)),MAX('MDA1'!K27,'MDA2'!K27,'T1'!M27,MAX(T3_R1!L27,T3_R2!L27)),COUNTRY_INFO!F27),0) -> 15288 | W27: =IF(AND(COUNTRY_INFO!J27>1,COUNTRY_INFO!J27<4), IF(V27/COUNTRY_INFO!F27*100<>0, IF(V27/COUNTRY_INFO!F27*100>100,100,V27/COUNTRY_INFO!F27*100), "-"),0) -> 77.35667662 | X27: 15288 | Y27: =IF(AND(COUNTRY_INFO!J27>1,COUNTRY_INFO!J27<4), IF(S27/P27*100<>0, IF(X27/P27*100>100,100,X27/P27*100), "-"),0) -> 46.41447568 | Z27: =COUNTRY_INFO!O27 -> 18988.9 | AC27: =MAX('T1'!L27,'T2'!J27)+MAX('T1'!M27,'T2'!K27)+MAX('T1'!N27,'T2'!L27) -> 15475 | AD27: =IF(COUNTRY_INFO!K27=1,IF(COUNTRY_INFO!F27*0.33>MAX('T1'!M27,'T2'!K27),MAX('T1'!M27,'T2'!K27),COUNTRY_INFO!F27*0.33),IF(COUNTRY_INFO!K27=2,IF(COUNTRY_INFO!F27*0.5>MAX('T1'!M27,'T2'!K27),MAX('T1'!M27,'T2'!K27),COUNTRY_INFO!F27*0.5),IF(COUNTRY_INFO!K27=3,IF(COUNTRY_INFO!F27>MAX('T1'!M27,'T2'!K27),MAX('T1'!M27,'T2'!K27),COUNTRY_INFO!F27),0))) -> 9881.5 | AE27: =IF(AND(COUNTRY_INFO!K27>0,COUNTRY_INFO!K27<4),IF(Z27>0,IF(COUNTRY_INFO!K27=1, AD27/(COUNTRY_INFO!F27*0.33)*100, IF(COUNTRY_INFO!K27=2, AD27/(COUNTRY_INFO!F27*0.5)*100, IF(COUNTRY_INFO!K27=3, AD27/COUNTRY_INFO!F27*100))),"-"),0) -> 100 | AF27: =IF(COUNTRY_INFO!K27=2,IF(COUNTRY_INFO!G27*0.2>MAX('T1'!N27,'T2'!L27),MAX('T1'!N27,'T2'!L27),COUNTRY_INFO!G27*0.2),IF(COUNTRY_INFO!K27=3,IF(COUNTRY_INFO!G27>MAX('T1'!N27,'T2'!L27),MAX('T1'!N27,'T2'!L27),COUNTRY_INFO!G27),0)) -> 187 | AG27: =IF(AND(COUNTRY_INFO!K27>0,COUNTRY_INFO!K27<4),IF(Z27>0,IF(COUNTRY_INFO!K27=1, 0, IF(COUNTRY_INFO!K27=2, AF27/(COUNTRY_INFO!G27*0.2)*100, IF(COUNTRY_INFO!K27=3, AF27/COUNTRY_INFO!G27*100))),"-"),0) -> 2.053275358 | AH27: 10068.5 | AI27: =IF(AND(COUNTRY_INFO!K27>0,COUNTRY_INFO!K27<4), IF(AC27/Z27*100<>0, IF(AH27/Z27*100>100,100,AH27/Z27*100), "-"),0) -> 53.02308191 | AK27: =IF(AND(D27<>0, D27<>"Inconnu",D27<>"Interrompu",D27<>"Non requis"),D27/COUNTRY_INFO!D27, 0) -> 0 | AL27: =IF(AND(J27<>0,J27<>"Inconnu",J27<>"Interrompu",J27<>"Non requis"),J27/COUNTRY_INFO!D27, 0) -> 0 | AM27: =IF(AND(P27<>0,P27<>"Inconnu",P27<>"Non requis"),P27/(COUNTRY_INFO!E27+COUNTRY_INFO!F27), 0) -> 1 | AN27: =IF(AND(Z27<>0,Z27<>"Inconnu",Z27<>"Non requis"),IF(COUNTRY_INFO!K27=1,1,IF(COUNTRY_INFO!K27=2,0.5*COUNTRY_INFO!F27/(0.5*COUNTRY_INFO!F27+0.2*COUNTRY_INFO!G27),IF(COUNTRY_INFO!K27=3,COUNTRY_INFO!F27/(COUNTRY_INFO!F27+COUNTRY_INFO!G27)))),0) -> 0.5203829606 | AO27: =IF(AND(Z27<>0,Z27<>"Inconnu",Z27<>"Non requis"),IF(COUNTRY_INFO!K27=1,0,IF(COUNTRY_INFO!K27=2,0.2*COUNTRY_INFO!G27/(0.5*COUNTRY_INFO!F27+0.2*COUNTRY_INFO!G27),IF(COUNTRY_INFO!K27=3,COUNTRY_INFO!G27/(COUNTRY_INFO!F27+COUNTRY_INFO!G27)))),0) -> 0.4796170394 | AP27: =MAX(COUNTRY_INFO!D27*AK27*PROFILE!$G$7,COUNTRY_INFO!D27*AL27*PROFILE!$G$7) -> 0 | AQ27: =MAX(COUNTRY_INFO!D27*AK27*PROFILE!$G$8,COUNTRY_INFO!D27*AL27*PROFILE!$G$8,COUNTRY_INFO!D27*AM27*PROFILE!$G$8) -> 13175.36513 | AR27: =MAX(COUNTRY_INFO!D27*AK27*PROFILE!$G$9,COUNTRY_INFO!D27*AL27*PROFILE!$G$9,COUNTRY_INFO!D27*AM27*PROFILE!$G$9,IF(AND(DISTRICT!Z27<>"Inconnu",Z27<>"Non requis"),COUNTRY_INFO!O27*DISTRICT!AN27,0)) -> 19763.03853 | AS27: =MAX(COUNTRY_INFO!D27*AK27*PROFILE!$G$10,COUNTRY_INFO!D27*AL27*PROFILE!$G$10,IF(AND(DISTRICT!Z27<>"Inconnu",Z27<>"Non requis"),COUNTRY_INFO!O27*DISTRICT!AO27,0)) -> 9107.4 | AT27: 42045.80367 | AU27: Y | AV27: =MAX('MDA2'!J27,'T1'!L27,'T2'!J27,T3_R1!K27,T3_R2!K27) -> 0 | AW27: =MAX('MDA1'!K27,'MDA2'!K27,'MDA3'!I27,'MDA3'!L27,'T1'!M27,'T2'!K27,T3_R1!L27,T3_R2!L27) -> 15288 | AX27: =MAX('MDA1'!L27,'MDA2'!L27,'MDA3'!J27,'MDA3'!M27,'T1'!N27,'T2'!L27,T3_R1!M27,T3_R2!M27) -> 187 | AY27: 15475 | AZ27: =MAX('MDA2'!J27,T27) -> 0 | BA27: =MAX('MDA1'!K27,'MDA2'!K27,'MDA3'!I27,'MDA3'!L27,V27,AD27) -> 15288 | BB27: =MAX('MDA1'!L27,'MDA2'!L27,'MDA3'!J27,'MDA3'!M27,AF27) -> 187 | BC27: 15475 | BD27: 36.8050998
A28: =IF(COUNTRY_INFO!A28=0," ",COUNTRY_INFO!A28) -> Congo | B28: =IF(COUNTRY_INFO!B28=0," ",COUNTRY_INFO!B28) -> Kouilou | C28: =IF(COUNTRY_INFO!C28=0," ",COUNTRY_INFO!C28) -> Madingo Kayes | D28: =COUNTRY_INFO!L28 -> 0 | G28: =MAX('MDA1'!M28,'MDA2'!M28) -> 0 | H28: =IF(AND(COUNTRY_INFO!H28>0,COUNTRY_INFO!H28<4),IF(D28>MAX('MDA1'!M28,'MDA2'!M28),MAX('MDA1'!M28,'MDA2'!M28),D28),0) -> 0 | I28: =IF(AND(COUNTRY_INFO!H28>0,COUNTRY_INFO!H28<4), IF(G28/D28*100<>0, IF(G28/D28*100>100,100,G28/D28*100), "-"),0) -> 0 | J28: =COUNTRY_INFO!M28 -> 29466 | K28: 458 | L28: 513 | M28: =MAX('MDA1'!M28,MAX('MDA3'!I28,'MDA3'!L28)+MAX('MDA3'!J28,'MDA3'!M28)) -> 971 | N28: =IF(AND(COUNTRY_INFO!I28>0,COUNTRY_INFO!I28<4),IF(J28>MAX('MDA1'!M28,MAX('MDA3'!I28,'MDA3'!L28)+MAX('MDA3'!J28,'MDA3'!M28)),MAX('MDA1'!M28,MAX('MDA3'!I28,'MDA3'!L28)+MAX('MDA3'!J28,'MDA3'!M28)),J28),0) -> 971 | O28: =IF(AND(COUNTRY_INFO!I28>0,COUNTRY_INFO!I28<4), IF(M28/J28*100<>0, IF(M28/J28*100>100,100,M28/J28*100), "-"),0) -> 3.295323424 | P28: =COUNTRY_INFO!N28 -> 11787 | S28: =SUM(MAX('MDA2'!J28, 'T1'!L28, MAX(T3_R1!K28, T3_R2!K28)), MAX('MDA1'!K28, 'MDA2'!K28, 'T1'!M28, MAX(T3_R1!L28, T3_R2!L28)), MAX('MDA1'!L28, 'MDA2'!L28, 'T1'!N28, MAX(T3_R1!M28, T3_R2!M28))) -> 3768 | T28: =IF(AND(COUNTRY_INFO!J28>1,COUNTRY_INFO!J28<4),IF(COUNTRY_INFO!E28>MAX('MDA2'!J28,'T1'!L28,MAX(T3_R1!K28,T3_R2!K28)),MAX('MDA2'!J28,'T1'!L28,MAX(T3_R1!K28,T3_R2!K28)),COUNTRY_INFO!E28),0) -> 0 | U28: =IF(AND(COUNTRY_INFO!J28>1,COUNTRY_INFO!J28<4), IF(T28/COUNTRY_INFO!E28*100<>0, IF(T28/COUNTRY_INFO!E28*100>100,100,T28/COUNTRY_INFO!E28*100), "-"),0) -> - | V28: =IF(AND(COUNTRY_INFO!J28>1,COUNTRY_INFO!J28<4),IF(COUNTRY_INFO!F28>MAX('MDA1'!K28,'MDA2'!K28,'T1'!M28,MAX(T3_R1!L28,T3_R2!L28)),MAX('MDA1'!K28,'MDA2'!K28,'T1'!M28,MAX(T3_R1!L28,T3_R2!L28)),COUNTRY_INFO!F28),0) -> 3702 | W28: =IF(AND(COUNTRY_INFO!J28>1,COUNTRY_INFO!J28<4), IF(V28/COUNTRY_INFO!F28*100<>0, IF(V28/COUNTRY_INFO!F28*100>100,100,V28/COUNTRY_INFO!F28*100), "-"),0) -> 52.34728507 | X28: 3702 | Y28: =IF(AND(COUNTRY_INFO!J28>1,COUNTRY_INFO!J28<4), IF(S28/P28*100<>0, IF(X28/P28*100>100,100,X28/P28*100), "-"),0) -> 31.40748282 | Z28: =COUNTRY_INFO!O28 -> 6795 | AC28: =MAX('T1'!L28,'T2'!J28)+MAX('T1'!M28,'T2'!K28)+MAX('T1'!N28,'T2'!L28) -> 3768 | AD28: =IF(COUNTRY_INFO!K28=1,IF(COUNTRY_INFO!F28*0.33>MAX('T1'!M28,'T2'!K28),MAX('T1'!M28,'T2'!K28),COUNTRY_INFO!F28*0.33),IF(COUNTRY_INFO!K28=2,IF(COUNTRY_INFO!F28*0.5>MAX('T1'!M28,'T2'!K28),MAX('T1'!M28,'T2'!K28),COUNTRY_INFO!F28*0.5),IF(COUNTRY_INFO!K28=3,IF(COUNTRY_INFO!F28>MAX('T1'!M28,'T2'!K28),MAX('T1'!M28,'T2'!K28),COUNTRY_INFO!F28),0))) -> 3536 | AE28: =IF(AND(COUNTRY_INFO!K28>0,COUNTRY_INFO!K28<4),IF(Z28>0,IF(COUNTRY_INFO!K28=1, AD28/(COUNTRY_INFO!F28*0.33)*100, IF(COUNTRY_INFO!K28=2, AD28/(COUNTRY_INFO!F28*0.5)*100, IF(COUNTRY_INFO!K28=3, AD28/COUNTRY_INFO!F28*100))),"-"),0) -> 100 | AF28: =IF(COUNTRY_INFO!K28=2,IF(COUNTRY_INFO!G28*0.2>MAX('T1'!N28,'T2'!L28),MAX('T1'!N28,'T2'!L28),COUNTRY_INFO!G28*0.2),IF(COUNTRY_INFO!K28=3,IF(COUNTRY_INFO!G28>MAX('T1'!N28,'T2'!L28),MAX('T1'!N28,'T2'!L28),COUNTRY_INFO!G28),0)) -> 66 | AG28: =IF(AND(COUNTRY_INFO!K28>0,COUNTRY_INFO!K28<4),IF(Z28>0,IF(COUNTRY_INFO!K28=1, 0, IF(COUNTRY_INFO!K28=2, AF28/(COUNTRY_INFO!G28*0.2)*100, IF(COUNTRY_INFO!K28=3, AF28/COUNTRY_INFO!G28*100))),"-"),0) -> 2.025161092 | AH28: 3602 | AI28: =IF(AND(COUNTRY_INFO!K28>0,COUNTRY_INFO!K28<4), IF(AC28/Z28*100<>0, IF(AH28/Z28*100>100,100,AH28/Z28*100), "-"),0) -> 53.00956586 | AK28: =IF(AND(D28<>0, D28<>"Inconnu",D28<>"Interrompu",D28<>"Non requis"),D28/COUNTRY_INFO!D28, 0) -> 0 | AL28: =IF(AND(J28<>0,J28<>"Inconnu",J28<>"Interrompu",J28<>"Non requis"),J28/COUNTRY_INFO!D28, 0) -> 1 | AM28: =IF(AND(P28<>0,P28<>"Inconnu",P28<>"Non requis"),P28/(COUNTRY_INFO!E28+COUNTRY_INFO!F28), 0) -> 1 | AN28: =IF(AND(Z28<>0,Z28<>"Inconnu",Z28<>"Non requis"),IF(COUNTRY_INFO!K28=1,1,IF(COUNTRY_INFO!K28=2,0.5*COUNTRY_INFO!F28/(0.5*COUNTRY_INFO!F28+0.2*COUNTRY_INFO!G28),IF(COUNTRY_INFO!K28=3,COUNTRY_INFO!F28/(COUNTRY_INFO!F28+COUNTRY_INFO!G28)))),0) -> 0.5203826343 | AO28: =IF(AND(Z28<>0,Z28<>"Inconnu",Z28<>"Non requis"),IF(COUNTRY_INFO!K28=1,0,IF(COUNTRY_INFO!K28=2,0.2*COUNTRY_INFO!G28/(0.5*COUNTRY_INFO!F28+0.2*COUNTRY_INFO!G28),IF(COUNTRY_INFO!K28=3,COUNTRY_INFO!G28/(COUNTRY_INFO!F28+COUNTRY_INFO!G28)))),0) -> 0.4796173657 | AP28: =MAX(COUNTRY_INFO!D28*AK28*PROFILE!$G$7,COUNTRY_INFO!D28*AL28*PROFILE!$G$7) -> 1384.891017 | AQ28: =MAX(COUNTRY_INFO!D28*AK28*PROFILE!$G$8,COUNTRY_INFO!D28*AL28*PROFILE!$G$8,COUNTRY_INFO!D28*AM28*PROFILE!$G$8) -> 4714.561837 | AR28: =MAX(COUNTRY_INFO!D28*AK28*PROFILE!$G$9,COUNTRY_INFO!D28*AL28*PROFILE!$G$9,COUNTRY_INFO!D28*AM28*PROFILE!$G$9,IF(AND(DISTRICT!Z28<>"Inconnu",Z28<>"Non requis"),COUNTRY_INFO!O28*DISTRICT!AN28,0)) -> 7071.839475 | AS28: =MAX(COUNTRY_INFO!D28*AK28*PROFILE!$G$10,COUNTRY_INFO!D28*AL28*PROFILE!$G$10,IF(AND(DISTRICT!Z28<>"Inconnu",Z28<>"Non requis"),COUNTRY_INFO!O28*DISTRICT!AO28,0)) -> 16294.70767 | AT28: 29466 | AU28: Y | AV28: =MAX('MDA2'!J28,'T1'!L28,'T2'!J28,T3_R1!K28,T3_R2!K28) -> 0 | AW28: =MAX('MDA1'!K28,'MDA2'!K28,'MDA3'!I28,'MDA3'!L28,'T1'!M28,'T2'!K28,T3_R1!L28,T3_R2!L28) -> 3702 | AX28: =MAX('MDA1'!L28,'MDA2'!L28,'MDA3'!J28,'MDA3'!M28,'T1'!N28,'T2'!L28,T3_R1!M28,T3_R2!M28) -> 738 | AY28: 4440 | AZ28: =MAX('MDA2'!J28,T28) -> 0 | BA28: =MAX('MDA1'!K28,'MDA2'!K28,'MDA3'!I28,'MDA3'!L28,V28,AD28) -> 3702 | BB28: =MAX('MDA1'!L28,'MDA2'!L28,'MDA3'!J28,'MDA3'!M28,AF28) -> 738 | BC28: 4440 | BD28: 15.06821421
A29: =IF(COUNTRY_INFO!A29=0," ",COUNTRY_INFO!A29) -> Congo | B29: =IF(COUNTRY_INFO!B29=0," ",COUNTRY_INFO!B29) -> Lékoumou | C29: =IF(COUNTRY_INFO!C29=0," ",COUNTRY_INFO!C29) -> Sibiti | D29: =COUNTRY_INFO!L29 -> 0 | G29: =MAX('MDA1'!M29,'MDA2'!M29) -> 0 | H29: =IF(AND(COUNTRY_INFO!H29>0,COUNTRY_INFO!H29<4),IF(D29>MAX('MDA1'!M29,'MDA2'!M29),MAX('MDA1'!M29,'MDA2'!M29),D29),0) -> 0 | I29: =IF(AND(COUNTRY_INFO!H29>0,COUNTRY_INFO!H29<4), IF(G29/D29*100<>0, IF(G29/D29*100>100,100,G29/D29*100), "-"),0) -> 0 | J29: =COUNTRY_INFO!M29 -> 90984 | M29: =MAX('MDA1'!M29,MAX('MDA3'!I29,'MDA3'!L29)+MAX('MDA3'!J29,'MDA3'!M29)) -> 591 | N29: =IF(AND(COUNTRY_INFO!I29>0,COUNTRY_INFO!I29<4),IF(J29>MAX('MDA1'!M29,MAX('MDA3'!I29,'MDA3'!L29)+MAX('MDA3'!J29,'MDA3'!M29)),MAX('MDA1'!M29,MAX('MDA3'!I29,'MDA3'!L29)+MAX('MDA3'!J29,'MDA3'!M29)),J29),0) -> 591 | O29: =IF(AND(COUNTRY_INFO!I29>0,COUNTRY_INFO!I29<4), IF(M29/J29*100<>0, IF(M29/J29*100>100,100,M29/J29*100), "-"),0) -> 0.6495647586 | P29: =COUNTRY_INFO!N29 -> 36393 | S29: =SUM(MAX('MDA2'!J29, 'T1'!L29, MAX(T3_R1!K29, T3_R2!K29)), MAX('MDA1'!K29, 'MDA2'!K29, 'T1'!M29, MAX(T3_R1!L29, T3_R2!L29)), MAX('MDA1'!L29, 'MDA2'!L29, 'T1'!N29, MAX(T3_R1!M29, T3_R2!M29))) -> 14518 | T29: =IF(AND(COUNTRY_INFO!J29>1,COUNTRY_INFO!J29<4),IF(COUNTRY_INFO!E29>MAX('MDA2'!J29,'T1'!L29,MAX(T3_R1!K29,T3_R2!K29)),MAX('MDA2'!J29,'T1'!L29,MAX(T3_R1!K29,T3_R2!K29)),COUNTRY_INFO!E29),0) -> 0 | U29: =IF(AND(COUNTRY_INFO!J29>1,COUNTRY_INFO!J29<4), IF(T29/COUNTRY_INFO!E29*100<>0, IF(T29/COUNTRY_INFO!E29*100>100,100,T29/COUNTRY_INFO!E29*100), "-"),0) -> - | V29: =IF(AND(COUNTRY_INFO!J29>1,COUNTRY_INFO!J29<4),IF(COUNTRY_INFO!F29>MAX('MDA1'!K29,'MDA2'!K29,'T1'!M29,MAX(T3_R1!L29,T3_R2!L29)),MAX('MDA1'!K29,'MDA2'!K29,'T1'!M29,MAX(T3_R1!L29,T3_R2!L29)),COUNTRY_INFO!F29),0) -> 14181 | W29: =IF(AND(COUNTRY_INFO!J29>1,COUNTRY_INFO!J29<4), IF(V29/COUNTRY_INFO!F29*100<>0, IF(V29/COUNTRY_INFO!F29*100>100,100,V29/COUNTRY_INFO!F29*100), "-"),0) -> 64.94321304 | X29: 14181 | Y29: =IF(AND(COUNTRY_INFO!J29>1,COUNTRY_INFO!J29<4), IF(S29/P29*100<>0, IF(X29/P29*100>100,100,X29/P29*100), "-"),0) -> 38.96628473 | Z29: =COUNTRY_INFO!O29 -> 20980.8 | AC29: =MAX('T1'!L29,'T2'!J29)+MAX('T1'!M29,'T2'!K29)+MAX('T1'!N29,'T2'!L29) -> 14518 | AD29: =IF(COUNTRY_INFO!K29=1,IF(COUNTRY_INFO!F29*0.33>MAX('T1'!M29,'T2'!K29),MAX('T1'!M29,'T2'!K29),COUNTRY_INFO!F29*0.33),IF(COUNTRY_INFO!K29=2,IF(COUNTRY_INFO!F29*0.5>MAX('T1'!M29,'T2'!K29),MAX('T1'!M29,'T2'!K29),COUNTRY_INFO!F29*0.5),IF(COUNTRY_INFO!K29=3,IF(COUNTRY_INFO!F29>MAX('T1'!M29,'T2'!K29),MAX('T1'!M29,'T2'!K29),COUNTRY_INFO!F29),0))) -> 10918 | AE29: =IF(AND(COUNTRY_INFO!K29>0,COUNTRY_INFO!K29<4),IF(Z29>0,IF(COUNTRY_INFO!K29=1, AD29/(COUNTRY_INFO!F29*0.33)*100, IF(COUNTRY_INFO!K29=2, AD29/(COUNTRY_INFO!F29*0.5)*100, IF(COUNTRY_INFO!K29=3, AD29/COUNTRY_INFO!F29*100))),"-"),0) -> 100 | AF29: =IF(COUNTRY_INFO!K29=2,IF(COUNTRY_INFO!G29*0.2>MAX('T1'!N29,'T2'!L29),MAX('T1'!N29,'T2'!L29),COUNTRY_INFO!G29*0.2),IF(COUNTRY_INFO!K29=3,IF(COUNTRY_INFO!G29>MAX('T1'!N29,'T2'!L29),MAX('T1'!N29,'T2'!L29),COUNTRY_INFO!G29),0)) -> 337 | AG29: =IF(AND(COUNTRY_INFO!K29>0,COUNTRY_INFO!K29<4),IF(Z29>0,IF(COUNTRY_INFO!K29=1, 0, IF(COUNTRY_INFO!K29=2, AF29/(COUNTRY_INFO!G29*0.2)*100, IF(COUNTRY_INFO!K29=3, AF29/COUNTRY_INFO!G29*100))),"-"),0) -> 3.348968478 | AH29: 11255 | AI29: =IF(AND(COUNTRY_INFO!K29>0,COUNTRY_INFO!K29<4), IF(AC29/Z29*100<>0, IF(AH29/Z29*100>100,100,AH29/Z29*100), "-"),0) -> 53.6442843 | AK29: =IF(AND(D29<>0, D29<>"Inconnu",D29<>"Interrompu",D29<>"Non requis"),D29/COUNTRY_INFO!D29, 0) -> 0 | AL29: =IF(AND(J29<>0,J29<>"Inconnu",J29<>"Interrompu",J29<>"Non requis"),J29/COUNTRY_INFO!D29, 0) -> 1 | AM29: =IF(AND(P29<>0,P29<>"Inconnu",P29<>"Non requis"),P29/(COUNTRY_INFO!E29+COUNTRY_INFO!F29), 0) -> 1 | AN29: =IF(AND(Z29<>0,Z29<>"Inconnu",Z29<>"Non requis"),IF(COUNTRY_INFO!K29=1,1,IF(COUNTRY_INFO!K29=2,0.5*COUNTRY_INFO!F29/(0.5*COUNTRY_INFO!F29+0.2*COUNTRY_INFO!G29),IF(COUNTRY_INFO!K29=3,COUNTRY_INFO!F29/(COUNTRY_INFO!F29+COUNTRY_INFO!G29)))),0) -> 0.5203805384 | AO29: =IF(AND(Z29<>0,Z29<>"Inconnu",Z29<>"Non requis"),IF(COUNTRY_INFO!K29=1,0,IF(COUNTRY_INFO!K29=2,0.2*COUNTRY_INFO!G29/(0.5*COUNTRY_INFO!F29+0.2*COUNTRY_INFO!G29),IF(COUNTRY_INFO!K29=3,COUNTRY_INFO!G29/(COUNTRY_INFO!F29+COUNTRY_INFO!G29)))),0) -> 0.4796194616 | AP29: =MAX(COUNTRY_INFO!D29*AK29*PROFILE!$G$7,COUNTRY_INFO!D29*AL29*PROFILE!$G$7) -> 4276.214087 | AQ29: =MAX(COUNTRY_INFO!D29*AK29*PROFILE!$G$8,COUNTRY_INFO!D29*AL29*PROFILE!$G$8,COUNTRY_INFO!D29*AM29*PROFILE!$G$8) -> 14557.44567 | AR29: =MAX(COUNTRY_INFO!D29*AK29*PROFILE!$G$9,COUNTRY_INFO!D29*AL29*PROFILE!$G$9,COUNTRY_INFO!D29*AM29*PROFILE!$G$9,IF(AND(DISTRICT!Z29<>"Inconnu",Z29<>"Non requis"),COUNTRY_INFO!O29*DISTRICT!AN29,0)) -> 21836.15838 | AS29: =MAX(COUNTRY_INFO!D29*AK29*PROFILE!$G$10,COUNTRY_INFO!D29*AL29*PROFILE!$G$10,IF(AND(DISTRICT!Z29<>"Inconnu",Z29<>"Non requis"),COUNTRY_INFO!O29*DISTRICT!AO29,0)) -> 50314.18186 | AT29: 90984 | AU29: Y | AV29: =MAX('MDA2'!J29,'T1'!L29,'T2'!J29,T3_R1!K29,T3_R2!K29) -> 0 | AW29: =MAX('MDA1'!K29,'MDA2'!K29,'MDA3'!I29,'MDA3'!L29,'T1'!M29,'T2'!K29,T3_R1!L29,T3_R2!L29) -> 14181 | AX29: =MAX('MDA1'!L29,'MDA2'!L29,'MDA3'!J29,'MDA3'!M29,'T1'!N29,'T2'!L29,T3_R1!M29,T3_R2!M29) -> 449 | AY29: 14630 | AZ29: =MAX('MDA2'!J29,T29) -> 0 | BA29: =MAX('MDA1'!K29,'MDA2'!K29,'MDA3'!I29,'MDA3'!L29,V29,AD29) -> 14181 | BB29: =MAX('MDA1'!L29,'MDA2'!L29,'MDA3'!J29,'MDA3'!M29,AF29) -> 449 | BC29: 14630 | BD29: 16.07975029
A30: =IF(COUNTRY_INFO!A30=0," ",COUNTRY_INFO!A30) -> Congo | B30: =IF(COUNTRY_INFO!B30=0," ",COUNTRY_INFO!B30) -> Lékoumou | C30: =IF(COUNTRY_INFO!C30=0," ",COUNTRY_INFO!C30) -> Zanaga | D30: =COUNTRY_INFO!L30 -> 0 | G30: =MAX('MDA1'!M30,'MDA2'!M30) -> 0 | H30: =IF(AND(COUNTRY_INFO!H30>0,COUNTRY_INFO!H30<4),IF(D30>MAX('MDA1'!M30,'MDA2'!M30),MAX('MDA1'!M30,'MDA2'!M30),D30),0) -> 0 | I30: =IF(AND(COUNTRY_INFO!H30>0,COUNTRY_INFO!H30<4), IF(G30/D30*100<>0, IF(G30/D30*100>100,100,G30/D30*100), "-"),0) -> 0 | J30: =COUNTRY_INFO!M30 -> 0 | M30: =MAX('MDA1'!M30,MAX('MDA3'!I30,'MDA3'!L30)+MAX('MDA3'!J30,'MDA3'!M30)) -> 0 | N30: =IF(AND(COUNTRY_INFO!I30>0,COUNTRY_INFO!I30<4),IF(J30>MAX('MDA1'!M30,MAX('MDA3'!I30,'MDA3'!L30)+MAX('MDA3'!J30,'MDA3'!M30)),MAX('MDA1'!M30,MAX('MDA3'!I30,'MDA3'!L30)+MAX('MDA3'!J30,'MDA3'!M30)),J30),0) -> 0 | O30: =IF(AND(COUNTRY_INFO!I30>0,COUNTRY_INFO!I30<4), IF(M30/J30*100<>0, IF(M30/J30*100>100,100,M30/J30*100), "-"),0) -> 0 | P30: =COUNTRY_INFO!N30 -> 10479 | S30: =SUM(MAX('MDA2'!J30, 'T1'!L30, MAX(T3_R1!K30, T3_R2!K30)), MAX('MDA1'!K30, 'MDA2'!K30, 'T1'!M30, MAX(T3_R1!L30, T3_R2!L30)), MAX('MDA1'!L30, 'MDA2'!L30, 'T1'!N30, MAX(T3_R1!M30, T3_R2!M30))) -> 4000 | T30: =IF(AND(COUNTRY_INFO!J30>1,COUNTRY_INFO!J30<4),IF(COUNTRY_INFO!E30>MAX('MDA2'!J30,'T1'!L30,MAX(T3_R1!K30,T3_R2!K30)),MAX('MDA2'!J30,'T1'!L30,MAX(T3_R1!K30,T3_R2!K30)),COUNTRY_INFO!E30),0) -> 0 | U30: =IF(AND(COUNTRY_INFO!J30>1,COUNTRY_INFO!J30<4), IF(T30/COUNTRY_INFO!E30*100<>0, IF(T30/COUNTRY_INFO!E30*100>100,100,T30/COUNTRY_INFO!E30*100), "-"),0) -> - | V30: =IF(AND(COUNTRY_INFO!J30>1,COUNTRY_INFO!J30<4),IF(COUNTRY_INFO!F30>MAX('MDA1'!K30,'MDA2'!K30,'T1'!M30,MAX(T3_R1!L30,T3_R2!L30)),MAX('MDA1'!K30,'MDA2'!K30,'T1'!M30,MAX(T3_R1!L30,T3_R2!L30)),COUNTRY_INFO!F30),0) -> 4000 | W30: =IF(AND(COUNTRY_INFO!J30>1,COUNTRY_INFO!J30<4), IF(V30/COUNTRY_INFO!F30*100<>0, IF(V30/COUNTRY_INFO!F30*100>100,100,V30/COUNTRY_INFO!F30*100), "-"),0) -> 63.62334977 | X30: 4000 | Y30: =IF(AND(COUNTRY_INFO!J30>1,COUNTRY_INFO!J30<4), IF(S30/P30*100<>0, IF(X30/P30*100>100,100,X30/P30*100), "-"),0) -> 38.17158126 | Z30: =COUNTRY_INFO!O30 -> 0 | AC30: =MAX('T1'!L30,'T2'!J30)+MAX('T1'!M30,'T2'!K30)+MAX('T1'!N30,'T2'!L30) -> 0 | AD30: =IF(COUNTRY_INFO!K30=1,IF(COUNTRY_INFO!F30*0.33>MAX('T1'!M30,'T2'!K30),MAX('T1'!M30,'T2'!K30),COUNTRY_INFO!F30*0.33),IF(COUNTRY_INFO!K30=2,IF(COUNTRY_INFO!F30*0.5>MAX('T1'!M30,'T2'!K30),MAX('T1'!M30,'T2'!K30),COUNTRY_INFO!F30*0.5),IF(COUNTRY_INFO!K30=3,IF(COUNTRY_INFO!F30>MAX('T1'!M30,'T2'!K30),MAX('T1'!M30,'T2'!K30),COUNTRY_INFO!F30),0))) -> 0 | AE30: =IF(AND(COUNTRY_INFO!K30>0,COUNTRY_INFO!K30<4),IF(Z30>0,IF(COUNTRY_INFO!K30=1, AD30/(COUNTRY_INFO!F30*0.33)*100, IF(COUNTRY_INFO!K30=2, AD30/(COUNTRY_INFO!F30*0.5)*100, IF(COUNTRY_INFO!K30=3, AD30/COUNTRY_INFO!F30*100))),"-"),0) -> 0 | AF30: =IF(COUNTRY_INFO!K30=2,IF(COUNTRY_INFO!G30*0.2>MAX('T1'!N30,'T2'!L30),MAX('T1'!N30,'T2'!L30),COUNTRY_INFO!G30*0.2),IF(COUNTRY_INFO!K30=3,IF(COUNTRY_INFO!G30>MAX('T1'!N30,'T2'!L30),MAX('T1'!N30,'T2'!L30),COUNTRY_INFO!G30),0)) -> 0 | AG30: =IF(AND(COUNTRY_INFO!K30>0,COUNTRY_INFO!K30<4),IF(Z30>0,IF(COUNTRY_INFO!K30=1, 0, IF(COUNTRY_INFO!K30=2, AF30/(COUNTRY_INFO!G30*0.2)*100, IF(COUNTRY_INFO!K30=3, AF30/COUNTRY_INFO!G30*100))),"-"),0) -> 0 | AH30: 0 | AI30: =IF(AND(COUNTRY_INFO!K30>0,COUNTRY_INFO!K30<4), IF(AC30/Z30*100<>0, IF(AH30/Z30*100>100,100,AH30/Z30*100), "-"),0) -> 0 | AK30: =IF(AND(D30<>0, D30<>"Inconnu",D30<>"Interrompu",D30<>"Non requis"),D30/COUNTRY_INFO!D30, 0) -> 0 | AL30: =IF(AND(J30<>0,J30<>"Inconnu",J30<>"Interrompu",J30<>"Non requis"),J30/COUNTRY_INFO!D30, 0) -> 0 | AM30: =IF(AND(P30<>0,P30<>"Inconnu",P30<>"Non requis"),P30/(COUNTRY_INFO!E30+COUNTRY_INFO!F30), 0) -> 1 | AN30: =IF(AND(Z30<>0,Z30<>"Inconnu",Z30<>"Non requis"),IF(COUNTRY_INFO!K30=1,1,IF(COUNTRY_INFO!K30=2,0.5*COUNTRY_INFO!F30/(0.5*COUNTRY_INFO!F30+0.2*COUNTRY_INFO!G30),IF(COUNTRY_INFO!K30=3,COUNTRY_INFO!F30/(COUNTRY_INFO!F30+COUNTRY_INFO!G30)))),0) -> 0 | AO30: =IF(AND(Z30<>0,Z30<>"Inconnu",Z30<>"Non requis"),IF(COUNTRY_INFO!K30=1,0,IF(COUNTRY_INFO!K30=2,0.2*COUNTRY_INFO!G30/(0.5*COUNTRY_INFO!F30+0.2*COUNTRY_INFO!G30),IF(COUNTRY_INFO!K30=3,COUNTRY_INFO!G30/(COUNTRY_INFO!F30+COUNTRY_INFO!G30)))),0) -> 0 | AP30: =MAX(COUNTRY_INFO!D30*AK30*PROFILE!$G$7,COUNTRY_INFO!D30*AL30*PROFILE!$G$7) -> 0 | AQ30: =MAX(COUNTRY_INFO!D30*AK30*PROFILE!$G$8,COUNTRY_INFO!D30*AL30*PROFILE!$G$8,COUNTRY_INFO!D30*AM30*PROFILE!$G$8) -> 4191.521633 | AR30: =MAX(COUNTRY_INFO!D30*AK30*PROFILE!$G$9,COUNTRY_INFO!D30*AL30*PROFILE!$G$9,COUNTRY_INFO!D30*AM30*PROFILE!$G$9,IF(AND(DISTRICT!Z30<>"Inconnu",Z30<>"Non requis"),COUNTRY_INFO!O30*DISTRICT!AN30,0)) -> 6287.279533 | AS30: =MAX(COUNTRY_INFO!D30*AK30*PROFILE!$G$10,COUNTRY_INFO!D30*AL30*PROFILE!$G$10,IF(AND(DISTRICT!Z30<>"Inconnu",Z30<>"Non requis"),COUNTRY_INFO!O30*DISTRICT!AO30,0)) -> 0 | AT30: 10478.80117 | AU30: Y | AV30: =MAX('MDA2'!J30,'T1'!L30,'T2'!J30,T3_R1!K30,T3_R2!K30) -> 0 | AW30: =MAX('MDA1'!K30,'MDA2'!K30,'MDA3'!I30,'MDA3'!L30,'T1'!M30,'T2'!K30,T3_R1!L30,T3_R2!L30) -> 4000 | AX30: =MAX('MDA1'!L30,'MDA2'!L30,'MDA3'!J30,'MDA3'!M30,'T1'!N30,'T2'!L30,T3_R1!M30,T3_R2!M30) -> 0 | AY30: 4000 | AZ30: =MAX('MDA2'!J30,T30) -> 0 | BA30: =MAX('MDA1'!K30,'MDA2'!K30,'MDA3'!I30,'MDA3'!L30,V30,AD30) -> 4000 | BB30: =MAX('MDA1'!L30,'MDA2'!L30,'MDA3'!J30,'MDA3'!M30,AF30) -> 0 | BC30: 4000 | BD30: 38.17230556
A31: =IF(COUNTRY_INFO!A31=0," ",COUNTRY_INFO!A31) -> Congo | B31: =IF(COUNTRY_INFO!B31=0," ",COUNTRY_INFO!B31) -> Likouala | C31: =IF(COUNTRY_INFO!C31=0," ",COUNTRY_INFO!C31) -> Bétou | D31: =COUNTRY_INFO!L31 -> 0 | G31: =MAX('MDA1'!M31,'MDA2'!M31) -> 0 | H31: =IF(AND(COUNTRY_INFO!H31>0,COUNTRY_INFO!H31<4),IF(D31>MAX('MDA1'!M31,'MDA2'!M31),MAX('MDA1'!M31,'MDA2'!M31),D31),0) -> 0 | I31: =IF(AND(COUNTRY_INFO!H31>0,COUNTRY_INFO!H31<4), IF(G31/D31*100<>0, IF(G31/D31*100>100,100,G31/D31*100), "-"),0) -> 0 | J31: =COUNTRY_INFO!M31 -> 0 | M31: =MAX('MDA1'!M31,MAX('MDA3'!I31,'MDA3'!L31)+MAX('MDA3'!J31,'MDA3'!M31)) -> 0 | N31: =IF(AND(COUNTRY_INFO!I31>0,COUNTRY_INFO!I31<4),IF(J31>MAX('MDA1'!M31,MAX('MDA3'!I31,'MDA3'!L31)+MAX('MDA3'!J31,'MDA3'!M31)),MAX('MDA1'!M31,MAX('MDA3'!I31,'MDA3'!L31)+MAX('MDA3'!J31,'MDA3'!M31)),J31),0) -> 0 | O31: =IF(AND(COUNTRY_INFO!I31>0,COUNTRY_INFO!I31<4), IF(M31/J31*100<>0, IF(M31/J31*100>100,100,M31/J31*100), "-"),0) -> 0 | P31: =COUNTRY_INFO!N31 -> 24764 | S31: =SUM(MAX('MDA2'!J31, 'T1'!L31, MAX(T3_R1!K31, T3_R2!K31)), MAX('MDA1'!K31, 'MDA2'!K31, 'T1'!M31, MAX(T3_R1!L31, T3_R2!L31)), MAX('MDA1'!L31, 'MDA2'!L31, 'T1'!N31, MAX(T3_R1!M31, T3_R2!M31))) -> 13976 | T31: =IF(AND(COUNTRY_INFO!J31>1,COUNTRY_INFO!J31<4),IF(COUNTRY_INFO!E31>MAX('MDA2'!J31,'T1'!L31,MAX(T3_R1!K31,T3_R2!K31)),MAX('MDA2'!J31,'T1'!L31,MAX(T3_R1!K31,T3_R2!K31)),COUNTRY_INFO!E31),0) -> 0 | U31: =IF(AND(COUNTRY_INFO!J31>1,COUNTRY_INFO!J31<4), IF(T31/COUNTRY_INFO!E31*100<>0, IF(T31/COUNTRY_INFO!E31*100>100,100,T31/COUNTRY_INFO!E31*100), "-"),0) -> - | V31: =IF(AND(COUNTRY_INFO!J31>1,COUNTRY_INFO!J31<4),IF(COUNTRY_INFO!F31>MAX('MDA1'!K31,'MDA2'!K31,'T1'!M31,MAX(T3_R1!L31,T3_R2!L31)),MAX('MDA1'!K31,'MDA2'!K31,'T1'!M31,MAX(T3_R1!L31,T3_R2!L31)),COUNTRY_INFO!F31),0) -> 13976 | W31: =IF(AND(COUNTRY_INFO!J31>1,COUNTRY_INFO!J31<4), IF(V31/COUNTRY_INFO!F31*100<>0, IF(V31/COUNTRY_INFO!F31*100>100,100,V31/COUNTRY_INFO!F31*100), "-"),0) -> 94.06380401 | X31: 13976 | Y31: =IF(AND(COUNTRY_INFO!J31>1,COUNTRY_INFO!J31<4), IF(S31/P31*100<>0, IF(X31/P31*100>100,100,X31/P31*100), "-"),0) -> 56.43676304 | Z31: =COUNTRY_INFO!O31 -> 0 | AC31: =MAX('T1'!L31,'T2'!J31)+MAX('T1'!M31,'T2'!K31)+MAX('T1'!N31,'T2'!L31) -> 0 | AD31: =IF(COUNTRY_INFO!K31=1,IF(COUNTRY_INFO!F31*0.33>MAX('T1'!M31,'T2'!K31),MAX('T1'!M31,'T2'!K31),COUNTRY_INFO!F31*0.33),IF(COUNTRY_INFO!K31=2,IF(COUNTRY_INFO!F31*0.5>MAX('T1'!M31,'T2'!K31),MAX('T1'!M31,'T2'!K31),COUNTRY_INFO!F31*0.5),IF(COUNTRY_INFO!K31=3,IF(COUNTRY_INFO!F31>MAX('T1'!M31,'T2'!K31),MAX('T1'!M31,'T2'!K31),COUNTRY_INFO!F31),0))) -> 0 | AE31: =IF(AND(COUNTRY_INFO!K31>0,COUNTRY_INFO!K31<4),IF(Z31>0,IF(COUNTRY_INFO!K31=1, AD31/(COUNTRY_INFO!F31*0.33)*100, IF(COUNTRY_INFO!K31=2, AD31/(COUNTRY_INFO!F31*0.5)*100, IF(COUNTRY_INFO!K31=3, AD31/COUNTRY_INFO!F31*100))),"-"),0) -> 0 | AF31: =IF(COUNTRY_INFO!K31=2,IF(COUNTRY_INFO!G31*0.2>MAX('T1'!N31,'T2'!L31),MAX('T1'!N31,'T2'!L31),COUNTRY_INFO!G31*0.2),IF(COUNTRY_INFO!K31=3,IF(COUNTRY_INFO!G31>MAX('T1'!N31,'T2'!L31),MAX('T1'!N31,'T2'!L31),COUNTRY_INFO!G31),0)) -> 0 | AG31: =IF(AND(COUNTRY_INFO!K31>0,COUNTRY_INFO!K31<4),IF(Z31>0,IF(COUNTRY_INFO!K31=1, 0, IF(COUNTRY_INFO!K31=2, AF31/(COUNTRY_INFO!G31*0.2)*100, IF(COUNTRY_INFO!K31=3, AF31/COUNTRY_INFO!G31*100))),"-"),0) -> 0 | AH31: 0 | AI31: =IF(AND(COUNTRY_INFO!K31>0,COUNTRY_INFO!K31<4), IF(AC31/Z31*100<>0, IF(AH31/Z31*100>100,100,AH31/Z31*100), "-"),0) -> 0 | AK31: =IF(AND(D31<>0, D31<>"Inconnu",D31<>"Interrompu",D31<>"Non requis"),D31/COUNTRY_INFO!D31, 0) -> 0 | AL31: =IF(AND(J31<>0,J31<>"Inconnu",J31<>"Interrompu",J31<>"Non requis"),J31/COUNTRY_INFO!D31, 0) -> 0 | AM31: =IF(AND(P31<>0,P31<>"Inconnu",P31<>"Non requis"),P31/(COUNTRY_INFO!E31+COUNTRY_INFO!F31), 0) -> 1 | AN31: =IF(AND(Z31<>0,Z31<>"Inconnu",Z31<>"Non requis"),IF(COUNTRY_INFO!K31=1,1,IF(COUNTRY_INFO!K31=2,0.5*COUNTRY_INFO!F31/(0.5*COUNTRY_INFO!F31+0.2*COUNTRY_INFO!G31),IF(COUNTRY_INFO!K31=3,COUNTRY_INFO!F31/(COUNTRY_INFO!F31+COUNTRY_INFO!G31)))),0) -> 0 | AO31: =IF(AND(Z31<>0,Z31<>"Inconnu",Z31<>"Non requis"),IF(COUNTRY_INFO!K31=1,0,IF(COUNTRY_INFO!K31=2,0.2*COUNTRY_INFO!G31/(0.5*COUNTRY_INFO!F31+0.2*COUNTRY_INFO!G31),IF(COUNTRY_INFO!K31=3,COUNTRY_INFO!G31/(COUNTRY_INFO!F31+COUNTRY_INFO!G31)))),0) -> 0 | AP31: =MAX(COUNTRY_INFO!D31*AK31*PROFILE!$G$7,COUNTRY_INFO!D31*AL31*PROFILE!$G$7) -> 0 | AQ31: =MAX(COUNTRY_INFO!D31*AK31*PROFILE!$G$8,COUNTRY_INFO!D31*AL31*PROFILE!$G$8,COUNTRY_INFO!D31*AM31*PROFILE!$G$8) -> 9905.60386 | AR31: =MAX(COUNTRY_INFO!D31*AK31*PROFILE!$G$9,COUNTRY_INFO!D31*AL31*PROFILE!$G$9,COUNTRY_INFO!D31*AM31*PROFILE!$G$9,IF(AND(DISTRICT!Z31<>"Inconnu",Z31<>"Non requis"),COUNTRY_INFO!O31*DISTRICT!AN31,0)) -> 14858.3989 | AS31: =MAX(COUNTRY_INFO!D31*AK31*PROFILE!$G$10,COUNTRY_INFO!D31*AL31*PROFILE!$G$10,IF(AND(DISTRICT!Z31<>"Inconnu",Z31<>"Non requis"),COUNTRY_INFO!O31*DISTRICT!AO31,0)) -> 0 | AT31: 24764.00276 | AU31: Y | AV31: =MAX('MDA2'!J31,'T1'!L31,'T2'!J31,T3_R1!K31,T3_R2!K31) -> 0 | AW31: =MAX('MDA1'!K31,'MDA2'!K31,'MDA3'!I31,'MDA3'!L31,'T1'!M31,'T2'!K31,T3_R1!L31,T3_R2!L31) -> 13976 | AX31: =MAX('MDA1'!L31,'MDA2'!L31,'MDA3'!J31,'MDA3'!M31,'T1'!N31,'T2'!L31,T3_R1!M31,T3_R2!M31) -> 0 | AY31: 13976 | AZ31: =MAX('MDA2'!J31,T31) -> 0 | BA31: =MAX('MDA1'!K31,'MDA2'!K31,'MDA3'!I31,'MDA3'!L31,V31,AD31) -> 13976 | BB31: =MAX('MDA1'!L31,'MDA2'!L31,'MDA3'!J31,'MDA3'!M31,AF31) -> 0 | BC31: 13976 | BD31: 56.43675676
A32: =IF(COUNTRY_INFO!A32=0," ",COUNTRY_INFO!A32) -> Congo | B32: =IF(COUNTRY_INFO!B32=0," ",COUNTRY_INFO!B32) -> Likouala | C32: =IF(COUNTRY_INFO!C32=0," ",COUNTRY_INFO!C32) -> Impfondo | D32: =COUNTRY_INFO!L32 -> 125428 | G32: =MAX('MDA1'!M32,'MDA2'!M32) -> 0 | H32: =IF(AND(COUNTRY_INFO!H32>0,COUNTRY_INFO!H32<4),IF(D32>MAX('MDA1'!M32,'MDA2'!M32),MAX('MDA1'!M32,'MDA2'!M32),D32),0) -> 0 | I32: =IF(AND(COUNTRY_INFO!H32>0,COUNTRY_INFO!H32<4), IF(G32/D32*100<>0, IF(G32/D32*100>100,100,G32/D32*100), "-"),0) -> - | J32: =COUNTRY_INFO!M32 -> 0 | M32: =MAX('MDA1'!M32,MAX('MDA3'!I32,'MDA3'!L32)+MAX('MDA3'!J32,'MDA3'!M32)) -> 0 | N32: =IF(AND(COUNTRY_INFO!I32>0,COUNTRY_INFO!I32<4),IF(J32>MAX('MDA1'!M32,MAX('MDA3'!I32,'MDA3'!L32)+MAX('MDA3'!J32,'MDA3'!M32)),MAX('MDA1'!M32,MAX('MDA3'!I32,'MDA3'!L32)+MAX('MDA3'!J32,'MDA3'!M32)),J32),0) -> 0 | O32: =IF(AND(COUNTRY_INFO!I32>0,COUNTRY_INFO!I32<4), IF(M32/J32*100<>0, IF(M32/J32*100>100,100,M32/J32*100), "-"),0) -> 0 | P32: =COUNTRY_INFO!N32 -> 50171 | S32: =SUM(MAX('MDA2'!J32, 'T1'!L32, MAX(T3_R1!K32, T3_R2!K32)), MAX('MDA1'!K32, 'MDA2'!K32, 'T1'!M32, MAX(T3_R1!L32, T3_R2!L32)), MAX('MDA1'!L32, 'MDA2'!L32, 'T1'!N32, MAX(T3_R1!M32, T3_R2!M32))) -> 17227 | T32: =IF(AND(COUNTRY_INFO!J32>1,COUNTRY_INFO!J32<4),IF(COUNTRY_INFO!E32>MAX('MDA2'!J32,'T1'!L32,MAX(T3_R1!K32,T3_R2!K32)),MAX('MDA2'!J32,'T1'!L32,MAX(T3_R1!K32,T3_R2!K32)),COUNTRY_INFO!E32),0) -> 0 | U32: =IF(AND(COUNTRY_INFO!J32>1,COUNTRY_INFO!J32<4), IF(T32/COUNTRY_INFO!E32*100<>0, IF(T32/COUNTRY_INFO!E32*100>100,100,T32/COUNTRY_INFO!E32*100), "-"),0) -> - | V32: =IF(AND(COUNTRY_INFO!J32>1,COUNTRY_INFO!J32<4),IF(COUNTRY_INFO!F32>MAX('MDA1'!K32,'MDA2'!K32,'T1'!M32,MAX(T3_R1!L32,T3_R2!L32)),MAX('MDA1'!K32,'MDA2'!K32,'T1'!M32,MAX(T3_R1!L32,T3_R2!L32)),COUNTRY_INFO!F32),0) -> 17227 | W32: =IF(AND(COUNTRY_INFO!J32>1,COUNTRY_INFO!J32<4), IF(V32/COUNTRY_INFO!F32*100<>0, IF(V32/COUNTRY_INFO!F32*100>100,100,V32/COUNTRY_INFO!F32*100), "-"),0) -> 57.22685447 | X32: 17227 | Y32: =IF(AND(COUNTRY_INFO!J32>1,COUNTRY_INFO!J32<4), IF(S32/P32*100<>0, IF(X32/P32*100>100,100,X32/P32*100), "-"),0) -> 34.33656893 | Z32: =COUNTRY_INFO!O32 -> 0 | AC32: =MAX('T1'!L32,'T2'!J32)+MAX('T1'!M32,'T2'!K32)+MAX('T1'!N32,'T2'!L32) -> 0 | AD32: =IF(COUNTRY_INFO!K32=1,IF(COUNTRY_INFO!F32*0.33>MAX('T1'!M32,'T2'!K32),MAX('T1'!M32,'T2'!K32),COUNTRY_INFO!F32*0.33),IF(COUNTRY_INFO!K32=2,IF(COUNTRY_INFO!F32*0.5>MAX('T1'!M32,'T2'!K32),MAX('T1'!M32,'T2'!K32),COUNTRY_INFO!F32*0.5),IF(COUNTRY_INFO!K32=3,IF(COUNTRY_INFO!F32>MAX('T1'!M32,'T2'!K32),MAX('T1'!M32,'T2'!K32),COUNTRY_INFO!F32),0))) -> 0 | AE32: =IF(AND(COUNTRY_INFO!K32>0,COUNTRY_INFO!K32<4),IF(Z32>0,IF(COUNTRY_INFO!K32=1, AD32/(COUNTRY_INFO!F32*0.33)*100, IF(COUNTRY_INFO!K32=2, AD32/(COUNTRY_INFO!F32*0.5)*100, IF(COUNTRY_INFO!K32=3, AD32/COUNTRY_INFO!F32*100))),"-"),0) -> 0 | AF32: =IF(COUNTRY_INFO!K32=2,IF(COUNTRY_INFO!G32*0.2>MAX('T1'!N32,'T2'!L32),MAX('T1'!N32,'T2'!L32),COUNTRY_INFO!G32*0.2),IF(COUNTRY_INFO!K32=3,IF(COUNTRY_INFO!G32>MAX('T1'!N32,'T2'!L32),MAX('T1'!N32,'T2'!L32),COUNTRY_INFO!G32),0)) -> 0 | AG32: =IF(AND(COUNTRY_INFO!K32>0,COUNTRY_INFO!K32<4),IF(Z32>0,IF(COUNTRY_INFO!K32=1, 0, IF(COUNTRY_INFO!K32=2, AF32/(COUNTRY_INFO!G32*0.2)*100, IF(COUNTRY_INFO!K32=3, AF32/COUNTRY_INFO!G32*100))),"-"),0) -> 0 | AH32: 0 | AI32: =IF(AND(COUNTRY_INFO!K32>0,COUNTRY_INFO!K32<4), IF(AC32/Z32*100<>0, IF(AH32/Z32*100>100,100,AH32/Z32*100), "-"),0) -> 0 | AK32: =IF(AND(D32<>0, D32<>"Inconnu",D32<>"Interrompu",D32<>"Non requis"),D32/COUNTRY_INFO!D32, 0) -> 1 | AL32: =IF(AND(J32<>0,J32<>"Inconnu",J32<>"Interrompu",J32<>"Non requis"),J32/COUNTRY_INFO!D32, 0) -> 0 | AM32: =IF(AND(P32<>0,P32<>"Inconnu",P32<>"Non requis"),P32/(COUNTRY_INFO!E32+COUNTRY_INFO!F32), 0) -> 1 | AN32: =IF(AND(Z32<>0,Z32<>"Inconnu",Z32<>"Non requis"),IF(COUNTRY_INFO!K32=1,1,IF(COUNTRY_INFO!K32=2,0.5*COUNTRY_INFO!F32/(0.5*COUNTRY_INFO!F32+0.2*COUNTRY_INFO!G32),IF(COUNTRY_INFO!K32=3,COUNTRY_INFO!F32/(COUNTRY_INFO!F32+COUNTRY_INFO!G32)))),0) -> 0 | AO32: =IF(AND(Z32<>0,Z32<>"Inconnu",Z32<>"Non requis"),IF(COUNTRY_INFO!K32=1,0,IF(COUNTRY_INFO!K32=2,0.2*COUNTRY_INFO!G32/(0.5*COUNTRY_INFO!F32+0.2*COUNTRY_INFO!G32),IF(COUNTRY_INFO!K32=3,COUNTRY_INFO!G32/(COUNTRY_INFO!F32+COUNTRY_INFO!G32)))),0) -> 0 | AP32: =MAX(COUNTRY_INFO!D32*AK32*PROFILE!$G$7,COUNTRY_INFO!D32*AL32*PROFILE!$G$7) -> 5895.069249 | AQ32: =MAX(COUNTRY_INFO!D32*AK32*PROFILE!$G$8,COUNTRY_INFO!D32*AL32*PROFILE!$G$8,COUNTRY_INFO!D32*AM32*PROFILE!$G$8) -> 20068.48782 | AR32: =MAX(COUNTRY_INFO!D32*AK32*PROFILE!$G$9,COUNTRY_INFO!D32*AL32*PROFILE!$G$9,COUNTRY_INFO!D32*AM32*PROFILE!$G$9,IF(AND(DISTRICT!Z32<>"Inconnu",Z32<>"Non requis"),COUNTRY_INFO!O32*DISTRICT!AN32,0)) -> 30102.71777 | AS32: =MAX(COUNTRY_INFO!D32*AK32*PROFILE!$G$10,COUNTRY_INFO!D32*AL32*PROFILE!$G$10,IF(AND(DISTRICT!Z32<>"Inconnu",Z32<>"Non requis"),COUNTRY_INFO!O32*DISTRICT!AO32,0)) -> 69361.72517 | AT32: 125428 | AU32: 0 | AV32: =MAX('MDA2'!J32,'T1'!L32,'T2'!J32,T3_R1!K32,T3_R2!K32) -> 0 | AW32: =MAX('MDA1'!K32,'MDA2'!K32,'MDA3'!I32,'MDA3'!L32,'T1'!M32,'T2'!K32,T3_R1!L32,T3_R2!L32) -> 17227 | AX32: =MAX('MDA1'!L32,'MDA2'!L32,'MDA3'!J32,'MDA3'!M32,'T1'!N32,'T2'!L32,T3_R1!M32,T3_R2!M32) -> 0 | AY32: 17227 | AZ32: =MAX('MDA2'!J32,T32) -> 0 | BA32: =MAX('MDA1'!K32,'MDA2'!K32,'MDA3'!I32,'MDA3'!L32,V32,AD32) -> 17227 | BB32: =MAX('MDA1'!L32,'MDA2'!L32,'MDA3'!J32,'MDA3'!M32,AF32) -> 0 | BC32: 17227 | BD32: 13.73457282
A33: =IF(COUNTRY_INFO!A33=0," ",COUNTRY_INFO!A33) -> Congo | B33: =IF(COUNTRY_INFO!B33=0," ",COUNTRY_INFO!B33) -> Niari | C33: =IF(COUNTRY_INFO!C33=0," ",COUNTRY_INFO!C33) -> Dolisie | D33: =COUNTRY_INFO!L33 -> 169051 | E33: 2814 | F33: 3074 | G33: =MAX('MDA1'!M33,'MDA2'!M33) -> 5888 | H33: =IF(AND(COUNTRY_INFO!H33>0,COUNTRY_INFO!H33<4),IF(D33>MAX('MDA1'!M33,'MDA2'!M33),MAX('MDA1'!M33,'MDA2'!M33),D33),0) -> 5888 | I33: =IF(AND(COUNTRY_INFO!H33>0,COUNTRY_INFO!H33<4), IF(G33/D33*100<>0, IF(G33/D33*100>100,100,G33/D33*100), "-"),0) -> 3.482972594 | J33: =COUNTRY_INFO!M33 -> 169051 | K33: 2814 | L33: 3074 | M33: =MAX('MDA1'!M33,MAX('MDA3'!I33,'MDA3'!L33)+MAX('MDA3'!J33,'MDA3'!M33)) -> 5888 | N33: =IF(AND(COUNTRY_INFO!I33>0,COUNTRY_INFO!I33<4),IF(J33>MAX('MDA1'!M33,MAX('MDA3'!I33,'MDA3'!L33)+MAX('MDA3'!J33,'MDA3'!M33)),MAX('MDA1'!M33,MAX('MDA3'!I33,'MDA3'!L33)+MAX('MDA3'!J33,'MDA3'!M33)),J33),0) -> 5888 | O33: =IF(AND(COUNTRY_INFO!I33>0,COUNTRY_INFO!I33<4), IF(M33/J33*100<>0, IF(M33/J33*100>100,100,M33/J33*100), "-"),0) -> 3.482972594 | P33: =COUNTRY_INFO!N33 -> 67620 | S33: =SUM(MAX('MDA2'!J33, 'T1'!L33, MAX(T3_R1!K33, T3_R2!K33)), MAX('MDA1'!K33, 'MDA2'!K33, 'T1'!M33, MAX(T3_R1!L33, T3_R2!L33)), MAX('MDA1'!L33, 'MDA2'!L33, 'T1'!N33, MAX(T3_R1!M33, T3_R2!M33))) -> 74105 | T33: =IF(AND(COUNTRY_INFO!J33>1,COUNTRY_INFO!J33<4),IF(COUNTRY_INFO!E33>MAX('MDA2'!J33,'T1'!L33,MAX(T3_R1!K33,T3_R2!K33)),MAX('MDA2'!J33,'T1'!L33,MAX(T3_R1!K33,T3_R2!K33)),COUNTRY_INFO!E33),0) -> 0 | U33: =IF(AND(COUNTRY_INFO!J33>1,COUNTRY_INFO!J33<4), IF(T33/COUNTRY_INFO!E33*100<>0, IF(T33/COUNTRY_INFO!E33*100>100,100,T33/COUNTRY_INFO!E33*100), "-"),0) -> - | V33: =IF(AND(COUNTRY_INFO!J33>1,COUNTRY_INFO!J33<4),IF(COUNTRY_INFO!F33>MAX('MDA1'!K33,'MDA2'!K33,'T1'!M33,MAX(T3_R1!L33,T3_R2!L33)),MAX('MDA1'!K33,'MDA2'!K33,'T1'!M33,MAX(T3_R1!L33,T3_R2!L33)),COUNTRY_INFO!F33),0) -> 17785 | W33: =IF(AND(COUNTRY_INFO!J33>1,COUNTRY_INFO!J33<4), IF(V33/COUNTRY_INFO!F33*100<>0, IF(V33/COUNTRY_INFO!F33*100>100,100,V33/COUNTRY_INFO!F33*100), "-"),0) -> 43.8356502 | X33: 17785 | Y33: =IF(AND(COUNTRY_INFO!J33>1,COUNTRY_INFO!J33<4), IF(S33/P33*100<>0, IF(X33/P33*100>100,100,X33/P33*100), "-"),0) -> 26.30139012 | Z33: =COUNTRY_INFO!O33 -> 13388.76 | AC33: =MAX('T1'!L33,'T2'!J33)+MAX('T1'!M33,'T2'!K33)+MAX('T1'!N33,'T2'!L33) -> 0 | AD33: =IF(COUNTRY_INFO!K33=1,IF(COUNTRY_INFO!F33*0.33>MAX('T1'!M33,'T2'!K33),MAX('T1'!M33,'T2'!K33),COUNTRY_INFO!F33*0.33),IF(COUNTRY_INFO!K33=2,IF(COUNTRY_INFO!F33*0.5>MAX('T1'!M33,'T2'!K33),MAX('T1'!M33,'T2'!K33),COUNTRY_INFO!F33*0.5),IF(COUNTRY_INFO!K33=3,IF(COUNTRY_INFO!F33>MAX('T1'!M33,'T2'!K33),MAX('T1'!M33,'T2'!K33),COUNTRY_INFO!F33),0))) -> 0 | AE33: =IF(AND(COUNTRY_INFO!K33>0,COUNTRY_INFO!K33<4),IF(Z33>0,IF(COUNTRY_INFO!K33=1, AD33/(COUNTRY_INFO!F33*0.33)*100, IF(COUNTRY_INFO!K33=2, AD33/(COUNTRY_INFO!F33*0.5)*100, IF(COUNTRY_INFO!K33=3, AD33/COUNTRY_INFO!F33*100))),"-"),0) -> 0 | AF33: =IF(COUNTRY_INFO!K33=2,IF(COUNTRY_INFO!G33*0.2>MAX('T1'!N33,'T2'!L33),MAX('T1'!N33,'T2'!L33),COUNTRY_INFO!G33*0.2),IF(COUNTRY_INFO!K33=3,IF(COUNTRY_INFO!G33>MAX('T1'!N33,'T2'!L33),MAX('T1'!N33,'T2'!L33),COUNTRY_INFO!G33),0)) -> 0 | AG33: =IF(AND(COUNTRY_INFO!K33>0,COUNTRY_INFO!K33<4),IF(Z33>0,IF(COUNTRY_INFO!K33=1, 0, IF(COUNTRY_INFO!K33=2, AF33/(COUNTRY_INFO!G33*0.2)*100, IF(COUNTRY_INFO!K33=3, AF33/COUNTRY_INFO!G33*100))),"-"),0) -> 0 | AH33: 0 | AI33: =IF(AND(COUNTRY_INFO!K33>0,COUNTRY_INFO!K33<4), IF(AC33/Z33*100<>0, IF(AH33/Z33*100>100,100,AH33/Z33*100), "-"),0) -> - | AK33: =IF(AND(D33<>0, D33<>"Inconnu",D33<>"Interrompu",D33<>"Non requis"),D33/COUNTRY_INFO!D33, 0) -> 1 | AL33: =IF(AND(J33<>0,J33<>"Inconnu",J33<>"Interrompu",J33<>"Non requis"),J33/COUNTRY_INFO!D33, 0) -> 1 | AM33: =IF(AND(P33<>0,P33<>"Inconnu",P33<>"Non requis"),P33/(COUNTRY_INFO!E33+COUNTRY_INFO!F33), 0) -> 1 | AN33: =IF(AND(Z33<>0,Z33<>"Inconnu",Z33<>"Non requis"),IF(COUNTRY_INFO!K33=1,1,IF(COUNTRY_INFO!K33=2,0.5*COUNTRY_INFO!F33/(0.5*COUNTRY_INFO!F33+0.2*COUNTRY_INFO!G33),IF(COUNTRY_INFO!K33=3,COUNTRY_INFO!F33/(COUNTRY_INFO!F33+COUNTRY_INFO!G33)))),0) -> 1 | AO33: =IF(AND(Z33<>0,Z33<>"Inconnu",Z33<>"Non requis"),IF(COUNTRY_INFO!K33=1,0,IF(COUNTRY_INFO!K33=2,0.2*COUNTRY_INFO!G33/(0.5*COUNTRY_INFO!F33+0.2*COUNTRY_INFO!G33),IF(COUNTRY_INFO!K33=3,COUNTRY_INFO!G33/(COUNTRY_INFO!F33+COUNTRY_INFO!G33)))),0) -> 0 | AP33: =MAX(COUNTRY_INFO!D33*AK33*PROFILE!$G$7,COUNTRY_INFO!D33*AL33*PROFILE!$G$7) -> 7945.333989 | AQ33: =MAX(COUNTRY_INFO!D33*AK33*PROFILE!$G$8,COUNTRY_INFO!D33*AL33*PROFILE!$G$8,COUNTRY_INFO!D33*AM33*PROFILE!$G$8) -> 27048.17054 | AR33: =MAX(COUNTRY_INFO!D33*AK33*PROFILE!$G$9,COUNTRY_INFO!D33*AL33*PROFILE!$G$9,COUNTRY_INFO!D33*AM33*PROFILE!$G$9,IF(AND(DISTRICT!Z33<>"Inconnu",Z33<>"Non requis"),COUNTRY_INFO!O33*DISTRICT!AN33,0)) -> 40572.23699 | AS33: =MAX(COUNTRY_INFO!D33*AK33*PROFILE!$G$10,COUNTRY_INFO!D33*AL33*PROFILE!$G$10,IF(AND(DISTRICT!Z33<>"Inconnu",Z33<>"Non requis"),COUNTRY_INFO!O33*DISTRICT!AO33,0)) -> 93485.25848 | AT33: 169051 | AU33: 0 | AV33: =MAX('MDA2'!J33,'T1'!L33,'T2'!J33,T3_R1!K33,T3_R2!K33) -> 0 | AW33: =MAX('MDA1'!K33,'MDA2'!K33,'MDA3'!I33,'MDA3'!L33,'T1'!M33,'T2'!K33,T3_R1!L33,T3_R2!L33) -> 17785 | AX33: =MAX('MDA1'!L33,'MDA2'!L33,'MDA3'!J33,'MDA3'!M33,'T1'!N33,'T2'!L33,T3_R1!M33,T3_R2!M33) -> 56320 | AY33: 74105 | AZ33: =MAX('MDA2'!J33,T33) -> 0 | BA33: =MAX('MDA1'!K33,'MDA2'!K33,'MDA3'!I33,'MDA3'!L33,V33,AD33) -> 17785 | BB33: =MAX('MDA1'!L33,'MDA2'!L33,'MDA3'!J33,'MDA3'!M33,AF33) -> 4475 | BC33: 22260 | BD33: 13.16762397
